Workbook

Sheet APRESENTAÇÃO
B5: FERRAMENTA DE APOIO À TOMADA DE DECISÃO PARA AQUISIÇÃO DE TECNOLOGIAS EM SAÚDE
B14: Escolha o Estado em que está situado o EAS | C14: RN
B16: Escolha o nome do EAS | C16: HOSPITAL UNIVERSITARIO ANA BEZERRA
B32: Essa ferramenta baseou-se na metodologia AHP e tem como entrada (input), conforme a figura acima a tecnologia a ser avaliada e o Estabelecimento Assistencial de Saúde (EAS) que receberá a tecnologia. Como condições prévias para estas entradas, temos que:
B34: a) Toda e qualquer tecnologia em saúde necessita possuir registro (classe de risco III ou IV) ou notificação (classes de risco I e II) vigente na ANVISA. A tecnologia avaliada neste trabalho possui classe de risco III (alto risco);
B36: b) O EAS precisa possuir cadastro no CNES.
B38: Portanto clique no botão INPUT para iniciar. Logo após, os 6 passos precisam ser precisam ser seguidos, sendo que 6º e último passo configura-se como o output. Para acessar cada passo, clique no ícone de cada passo na figura acima.

Sheet PASSO_1 - PROJ_HIERARQUIA
B2: FERRAMENTA DE APOIO À TOMADA DE DECISÃO PARA AQUISIÇÃO DE TECNOLOGIAS EM SAÚDE
B4: Input - Definir a tecnologia a ser avaliada e o EAS que receberá a tecnologia
B6: Tecnologia em saúde
B8: Escolha a tecnologia a ser avaliada | C8: Equipamento de Ressonancia Magnetica
B11: Estabelecimento Assistencial de Saúde (EAS)
B13: Escolha o Estado em que está situado o EAS | D13: RN
B15: Escolha o nome do EAS | C15: HOSPITAL UNIVERSITARIO ANA BEZERRA
B17: Escolha o Estado em que está situado o EAS | C17: RN
B19: Escolha o nome do EAS | C19: HOSPITAL UNIVERSITARIO ANA BEZERRA
B24: Passo 1 - Desenvolver o modelo (projetar a hierarquia)
B26: Informe o objetivo/alvo | C26: Análise de viabilidade de aquisição de Tomógrafo Computadorizado
B29: Informe os critérios
B34: Informe o 1º critério - C1 | C34: Clínico
B36: Informe o 2º critério - C2 | C36: Admissibilidade
B38: Informe o 3º critério - C3 | C38: Técnico
B40: Informe o 4º critério - C4 | C40: Operacional
B42: Informe o 5º critério - C5 | C42: Econômico
B46: Informe os subcritérios
B52: Informe o 1º subcritério ref.: ao 1º critério - C1.1 | C52: Desfecho clínico (outcome)
B54: Informe o 2º subcritério ref.: ao 1º critério - C1.2 | C54: Potencialidades do equipamento
B56: Informe o 3º subcritério ref.: ao 1º critério - C1.3 | C56: Fase do ciclo de vida
B71: Informe o 1º subcritério ref.: ao 2º critério - C2.1 | C71: Parâmetros assistenciais do SUS
B73: Informe o 2º subcritério ref.: ao 2º critério - C2.2 | C73: Planejamento Estratégico
B75: Informe o 3º subcritério ref.: ao 2º critério - C2.3 | C75: Recursos humanos
B77: Informe o 4º subcritério ref.: ao 2º critério - C2.4 | C77: Ensino e Pesquisa
B85: Informe o 1º subcritério ref.: ao 3º critério - C3.1 | C85: Capacidade de produção/atendimento
B87: Informe o 2º subcritério ref.: ao 3º critério - C3.2 | C87: Resolução espacial
B89: Informe o 3º subcritério ref.: ao 3º critério - C3.3 | C89: Velocidade de execução
B98: Informe o 1º subcritério ref.: ao 4º critério - C4.1 | C98: Adequação de infraestrutura
B100: Informe o 2º subcritério ref.: ao 4º critério - C4.2 | C100: Fornecimento e gestão de insumos
B110: Informe o 1º subcritério ref.: ao 5º critério - C5.1 | C110: Custo Total de Propriedade
B112: Informe o 2º subcritério ref.: ao 5º critério - C5.2 | C112: Sustenbilidade financeira
B119: Informe as alternativas
B124: Informe a 1ª alternativa - A1 | C124: Não adquirir a tecnologia
B126: Informe a 2ª alternativa - A2 | C126: Adquirir TC 16 canais
B128: Informe a 3ª alternativa - A3 | C128: Adquirir TC 64 canais
B130: Informe a 4ª alternativa - A4 | C130: Adquirir RM 1,5 T
B132: Informe a 5ª alternativa - A5 | C132: Adquirir RM 3 T

Sheet PASSO_2A - PESOS_CRITÉRIOS
B2: FERRAMENTA DE APOIO À TOMADA DE DECISÃO PARA AQUISIÇÃO DE TECNOLOGIAS EM SAÚDE
B4: Passo 2A - Estabelecer os pesos para os critérios
B6: Pressupostos
B8: ESCALA DE PECCHIA et al., 2013 | D8: AVALIAÇÃO NUMÉRICA | G8: Tabela de índices de consistência aleatória (RI) (SAATY, 2005)
B9: Muito mais importante | D9: 5 | F9: 5 | G9: N | H9: 1 | I9: 2 | J9: 3 | K9: 4 | L9: 5 | M9: 6 | N9: 7 | O9: 8 | P9: 9 | Q9: 10
B10: Mais importante | D10: 3 | F10: 3 | G10: RI | H10: 0 | I10: 0 | J10: 0.58 | K10: 0.9 | L10: 1.12 | M10: 1.24 | N10: 1.32 | O10: 1.41 | P10: 1.45 | Q10: 1.49
B11: Igualmente importante | D11: 1 | F11: 1
B12: Menos importante | D12: 1/3 | F12: =1/3 -> 0.3333333333
B13: Muito menos importante | D13: 1/5 | F13: =1/5 -> 0.2
B15: Faça as comparações entre cada critério de acordo com a escala acima
B17: De acordo com sua experiência, quão IMPORTANTE é o PRIMEIRO CRITÉRIO em relação ao Segundo?
E19: Muito menos | F19: Menos | G19: Igualmente | H19: Mais | I19: Muito mais
B20: 1º) CLÍNICO x 2º) Admissibilidade | J20: 4
B22: 1º) CLÍNICO x 2º) Técnico | J22: 5
B24: 1º) CLÍNICO x 2º) Operacional | J24: 2
B26: 1º) CLÍNICO x 2º) Econômico | J26: 2
B28: 1º) ADMISSIBILIDADE x 2º) Técnico | J28: 4
B30: 1º) ADMISSIBILIDADE x 2º) Operacional | J30: 2
B32: 1º) ADMISSIBILIDADE x 2º) Econômico | J32: 2
B34: 1º) TÉCNICO x 2º) Operacional | J34: 2
B36: 1º) TÉCNICO x 2º) Econômico | J36: 2
B38: 1º) OPERACIONAL x 2º) Econômico | J38: 3
B40: Matriz de julgamentos
B42: Critérios | C42: =MID('PASSO_1 - PROJ_HIERARQUIA'!$C$34,1,15) -> Clínico | D42: =MID('PASSO_1 - PROJ_HIERARQUIA'!$C$36,1,15) -> Admissibilidade | E42: =MID('PASSO_1 - PROJ_HIERARQUIA'!$C$38,1,15) -> Técnico | F42: =MID('PASSO_1 - PROJ_HIERARQUIA'!$C$40,1,15) -> Operacional | G42: =MID('PASSO_1 - PROJ_HIERARQUIA'!$C$42,1,15) -> Econômico
B43: =MID('PASSO_1 - PROJ_HIERARQUIA'!$C$34,1,15) -> Clínico | C43: 1.0000 | D43: =_xlfn.IFS($J20=1,$F$13,$J20=2,$F$12,$J20=3,$F$11,$J20=4,$F$10,$J20=5,$F$9) -> 3.0000 | E43: =_xlfn.IFS($J22=1,$F$13,$J22=2,$F$12,$J22=3,$F$11,$J22=4,$F$10,$J22=5,$F$9) -> 5.0000 | F43: =_xlfn.IFS($J24=1,$F$13,$J24=2,$F$12,$J24=3,$F$11,$J24=4,$F$10,$J24=5,$F$9) -> 0.3333 | G43: =_xlfn.IFS($J26=1,$F$13,$J26=2,$F$12,$J26=3,$F$11,$J26=4,$F$10,$J26=5,$F$9) -> 0.3333
B44: =MID('PASSO_1 - PROJ_HIERARQUIA'!$C$36,1,15) -> Admissibilidade | C44: =1/D43 -> 0.3333 | D44: 1.0000 | E44: =_xlfn.IFS($J28=1,$F$13,$J28=2,$F$12,$J28=3,$F$11,$J28=4,$F$10,$J28=5,$F$9) -> 3.0000 | F44: =_xlfn.IFS($J30=1,$F$13,$J30=2,$F$12,$J30=3,$F$11,$J30=4,$F$10,$J30=5,$F$9) -> 0.3333 | G44: =_xlfn.IFS($J32=1,$F$13,$J32=2,$F$12,$J32=3,$F$11,$J32=4,$F$10,$J32=5,$F$9) -> 0.3333
B45: =MID('PASSO_1 - PROJ_HIERARQUIA'!$C$38,1,15) -> Técnico | C45: =1/E43 -> 0.2000 | D45: =1/E44 -> 0.3333 | E45: 1.0000 | F45: =_xlfn.IFS($J34=1,$F$13,$J34=2,$F$12,$J34=3,$F$11,$J34=4,$F$10,$J34=5,$F$9) -> 0.3333 | G45: =_xlfn.IFS($J36=1,$F$13,$J36=2,$F$12,$J36=3,$F$11,$J36=4,$F$10,$J36=5,$F$9) -> 0.3333
B46: =MID('PASSO_1 - PROJ_HIERARQUIA'!$C$40,1,15) -> Operacional | C46: =1/F43 -> 3.0000 | D46: =1/F44 -> 3.0000 | E46: =1/F45 -> 3.0000 | F46: 1.0000 | G46: =_xlfn.IFS($J38=1,$F$13,$J38=2,$F$12,$J38=3,$F$11,$J38=4,$F$10,$J38=5,$F$9) -> 1.0000
B47: =MID('PASSO_1 - PROJ_HIERARQUIA'!$C$42,1,15) -> Econômico | C47: =1/G43 -> 3.0000 | D47: =1/G44 -> 3.0000 | E47: =1/G45 -> 3.0000 | F47: =1/G46 -> 1.0000 | G47: 1.0000
B49: Pesos dos critérios
B51: =C42 -> Clínico | C51: C1 | D51: =Pesos_critérios_cálculos!I11 -> 0.1930
B53: =MID('PASSO_1 - PROJ_HIERARQUIA'!$C$36,1,15) -> Admissibilidade | C53: C2 | D53: =Pesos_critérios_cálculos!I12 -> 0.1068
B55: =MID('PASSO_1 - PROJ_HIERARQUIA'!$C$38,1,15) -> Técnico | C55: C3 | D55: =Pesos_critérios_cálculos!I13 -> 0.0650
B57: =MID('PASSO_1 - PROJ_HIERARQUIA'!$C$40,1,15) -> Operacional | C57: C4 | D57: =Pesos_critérios_cálculos!I14 -> 0.3176
B59: =G42 -> Econômico | C59: C5 | D59: =Pesos_critérios_cálculos!I15 -> 0.3176
B61: Análise de consistência
B63: CR | C63: =Pesos_critérios_cálculos!I22 -> 0.0957 | D63: =Pesos_critérios_cálculos!H23 -> CONSISTENTE

Sheet PASSO_2B - PESOS_SUBCRITÉRIOS
B2: FERRAMENTA DE APOIO À TOMADA DE DECISÃO PARA AQUISIÇÃO DE TECNOLOGIAS EM SAÚDE
B4: Passo 2B - Estabelecer os pesos para os subcritérios
B6: Pressupostos
B8: ESCALA DE PECCHIA et al., 2013 | D8: AVALIAÇÃO NUMÉRICA | G8: Tabela de índices de consistência aleatória (RI) (SAATY, 2005)
B9: Muito mais importante | D9: 5 | F9: 5 | G9: N | H9: 1 | I9: 2 | J9: 3 | K9: 4 | L9: 5 | M9: 6 | N9: 7 | O9: 8 | P9: 9 | Q9: 10
B10: Mais importante | D10: 3 | F10: 3 | G10: RI | H10: 0 | I10: 0 | J10: 0.58 | K10: 0.9 | L10: 1.12 | M10: 1.24 | N10: 1.32 | O10: 1.41 | P10: 1.45 | Q10: 1.49
B11: Igualmente importante | D11: 1 | F11: 1
B12: Menos importante | D12: 1/3 | F12: =1/3 -> 0.3333333333
B13: Muito menos importante | D13: 1/5 | F13: =1/5 -> 0.2
B15: Faça as comparações entre cada subcritério do critério CLÍNICO (C1) de acordo com a escala acima
B17: De acordo com sua experiência, quão IMPORTANTE é o PRIMEIRO SUBCRITÉRIO em relação ao Segundo?
E19: Muito menos | F19: Menos | G19: Igualmente | H19: Mais | I19: Muito mais
B20: 1º) DESFECHO CLÍNICO x 2º) Potencialidades | J20: 4
B22: 1º) DESFECHO CLÍNICO x 2º) Fase do ciclo de vida | J22: 4
B24: 1º) POTENCIALIDADES x 2º) Fase do ciclo de vida | J24: 4
B26: Matriz de julgamentos | J26: 5
B28: Subcritérios de C1 | C28: =MID('PASSO_1 - PROJ_HIERARQUIA'!C52,1,40) -> Desfecho clínico (outcome) | D28: =MID('PASSO_1 - PROJ_HIERARQUIA'!C54,1,40) -> Potencialidades do equipamento | E28: =MID('PASSO_1 - PROJ_HIERARQUIA'!C56,1,40) -> Fase do ciclo de vida | J28: 1
B29: =C28 -> Desfecho clínico (outcome) | C29: 1.0000 | D29: =_xlfn.IFS($J20=1,$F$13,$J20=2,$F$12,$J20=3,$F$11,$J20=4,$F$10,$J20=5,$F$9) -> 3.0000 | E29: =_xlfn.IFS($J22=1,$F$13,$J22=2,$F$12,$J22=3,$F$11,$J22=4,$F$10,$J22=5,$F$9) -> 3.0000
B30: =D28 -> Potencialidades do equipamento | C30: =1/D29 -> 0.3333 | D30: 1.0000 | E30: =_xlfn.IFS($J24=1,$F$13,$J24=2,$F$12,$J24=3,$F$11,$J24=4,$F$10,$J24=5,$F$9) -> 3.0000 | J30: 2
B31: =E28 -> Fase do ciclo de vida | C31: =1/E29 -> 0.3333 | D31: =1/E30 -> 0.3333 | E31: 1.0000
J32: 2
B33: Pesos dos subcritérios de C1
J34: 2
B35: =C28 -> Desfecho clínico (outcome) | C35: C1.1 | D35: =Pesos_subcritérios_cálculos!K11 -> 0.5842
B37: =D28 -> Potencialidades do equipamento | C37: C1.2 | D37: =Pesos_subcritérios_cálculos!K12 -> 0.2808 | J37: 0
B39: =E28 -> Fase do ciclo de vida | C39: C1.3 | D39: =Pesos_subcritérios_cálculos!K13 -> 0.1350
B41: Análise de consistência
B43: CR | C43: =Pesos_subcritérios_cálculos!K20 -> 0.1169 | D43: =Pesos_subcritérios_cálculos!J21 -> CONSISTENTE
B46: Faça as comparações entre cada subcritério do critério ADMISSIBILIDADE (C2) de acordo com a escala acima
B48: De acordo com sua experiência, quão IMPORTANTE é o PRIMEIRO SUBCRITÉRIO em relação ao Segundo?
E50: Muito menos | F50: Menos | G50: Igualmente | H50: Mais | I50: Muito mais
B51: 1º) PARÂMETROS ASSISTENCIAIS x 2º) Planejamento estratégico | J51: 4
B53: 1º) PARÂMETROS ASSISTENCIAIS x 2º) Recursos humanos | J53: 3
B55: 1º) PARÂMETROS ASSISTENCIAIS x 2º) Ensino e pesquisa | J55: 4
B57: 1º) PLANEJAMENTO ESTRATÉGICO x 2º) Recursos humanos | J57: 2
B59: 1º) PLANEJAMENTO ESTRATÉGICO x 2º) Ensino e pesquisa | J59: 3
B61: 1º) RECURSOS HUMANOS x 2º) Ensino e pesquisa | J61: 3
B63: Matriz de julgamentos
B65: Subcritérios de C2 | C65: =MID('PASSO_1 - PROJ_HIERARQUIA'!$C71,1,35) -> Parâmetros assistenciais do SUS | D65: =MID('PASSO_1 - PROJ_HIERARQUIA'!$C73,1,35) -> Planejamento Estratégico | E65: =MID('PASSO_1 - PROJ_HIERARQUIA'!$C75,1,35) -> Recursos humanos | F65: =MID('PASSO_1 - PROJ_HIERARQUIA'!$C77,1,35) -> Ensino e Pesquisa
B66: =C65 -> Parâmetros assistenciais do SUS | C66: 1.0000 | D66: =_xlfn.IFS($J51=1,$F$13,$J51=2,$F$12,$J51=3,$F$11,$J51=4,$F$10,$J51=5,$F$9) -> 3.0000 | E66: =_xlfn.IFS($J53=1,$F$13,$J53=2,$F$12,$J53=3,$F$11,$J53=4,$F$10,$J53=5,$F$9) -> 1.0000 | F66: =_xlfn.IFS($J55=1,$F$13,$J55=2,$F$12,$J55=3,$F$11,$J55=4,$F$10,$J55=5,$F$9) -> 3.0000
B67: =D65 -> Planejamento Estratégico | C67: =1/D66 -> 0.3333 | D67: 1.0000 | E67: =_xlfn.IFS($J57=1,$F$13,$J57=2,$F$12,$J57=3,$F$11,$J57=4,$F$10,$J57=5,$F$9) -> 0.3333 | F67: =_xlfn.IFS($J59=1,$F$13,$J59=2,$F$12,$J59=3,$F$11,$J59=4,$F$10,$J59=5,$F$9) -> 1.0000
B68: =E65 -> Recursos humanos | C68: =1/E66 -> 1.0000 | D68: =1/E67 -> 3.0000 | E68: 1.0000 | F68: =_xlfn.IFS($J61=1,$F$13,$J61=2,$F$12,$J61=3,$F$11,$J61=4,$F$10,$J61=5,$F$9) -> 1.0000
B69: =F65 -> Ensino e Pesquisa | C69: =1/F66 -> 0.3333 | D69: =1/F67 -> 1.0000 | E69: =1/F68 -> 1.0000 | F69: 1.0000
B71: Pesos dos subcritérios de C2
B73: =C65 -> Parâmetros assistenciais do SUS | C73: C2.1 | D73: =Pesos_subcritérios_cálculos!BP25 -> 0.3889
B75: =D65 -> Planejamento Estratégico | C75: C2.2 | D75: =Pesos_subcritérios_cálculos!BP26 -> 0.1296
B77: =E65 -> Recursos humanos | C77: C2.3 | D77: =Pesos_subcritérios_cálculos!BP27 -> 0.3031
B79: =F65 -> Ensino e Pesquisa | C79: C4.3 | D79: =Pesos_subcritérios_cálculos!BP28 -> 0.1783
B81: Análise de consistência
B83: CR | C83: =Pesos_subcritérios_cálculos!K47 -> 0.0572 | D83: =Pesos_subcritérios_cálculos!J48 -> CONSISTENTE
B86: Faça as comparações entre cada subcritério do critério TÉCNICO (C3) de acordo com a escala acima
B88: De acordo com sua experiência, quão IMPORTANTE é o PRIMEIRO SUBCRITÉRIO em relação ao Segundo?
E90: Muito menos | F90: Menos | G90: Igualmente | H90: Mais | I90: Muito mais
B91: 1º) CAPACIDADE DE PRODUÇÃO x 2º) Resolução espacial | J91: 4
B93: 1º) CAPACIDADE DE PRODUÇÃO x 2º) Velocidade de execução | J93: 4
B95: 1º) RESOLUÇÃO ESPACIAL x 2º) Velocidade de execução | J95: 3
B97: Matriz de julgamentos
B99: Subcritérios de C3 | C99: =MID('PASSO_1 - PROJ_HIERARQUIA'!C85,1,34) -> Capacidade de produção/atendimento | D99: =MID('PASSO_1 - PROJ_HIERARQUIA'!C87,1,30) -> Resolução espacial | E99: =MID('PASSO_1 - PROJ_HIERARQUIA'!C89,1,30) -> Velocidade de execução
B100: =C99 -> Capacidade de produção/atendimento | C100: 1.0000 | D100: =_xlfn.IFS($J91=1,$F$13,$J91=2,$F$12,$J91=3,$F$11,$J91=4,$F$10,$J91=5,$F$9) -> 3.0000 | E100: =_xlfn.IFS($J93=1,$F$13,$J93=2,$F$12,$J93=3,$F$11,$J93=4,$F$10,$J93=5,$F$9) -> 3.0000
B101: =D99 -> Resolução espacial | C101: =1/D100 -> 0.3333 | D101: 1.0000 | E101: =_xlfn.IFS($J95=1,$F$13,$J95=2,$F$12,$J95=3,$F$11,$J95=4,$F$10,$J95=5,$F$9) -> 1.0000
B102: =E99 -> Velocidade de execução | C102: =1/E100 -> 0.3333 | D102: =1/E101 -> 1.0000 | E102: 1.0000
B104: Pesos dos subcritérios de C3
B106: =C99 -> Capacidade de produção/atendimento | C106: C3.1 | D106: =Pesos_subcritérios_cálculos!BD52 -> 0.6000
B108: =D99 -> Resolução espacial | C108: C3.2 | D108: =Pesos_subcritérios_cálculos!BD53 -> 0.2000
B110: =E99 -> Velocidade de execução | C110: C3.3 | D110: =Pesos_subcritérios_cálculos!BD54 -> 0.2000
B112: Análise de consistência
B114: CR | C114: =Pesos_subcritérios_cálculos!K69 -> 0.0000 | D114: =Pesos_subcritérios_cálculos!J70 -> CONSISTENTE
B117: Faça as comparações entre cada subcritério do critério OPERACIONAL (C4) de acordo com a escala acima
B119: De acordo com sua experiência, quão IMPORTANTE é o PRIMEIRO SUBCRITÉRIO em relação ao Segundo?
E121: Muito menos | F121: Menos | G121: Igualmente | H121: Mais | I121: Muito mais
B122: 1º) INFRAESTRUTURA x 2º) Insumos | J122: 4
B124: Matriz de julgamentos
B126: Subcritérios de C4 | C126: =MID('PASSO_1 - PROJ_HIERARQUIA'!C98,1,30) -> Adequação de infraestrutura | D126: =MID('PASSO_1 - PROJ_HIERARQUIA'!C100,1,40) -> Fornecimento e gestão de insumos
B127: =C126 -> Adequação de infraestrutura | C127: 1.0000 | D127: =_xlfn.IFS($J122=1,$F$13,$J122=2,$F$12,$J122=3,$F$11,$J122=4,$F$10,$J122=5,$F$9) -> 3.0000
B128: =D126 -> Fornecimento e gestão de insumos | C128: =1/D127 -> 0.3333 | D128: 1.0000
B130: Pesos dos subcritérios de C4
B132: =C126 -> Adequação de infraestrutura | C132: C4.1 | D132: =Pesos_subcritérios_cálculos!V74 -> 0.7500
B134: =D126 -> Fornecimento e gestão de insumos | C134: C4.2 | D134: =Pesos_subcritérios_cálculos!V75 -> 0.2500
B136: Análise de consistência
B138: CR | C138: =IFERROR(Pesos_subcritérios_cálculos!K89,0) -> 0.0000 | D138: =Pesos_subcritérios_cálculos!J90 -> CONSISTENTE
B141: Faça as comparações entre cada subcritério do critério ECONÔMICO (C5) de acordo com a escala acima
B143: De acordo com sua experiência, quão IMPORTANTE é o PRIMEIRO SUBCRITÉRIO em relação ao Segundo?
E145: Muito menos | F145: Menos | G145: Igualmente | H145: Mais | I145: Muito mais
B146: 1º) CUSTO TOTAL DE PROPRIEDADE x 2º) Sustentabilidade Financeira | J146: 3
B148: Matriz de julgamentos
B150: Subcritérios de C5 | C150: =MID('PASSO_1 - PROJ_HIERARQUIA'!C110,1,30) -> Custo Total de Propriedade | D150: =MID('PASSO_1 - PROJ_HIERARQUIA'!C112,1,30) -> Sustenbilidade financeira
B151: =C150 -> Custo Total de Propriedade | C151: 1.0000 | D151: =_xlfn.IFS($J146=1,$F$13,$J146=2,$F$12,$J146=3,$F$11,$J146=4,$F$10,$J146=5,$F$9) -> 1.0000
B152: =D150 -> Sustenbilidade financeira | C152: =1/D151 -> 1.0000 | D152: 1.0000
B154: Pesos dos subcritérios de C5
B156: =C150 -> Custo Total de Propriedade | C156: C5.1 | D156: =Pesos_subcritérios_cálculos!V93 -> 0.5000
B158: =D150 -> Sustenbilidade financeira | C158: C5.2 | D158: =Pesos_subcritérios_cálculos!V94 -> 0.5000
B160: Análise de consistência
B162: CR | C162: =Pesos_subcritérios_cálculos!K108 -> 0.0000 | D162: =Pesos_subcritérios_cálculos!J109 -> CONSISTENTE

Sheet PASSO_3 - PESOS_ALTERNATIVAS
B2: FERRAMENTA DE APOIO À TOMADA DE DECISÃO PARA AQUISIÇÃO DE TECNOLOGIAS EM SAÚDE
B4: Passo 3 - Estabelecer os pesos para as alternativas
B6: Pressupostos
B8: ESCALA DE PECCHIA et al., 2013 | D8: AVALIAÇÃO NUMÉRICA | G8: Tabela de índices de consistência aleatória (RI) (SAATY, 2005)
B9: Muito mais importante | D9: 5 | F9: 5 | G9: N | H9: 1 | I9: 2 | J9: 3 | K9: 4 | L9: 5 | M9: 6 | N9: 7 | O9: 8 | P9: 9 | Q9: 10
B10: Mais importante | D10: 3 | F10: 3 | G10: RI | H10: 0 | I10: 0 | J10: 0.58 | K10: 0.9 | L10: 1.12 | M10: 1.24 | N10: 1.32 | O10: 1.41 | P10: 1.45 | Q10: 1.49
B11: Igualmente importante | D11: 1 | F11: 1
B12: Menos importante | D12: 1/3 | F12: =1/3 -> 0.3333333333
B13: Muito menos importante | D13: 1/5 | F13: =1/5 -> 0.2
B15: Faça as comparações entre cada alternativa de acordo com a escala acima
B17: Comparação par a par entre as cinco ALTERNATIVAS dentro do subcritério DESFECHO CLÍNICO (C1.1)
B19: De acordo com sua experiência, quão IMPORTANTE é a PRIMEIRA ALTERNATIVA em relação à Segunda?
E21: Muito menos | F21: Menos | G21: Igualmente | H21: Mais | I21: Muito mais
B22: 1º) NÃO ADQUIRIR x 2º) Adquirir TC 16 canais | J22: 1
B24: 1º) NÃO ADQUIRIR x 2º) Adquirir TC 64 canais | J24: 1
B26: 1º) NÃO ADQUIRIR x 2º) Adquirir RM 1,5 T | J26: 2
B28: 1º) NÃO ADQUIRIR x 2º) Adquirir RM 3 T | J28: 2
B30: 1º) ADQUIRIR TC 16 CANAIS x 2º) Adquirir TC 64 canais | J30: 3
B32: 1º) ADQUIRIR TC 16 CANAIS x 2º) Adquirir RM 1,5 T | J32: 4
B34: 1º) ADQUIRIR TC 16 CANAIS x 2º) Adquirir RM 3 T | J34: 4
B36: 1º) ADQUIRIR TC 64 CANAIS x 2º) Adquirir RM 1,5 T | J36: 4
B38: 1º) ADQUIRIR TC 64 CANAIS x 2º) Adquirir RM 3 T | J38: 4
B40: 1º) ADQUIRIR RM 1,5 T x 2º) Adquirir RM 3 T | J40: 3
B42: Matriz de julgamentos | J42: 5
B44: Alternativas DESFECHO CLÍNICO | C44: =MID('PASSO_1 - PROJ_HIERARQUIA'!C124,1,30) -> Não adquirir a tecnologia | D44: =MID('PASSO_1 - PROJ_HIERARQUIA'!$C$126,1,30) -> Adquirir TC 16 canais | E44: =MID('PASSO_1 - PROJ_HIERARQUIA'!$C$128,1,30) -> Adquirir TC 64 canais | F44: =MID('PASSO_1 - PROJ_HIERARQUIA'!$C$130,1,30) -> Adquirir RM 1,5 T | G44: =MID('PASSO_1 - PROJ_HIERARQUIA'!$C$132,1,30) -> Adquirir RM 3 T | J44: 1
B45: =C44 -> Não adquirir a tecnologia | C45: 1.0000 | D45: =_xlfn.IFS($J22=1,$F$13,$J22=2,$F$12,$J22=3,$F$11,$J22=4,$F$10,$J22=5,$F$9) -> 0.2000 | E45: =_xlfn.IFS($J24=1,$F$13,$J24=2,$F$12,$J24=3,$F$11,$J24=4,$F$10,$J24=5,$F$9) -> 0.2000 | F45: =_xlfn.IFS($J26=1,$F$13,$J26=2,$F$12,$J26=3,$F$11,$J26=4,$F$10,$J26=5,$F$9) -> 0.3333 | G45: =_xlfn.IFS($J28=1,$F$13,$J28=2,$F$12,$J28=3,$F$11,$J28=4,$F$10,$J28=5,$F$9) -> 0.3333
B46: =D44 -> Adquirir TC 16 canais | C46: =1/D45 -> 5.0000 | D46: 1.0000 | E46: =_xlfn.IFS($J30=1,$F$13,$J30=2,$F$12,$J30=3,$F$11,$J30=4,$F$10,$J30=5,$F$9) -> 1.0000 | F46: =_xlfn.IFS($J32=1,$F$13,$J32=2,$F$12,$J32=3,$F$11,$J32=4,$F$10,$J32=5,$F$9) -> 3.0000 | G46: =_xlfn.IFS($J34=1,$F$13,$J34=2,$F$12,$J34=3,$F$11,$J34=4,$F$10,$J34=5,$F$9) -> 3.0000 | J46: 2
B47: =E44 -> Adquirir TC 64 canais | C47: =1/E45 -> 5.0000 | D47: =1/E46 -> 1.0000 | E47: 1.0000 | F47: =_xlfn.IFS($J36=1,$F$13,$J36=2,$F$12,$J36=3,$F$11,$J36=4,$F$10,$J36=5,$F$9) -> 3.0000 | G47: =_xlfn.IFS($J38=1,$F$13,$J38=2,$F$12,$J38=3,$F$11,$J38=4,$F$10,$J38=5,$F$9) -> 3.0000
B48: =F44 -> Adquirir RM 1,5 T | C48: =1/F45 -> 3.0000 | D48: =1/F46 -> 0.3333 | E48: =1/F47 -> 0.3333 | F48: 1.0000 | G48: =_xlfn.IFS($J40=1,$F$13,$J40=2,$F$12,$J40=3,$F$11,$J40=4,$F$10,$J40=5,$F$9) -> 1.0000 | J48: 2
B49: =G44 -> Adquirir RM 3 T | C49: =1/G45 -> 3.0000 | D49: =1/G46 -> 0.3333 | E49: =1/G47 -> 0.3333 | F49: =1/G48 -> 1.0000 | G49: 1.0000
B51: Pesos das alternativas (DESFECHO CLÍNICO)
J52: 2
B53: =C44 -> Não adquirir a tecnologia | C53: A1 | D53: =Pesos_alternativas_cálculos!CV2 -> 0.0551
B55: =D44 -> Adquirir TC 16 canais | C55: A2 | D55: =Pesos_alternativas_cálculos!CV3 -> 0.3435 | J55: 0
B57: =E44 -> Adquirir TC 64 canais | C57: A3 | D57: =Pesos_alternativas_cálculos!CV4 -> 0.3435
B59: =F44 -> Adquirir RM 1,5 T | C59: A4 | D59: =Pesos_alternativas_cálculos!CV5 -> 0.1290
B61: =G44 -> Adquirir RM 3 T | C61: A5 | D61: =Pesos_alternativas_cálculos!CV6 -> 0.1290
B63: Análise de consistência
B65: CR | C65: =Pesos_alternativas_cálculos!K22 -> 0.0124 | D65: =Pesos_alternativas_cálculos!J23 -> CONSISTENTE
B68: Comparação par a par entre as cinco ALTERNATIVAS dentro do subcritério POTENCIALIDADES (C1.2)
B70: De acordo com sua experiência, quão IMPORTANTE é a PRIMEIRA ALTERNATIVA em relação à Segunda?
E72: Muito menos | F72: Menos | G72: Igualmente | H72: Mais | I72: Muito mais
B73: 1º) NÃO ADQUIRIR x 2º) Adquirir TC 16 canais | J73: 1
B75: 1º) NÃO ADQUIRIR x 2º) Adquirir TC 64 canais | J75: 2
B77: 1º) NÃO ADQUIRIR x 2º) Adquirir RM 1,5 T | J77: 2
B79: 1º) NÃO ADQUIRIR x 2º) Adquirir RM 3 T | J79: 2
B81: 1º) ADQUIRIR TC 16 CANAIS x 2º) Adquirir TC 64 canais | J81: 4
B83: 1º) ADQUIRIR TC 16 CANAIS x 2º) Adquirir RM 1,5 T | J83: 4
B85: 1º) ADQUIRIR TC 16 CANAIS x 2º) Adquirir RM 3 T | J85: 4
B87: 1º) ADQUIRIR TC 64 CANAIS x 2º) Adquirir RM 1,5 T | J87: 3
B89: 1º) ADQUIRIR TC 64 CANAIS x 2º) Adquirir RM 3 T | J89: 3
B91: 1º) ADQUIRIR RM 1,5 T x 2º) Adquirir RM 3 T | J91: 3
B93: Matriz de julgamentos
B95: Alternativas POTENCIALIDADES | C95: =MID('PASSO_1 - PROJ_HIERARQUIA'!C124,1,30) -> Não adquirir a tecnologia | D95: =MID('PASSO_1 - PROJ_HIERARQUIA'!$C$126,1,30) -> Adquirir TC 16 canais | E95: =MID('PASSO_1 - PROJ_HIERARQUIA'!$C$128,1,30) -> Adquirir TC 64 canais | F95: =MID('PASSO_1 - PROJ_HIERARQUIA'!$C$130,1,30) -> Adquirir RM 1,5 T | G95: =MID('PASSO_1 - PROJ_HIERARQUIA'!$C$132,1,30) -> Adquirir RM 3 T
B96: =C95 -> Não adquirir a tecnologia | C96: 1.0000 | D96: =_xlfn.IFS($J73=1,$F$13,$J73=2,$F$12,$J73=3,$F$11,$J73=4,$F$10,$J73=5,$F$9) -> 0.2000 | E96: =_xlfn.IFS($J75=1,$F$13,$J75=2,$F$12,$J75=3,$F$11,$J75=4,$F$10,$J75=5,$F$9) -> 0.3333 | F96: =_xlfn.IFS($J77=1,$F$13,$J77=2,$F$12,$J77=3,$F$11,$J77=4,$F$10,$J77=5,$F$9) -> 0.3333 | G96: =_xlfn.IFS($J79=1,$F$13,$J79=2,$F$12,$J79=3,$F$11,$J79=4,$F$10,$J79=5,$F$9) -> 0.3333
B97: =D95 -> Adquirir TC 16 canais | C97: =1/D96 -> 5.0000 | D97: 1.0000 | E97: =_xlfn.IFS($J81=1,$F$13,$J81=2,$F$12,$J81=3,$F$11,$J81=4,$F$10,$J81=5,$F$9) -> 3.0000 | F97: =_xlfn.IFS($J83=1,$F$13,$J83=2,$F$12,$J83=3,$F$11,$J83=4,$F$10,$J83=5,$F$9) -> 3.0000 | G97: =_xlfn.IFS($J85=1,$F$13,$J85=2,$F$12,$J85=3,$F$11,$J85=4,$F$10,$J85=5,$F$9) -> 3.0000
B98: =E95 -> Adquirir TC 64 canais | C98: =1/E96 -> 3.0000 | D98: =1/E97 -> 0.3333 | E98: 1.0000 | F98: =_xlfn.IFS($J87=1,$F$13,$J87=2,$F$12,$J87=3,$F$11,$J87=4,$F$10,$J87=5,$F$9) -> 1.0000 | G98: =_xlfn.IFS($J89=1,$F$13,$J89=2,$F$12,$J89=3,$F$11,$J89=4,$F$10,$J89=5,$F$9) -> 1.0000
B99: =F95 -> Adquirir RM 1,5 T | C99: =1/F96 -> 3.0000 | D99: =1/F97 -> 0.3333 | E99: =1/F98 -> 1.0000 | F99: 1.0000 | G99: =_xlfn.IFS($J91=1,$F$13,$J91=2,$F$12,$J91=3,$F$11,$J91=4,$F$10,$J91=5,$F$9) -> 1.0000
B100: =G95 -> Adquirir RM 3 T | C100: =1/G96 -> 3.0000 | D100: =1/G97 -> 0.3333 | E100: =1/G98 -> 1.0000 | F100: =1/G99 -> 1.0000 | G100: 1.0000
B102: Pesos das alternativas (POTENCIALIDADES)
B104: =C95 -> Não adquirir a tecnologia | C104: A1 | D104: =Pesos_alternativas_cálculos!CV30 -> 0.0627
B106: =D95 -> Adquirir TC 16 canais | C106: A2 | D106: =Pesos_alternativas_cálculos!CV31 -> 0.4438
B108: =E95 -> Adquirir TC 64 canais | C108: A3 | D108: =Pesos_alternativas_cálculos!CV32 -> 0.1645
B110: =F95 -> Adquirir RM 1,5 T | C110: A4 | D110: =Pesos_alternativas_cálculos!CV33 -> 0.1645
B112: =G95 -> Adquirir RM 3 T | C112: A5 | D112: =Pesos_alternativas_cálculos!CV34 -> 0.1645
B114: Análise de consistência
B116: CR | C116: =Pesos_alternativas_cálculos!K49 -> 0.0094 | D116: =Pesos_alternativas_cálculos!J50 -> CONSISTENTE
B119: Comparação par a par entre as cinco ALTERNATIVAS dentro do subcritério FASES DO CICLO DE VIDA (C1.3)
B121: De acordo com sua experiência, quão IMPORTANTE é a PRIMEIRA ALTERNATIVA em relação à Segunda?
E123: Muito menos | F123: Menos | G123: Igualmente | H123: Mais | I123: Muito mais
B124: 1º) NÃO ADQUIRIR x 2º) Adquirir TC 16 canais | J124: 2
B126: 1º) NÃO ADQUIRIR x 2º) Adquirir TC 64 canais | J126: 2
B128: 1º) NÃO ADQUIRIR x 2º) Adquirir RM 1,5 T | J128: 2
B130: 1º) NÃO ADQUIRIR x 2º) Adquirir RM 3 T | J130: 2
B132: 1º) ADQUIRIR TC 16 CANAIS x 2º) Adquirir TC 64 canais | J132: 3
B134: 1º) ADQUIRIR TC 16 CANAIS x 2º) Adquirir RM 1,5 T | J134: 3
B136: 1º) ADQUIRIR TC 16 CANAIS x 2º) Adquirir RM 3 T | J136: 3
B138: 1º) ADQUIRIR TC 64 CANAIS x 2º) Adquirir RM 1,5 T | J138: 3
B140: 1º) ADQUIRIR TC 64 CANAIS x 2º) Adquirir RM 3 T | J140: 3
B142: 1º) ADQUIRIR RM 1,5 T x 2º) Adquirir RM 3 T | J142: 3
B144: Matriz de julgamentos
B146: Alternativas FASES DO CICLO DE VIDA | C146: =MID('PASSO_1 - PROJ_HIERARQUIA'!C124,1,30) -> Não adquirir a tecnologia | D146: =MID('PASSO_1 - PROJ_HIERARQUIA'!$C$126,1,30) -> Adquirir TC 16 canais | E146: =MID('PASSO_1 - PROJ_HIERARQUIA'!$C$128,1,30) -> Adquirir TC 64 canais | F146: =MID('PASSO_1 - PROJ_HIERARQUIA'!$C$130,1,30) -> Adquirir RM 1,5 T | G146: =MID('PASSO_1 - PROJ_HIERARQUIA'!$C$132,1,30) -> Adquirir RM 3 T
B147: =C146 -> Não adquirir a tecnologia | C147: 1.0000 | D147: =_xlfn.IFS($J124=1,$F$13,$J124=2,$F$12,$J124=3,$F$11,$J124=4,$F$10,$J124=5,$F$9) -> 0.3333 | E147: =_xlfn.IFS($J126=1,$F$13,$J126=2,$F$12,$J126=3,$F$11,$J126=4,$F$10,$J126=5,$F$9) -> 0.3333 | F147: =_xlfn.IFS($J128=1,$F$13,$J128=2,$F$12,$J128=3,$F$11,$J128=4,$F$10,$J128=5,$F$9) -> 0.3333 | G147: =_xlfn.IFS($J130=1,$F$13,$J130=2,$F$12,$J130=3,$F$11,$J130=4,$F$10,$J130=5,$F$9) -> 0.3333
B148: =D146 -> Adquirir TC 16 canais | C148: =1/D147 -> 3.0000 | D148: 1.0000 | E148: =_xlfn.IFS($J132=1,$F$13,$J132=2,$F$12,$J132=3,$F$11,$J132=4,$F$10,$J132=5,$F$9) -> 1.0000 | F148: =_xlfn.IFS($J134=1,$F$13,$J134=2,$F$12,$J134=3,$F$11,$J134=4,$F$10,$J134=5,$F$9) -> 1.0000 | G148: =_xlfn.IFS($J136=1,$F$13,$J136=2,$F$12,$J136=3,$F$11,$J136=4,$F$10,$J136=5,$F$9) -> 1.0000
B149: =E146 -> Adquirir TC 64 canais | C149: =1/E147 -> 3.0000 | D149: =1/E148 -> 1.0000 | E149: 1.0000 | F149: =_xlfn.IFS($J138=1,$F$13,$J138=2,$F$12,$J138=3,$F$11,$J138=4,$F$10,$J138=5,$F$9) -> 1.0000 | G149: =_xlfn.IFS($J140=1,$F$13,$J140=2,$F$12,$J140=3,$F$11,$J140=4,$F$10,$J140=5,$F$9) -> 1.0000
B150: =F146 -> Adquirir RM 1,5 T | C150: =1/F147 -> 3.0000 | D150: =1/F148 -> 1.0000 | E150: =1/F149 -> 1.0000 | F150: 1.0000 | G150: =_xlfn.IFS($J142=1,$F$13,$J142=2,$F$12,$J142=3,$F$11,$J142=4,$F$10,$J142=5,$F$9) -> 1.0000
B151: =G146 -> Adquirir RM 3 T | C151: =1/G147 -> 3.0000 | D151: =1/G148 -> 1.0000 | E151: =1/G149 -> 1.0000 | F151: =1/G150 -> 1.0000 | G151: 1.0000
B153: Pesos das alternativas (FASES DO CICLO DE VIDA)
B155: =C146 -> Não adquirir a tecnologia | C155: A1 | D155: =Pesos_alternativas_cálculos!CB57 -> 0.0769
B157: =D146 -> Adquirir TC 16 canais | C157: A2 | D157: =Pesos_alternativas_cálculos!CB58 -> 0.2308
B159: =E146 -> Adquirir TC 64 canais | C159: A3 | D159: =Pesos_alternativas_cálculos!CB59 -> 0.2308
B161: =F146 -> Adquirir RM 1,5 T | C161: A4 | D161: =Pesos_alternativas_cálculos!CB60 -> 0.2308
B163: =G146 -> Adquirir RM 3 T | C163: A5 | D163: =Pesos_alternativas_cálculos!CB61 -> 0.2308
B165: Análise de consistência
B167: CR | C167: =Pesos_alternativas_cálculos!K77 -> 0.0000 | D167: =Pesos_alternativas_cálculos!J78 -> CONSISTENTE
B170: Comparação par a par entre as cinco ALTERNATIVAS dentro do subcritério PARÂMETROS ASSISTENCIAIS (C2.1)
B172: De acordo com sua experiência, quão IMPORTANTE é a PRIMEIRA ALTERNATIVA em relação à Segunda?
E174: Muito menos | F174: Menos | G174: Igualmente | H174: Mais | I174: Muito mais
B175: 1º) NÃO ADQUIRIR x 2º) Adquirir TC 16 canais | J175: 2
B177: 1º) NÃO ADQUIRIR x 2º) Adquirir TC 64 canais | J177: 2
B179: 1º) NÃO ADQUIRIR x 2º) Adquirir RM 1,5 T | J179: 2
B181: 1º) NÃO ADQUIRIR x 2º) Adquirir RM 3 T | J181: 2
B183: 1º) ADQUIRIR TC 16 CANAIS x 2º) Adquirir TC 64 canais | J183: 3
B185: 1º) ADQUIRIR TC 16 CANAIS x 2º) Adquirir RM 1,5 T | J185: 4
B187: 1º) ADQUIRIR TC 16 CANAIS x 2º) Adquirir RM 3 T | J187: 4
B189: 1º) ADQUIRIR TC 64 CANAIS x 2º) Adquirir RM 1,5 T | J189: 4
B191: 1º) ADQUIRIR TC 64 CANAIS x 2º) Adquirir RM 3 T | J191: 4
B193: 1º) ADQUIRIR RM 1,5 T x 2º) Adquirir RM 3 T | J193: 3
B195: Matriz de julgamentos
B197: Alternativas PARÂMETROS ASSISTENCIAIS | C197: =MID('PASSO_1 - PROJ_HIERARQUIA'!C124,1,30) -> Não adquirir a tecnologia | D197: =MID('PASSO_1 - PROJ_HIERARQUIA'!$C$126,1,30) -> Adquirir TC 16 canais | E197: =MID('PASSO_1 - PROJ_HIERARQUIA'!$C$128,1,30) -> Adquirir TC 64 canais | F197: =MID('PASSO_1 - PROJ_HIERARQUIA'!$C$130,1,30) -> Adquirir RM 1,5 T | G197: =MID('PASSO_1 - PROJ_HIERARQUIA'!$C$132,1,30) -> Adquirir RM 3 T
B198: =C197 -> Não adquirir a tecnologia | C198: 1.0000 | D198: =_xlfn.IFS($J175=1,$F$13,$J175=2,$F$12,$J175=3,$F$11,$J175=4,$F$10,$J175=5,$F$9) -> 0.3333 | E198: =_xlfn.IFS($J177=1,$F$13,$J177=2,$F$12,$J177=3,$F$11,$J177=4,$F$10,$J177=5,$F$9) -> 0.3333 | F198: =_xlfn.IFS($J179=1,$F$13,$J179=2,$F$12,$J179=3,$F$11,$J179=4,$F$10,$J179=5,$F$9) -> 0.3333 | G198: =_xlfn.IFS($J181=1,$F$13,$J181=2,$F$12,$J181=3,$F$11,$J181=4,$F$10,$J181=5,$F$9) -> 0.3333
B199: =D197 -> Adquirir TC 16 canais | C199: =1/D198 -> 3.0000 | D199: 1.0000 | E199: =_xlfn.IFS($J183=1,$F$13,$J183=2,$F$12,$J183=3,$F$11,$J183=4,$F$10,$J183=5,$F$9) -> 1.0000 | F199: =_xlfn.IFS($J185=1,$F$13,$J185=2,$F$12,$J185=3,$F$11,$J185=4,$F$10,$J185=5,$F$9) -> 3.0000 | G199: =_xlfn.IFS($J187=1,$F$13,$J187=2,$F$12,$J187=3,$F$11,$J187=4,$F$10,$J187=5,$F$9) -> 3.0000
B200: =E197 -> Adquirir TC 64 canais | C200: =1/E198 -> 3.0000 | D200: =1/E199 -> 1.0000 | E200: 1.0000 | F200: =_xlfn.IFS($J189=1,$F$13,$J189=2,$F$12,$J189=3,$F$11,$J189=4,$F$10,$J189=5,$F$9) -> 3.0000 | G200: =_xlfn.IFS($J191=1,$F$13,$J191=2,$F$12,$J191=3,$F$11,$J191=4,$F$10,$J191=5,$F$9) -> 3.0000
B201: =F197 -> Adquirir RM 1,5 T | C201: =1/F198 -> 3.0000 | D201: =1/F199 -> 0.3333 | E201: =1/F200 -> 0.3333 | F201: 1.0000 | G201: =_xlfn.IFS($J193=1,$F$13,$J193=2,$F$12,$J193=3,$F$11,$J193=4,$F$10,$J193=5,$F$9) -> 1.0000
B202: =G197 -> Adquirir RM 3 T | C202: =1/G198 -> 3.0000 | D202: =1/G199 -> 0.3333 | E202: =1/G200 -> 0.3333 | F202: =1/G201 -> 1.0000 | G202: 1.0000
B204: Pesos das alternativas (PARÂMETROS ASSISTENCIAIS)
B206: =C197 -> Não adquirir a tecnologia | C206: A1 | D206: =Pesos_alternativas_cálculos!CV85 -> 0.0736
B208: =D197 -> Adquirir TC 16 canais | C208: A2 | D208: =Pesos_alternativas_cálculos!CV86 -> 0.3262
B210: =E197 -> Adquirir TC 64 canais | C210: A3 | D210: =Pesos_alternativas_cálculos!CV87 -> 0.3262
B212: =F197 -> Adquirir RM 1,5 T | C212: A4 | D212: =Pesos_alternativas_cálculos!CV88 -> 0.1370
B214: =G197 -> Adquirir RM 3 T | C214: A5 | D214: =Pesos_alternativas_cálculos!CV89 -> 0.1370
B216: Análise de consistência
B218: CR | C218: =Pesos_alternativas_cálculos!K104 -> 0.0441 | D218: =Pesos_alternativas_cálculos!J105 -> CONSISTENTE
B221: Comparação par a par entre as cinco ALTERNATIVAS dentro do subcritério PLANEJAMENTO ESTRATÉGICO (C2.2)
B223: De acordo com sua experiência, quão IMPORTANTE é a PRIMEIRA ALTERNATIVA em relação à Segunda?
E225: Muito menos | F225: Menos | G225: Igualmente | H225: Mais | I225: Muito mais
B226: 1º) NÃO ADQUIRIR x 2º) Adquirir TC 16 canais | J226: 4
B228: 1º) NÃO ADQUIRIR x 2º) Adquirir TC 64 canais | J228: 4
B230: 1º) NÃO ADQUIRIR x 2º) Adquirir RM 1,5 T | J230: 4
B232: 1º) NÃO ADQUIRIR x 2º) Adquirir RM 3 T | J232: 4
B234: 1º) ADQUIRIR TC 16 CANAIS x 2º) Adquirir TC 64 canais | J234: 3
B236: 1º) ADQUIRIR TC 16 CANAIS x 2º) Adquirir RM 1,5 T | J236: 3
B238: 1º) ADQUIRIR TC 16 CANAIS x 2º) Adquirir RM 3 T | J238: 3
B240: 1º) ADQUIRIR TC 64 CANAIS x 2º) Adquirir RM 1,5 T | J240: 3
B242: 1º) ADQUIRIR TC 64 CANAIS x 2º) Adquirir RM 3 T | J242: 3
B244: 1º) ADQUIRIR RM 1,5 T x 2º) Adquirir RM 3 T | J244: 3
B246: Matriz de julgamentos
B248: Alternativas PLANEJAMENTO ESTRATÉGICO | C248: =MID('PASSO_1 - PROJ_HIERARQUIA'!C124,1,30) -> Não adquirir a tecnologia | D248: =MID('PASSO_1 - PROJ_HIERARQUIA'!$C$126,1,30) -> Adquirir TC 16 canais | E248: =MID('PASSO_1 - PROJ_HIERARQUIA'!$C$128,1,30) -> Adquirir TC 64 canais | F248: =MID('PASSO_1 - PROJ_HIERARQUIA'!$C$130,1,30) -> Adquirir RM 1,5 T | G248: =MID('PASSO_1 - PROJ_HIERARQUIA'!$C$132,1,30) -> Adquirir RM 3 T
B249: =C248 -> Não adquirir a tecnologia | C249: 1.0000 | D249: =_xlfn.IFS($J226=1,$F$13,$J226=2,$F$12,$J226=3,$F$11,$J226=4,$F$10,$J226=5,$F$9) -> 3.0000 | E249: =_xlfn.IFS($J228=1,$F$13,$J228=2,$F$12,$J228=3,$F$11,$J228=4,$F$10,$J228=5,$F$9) -> 3.0000 | F249: =_xlfn.IFS($J230=1,$F$13,$J230=2,$F$12,$J230=3,$F$11,$J230=4,$F$10,$J230=5,$F$9) -> 3.0000 | G249: =_xlfn.IFS($J232=1,$F$13,$J232=2,$F$12,$J232=3,$F$11,$J232=4,$F$10,$J232=5,$F$9) -> 3.0000
B250: =D248 -> Adquirir TC 16 canais | C250: =1/D249 -> 0.3333 | D250: 1.0000 | E250: =_xlfn.IFS($J234=1,$F$13,$J234=2,$F$12,$J234=3,$F$11,$J234=4,$F$10,$J234=5,$F$9) -> 1.0000 | F250: =_xlfn.IFS($J236=1,$F$13,$J236=2,$F$12,$J236=3,$F$11,$J236=4,$F$10,$J236=5,$F$9) -> 1.0000 | G250: =_xlfn.IFS($J238=1,$F$13,$J238=2,$F$12,$J238=3,$F$11,$J238=4,$F$10,$J238=5,$F$9) -> 1.0000
B251: =E248 -> Adquirir TC 64 canais | C251: =1/E249 -> 0.3333 | D251: =1/E250 -> 1.0000 | E251: 1.0000 | F251: =_xlfn.IFS($J240=1,$F$13,$J240=2,$F$12,$J240=3,$F$11,$J240=4,$F$10,$J240=5,$F$9) -> 1.0000 | G251: =_xlfn.IFS($J242=1,$F$13,$J242=2,$F$12,$J242=3,$F$11,$J242=4,$F$10,$J242=5,$F$9) -> 1.0000
B252: =F248 -> Adquirir RM 1,5 T | C252: =1/F249 -> 0.3333 | D252: =1/F250 -> 1.0000 | E252: =1/F251 -> 1.0000 | F252: 1.0000 | G252: =_xlfn.IFS($J244=1,$F$13,$J244=2,$F$12,$J244=3,$F$11,$J244=4,$F$10,$J244=5,$F$9) -> 1.0000
B253: =G248 -> Adquirir RM 3 T | C253: =1/G249 -> 0.3333 | D253: =1/G250 -> 1.0000 | E253: =1/G251 -> 1.0000 | F253: =1/G252 -> 1.0000 | G253: 1.0000
B255: Pesos das alternativas (PLANEJAMENTO ESTRATÉGICO)
B257: =C248 -> Não adquirir a tecnologia | C257: A1 | D257: =Pesos_alternativas_cálculos!CV112 -> 0.4286
B259: =D248 -> Adquirir TC 16 canais | C259: A2 | D259: =Pesos_alternativas_cálculos!CV113 -> 0.1429
B261: =E248 -> Adquirir TC 64 canais | C261: A3 | D261: =Pesos_alternativas_cálculos!CV114 -> 0.1429
B263: =F248 -> Adquirir RM 1,5 T | C263: A4 | D263: =Pesos_alternativas_cálculos!CV115 -> 0.1429
B265: =G248 -> Adquirir RM 3 T | C265: A5 | D265: =Pesos_alternativas_cálculos!CV116 -> 0.1429
B267: Análise de consistência
B269: CR | C269: =Pesos_alternativas_cálculos!K131 -> 0.0000 | D269: =Pesos_alternativas_cálculos!J132 -> CONSISTENTE
B272: Comparação par a par entre as cinco ALTERNATIVAS dentro do subcritério RECURSOS HUMANOS (C2.3)
B274: De acordo com sua experiência, quão IMPORTANTE é a PRIMEIRA ALTERNATIVA em relação à Segunda?
E276: Muito menos | F276: Menos | G276: Igualmente | H276: Mais | I276: Muito mais
B277: 1º) NÃO ADQUIRIR x 2º) Adquirir TC 16 canais | J277: 4
B279: 1º) NÃO ADQUIRIR x 2º) Adquirir TC 64 canais | J279: 4
B281: 1º) NÃO ADQUIRIR x 2º) Adquirir RM 1,5 T | J281: 4
B283: 1º) NÃO ADQUIRIR x 2º) Adquirir RM 3 T | J283: 4
B285: 1º) ADQUIRIR TC 16 CANAIS x 2º) Adquirir TC 64 canais | J285: 3
B287: 1º) ADQUIRIR TC 16 CANAIS x 2º) Adquirir RM 1,5 T | J287: 3
B289: 1º) ADQUIRIR TC 16 CANAIS x 2º) Adquirir RM 3 T | J289: 3
B291: 1º) ADQUIRIR TC 64 CANAIS x 2º) Adquirir RM 1,5 T | J291: 3
B293: 1º) ADQUIRIR TC 64 CANAIS x 2º) Adquirir RM 3 T | J293: 3
B295: 1º) ADQUIRIR RM 1,5 T x 2º) Adquirir RM 3 T | J295: 3
B297: Matriz de julgamentos
B299: Alternativas RECURSOS HUMANOS | C299: =MID('PASSO_1 - PROJ_HIERARQUIA'!C124,1,30) -> Não adquirir a tecnologia | D299: =MID('PASSO_1 - PROJ_HIERARQUIA'!$C$126,1,30) -> Adquirir TC 16 canais | E299: =MID('PASSO_1 - PROJ_HIERARQUIA'!$C$128,1,30) -> Adquirir TC 64 canais | F299: =MID('PASSO_1 - PROJ_HIERARQUIA'!$C$130,1,30) -> Adquirir RM 1,5 T | G299: =MID('PASSO_1 - PROJ_HIERARQUIA'!$C$132,1,30) -> Adquirir RM 3 T
B300: =C299 -> Não adquirir a tecnologia | C300: 1.0000 | D300: =_xlfn.IFS($J277=1,$F$13,$J277=2,$F$12,$J277=3,$F$11,$J277=4,$F$10,$J277=5,$F$9) -> 3.0000 | E300: =_xlfn.IFS($J279=1,$F$13,$J279=2,$F$12,$J279=3,$F$11,$J279=4,$F$10,$J279=5,$F$9) -> 3.0000 | F300: =_xlfn.IFS($J281=1,$F$13,$J281=2,$F$12,$J281=3,$F$11,$J281=4,$F$10,$J281=5,$F$9) -> 3.0000 | G300: =_xlfn.IFS($J283=1,$F$13,$J283=2,$F$12,$J283=3,$F$11,$J283=4,$F$10,$J283=5,$F$9) -> 3.0000
B301: =D299 -> Adquirir TC 16 canais | C301: =1/D300 -> 0.3333 | D301: 1.0000 | E301: =_xlfn.IFS($J285=1,$F$13,$J285=2,$F$12,$J285=3,$F$11,$J285=4,$F$10,$J285=5,$F$9) -> 1.0000 | F301: =_xlfn.IFS($J287=1,$F$13,$J287=2,$F$12,$J287=3,$F$11,$J287=4,$F$10,$J287=5,$F$9) -> 1.0000 | G301: =_xlfn.IFS($J289=1,$F$13,$J289=2,$F$12,$J289=3,$F$11,$J289=4,$F$10,$J289=5,$F$9) -> 1.0000
B302: =E299 -> Adquirir TC 64 canais | C302: =1/E300 -> 0.3333 | D302: =1/E301 -> 1.0000 | E302: 1.0000 | F302: =_xlfn.IFS($J291=1,$F$13,$J291=2,$F$12,$J291=3,$F$11,$J291=4,$F$10,$J291=5,$F$9) -> 1.0000 | G302: =_xlfn.IFS($J293=1,$F$13,$J293=2,$F$12,$J293=3,$F$11,$J293=4,$F$10,$J293=5,$F$9) -> 1.0000
B303: =F299 -> Adquirir RM 1,5 T | C303: =1/F300 -> 0.3333 | D303: =1/F301 -> 1.0000 | E303: =1/F302 -> 1.0000 | F303: 1.0000 | G303: =_xlfn.IFS($J295=1,$F$13,$J295=2,$F$12,$J295=3,$F$11,$J295=4,$F$10,$J295=5,$F$9) -> 1.0000
B304: =G299 -> Adquirir RM 3 T | C304: =1/G300 -> 0.3333 | D304: =1/G301 -> 1.0000 | E304: =1/G302 -> 1.0000 | F304: =1/G303 -> 1.0000 | G304: 1.0000
B306: Pesos das alternativas (RECURSOS HUMANOS)
B308: =C299 -> Não adquirir a tecnologia | C308: A1 | D308: =Pesos_alternativas_cálculos!CV138 -> 0.4286
B310: =D299 -> Adquirir TC 16 canais | C310: A2 | D310: =Pesos_alternativas_cálculos!CV139 -> 0.1429
B312: =E299 -> Adquirir TC 64 canais | C312: A3 | D312: =Pesos_alternativas_cálculos!CV140 -> 0.1429
B314: =F299 -> Adquirir RM 1,5 T | C314: A4 | D314: =Pesos_alternativas_cálculos!CV141 -> 0.1429
B316: =G299 -> Adquirir RM 3 T | C316: A5 | D316: =Pesos_alternativas_cálculos!CV142 -> 0.1429
B318: Análise de consistência
B320: CR | C320: =Pesos_alternativas_cálculos!K157 -> 0.0000 | D320: =Pesos_alternativas_cálculos!J158 -> CONSISTENTE
B323: Comparação par a par entre as cinco ALTERNATIVAS dentro do subcritério ENSINO E PESQUISA (C2.4)
B325: De acordo com sua experiência, quão IMPORTANTE é a PRIMEIRA ALTERNATIVA em relação à Segunda?
E327: Muito menos | F327: Menos | G327: Igualmente | H327: Mais | I327: Muito mais
B328: 1º) NÃO ADQUIRIR x 2º) Adquirir TC 16 canais | J328: 1
B330: 1º) NÃO ADQUIRIR x 2º) Adquirir TC 64 canais | J330: 1
B332: 1º) NÃO ADQUIRIR x 2º) Adquirir RM 1,5 T | J332: 2
B334: 1º) NÃO ADQUIRIR x 2º) Adquirir RM 3 T | J334: 2
B336: 1º) ADQUIRIR TC 16 CANAIS x 2º) Adquirir TC 64 canais | J336: 3
B338: 1º) ADQUIRIR TC 16 CANAIS x 2º) Adquirir RM 1,5 T | J338: 3
B340: 1º) ADQUIRIR TC 16 CANAIS x 2º) Adquirir RM 3 T | J340: 3
B342: 1º) ADQUIRIR TC 64 CANAIS x 2º) Adquirir RM 1,5 T | J342: 3
B344: 1º) ADQUIRIR TC 64 CANAIS x 2º) Adquirir RM 3 T | J344: 3
B346: 1º) ADQUIRIR RM 1,5 T x 2º) Adquirir RM 3 T | J346: 3
B348: Matriz de julgamentos
B350: Alternativas ENSINO E PESQUISA | C350: =MID('PASSO_1 - PROJ_HIERARQUIA'!C124,1,30) -> Não adquirir a tecnologia | D350: =MID('PASSO_1 - PROJ_HIERARQUIA'!$C$126,1,30) -> Adquirir TC 16 canais | E350: =MID('PASSO_1 - PROJ_HIERARQUIA'!$C$128,1,30) -> Adquirir TC 64 canais | F350: =MID('PASSO_1 - PROJ_HIERARQUIA'!$C$130,1,30) -> Adquirir RM 1,5 T | G350: =MID('PASSO_1 - PROJ_HIERARQUIA'!$C$132,1,30) -> Adquirir RM 3 T
B351: =C350 -> Não adquirir a tecnologia | C351: 1.0000 | D351: =_xlfn.IFS($J328=1,$F$13,$J328=2,$F$12,$J328=3,$F$11,$J328=4,$F$10,$J328=5,$F$9) -> 0.2000 | E351: =_xlfn.IFS($J330=1,$F$13,$J330=2,$F$12,$J330=3,$F$11,$J330=4,$F$10,$J330=5,$F$9) -> 0.2000 | F351: =_xlfn.IFS($J332=1,$F$13,$J332=2,$F$12,$J332=3,$F$11,$J332=4,$F$10,$J332=5,$F$9) -> 0.3333 | G351: =_xlfn.IFS($J334=1,$F$13,$J334=2,$F$12,$J334=3,$F$11,$J334=4,$F$10,$J334=5,$F$9) -> 0.3333
B352: =D350 -> Adquirir TC 16 canais | C352: =1/D351 -> 5.0000 | D352: 1.0000 | E352: =_xlfn.IFS($J336=1,$F$13,$J336=2,$F$12,$J336=3,$F$11,$J336=4,$F$10,$J336=5,$F$9) -> 1.0000 | F352: =_xlfn.IFS($J338=1,$F$13,$J338=2,$F$12,$J338=3,$F$11,$J338=4,$F$10,$J338=5,$F$9) -> 1.0000 | G352: =_xlfn.IFS($J340=1,$F$13,$J340=2,$F$12,$J340=3,$F$11,$J340=4,$F$10,$J340=5,$F$9) -> 1.0000
B353: =E350 -> Adquirir TC 64 canais | C353: =1/E351 -> 5.0000 | D353: =1/E352 -> 1.0000 | E353: 1.0000 | F353: =_xlfn.IFS($J342=1,$F$13,$J342=2,$F$12,$J342=3,$F$11,$J342=4,$F$10,$J342=5,$F$9) -> 1.0000 | G353: =_xlfn.IFS($J344=1,$F$13,$J344=2,$F$12,$J344=3,$F$11,$J344=4,$F$10,$J344=5,$F$9) -> 1.0000
B354: =F350 -> Adquirir RM 1,5 T | C354: =1/F351 -> 3.0000 | D354: =1/F352 -> 1.0000 | E354: =1/F353 -> 1.0000 | F354: 1.0000 | G354: =_xlfn.IFS($J346=1,$F$13,$J346=2,$F$12,$J346=3,$F$11,$J346=4,$F$10,$J346=5,$F$9) -> 1.0000
B355: =G350 -> Adquirir RM 3 T | C355: =1/G351 -> 3.0000 | D355: =1/G352 -> 1.0000 | E355: =1/G353 -> 1.0000 | F355: =1/G354 -> 1.0000 | G355: 1.0000
B357: Pesos das alternativas (ENSINO E PESQUISA)
... 203 more rows

Sheet PASSO_4 - SÍNTESE_RESULTADOS
B2: FERRAMENTA DE APOIO À TOMADA DE DECISÃO PARA AQUISIÇÃO DE TECNOLOGIAS EM SAÚDE
B4: Passo 4 - Sintetizar os resultados
B6: ALTERNATIVA | C6: RESULTADO | D6: %
B7: =MID('PASSO_1 - PROJ_HIERARQUIA'!C124,1,30) -> Não adquirir a tecnologia | C7: =MMULT(C21:P25,C30:C43) -> 0.2815 | D7: =C7*100 -> 28.15
B8: =MID('PASSO_1 - PROJ_HIERARQUIA'!C126,1,30) -> Adquirir TC 16 canais | C8: 0.2928 | D8: =C8*100 -> 29.28
B9: =MID('PASSO_1 - PROJ_HIERARQUIA'!C128,1,30) -> Adquirir TC 64 canais | C9: 0.2033 | D9: =C9*100 -> 20.33
B10: =MID('PASSO_1 - PROJ_HIERARQUIA'!C130,1,30) -> Adquirir RM 1,5 T | C10: 0.1221 | D10: =C10*100 -> 12.21
B11: =MID('PASSO_1 - PROJ_HIERARQUIA'!C132,1,30) -> Adquirir RM 3 T | C11: 0.1003 | D11: =C11*100 -> 10.03
B18: Matriz resumo com os pesos dos subcritérios em relação às alternativas
B20: Subcritérios Alternativas | C20: ='PASSO_2B - PESOS_SUBCRITÉRIOS'!C28 -> Desfecho clínico (outcome) | D20: ='PASSO_2B - PESOS_SUBCRITÉRIOS'!D28 -> Potencialidades do equipamento | E20: ='PASSO_2B - PESOS_SUBCRITÉRIOS'!E28 -> Fase do ciclo de vida | F20: ='PASSO_2B - PESOS_SUBCRITÉRIOS'!C65 -> Parâmetros assistenciais do SUS | G20: ='PASSO_2B - PESOS_SUBCRITÉRIOS'!D65 -> Planejamento Estratégico | H20: ='PASSO_2B - PESOS_SUBCRITÉRIOS'!E65 -> Recursos humanos | I20: ='PASSO_2B - PESOS_SUBCRITÉRIOS'!F65 -> Ensino e Pesquisa | J20: ='PASSO_2B - PESOS_SUBCRITÉRIOS'!C99 -> Capacidade de produção/atendimento | K20: ='PASSO_2B - PESOS_SUBCRITÉRIOS'!D99 -> Resolução espacial | L20: ='PASSO_2B - PESOS_SUBCRITÉRIOS'!E99 -> Velocidade de execução | M20: ='PASSO_2B - PESOS_SUBCRITÉRIOS'!C126 -> Adequação de infraestrutura | N20: ='PASSO_2B - PESOS_SUBCRITÉRIOS'!D126 -> Fornecimento e gestão de insumos | O20: ='PASSO_2B - PESOS_SUBCRITÉRIOS'!C150 -> Custo Total de Propriedade | P20: ='PASSO_2B - PESOS_SUBCRITÉRIOS'!D150 -> Sustenbilidade financeira
B21: =B7 -> Não adquirir a tecnologia | C21: ='PASSO_3 - PESOS_ALTERNATIVAS'!D53 -> 0.0551 | D21: ='PASSO_3 - PESOS_ALTERNATIVAS'!D104 -> 0.0627 | E21: ='PASSO_3 - PESOS_ALTERNATIVAS'!D155 -> 0.0769 | F21: ='PASSO_3 - PESOS_ALTERNATIVAS'!D206 -> 0.0736 | G21: ='PASSO_3 - PESOS_ALTERNATIVAS'!D257 -> 0.4286 | H21: ='PASSO_3 - PESOS_ALTERNATIVAS'!D308 -> 0.4286 | I21: ='PASSO_3 - PESOS_ALTERNATIVAS'!D359 -> 0.0611 | J21: ='PASSO_3 - PESOS_ALTERNATIVAS'!D410 -> 0.0522 | K21: ='PASSO_3 - PESOS_ALTERNATIVAS'!D461 -> 0.0769 | L21: ='PASSO_3 - PESOS_ALTERNATIVAS'!D512 -> 0.0769 | M21: ='PASSO_3 - PESOS_ALTERNATIVAS'!D563 -> 0.4001 | N21: ='PASSO_3 - PESOS_ALTERNATIVAS'!D614 -> 0.0736 | O21: ='PASSO_3 - PESOS_ALTERNATIVAS'!D665 -> 0.4431 | P21: ='PASSO_3 - PESOS_ALTERNATIVAS'!D716 -> 0.4431
B22: =B8 -> Adquirir TC 16 canais | C22: ='PASSO_3 - PESOS_ALTERNATIVAS'!D55 -> 0.3435 | D22: ='PASSO_3 - PESOS_ALTERNATIVAS'!D106 -> 0.4438 | E22: ='PASSO_3 - PESOS_ALTERNATIVAS'!D157 -> 0.2308 | F22: ='PASSO_3 - PESOS_ALTERNATIVAS'!D208 -> 0.3262 | G22: ='PASSO_3 - PESOS_ALTERNATIVAS'!D259 -> 0.1429 | H22: ='PASSO_3 - PESOS_ALTERNATIVAS'!D310 -> 0.1429 | I22: ='PASSO_3 - PESOS_ALTERNATIVAS'!D361 -> 0.2468 | J22: ='PASSO_3 - PESOS_ALTERNATIVAS'!D412 -> 0.4129 | K22: ='PASSO_3 - PESOS_ALTERNATIVAS'!D463 -> 0.2308 | L22: ='PASSO_3 - PESOS_ALTERNATIVAS'!D514 -> 0.2308 | M22: ='PASSO_3 - PESOS_ALTERNATIVAS'!D565 -> 0.2578 | N22: ='PASSO_3 - PESOS_ALTERNATIVAS'!D616 -> 0.3262 | O22: ='PASSO_3 - PESOS_ALTERNATIVAS'!D667 -> 0.2825 | P22: ='PASSO_3 - PESOS_ALTERNATIVAS'!D718 -> 0.2825
B23: =B9 -> Adquirir TC 64 canais | C23: ='PASSO_3 - PESOS_ALTERNATIVAS'!D57 -> 0.3435 | D23: ='PASSO_3 - PESOS_ALTERNATIVAS'!D108 -> 0.1645 | E23: ='PASSO_3 - PESOS_ALTERNATIVAS'!D159 -> 0.2308 | F23: ='PASSO_3 - PESOS_ALTERNATIVAS'!D210 -> 0.3262 | G23: ='PASSO_3 - PESOS_ALTERNATIVAS'!D261 -> 0.1429 | H23: ='PASSO_3 - PESOS_ALTERNATIVAS'!D312 -> 0.1429 | I23: ='PASSO_3 - PESOS_ALTERNATIVAS'!D363 -> 0.2468 | J23: ='PASSO_3 - PESOS_ALTERNATIVAS'!D414 -> 0.1889 | K23: ='PASSO_3 - PESOS_ALTERNATIVAS'!D465 -> 0.2308 | L23: ='PASSO_3 - PESOS_ALTERNATIVAS'!D516 -> 0.2308 | M23: ='PASSO_3 - PESOS_ALTERNATIVAS'!D567 -> 0.1661 | N23: ='PASSO_3 - PESOS_ALTERNATIVAS'!D618 -> 0.3262 | O23: ='PASSO_3 - PESOS_ALTERNATIVAS'!D669 -> 0.1448 | P23: ='PASSO_3 - PESOS_ALTERNATIVAS'!D720 -> 0.1448
B24: =B10 -> Adquirir RM 1,5 T | C24: ='PASSO_3 - PESOS_ALTERNATIVAS'!D59 -> 0.1290 | D24: ='PASSO_3 - PESOS_ALTERNATIVAS'!D110 -> 0.1645 | E24: ='PASSO_3 - PESOS_ALTERNATIVAS'!D161 -> 0.2308 | F24: ='PASSO_3 - PESOS_ALTERNATIVAS'!D212 -> 0.1370 | G24: ='PASSO_3 - PESOS_ALTERNATIVAS'!D263 -> 0.1429 | H24: ='PASSO_3 - PESOS_ALTERNATIVAS'!D314 -> 0.1429 | I24: ='PASSO_3 - PESOS_ALTERNATIVAS'!D365 -> 0.2226 | J24: ='PASSO_3 - PESOS_ALTERNATIVAS'!D416 -> 0.2187 | K24: ='PASSO_3 - PESOS_ALTERNATIVAS'!D467 -> 0.2308 | L24: ='PASSO_3 - PESOS_ALTERNATIVAS'!D518 -> 0.2308 | M24: ='PASSO_3 - PESOS_ALTERNATIVAS'!D569 -> 0.1070 | N24: ='PASSO_3 - PESOS_ALTERNATIVAS'!D620 -> 0.1370 | O24: ='PASSO_3 - PESOS_ALTERNATIVAS'!D671 -> 0.0792 | P24: ='PASSO_3 - PESOS_ALTERNATIVAS'!D722 -> 0.0792
B25: =B11 -> Adquirir RM 3 T | C25: ='PASSO_3 - PESOS_ALTERNATIVAS'!D61 -> 0.1290 | D25: ='PASSO_3 - PESOS_ALTERNATIVAS'!D112 -> 0.1645 | E25: ='PASSO_3 - PESOS_ALTERNATIVAS'!D163 -> 0.2308 | F25: ='PASSO_3 - PESOS_ALTERNATIVAS'!D214 -> 0.1370 | G25: ='PASSO_3 - PESOS_ALTERNATIVAS'!D265 -> 0.1429 | H25: ='PASSO_3 - PESOS_ALTERNATIVAS'!D316 -> 0.1429 | I25: ='PASSO_3 - PESOS_ALTERNATIVAS'!D367 -> 0.2226 | J25: ='PASSO_3 - PESOS_ALTERNATIVAS'!D418 -> 0.1274 | K25: ='PASSO_3 - PESOS_ALTERNATIVAS'!D469 -> 0.2308 | L25: ='PASSO_3 - PESOS_ALTERNATIVAS'!D520 -> 0.2308 | M25: ='PASSO_3 - PESOS_ALTERNATIVAS'!D571 -> 0.0690 | N25: ='PASSO_3 - PESOS_ALTERNATIVAS'!D622 -> 0.1370 | O25: ='PASSO_3 - PESOS_ALTERNATIVAS'!D673 -> 0.0505 | P25: ='PASSO_3 - PESOS_ALTERNATIVAS'!D724 -> 0.0505
B27: Matriz resumo com os pesos dos subcritérios já multiplicados pelos pesos dos critérios
B29: Subcritérios | C29: Pesos
B30: =C20 -> Desfecho clínico (outcome) | C30: ='PASSO_2A - PESOS_CRITÉRIOS'!$D$51*'PASSO_2B - PESOS_SUBCRITÉRIOS'!D35 -> 0.1127
B31: =D20 -> Potencialidades do equipamento | C31: ='PASSO_2A - PESOS_CRITÉRIOS'!$D$51*'PASSO_2B - PESOS_SUBCRITÉRIOS'!D37 -> 0.0542
B32: =E20 -> Fase do ciclo de vida | C32: ='PASSO_2A - PESOS_CRITÉRIOS'!$D$51*'PASSO_2B - PESOS_SUBCRITÉRIOS'!D39 -> 0.0261
B33: =F20 -> Parâmetros assistenciais do SUS | C33: ='PASSO_2A - PESOS_CRITÉRIOS'!$D$53*'PASSO_2B - PESOS_SUBCRITÉRIOS'!D73 -> 0.0415
B34: =G20 -> Planejamento Estratégico | C34: ='PASSO_2A - PESOS_CRITÉRIOS'!$D$53*'PASSO_2B - PESOS_SUBCRITÉRIOS'!D75 -> 0.0138
B35: =H20 -> Recursos humanos | C35: ='PASSO_2A - PESOS_CRITÉRIOS'!$D$53*'PASSO_2B - PESOS_SUBCRITÉRIOS'!D77 -> 0.0324
B36: =I20 -> Ensino e Pesquisa | C36: ='PASSO_2A - PESOS_CRITÉRIOS'!$D$53*'PASSO_2B - PESOS_SUBCRITÉRIOS'!D79 -> 0.0190
B37: =J20 -> Capacidade de produção/atendimento | C37: ='PASSO_2A - PESOS_CRITÉRIOS'!$D$55*'PASSO_2B - PESOS_SUBCRITÉRIOS'!D106 -> 0.0390
B38: =K20 -> Resolução espacial | C38: ='PASSO_2A - PESOS_CRITÉRIOS'!$D$55*'PASSO_2B - PESOS_SUBCRITÉRIOS'!D108 -> 0.0130
B39: =L20 -> Velocidade de execução | C39: ='PASSO_2A - PESOS_CRITÉRIOS'!$D$55*'PASSO_2B - PESOS_SUBCRITÉRIOS'!D110 -> 0.0130
B40: =M20 -> Adequação de infraestrutura | C40: ='PASSO_2A - PESOS_CRITÉRIOS'!$D$57*'PASSO_2B - PESOS_SUBCRITÉRIOS'!D132 -> 0.2382
B41: =N20 -> Fornecimento e gestão de insumos | C41: ='PASSO_2A - PESOS_CRITÉRIOS'!$D$57*'PASSO_2B - PESOS_SUBCRITÉRIOS'!D134 -> 0.0794
B42: =O20 -> Custo Total de Propriedade | C42: ='PASSO_2A - PESOS_CRITÉRIOS'!$D$59*'PASSO_2B - PESOS_SUBCRITÉRIOS'!D156 -> 0.1588
B43: =P20 -> Sustenbilidade financeira | C43: ='PASSO_2A - PESOS_CRITÉRIOS'!$D$59*'PASSO_2B - PESOS_SUBCRITÉRIOS'!D158 -> 0.1588

Sheet PASSO_5 - ANÁLISE_SENSIBILIDADE
B2: FERRAMENTA DE APOIO À TOMADA DE DECISÃO PARA AQUISIÇÃO DE TECNOLOGIAS EM SAÚDE
B4: Passo 5 - Análise de Sensibilidade
B6: ALTERNATIVA | C6: RESULTADO | D6: %
B7: =MID('PASSO_1 - PROJ_HIERARQUIA'!C124,1,30) -> Não adquirir a tecnologia | C7: =MMULT(C21:P25,C33:C46) -> 0.2815 | D7: =C7*100 -> 28.15
B8: =MID('PASSO_1 - PROJ_HIERARQUIA'!C126,1,30) -> Adquirir TC 16 canais | C8: 0.2928 | D8: =C8*100 -> 29.28
B9: =MID('PASSO_1 - PROJ_HIERARQUIA'!C128,1,30) -> Adquirir TC 64 canais | C9: 0.2033 | D9: =C9*100 -> 20.33
B10: =MID('PASSO_1 - PROJ_HIERARQUIA'!C130,1,30) -> Adquirir RM 1,5 T | C10: 0.1221 | D10: =C10*100 -> 12.21
B11: =MID('PASSO_1 - PROJ_HIERARQUIA'!C132,1,30) -> Adquirir RM 3 T | C11: 0.1003 | D11: =C11*100 -> 10.03
B18: Matriz resumo com os pesos dos subcritérios em relação às alternativas (Em amarelo estão as alternativas com maior peso em cada subcritério)
B20: Subcritérios Alternativas | C20: ='PASSO_2B - PESOS_SUBCRITÉRIOS'!C28 -> Desfecho clínico (outcome) | D20: ='PASSO_2B - PESOS_SUBCRITÉRIOS'!D28 -> Potencialidades do equipamento | E20: ='PASSO_2B - PESOS_SUBCRITÉRIOS'!E28 -> Fase do ciclo de vida | F20: ='PASSO_2B - PESOS_SUBCRITÉRIOS'!C65 -> Parâmetros assistenciais do SUS | G20: ='PASSO_2B - PESOS_SUBCRITÉRIOS'!D65 -> Planejamento Estratégico | H20: ='PASSO_2B - PESOS_SUBCRITÉRIOS'!E65 -> Recursos humanos | I20: ='PASSO_2B - PESOS_SUBCRITÉRIOS'!F65 -> Ensino e Pesquisa | J20: ='PASSO_2B - PESOS_SUBCRITÉRIOS'!C99 -> Capacidade de produção/atendimento | K20: ='PASSO_2B - PESOS_SUBCRITÉRIOS'!D99 -> Resolução espacial | L20: ='PASSO_2B - PESOS_SUBCRITÉRIOS'!E99 -> Velocidade de execução | M20: ='PASSO_2B - PESOS_SUBCRITÉRIOS'!C126 -> Adequação de infraestrutura | N20: ='PASSO_2B - PESOS_SUBCRITÉRIOS'!D126 -> Fornecimento e gestão de insumos | O20: ='PASSO_2B - PESOS_SUBCRITÉRIOS'!C150 -> Custo Total de Propriedade | P20: ='PASSO_2B - PESOS_SUBCRITÉRIOS'!D150 -> Sustenbilidade financeira
B21: =B7 -> Não adquirir a tecnologia | C21: ='PASSO_3 - PESOS_ALTERNATIVAS'!D53 -> 0.0551 | D21: ='PASSO_3 - PESOS_ALTERNATIVAS'!D104 -> 0.0627 | E21: ='PASSO_3 - PESOS_ALTERNATIVAS'!D155 -> 0.0769 | F21: ='PASSO_3 - PESOS_ALTERNATIVAS'!D206 -> 0.0736 | G21: ='PASSO_3 - PESOS_ALTERNATIVAS'!D257 -> 0.4286 | H21: ='PASSO_3 - PESOS_ALTERNATIVAS'!D308 -> 0.4286 | I21: ='PASSO_3 - PESOS_ALTERNATIVAS'!D359 -> 0.0611 | J21: ='PASSO_3 - PESOS_ALTERNATIVAS'!D410 -> 0.0522 | K21: ='PASSO_3 - PESOS_ALTERNATIVAS'!D461 -> 0.0769 | L21: ='PASSO_3 - PESOS_ALTERNATIVAS'!D512 -> 0.0769 | M21: ='PASSO_3 - PESOS_ALTERNATIVAS'!D563 -> 0.4001 | N21: ='PASSO_3 - PESOS_ALTERNATIVAS'!D614 -> 0.0736 | O21: ='PASSO_3 - PESOS_ALTERNATIVAS'!D665 -> 0.4431 | P21: ='PASSO_3 - PESOS_ALTERNATIVAS'!D716 -> 0.4431 | Q21: A1
B22: =B8 -> Adquirir TC 16 canais | C22: ='PASSO_3 - PESOS_ALTERNATIVAS'!D55 -> 0.3435 | D22: ='PASSO_3 - PESOS_ALTERNATIVAS'!D106 -> 0.4438 | E22: ='PASSO_3 - PESOS_ALTERNATIVAS'!D157 -> 0.2308 | F22: ='PASSO_3 - PESOS_ALTERNATIVAS'!D208 -> 0.3262 | G22: ='PASSO_3 - PESOS_ALTERNATIVAS'!D259 -> 0.1429 | H22: ='PASSO_3 - PESOS_ALTERNATIVAS'!D310 -> 0.1429 | I22: ='PASSO_3 - PESOS_ALTERNATIVAS'!D361 -> 0.2468 | J22: ='PASSO_3 - PESOS_ALTERNATIVAS'!D412 -> 0.4129 | K22: ='PASSO_3 - PESOS_ALTERNATIVAS'!D463 -> 0.2308 | L22: ='PASSO_3 - PESOS_ALTERNATIVAS'!D514 -> 0.2308 | M22: ='PASSO_3 - PESOS_ALTERNATIVAS'!D565 -> 0.2578 | N22: ='PASSO_3 - PESOS_ALTERNATIVAS'!D616 -> 0.3262 | O22: ='PASSO_3 - PESOS_ALTERNATIVAS'!D667 -> 0.2825 | P22: ='PASSO_3 - PESOS_ALTERNATIVAS'!D718 -> 0.2825 | Q22: A2
B23: =B9 -> Adquirir TC 64 canais | C23: ='PASSO_3 - PESOS_ALTERNATIVAS'!D57 -> 0.3435 | D23: ='PASSO_3 - PESOS_ALTERNATIVAS'!D108 -> 0.1645 | E23: ='PASSO_3 - PESOS_ALTERNATIVAS'!D159 -> 0.2308 | F23: ='PASSO_3 - PESOS_ALTERNATIVAS'!D210 -> 0.3262 | G23: ='PASSO_3 - PESOS_ALTERNATIVAS'!D261 -> 0.1429 | H23: ='PASSO_3 - PESOS_ALTERNATIVAS'!D312 -> 0.1429 | I23: ='PASSO_3 - PESOS_ALTERNATIVAS'!D363 -> 0.2468 | J23: ='PASSO_3 - PESOS_ALTERNATIVAS'!D414 -> 0.1889 | K23: ='PASSO_3 - PESOS_ALTERNATIVAS'!D465 -> 0.2308 | L23: ='PASSO_3 - PESOS_ALTERNATIVAS'!D516 -> 0.2308 | M23: ='PASSO_3 - PESOS_ALTERNATIVAS'!D567 -> 0.1661 | N23: ='PASSO_3 - PESOS_ALTERNATIVAS'!D618 -> 0.3262 | O23: ='PASSO_3 - PESOS_ALTERNATIVAS'!D669 -> 0.1448 | P23: ='PASSO_3 - PESOS_ALTERNATIVAS'!D720 -> 0.1448 | Q23: A3
B24: =B10 -> Adquirir RM 1,5 T | C24: ='PASSO_3 - PESOS_ALTERNATIVAS'!D59 -> 0.1290 | D24: ='PASSO_3 - PESOS_ALTERNATIVAS'!D110 -> 0.1645 | E24: ='PASSO_3 - PESOS_ALTERNATIVAS'!D161 -> 0.2308 | F24: ='PASSO_3 - PESOS_ALTERNATIVAS'!D212 -> 0.1370 | G24: ='PASSO_3 - PESOS_ALTERNATIVAS'!D263 -> 0.1429 | H24: ='PASSO_3 - PESOS_ALTERNATIVAS'!D314 -> 0.1429 | I24: ='PASSO_3 - PESOS_ALTERNATIVAS'!D365 -> 0.2226 | J24: ='PASSO_3 - PESOS_ALTERNATIVAS'!D416 -> 0.2187 | K24: ='PASSO_3 - PESOS_ALTERNATIVAS'!D467 -> 0.2308 | L24: ='PASSO_3 - PESOS_ALTERNATIVAS'!D518 -> 0.2308 | M24: ='PASSO_3 - PESOS_ALTERNATIVAS'!D569 -> 0.1070 | N24: ='PASSO_3 - PESOS_ALTERNATIVAS'!D620 -> 0.1370 | O24: ='PASSO_3 - PESOS_ALTERNATIVAS'!D671 -> 0.0792 | P24: ='PASSO_3 - PESOS_ALTERNATIVAS'!D722 -> 0.0792 | Q24: A4
B25: =B11 -> Adquirir RM 3 T | C25: ='PASSO_3 - PESOS_ALTERNATIVAS'!D61 -> 0.1290 | D25: ='PASSO_3 - PESOS_ALTERNATIVAS'!D112 -> 0.1645 | E25: ='PASSO_3 - PESOS_ALTERNATIVAS'!D163 -> 0.2308 | F25: ='PASSO_3 - PESOS_ALTERNATIVAS'!D214 -> 0.1370 | G25: ='PASSO_3 - PESOS_ALTERNATIVAS'!D265 -> 0.1429 | H25: ='PASSO_3 - PESOS_ALTERNATIVAS'!D316 -> 0.1429 | I25: ='PASSO_3 - PESOS_ALTERNATIVAS'!D367 -> 0.2226 | J25: ='PASSO_3 - PESOS_ALTERNATIVAS'!D418 -> 0.1274 | K25: ='PASSO_3 - PESOS_ALTERNATIVAS'!D469 -> 0.2308 | L25: ='PASSO_3 - PESOS_ALTERNATIVAS'!D520 -> 0.2308 | M25: ='PASSO_3 - PESOS_ALTERNATIVAS'!D571 -> 0.0690 | N25: ='PASSO_3 - PESOS_ALTERNATIVAS'!D622 -> 0.1370 | O25: ='PASSO_3 - PESOS_ALTERNATIVAS'!D673 -> 0.0505 | P25: ='PASSO_3 - PESOS_ALTERNATIVAS'!D724 -> 0.0505 | Q25: A5
C26: C1.1 | D26: C1.2 | E26: C1.3 | F26: C2.1 | G26: C2.2 | H26: C2.3 | I26: C2.4 | J26: C3.1 | K26: C3.2 | L26: C3.3 | M26: C4.1 | N26: C4.2 | O26: C5.1 | P26: C5.2
B28: FATO 1: A alternativa Adquirir TC 16 canais (A2) possui o maior peso em nove (C1.1, C1.2, C1.3, C2.1, C2.4, C3.1, C3.2, C3.3 e C4.2) dos catorze subcritérios.
B30: Matriz resumo com os pesos dos subcritérios já multiplicados pelos pesos dos critérios
B32: Subcritérios | C32: Pesos
A33: C1.1 | B33: =C20 -> Desfecho clínico (outcome) | C33: ='PASSO_2A - PESOS_CRITÉRIOS'!$D$51*'PASSO_2B - PESOS_SUBCRITÉRIOS'!D35 -> 0.1127
A34: C1.2 | B34: =D20 -> Potencialidades do equipamento | C34: ='PASSO_2A - PESOS_CRITÉRIOS'!$D$51*'PASSO_2B - PESOS_SUBCRITÉRIOS'!D37 -> 0.0542
A35: C1.3 | B35: =E20 -> Fase do ciclo de vida | C35: ='PASSO_2A - PESOS_CRITÉRIOS'!$D$51*'PASSO_2B - PESOS_SUBCRITÉRIOS'!D39 -> 0.0261
A36: C2.1 | B36: =F20 -> Parâmetros assistenciais do SUS | C36: ='PASSO_2A - PESOS_CRITÉRIOS'!$D$53*'PASSO_2B - PESOS_SUBCRITÉRIOS'!D73 -> 0.0415
A37: C2.2 | B37: =G20 -> Planejamento Estratégico | C37: ='PASSO_2A - PESOS_CRITÉRIOS'!$D$53*'PASSO_2B - PESOS_SUBCRITÉRIOS'!D75 -> 0.0138
A38: C2.3 | B38: =H20 -> Recursos humanos | C38: ='PASSO_2A - PESOS_CRITÉRIOS'!$D$53*'PASSO_2B - PESOS_SUBCRITÉRIOS'!D77 -> 0.0324
A39: C2.4 | B39: =I20 -> Ensino e Pesquisa | C39: ='PASSO_2A - PESOS_CRITÉRIOS'!$D$53*'PASSO_2B - PESOS_SUBCRITÉRIOS'!D79 -> 0.0190
A40: C3.1 | B40: =J20 -> Capacidade de produção/atendimento | C40: ='PASSO_2A - PESOS_CRITÉRIOS'!$D$55*'PASSO_2B - PESOS_SUBCRITÉRIOS'!D106 -> 0.0390
A41: C3.2 | B41: =K20 -> Resolução espacial | C41: ='PASSO_2A - PESOS_CRITÉRIOS'!$D$55*'PASSO_2B - PESOS_SUBCRITÉRIOS'!D108 -> 0.0130
A42: C3.3 | B42: =L20 -> Velocidade de execução | C42: ='PASSO_2A - PESOS_CRITÉRIOS'!$D$55*'PASSO_2B - PESOS_SUBCRITÉRIOS'!D110 -> 0.0130
A43: C4.1 | B43: =M20 -> Adequação de infraestrutura | C43: ='PASSO_2A - PESOS_CRITÉRIOS'!$D$57*'PASSO_2B - PESOS_SUBCRITÉRIOS'!D132 -> 0.2382
A44: C4.2 | B44: =N20 -> Fornecimento e gestão de insumos | C44: ='PASSO_2A - PESOS_CRITÉRIOS'!$D$57*'PASSO_2B - PESOS_SUBCRITÉRIOS'!D134 -> 0.0794
A45: C5.1 | B45: =O20 -> Custo Total de Propriedade | C45: ='PASSO_2A - PESOS_CRITÉRIOS'!$D$59*'PASSO_2B - PESOS_SUBCRITÉRIOS'!D156 -> 0.1588
A46: C5.2 | B46: =P20 -> Sustenbilidade financeira | C46: ='PASSO_2A - PESOS_CRITÉRIOS'!$D$59*'PASSO_2B - PESOS_SUBCRITÉRIOS'!D158 -> 0.1588
B48: FATO 2: Os quatro subcritérios de maior peso foram: C4.1, C5.1, C5.2 e C1.1, os quais representam cerca de 67% do peso total. A alternativa A2 foi superior em C1.1, enquanto a alternativa A1 foi superior em C4.1, C5.1 e C5.2, por isso a diferença foi tão pequena entre A1 e A2.
B51: Cenário hipotético 1
B53: Matriz resumo com os pesos dos subcritérios em relação às alternativas (inversão dos pesos para A1 e A2, mantendo os pesos dos critérios e subcritérios)
B55: Subcritérios Alternativas | C55: =C20 -> Desfecho clínico (outcome) | D55: Potencialidades do equipamento | E55: Fase do ciclo de vida | F55: Parâmetros assistenciais do SUS | G55: Planejamento Estratégico | H55: Recursos humanos | I55: Ensino e Pesquisa | J55: Capacidade de produção/atendimento | K55: Resolução espacial | L55: Velocidade de execução | M55: Adequação de infraestrutura | N55: Fornecimento e gestão de insumos | O55: Custo Total de Propriedade | P55: Sustenbilidade financeira
B56: =B42 -> Velocidade de execução | C56: =C22:P22 -> 0.3435 | D56: 0.4438 | E56: 0.2308 | F56: 0.3262 | G56: 0.1429 | H56: 0.1429 | I56: 0.2468 | J56: 0.4129 | K56: 0.2308 | L56: 0.2308 | M56: 0.2578 | N56: 0.3262 | O56: 0.2825 | P56: 0.2825 | Q56: A1
B57: =B43 -> Adequação de infraestrutura | C57: =C21:P21 -> 0.0551 | D57: 0.0627 | E57: 0.0769 | F57: 0.0736 | G57: 0.4286 | H57: 0.4286 | I57: 0.0611 | J57: 0.0522 | K57: 0.0769 | L57: 0.0769 | M57: 0.4001 | N57: 0.0736 | O57: 0.4431 | P57: 0.4431 | Q57: A2
B58: =B44 -> Fornecimento e gestão de insumos | C58: =C23:P25 -> 0.3435 | D58: 0.1645 | E58: 0.2308 | F58: 0.3262 | G58: 0.1429 | H58: 0.1429 | I58: 0.2468 | J58: 0.1889 | K58: 0.2308 | L58: 0.2308 | M58: 0.1661 | N58: 0.3262 | O58: 0.1448 | P58: 0.1448 | Q58: A3
B59: =B45 -> Custo Total de Propriedade | C59: 0.1290 | D59: 0.1645 | E59: 0.2308 | F59: 0.1370 | G59: 0.1429 | H59: 0.1429 | I59: 0.2226 | J59: 0.2187 | K59: 0.2308 | L59: 0.2308 | M59: 0.1070 | N59: 0.1370 | O59: 0.0792 | P59: 0.0792 | Q59: A4
B60: =B46 -> Sustenbilidade financeira | C60: 0.1290 | D60: 0.1645 | E60: 0.2308 | F60: 0.1370 | G60: 0.1429 | H60: 0.1429 | I60: 0.2226 | J60: 0.1274 | K60: 0.2308 | L60: 0.2308 | M60: 0.0690 | N60: 0.1370 | O60: 0.0505 | P60: 0.0505 | Q60: A5
C61: C1.1 | D61: C1.2 | E61: C1.3 | F61: C2.1 | G61: C2.2 | H61: C2.3 | I61: C2.4 | J61: C3.1 | K61: C3.2 | L61: C3.3 | M61: C4.1 | N61: C4.2 | O61: C5.1 | P61: C5.2
B63: FATO 3: O resultado final também sofre a mesma inversão, conforme gráfico abaixo.
B65: ALTERNATIVA | C65: RESULTADO | D65: %
B66: =B7 -> Não adquirir a tecnologia | C66: =MMULT(C56:P60,C33:C46) -> 0.2928 | D66: =C66*100 -> 29.28
B67: =B8 -> Adquirir TC 16 canais | C67: 0.2815 | D67: =C67*100 -> 28.15
B68: =B9 -> Adquirir TC 64 canais | C68: 0.2033 | D68: =C68*100 -> 20.33
B69: =B10 -> Adquirir RM 1,5 T | C69: 0.1221 | D69: =C69*100 -> 12.21
B70: =B11 -> Adquirir RM 3 T | C70: 0.1003 | D70: =C70*100 -> 10.03
B80: Cenário hipotético 2
B82: Matriz resumo com os pesos dos subcritérios já multiplicados pelos pesos dos critérios (aumento de C4.1, C5.1 e C5.2 para 75% do total, enquanto que todos os demais limitaram-se a 25%)
B84: Subcritérios | C84: Pesos
A85: C1.1 | B85: =B33 -> Desfecho clínico (outcome) | C85: =0.25/11 -> 0.0227
A86: C1.2 | B86: Potencialidades do equipamento | C86: =0.25/11 -> 0.0227
A87: C1.3 | B87: Fase do ciclo de vida | C87: 0.0227
A88: C2.1 | B88: Parâmetros assistenciais do SUS | C88: 0.0227
A89: C2.2 | B89: Planejamento Estratégico | C89: 0.0227
A90: C2.3 | B90: Recursos humanos | C90: 0.0227
A91: C2.4 | B91: Ensino e Pesquisa | C91: 0.0227
A92: C3.1 | B92: Capacidade de produção/atendimento | C92: 0.0227
A93: C3.2 | B93: Resolução espacial | C93: 0.0227
A94: C3.3 | B94: Velocidade de execução | C94: 0.0227
A95: C4.1 | B95: Adequação de infraestrutura | C95: 0.2500
A96: C4.2 | B96: Fornecimento e gestão de insumos | C96: 0.0227
A97: C5.1 | B97: Custo Total de Propriedade | C97: 0.2500
A98: C5.2 | B98: Sustenbilidade financeira | C98: 0.2500
B100: FATO 4: Para um cenário hipotético 2, caso aumentássemos o peso dos subcritérios C4.1, C5.1 e C5.2 para 75% do total, a alternativa A1 ultrapassaria a A2 e manteria uma vantagem de quase 8%, conforme gráfico abaixo.
B102: ALTERNATIVA | C102: RESULTADO | D102: %
B103: =B66:B70 -> Não adquirir a tecnologia | C103: =MMULT(C21:P25,C85:C98) -> 0.3549 | D103: =C103*100 -> 35.49
B104: Adquirir TC 16 canais | C104: 0.2756 | D104: =C104*100 -> 27.56
B105: Adquirir TC 64 canais | C105: 0.1724 | D105: =C105*100 -> 17.24
B106: Adquirir RM 1,5 T | C106: 0.1115 | D106: =C106*100 -> 11.15
B107: Adquirir RM 3 T | C107: 0.0856 | D107: =C107*100 -> 8.56

Sheet PASSO_6 - TOMADA DE DECISÃO
B2: FERRAMENTA DE APOIO À TOMADA DE DECISÃO PARA AQUISIÇÃO DE TECNOLOGIAS EM SAÚDE
B4: Passo 6 - Tomada de decisão
B6: ALTERNATIVA | C6: RESULTADO | D6: %
B7: =MID('PASSO_1 - PROJ_HIERARQUIA'!C124,1,30) -> Não adquirir a tecnologia | C7: =_xlfn.ANCHORARRAY('PASSO_5 - ANÁLISE_SENSIBILIDADE'!C7) -> 0.2815 | D7: =C7*100 -> 28.15
B8: =MID('PASSO_1 - PROJ_HIERARQUIA'!C126,1,30) -> Adquirir TC 16 canais | C8: 0.2928 | D8: =C8*100 -> 29.28
B9: =MID('PASSO_1 - PROJ_HIERARQUIA'!C128,1,30) -> Adquirir TC 64 canais | C9: 0.2033 | D9: =C9*100 -> 20.33
B10: =MID('PASSO_1 - PROJ_HIERARQUIA'!C130,1,30) -> Adquirir RM 1,5 T | C10: 0.1221 | D10: =C10*100 -> 12.21
B11: =MID('PASSO_1 - PROJ_HIERARQUIA'!C132,1,30) -> Adquirir RM 3 T | C11: 0.1003 | D11: =C11*100 -> 10.03
B18: Considerando a síntese dos resultados no gráfico, pelo fato da diferença percentual ser de apenas 1,13%, valor este tão pequeno entre as alternativas A1 e A2, não há clareza suficiente para uma tomada de decisão entre Adquirir TC de 16 canais e Não adquirir, porém ficou claro a não viabilidade na aquisição de um Tomógrafo de 64 canais e dos Aparelhos de Ressonância Magnética de 1,5 T e 3 T.

Sheet Pesos_critérios_cálculos (hidden)
S1: Soma das linhas | T1: Resultados normalizados | AM1: Soma das linhas | AN1: Resultados normalizados | BA1: Soma das linhas | BB1: Resultados normalizados
B2: ='PASSO_2A - PESOS_CRITÉRIOS'!C43:G47 -> 1.0000 | C2: 3.0000 | D2: 5.0000 | E2: 0.3333 | F2: 0.3333 | H2: =_xlfn.ANCHORARRAY(B2) -> 1.0000 | I2: 3.0000 | J2: 5.0000 | K2: 0.3333 | L2: 0.3333 | N2: =MMULT(_xlfn.ANCHORARRAY(B2),_xlfn.ANCHORARRAY(H2)) -> 5.0000 | O2: 9.6667 | P2: 21.0000 | Q2: 3.6667 | R2: 3.6667 | S2: =SUM(N2:R2) -> 43.0000 | T2: =S2/$S$7 -> 0.1924 | V2: =_xlfn.ANCHORARRAY(N2) -> 5.0000 | W2: 9.6667 | X2: 21.0000 | Y2: 3.6667 | Z2: 3.6667 | AB2: =_xlfn.ANCHORARRAY(V2) -> 5.0000 | AC2: 9.6667 | AD2: 21.0000 | AE2: 3.6667 | AF2: 3.6667 | AH2: =MMULT(_xlfn.ANCHORARRAY(V2),_xlfn.ANCHORARRAY(AB2)) -> 187.0444 | AI2: 304.6000 | AJ2: 545.4444 | AK2: 100.1407 | AL2: 100.1407 | AM2: =SUM(AH2:AL2) -> 1237.3704 | AN2: =AM2/$AM$7 -> 0.1930 | AP2: =_xlfn.ANCHORARRAY(AH2) -> 187.0444 | AQ2: 304.6000 | AR2: 545.4444 | AS2: 100.1407 | AT2: 100.1407 | AV2: =_xlfn.ANCHORARRAY(AP2) -> 187.0444 | AW2: 304.6000 | AX2: 545.4444 | AY2: 100.1407 | AZ2: 100.1407 | BA2: =SUM(AV2:AZ2) -> 1237.3704 | BB2: =BA2/$BA$7 -> 0.1930
B3: 0.3333 | C3: 1.0000 | D3: 3.0000 | E3: 0.3333 | F3: 0.3333 | H3: 0.3333 | I3: 1.0000 | J3: 3.0000 | K3: 0.3333 | L3: 0.3333 | N3: 3.2667 | O3: 5.0000 | P3: 9.6667 | Q3: 2.1111 | R3: 2.1111 | S3: =SUM(N3:R3) -> 22.1556 | T3: =S3/$S$7 -> 0.0991 | V3: 3.2667 | W3: 5.0000 | X3: 9.6667 | Y3: 2.1111 | Z3: 2.1111 | AB3: 3.2667 | AC3: 5.0000 | AD3: 9.6667 | AE3: 2.1111 | AF3: 2.1111 | AH3: 101.6963 | AI3: 168.3778 | AJ3: 304.6000 | AK3: 55.0296 | AL3: 55.0296 | AM3: =SUM(AH3:AL3) -> 684.7333 | AN3: =AM3/$AM$7 -> 0.1068 | AP3: 101.6963 | AQ3: 168.3778 | AR3: 304.6000 | AS3: 55.0296 | AT3: 55.0296 | AV3: 101.6963 | AW3: 168.3778 | AX3: 304.6000 | AY3: 55.0296 | AZ3: 55.0296 | BA3: =SUM(AV3:AZ3) -> 684.7333 | BB3: =BA3/$BA$7 -> 0.1068
B4: 0.2000 | C4: 0.3333 | D4: 1.0000 | E4: 0.3333 | F4: 0.3333 | G4: x | H4: 0.2000 | I4: 0.3333 | J4: 1.0000 | K4: 0.3333 | L4: 0.3333 | M4: = | N4: 2.5111 | O4: 3.2667 | P4: 5.0000 | Q4: 1.1778 | R4: 1.1778 | S4: =SUM(N4:R4) -> 13.1333 | T4: =S4/$S$7 -> 0.0588 | V4: 2.5111 | W4: 3.2667 | X4: 5.0000 | Y4: 1.1778 | Z4: 1.1778 | AA4: x | AB4: 2.5111 | AC4: 3.2667 | AD4: 5.0000 | AE4: 1.1778 | AF4: 1.1778 | AG4: = | AH4: 60.7511 | AI4: 101.6963 | AJ4: 187.0444 | AK4: 33.7704 | AL4: 33.7704 | AM4: =SUM(AH4:AL4) -> 417.0326 | AN4: =AM4/$AM$7 -> 0.0650 | AP4: 60.7511 | AQ4: 101.6963 | AR4: 187.0444 | AS4: 33.7704 | AT4: 33.7704 | AU4: x | AV4: 60.7511 | AW4: 101.6963 | AX4: 187.0444 | AY4: 33.7704 | AZ4: 33.7704 | BA4: =SUM(AV4:AZ4) -> 417.0326 | BB4: =BA4/$BA$7 -> 0.0650
B5: 3.0000 | C5: 3.0000 | D5: 3.0000 | E5: 1.0000 | F5: 1.0000 | H5: 3.0000 | I5: 3.0000 | J5: 3.0000 | K5: 1.0000 | L5: 1.0000 | N5: 10.6000 | O5: 19.0000 | P5: 33.0000 | Q5: 5.0000 | R5: 5.0000 | S5: =SUM(N5:R5) -> 72.6000 | T5: =S5/$S$7 -> 0.3248 | V5: 10.6000 | W5: 19.0000 | X5: 33.0000 | Y5: 5.0000 | Z5: 5.0000 | AB5: 10.6000 | AC5: 19.0000 | AD5: 33.0000 | AE5: 5.0000 | AF5: 5.0000 | AH5: 303.9333 | AI5: 495.2667 | AJ5: 901.2667 | AK5: 167.8444 | AL5: 167.8444 | AM5: =SUM(AH5:AL5) -> 2036.1556 | AN5: =AM5/$AM$7 -> 0.3176 | AP5: 303.9333 | AQ5: 495.2667 | AR5: 901.2667 | AS5: 167.8444 | AT5: 167.8444 | AV5: 303.9333 | AW5: 495.2667 | AX5: 901.2667 | AY5: 167.8444 | AZ5: 167.8444 | BA5: =SUM(AV5:AZ5) -> 2036.1556 | BB5: =BA5/$BA$7 -> 0.3176
B6: 3.0000 | C6: 3.0000 | D6: 3.0000 | E6: 1.0000 | F6: 1.0000 | H6: 3.0000 | I6: 3.0000 | J6: 3.0000 | K6: 1.0000 | L6: 1.0000 | N6: 10.6000 | O6: 19.0000 | P6: 33.0000 | Q6: 5.0000 | R6: 5.0000 | S6: =SUM(N6:R6) -> 72.6000 | T6: =S6/$S$7 -> 0.3248 | V6: 10.6000 | W6: 19.0000 | X6: 33.0000 | Y6: 5.0000 | Z6: 5.0000 | AB6: 10.6000 | AC6: 19.0000 | AD6: 33.0000 | AE6: 5.0000 | AF6: 5.0000 | AH6: 303.9333 | AI6: 495.2667 | AJ6: 901.2667 | AK6: 167.8444 | AL6: 167.8444 | AM6: =SUM(AH6:AL6) -> 2036.1556 | AN6: =AM6/$AM$7 -> 0.3176 | AP6: 303.9333 | AQ6: 495.2667 | AR6: 901.2667 | AS6: 167.8444 | AT6: 167.8444 | AV6: 303.9333 | AW6: 495.2667 | AX6: 901.2667 | AY6: 167.8444 | AZ6: 167.8444 | BA6: =SUM(AV6:AZ6) -> 2036.1556 | BB6: =BA6/$BA$7 -> 0.3176
S7: =SUM(S2:S6) -> 223.4889 | AM7: =SUM(AM2:AM6) -> 6411.4474 | BA7: =SUM(BA2:BA6) -> 6411.4474
B9: Matriz com os pesos | H9: Cálculo de λmáx (autovalor principal)
B10: =MID('PASSO_1 - PROJ_HIERARQUIA'!#REF!,1,15) ->  | C10: =MID('PASSO_1 - PROJ_HIERARQUIA'!$C$36,1,15) -> Admissibilidade | D10: =MID('PASSO_1 - PROJ_HIERARQUIA'!$C$38,1,15) -> Técnico | E10: =MID('PASSO_1 - PROJ_HIERARQUIA'!$C$40,1,15) -> Operacional | F10: =MID('PASSO_1 - PROJ_HIERARQUIA'!#REF!,1,15) ->  | H10: Soma ponderada | I10: Prioridade | J10: Produto
A11: Pesos | B11: =BB2 -> 0.1930 | C11: =BB3 -> 0.1068 | D11: =BB4 -> 0.0650 | E11: =BB5 -> 0.3176 | F11: =BB6 -> 0.3176 | H11: =SUM(B20:F20) -> 1.0503 | I11: =B11 -> 0.1930 | J11: =H11/I11 -> 5.4423
A12: =MID('PASSO_1 - PROJ_HIERARQUIA'!#REF!,1,15) ->  | B12: =_xlfn.ANCHORARRAY(B2) -> 1.0000 | C12: 3.0000 | D12: 5.0000 | E12: 0.3333 | F12: 0.3333 | H12: =SUM(B21:F21) -> 0.5780 | I12: =C11 -> 0.1068 | J12: =H12/I12 -> 5.4119
A13: =MID('PASSO_1 - PROJ_HIERARQUIA'!$C$36,1,15) -> Admissibilidade | B13: 0.3333 | C13: 1.0000 | D13: 3.0000 | E13: 0.3333 | F13: 0.3333 | H13: =SUM(B22:F22) -> 0.3510 | I13: =D11 -> 0.0650 | J13: =H13/I13 -> 5.3957
A14: =MID('PASSO_1 - PROJ_HIERARQUIA'!$C$38,1,15) -> Técnico | B14: 0.2000 | C14: 0.3333 | D14: 1.0000 | E14: 0.3333 | F14: 0.3333 | H14: =SUM(B23:F23) -> 1.7297 | I14: =E11 -> 0.3176 | J14: =H14/I14 -> 5.4464
A15: =MID('PASSO_1 - PROJ_HIERARQUIA'!$C$40,1,15) -> Operacional | B15: 3.0000 | C15: 3.0000 | D15: 3.0000 | E15: 1.0000 | F15: 1.0000 | H15: =SUM(B24:F24) -> 1.7297 | I15: =F11 -> 0.3176 | J15: =H15/I15 -> 5.4464
A16: =MID('PASSO_1 - PROJ_HIERARQUIA'!#REF!,1,15) ->  | B16: 3.0000 | C16: 3.0000 | D16: 3.0000 | E16: 1.0000 | F16: 1.0000
B18: Matriz resultante ponderada | H18: λmáx | I18: =AVERAGE(J11:J15) -> 5.4286
B19: Clínico | C19: Admissibilidade | D19: Técnico | E19: Operacional | F19: Econômico | H19: n | I19: =COUNTA(A20:A24) -> 5
A20: Clínico | B20: =$B$11*B12 -> 0.1930 | C20: =$C$11*C12 -> 0.3204 | D20: =$D$11*D12 -> 0.3252 | E20: =$E$11*E12 -> 0.1059 | F20: =$F$11*F12 -> 0.1059 | H20: CI | I20: =(I18-I19)/(I19-1) -> 0.1071
A21: Admissibilidade | B21: =$B$11*B13 -> 0.0643 | C21: =$C$11*C13 -> 0.1068 | D21: =$D$11*D13 -> 0.1951 | E21: =$E$11*E13 -> 0.1059 | F21: =$F$11*F13 -> 0.1059 | H21: RI | I21: =_xlfn.IFS($I$19=1,'PASSO_2A - PESOS_CRITÉRIOS'!H10,$I$19=2,'PASSO_2A - PESOS_CRITÉRIOS'!I10,$I$19=3,'PASSO_2A - PESOS_CRITÉRIOS'!J10,$I$19=4,'PASSO_2A - PESOS_CRITÉRIOS'!K10,$I$19=5,'PASSO_2A - PESOS_CRITÉRIOS'!L10,$I$19=6,'PASSO_2A - PESOS_CRITÉRIOS'!M10,$I$19=7,'PASSO_2A - PESOS_CRITÉRIOS'!N10,$I$19=8,'PASSO_2A - PESOS_CRITÉRIOS'!O10,$I$19=9,'PASSO_2A - PESOS_CRITÉRIOS'!P10,$I$19=10,'PASSO_2A - PESOS_CRITÉRIOS'!Q10) -> 1.12
A22: Técnico | B22: =$B$11*B14 -> 0.0386 | C22: =$C$11*C14 -> 0.0356 | D22: =$D$11*D14 -> 0.0650 | E22: =$E$11*E14 -> 0.1059 | F22: =$F$11*F14 -> 0.1059 | H22: CR | I22: =I20/I21 -> 0.0957
A23: Operacional | B23: =$B$11*B15 -> 0.5790 | C23: =$C$11*C15 -> 0.3204 | D23: =$D$11*D15 -> 0.1951 | E23: =$E$11*E15 -> 0.3176 | F23: =$F$11*F15 -> 0.3176 | H23: =_xlfn.IFS(I20=0,"CONSISTENTE",ROUND(I22,1)<=0.1,"CONSISTENTE",ROUND(I22,1)>0.1,"INCONSISTENTE") -> CONSISTENTE
A24: Econômico | B24: =$B$11*B16 -> 0.5790 | C24: =$C$11*C16 -> 0.3204 | D24: =$D$11*D16 -> 0.1951 | E24: =$E$11*E16 -> 0.3176 | F24: =$F$11*F16 -> 0.3176

Sheet Pesos_subcritérios_cálculos
M1: Soma das linhas | N1: Resultados normalizados | AA1: Soma das linhas | AB1: Resultados normalizados | AO1: Soma das linhas | AP1: Resultados normalizados | BC1: Soma das linhas | BD1: Resultados normalizados
B2: ='PASSO_2B - PESOS_SUBCRITÉRIOS'!C29:E31 -> 1.0000 | C2: 3.0000 | D2: 3.0000 | F2: =_xlfn.ANCHORARRAY(B2) -> 1.0000 | G2: 3.0000 | H2: 3.0000 | J2: =MMULT(_xlfn.ANCHORARRAY(B2),_xlfn.ANCHORARRAY(F2)) -> 3.0000 | K2: 7.0000 | L2: 15.0000 | M2: =SUM(J2:L2) -> 25.0000 | N2: =M2/$M$5 -> 0.5937 | P2: =_xlfn.ANCHORARRAY(J2) -> 3.0000 | Q2: 7.0000 | R2: 15.0000 | T2: =_xlfn.ANCHORARRAY(P2) -> 3.0000 | U2: 7.0000 | V2: 15.0000 | X2: =MMULT(_xlfn.ANCHORARRAY(P2),_xlfn.ANCHORARRAY(T2)) -> 32.3333 | Y2: 67.0000 | Z2: 139.0000 | AA2: =SUM(X2:Z2) -> 238.3333 | AB2: =AA2/$AA$5 -> 0.5837 | AD2: =_xlfn.ANCHORARRAY(X2) -> 32.3333 | AE2: 67.0000 | AF2: 139.0000 | AH2: =_xlfn.ANCHORARRAY(AD2) -> 32.3333 | AI2: 67.0000 | AJ2: 139.0000 | AL2: =MMULT(_xlfn.ANCHORARRAY(AD2),_xlfn.ANCHORARRAY(AH2)) -> 3115.0000 | AM2: 6479.4444 | AN2: 13477.6667 | AO2: =SUM(AL2:AN2) -> 23072.1111 | AP2: =AO2/$AO$5 -> 0.5842 | AR2: =_xlfn.ANCHORARRAY(AL2) -> 3115.0000 | AS2: 6479.4444 | AT2: 13477.6667 | AV2: =_xlfn.ANCHORARRAY(AR2) -> 3115.0000 | AW2: 6479.4444 | AX2: 13477.6667 | AZ2: =MMULT(_xlfn.ANCHORARRAY(AR2),_xlfn.ANCHORARRAY(AV2)) -> 29109401.0905 | BA2: 60549994.3086 | BB2: 125949063.6420 | BC2: =SUM(AZ2:BB2) -> 215608459.0412 | BD2: =BC2/$BC$5 -> 0.5842
B3: 0.3333 | C3: 1.0000 | D3: 3.0000 | E3: x | F3: 0.3333 | G3: 1.0000 | H3: 3.0000 | I3: = | J3: 1.6667 | K3: 3.0000 | L3: 7.0000 | M3: =SUM(J3:L3) -> 11.6667 | N3: =M3/$M$5 -> 0.2770 | P3: 1.6667 | Q3: 3.0000 | R3: 7.0000 | S3: x | T3: 1.6667 | U3: 3.0000 | V3: 7.0000 | W3: = | X3: 15.4444 | Y3: 32.3333 | Z3: 67.0000 | AA3: =SUM(X3:Z3) -> 114.7778 | AB3: =AA3/$AA$5 -> 0.2811 | AD3: 15.4444 | AE3: 32.3333 | AF3: 67.0000 | AG3: x | AH3: 15.4444 | AI3: 32.3333 | AJ3: 67.0000 | AK3: = | AL3: 1497.5185 | AM3: 3115.0000 | AN3: 6479.4444 | AO3: =SUM(AL3:AN3) -> 11091.9630 | AP3: =AO3/$AO$5 -> 0.2808 | AR3: 1497.5185 | AS3: 3115.0000 | AT3: 6479.4444 | AU3: x | AV3: 1497.5185 | AW3: 3115.0000 | AX3: 6479.4444 | AY3: = | AZ3: 13994340.4047 | BA3: 29109401.0905 | BB3: 60549994.3086 | BC3: =SUM(AZ3:BB3) -> 103653735.8038 | BD3: =BC3/$BC$5 -> 0.2808
B4: 0.3333 | C4: 0.3333 | D4: 1.0000 | F4: 0.3333 | G4: 0.3333 | H4: 1.0000 | J4: 0.7778 | K4: 1.6667 | L4: 3.0000 | M4: =SUM(J4:L4) -> 5.4444 | N4: =M4/$M$5 -> 0.1293 | P4: 0.7778 | Q4: 1.6667 | R4: 3.0000 | T4: 0.7778 | U4: 1.6667 | V4: 3.0000 | X4: 7.4444 | Y4: 15.4444 | Z4: 32.3333 | AA4: =SUM(X4:Z4) -> 55.2222 | AB4: =AA4/$AA$5 -> 0.1352 | AD4: 7.4444 | AE4: 15.4444 | AF4: 32.3333 | AH4: 7.4444 | AI4: 15.4444 | AJ4: 32.3333 | AL4: 719.9383 | AM4: 1497.5185 | AN4: 3115.0000 | AO4: =SUM(AL4:AN4) -> 5332.4568 | AP4: =AO4/$AO$5 -> 0.1350 | AR4: 719.9383 | AS4: 1497.5185 | AT4: 3115.0000 | AV4: 719.9383 | AW4: 1497.5185 | AX4: 3115.0000 | AZ4: 6727777.1454 | BA4: 13994340.4047 | BB4: 29109401.0905 | BC4: =SUM(AZ4:BB4) -> 49831518.6406 | BD4: =BC4/$BC$5 -> 0.1350
M5: =SUM(M2:M4) -> 42.1111 | AA5: =SUM(AA2:AA4) -> 408.3333 | AO5: =SUM(AO2:AO4) -> 39496.5309 | BC5: =SUM(BC2:BC4) -> 369093713.4856
B7: Matriz com os pesos
B8: Clínico
B9: Desfecho clínico | C9: Potencialidades | D9: Fases do Ciclo de vida | J9: Cálculo de λmáx
A10: Pesos | B10: =BD2 -> 0.5842 | C10: =BD3 -> 0.2808 | D10: =BD4 -> 0.1350 | J10: Soma ponderada | K10: Prioridade | L10: Produto
A11: Desfecho clínico | B11: =_xlfn.ANCHORARRAY(B2) -> 1.0000 | C11: 3.0000 | D11: 3.0000 | J11: =SUM(B18:D18) -> 1.8317 | K11: =B10 -> 0.5842 | L11: =J11/K11 -> 3.1356
A12: Potencialidades | B12: 0.3333 | C12: 1.0000 | D12: 3.0000 | J12: =SUM(B19:D19) -> 0.8806 | K12: =C10 -> 0.2808 | L12: =J12/K12 -> 3.1356
A13: Fases do Ciclo de vida | B13: 0.3333 | C13: 0.3333 | D13: 1.0000 | J13: =SUM(B20:D20) -> 0.4233 | K13: =D10 -> 0.1350 | L13: =J13/K13 -> 3.1356
B15: Matriz resultante ponderada
B16: Clínico | J16: λmáx | K16: =AVERAGE(L11:L13) -> 3.1356
B17: Desfecho clínico | C17: Potencialidades | D17: Fases do Ciclo de vida | J17: n | K17: =COUNTA(A18:A20) -> 3
A18: Desfecho clínico | B18: =$B$10*B11 -> 0.5842 | C18: =$C$10*C11 -> 0.8425 | D18: =$D$10*D11 -> 0.4050 | J18: CI | K18: =(K16-K17)/(K17-1) -> 0.0678
A19: Potencialidades | B19: =$B$10*B12 -> 0.1947 | C19: =$C$10*C12 -> 0.2808 | D19: =$D$10*D12 -> 0.4050 | J19: RI | K19: =_xlfn.IFS($K17=1,'PASSO_2B - PESOS_SUBCRITÉRIOS'!$H$10,$K17=2,'PASSO_2B - PESOS_SUBCRITÉRIOS'!$I$10,$K17=3,'PASSO_2B - PESOS_SUBCRITÉRIOS'!$J$10,$K17=4,'PASSO_2B - PESOS_SUBCRITÉRIOS'!$K$10,$K17=5,'PASSO_2B - PESOS_SUBCRITÉRIOS'!$L$10,$K17=6,'PASSO_2B - PESOS_SUBCRITÉRIOS'!$M$10,$K17=7,'PASSO_2B - PESOS_SUBCRITÉRIOS'!$N$10,$K17=8,'PASSO_2B - PESOS_SUBCRITÉRIOS'!$O$10,$K17=9,'PASSO_2B - PESOS_SUBCRITÉRIOS'!$P$10,$K17=10,'PASSO_2B - PESOS_SUBCRITÉRIOS'!$Q$10) -> 0.58
A20: Fases do Ciclo de vida | B20: =$B$10*B13 -> 0.1947 | C20: =$C$10*C13 -> 0.0936 | D20: =$D$10*D13 -> 0.1350 | J20: CR | K20: =K18/K19 -> 0.1169
J21: =_xlfn.IFS(K18=0,"CONSISTENTE",ROUND(K20,1)<=0.1,"CONSISTENTE",ROUND(K20,1)>0.1,"INCONSISTENTE") -> CONSISTENTE
P24: Soma das linhas | Q24: Resultados normalizados | AG24: Soma das linhas | AH24: Resultados normalizados | AX24: Soma das linhas | AY24: Resultados normalizados | BO24: Soma das linhas | BP24: Resultados normalizados
B25: ='PASSO_2B - PESOS_SUBCRITÉRIOS'!C66:F69 -> 1.0000 | C25: 3.0000 | D25: 1.0000 | E25: 3.0000 | G25: =_xlfn.ANCHORARRAY(B25) -> 1.0000 | H25: 3.0000 | I25: 1.0000 | J25: 3.0000 | L25: =MMULT(_xlfn.ANCHORARRAY(B25),_xlfn.ANCHORARRAY(G25)) -> 4.0000 | M25: 12.0000 | N25: 6.0000 | O25: 10.0000 | P25: =SUM(L25:O25) -> 32.0000 | Q25: =P25/$P$29 -> 0.3871 | S25: =_xlfn.ANCHORARRAY(L25) -> 4.0000 | T25: 12.0000 | U25: 6.0000 | V25: 10.0000 | X25: =_xlfn.ANCHORARRAY(S25) -> 4.0000 | Y25: 12.0000 | Z25: 6.0000 | AA25: 10.0000 | AC25: =MMULT(_xlfn.ANCHORARRAY(S25),_xlfn.ANCHORARRAY(X25)) -> 72.0000 | AD25: 216.0000 | AE25: 98.6667 | AF25: 168.0000 | AG25: =SUM(AC25:AF25) -> 554.6667 | AH25: =AG25/$AG$29 -> 0.3890 | AJ25: =_xlfn.ANCHORARRAY(AC25) -> 72.0000 | AK25: 216.0000 | AL25: 98.6667 | AM25: 168.0000 | AO25: =_xlfn.ANCHORARRAY(AJ25) -> 72.0000 | AP25: 216.0000 | AQ25: 98.6667 | AR25: 168.0000 | AT25: =MMULT(_xlfn.ANCHORARRAY(AJ25),_xlfn.ANCHORARRAY(AO25)) -> 21418.66667 | AU25: 64256 | AV25: 29454.22222 | AW25: 50076.44444 | AX25: =SUM(AT25:AW25) -> 165205.3333 | AY25: =AX25/$AX$29 -> 0.3889 | BA25: =_xlfn.ANCHORARRAY(AT25) -> 21418.66667 | BB25: 64256 | BC25: 29454.22222 | BD25: 50076.44444 | BF25: =_xlfn.ANCHORARRAY(BA25) -> 21418.6667 | BG25: 64256.0000 | BH25: 29454.2222 | BI25: 50076.4444 | BK25: =MMULT(_xlfn.ANCHORARRAY(BA25),_xlfn.ANCHORARRAY(BF25)) -> 1.9008E+09 | BL25: 5.7025E+09 | BM25: 2.6140E+09 | BN25: 4.4441E+09 | BO25: =SUM(BK25:BN25) -> 14661377340.0494 | BP25: =BO25/$BO$29 -> 0.3889
B26: 0.3333 | C26: 1.0000 | D26: 0.3333 | E26: 1.0000 | F26: x | G26: 0.3333 | H26: 1.0000 | I26: 0.3333 | J26: 1.0000 | K26: = | L26: 1.3333 | M26: 4.0000 | N26: 2.0000 | O26: 3.3333 | P26: =SUM(L26:O26) -> 10.6667 | Q26: =P26/$P$29 -> 0.1290 | S26: 1.3333 | T26: 4.0000 | U26: 2.0000 | V26: 3.3333 | W26: x | X26: 1.3333 | Y26: 4.0000 | Z26: 2.0000 | AA26: 3.3333 | AB26: = | AC26: 24.0000 | AD26: 72.0000 | AE26: 32.8889 | AF26: 56.0000 | AG26: =SUM(AC26:AF26) -> 184.8889 | AH26: =AG26/$AG$29 -> 0.1297 | AJ26: 24.0000 | AK26: 72.0000 | AL26: 32.8889 | AM26: 56.0000 | AN26: x | AO26: 24.0000 | AP26: 72.0000 | AQ26: 32.8889 | AR26: 56.0000 | AS26: = | AT26: 7139.555556 | AU26: 21418.66667 | AV26: 9818.074074 | AW26: 16692.14815 | AX26: =SUM(AT26:AW26) -> 55068.4444 | AY26: =AX26/$AX$29 -> 0.1296 | BA26: 7139.555556 | BB26: 21418.66667 | BC26: 9818.074074 | BD26: 16692.14815 | BE26: x | BF26: 7139.5556 | BG26: 21418.6667 | BH26: 9818.0741 | BI26: 16692.1481 | BJ26: = | BK26: 6.3361E+08 | BL26: 1.9008E+09 | BM26: 8.7132E+08 | BN26: 1.4814E+09 | BO26: =SUM(BK26:BN26) -> 4887125780.0165 | BP26: =BO26/$BO$29 -> 0.1296
B27: 1.0000 | C27: 3.0000 | D27: 1.0000 | E27: 1.0000 | G27: 1.0000 | H27: 3.0000 | I27: 1.0000 | J27: 1.0000 | L27: 3.3333 | M27: 10.0000 | N27: 4.0000 | O27: 8.0000 | P27: =SUM(L27:O27) -> 25.3333 | Q27: =P27/$P$29 -> 0.3065 | S27: 3.3333 | T27: 10.0000 | U27: 4.0000 | V27: 8.0000 | X27: 3.3333 | Y27: 10.0000 | Z27: 4.0000 | AA27: 8.0000 | AC27: 56.0000 | AD27: 168.0000 | AE27: 77.3333 | AF27: 130.6667 | AG27: =SUM(AC27:AF27) -> 432.0000 | AH27: =AG27/$AG$29 -> 0.3030 | AJ27: 56.0000 | AK27: 168.0000 | AL27: 77.3333 | AM27: 130.6667 | AO27: 56.0000 | AP27: 168.0000 | AQ27: 77.3333 | AR27: 130.6667 | AT27: 16692.14815 | AU27: 50076.44444 | AV27: 22954.66667 | AW27: 39025.77778 | AX27: =SUM(AT27:AW27) -> 128749.0370 | AY27: =AX27/$AX$29 -> 0.3031 | BA27: 16692.14815 | BB27: 50076.44444 | BC27: 22954.66667 | BD27: 39025.77778 | BF27: 16692.1481 | BG27: 50076.4444 | BH27: 22954.6667 | BI27: 39025.7778 | BK27: 1.4814E+09 | BL27: 4.4441E+09 | BM27: 2.0371E+09 | BN27: 3.4634E+09 | BO27: =SUM(BK27:BN27) -> 11426022252.5103 | BP27: =BO27/$BO$29 -> 0.3031
B28: 0.3333 | C28: 1.0000 | D28: 1.0000 | E28: 1.0000 | G28: 0.3333 | H28: 1.0000 | I28: 1.0000 | J28: 1.0000 | L28: 2.0000 | M28: 6.0000 | N28: 2.6667 | O28: 4.0000 | P28: =SUM(L28:O28) -> 14.6667 | Q28: =P28/$P$29 -> 0.1774 | S28: 2.0000 | T28: 6.0000 | U28: 2.6667 | V28: 4.0000 | X28: 2.0000 | Y28: 6.0000 | Z28: 2.6667 | AA28: 4.0000 | AC28: 32.8889 | AD28: 98.6667 | AE28: 45.3333 | AF28: 77.3333 | AG28: =SUM(AC28:AF28) -> 254.2222 | AH28: =AG28/$AG$29 -> 0.1783 | AJ28: 32.8889 | AK28: 98.6667 | AL28: 45.3333 | AM28: 77.3333 | AO28: 32.8889 | AP28: 98.6667 | AQ28: 45.3333 | AR28: 77.3333 | AT28: 9818.074074 | AU28: 29454.22222 | AV28: 13501.62963 | AW28: 22954.66667 | AX28: =SUM(AT28:AW28) -> 75728.5926 | AY28: =AX28/$AX$29 -> 0.1783 | BA28: 9818.074074 | BB28: 29454.22222 | BC28: 13501.62963 | BD28: 22954.66667 | BF28: 9818.0741 | BG28: 29454.2222 | BH28: 13501.6296 | BI28: 22954.6667 | BK28: 8.7132E+08 | BL28: 2.6140E+09 | BM28: 1.1982E+09 | BN28: 2.0371E+09 | BO28: =SUM(BK28:BN28) -> 6720642813.5418 | BP28: =BO28/$BO$29 -> 0.1783
P29: =SUM(P25:P28) -> 82.6667 | AG29: =SUM(AG25:AG28) -> 1425.7778 | AX29: =SUM(AX25:AX28) -> 424751.4074 | BO29: =SUM(BO25:BO28) -> 37695168186.1180
B31: Matriz com os pesos
B32: Admissibilidade
B33: Parâmetros assistenciais | C33: Planejamento Estratégico | D33: Recursos humanos | E33: Ensino e Pesquisa
A34: Pesos | B34: =BP25 -> 0.3889 | C34: =BP26 -> 0.1296 | D34: =BP27 -> 0.3031 | E34: =BP28 -> 0.1783
A35: Parâmetros assistenciais | B35: =B25:E28 -> 1.0000 | C35: 3.0000 | D35: 1.0000 | E35: 3.0000
A36: Planejamento Estratégico | B36: 0.3333 | C36: 1.0000 | D36: 0.3333 | E36: 1.0000 | J36: Cálculo de λmáx
A37: Recursos humanos | B37: 1.0000 | C37: 3.0000 | D37: 1.0000 | E37: 1.0000 | J37: Soma ponderada | K37: Prioridade | L37: Produto
A38: Ensino e Pesquisa | B38: 0.3333 | C38: 1.0000 | D38: 1.0000 | E38: 1.0000 | J38: =SUM(B45:E45) -> 1.616 | K38: =B34 -> 0.3889 | L38: =J38/K38 -> 4.1545
J39: =SUM(B46:E46) -> 0.539 | K39: =C34 -> 0.1296 | L39: =J39/K39 -> 4.1545
J40: =SUM(B47:E47) -> 1.259 | K40: =D34 -> 0.3031 | L40: =J40/K40 -> 4.1545
J41: =SUM(B48:E48) -> 0.741 | K41: =E34 -> 0.1783 | L41: =J41/K41 -> 4.1545
B42: Matriz resultante ponderada
B43: Admissibilidade | J43: λmáx | K43: =AVERAGE(L38:L41) -> 4.155
B44: Parâmetros assistenciais | C44: Planejamento Estratégico | D44: Recursos humanos | E44: Ensino e Pesquisa | J44: n | K44: =COUNTA(A35:A38) -> 4
A45: Parâmetros assistenciais | B45: =$B$34*B35 -> 0.3889 | C45: =$C$34*C35 -> 0.3889 | D45: =$D$34*D35 -> 0.3031 | E45: =$E$34*E35 -> 0.5349 | J45: CI | K45: =(K43-K44)/(K44-1) -> 0.052
A46: Planejamento Estratégico | B46: =$B$34*B36 -> 0.1296 | C46: =$C$34*C36 -> 0.1296 | D46: =$D$34*D36 -> 0.1010 | E46: =$E$34*E36 -> 0.1783 | J46: RI | K46: =_xlfn.IFS($K44=1,'PASSO_2B - PESOS_SUBCRITÉRIOS'!$H$10,$K44=2,'PASSO_2B - PESOS_SUBCRITÉRIOS'!$I$10,$K44=3,'PASSO_2B - PESOS_SUBCRITÉRIOS'!$J$10,$K44=4,'PASSO_2B - PESOS_SUBCRITÉRIOS'!$K$10,$K44=5,'PASSO_2B - PESOS_SUBCRITÉRIOS'!$L$10,$K44=6,'PASSO_2B - PESOS_SUBCRITÉRIOS'!$M$10,$K44=7,'PASSO_2B - PESOS_SUBCRITÉRIOS'!$N$10,$K44=8,'PASSO_2B - PESOS_SUBCRITÉRIOS'!$O$10,$K44=9,'PASSO_2B - PESOS_SUBCRITÉRIOS'!$P$10,$K44=10,'PASSO_2B - PESOS_SUBCRITÉRIOS'!$Q$10) -> 0.9
A47: Recursos humanos | B47: =$B$34*B37 -> 0.3889 | C47: =$C$34*C37 -> 0.3889 | D47: =$D$34*D37 -> 0.3031 | E47: =$E$34*E37 -> 0.1783 | J47: CR | K47: =K45/K46 -> 0.057
A48: Ensino e Pesquisa | B48: =$B$34*B38 -> 0.1296 | C48: =$C$34*C38 -> 0.1296 | D48: =$D$34*D38 -> 0.3031 | E48: =$E$34*E38 -> 0.1783 | J48: =_xlfn.IFS(K45=0,"CONSISTENTE",ROUND(K47,1)<=0.1,"CONSISTENTE",ROUND(K47,1)>0.1,"INCONSISTENTE") -> CONSISTENTE
M51: Soma das linhas | N51: Resultados normalizados | AA51: Soma das linhas | AB51: Resultados normalizados | AO51: Soma das linhas | AP51: Resultados normalizados | BC51: Soma das linhas | BD51: Resultados normalizados
B52: ='PASSO_2B - PESOS_SUBCRITÉRIOS'!C100:E102 -> 1.0000 | C52: 3.0000 | D52: 3.0000 | F52: =_xlfn.ANCHORARRAY(B52) -> 1.0000 | G52: 3.0000 | H52: 3.0000 | J52: =MMULT(_xlfn.ANCHORARRAY(B52),_xlfn.ANCHORARRAY(F52)) -> 3.0000 | K52: 9.0000 | L52: 9.0000 | M52: =SUM(J52:L52) -> 21.0000 | N52: =M52/$M$55 -> 0.6000 | P52: =_xlfn.ANCHORARRAY(J52) -> 3.0000 | Q52: 9.0000 | R52: 9.0000 | T52: =_xlfn.ANCHORARRAY(P52) -> 3.0000 | U52: 9.0000 | V52: 9.0000 | X52: =MMULT(_xlfn.ANCHORARRAY(P52),_xlfn.ANCHORARRAY(T52)) -> 27.0000 | Y52: 81.0000 | Z52: 81.0000 | AA52: =SUM(X52:Z52) -> 189.0000 | AB52: =AA52/$AA$55 -> 0.6000 | AD52: =_xlfn.ANCHORARRAY(X52) -> 27.0000 | AE52: 81.0000 | AF52: 81.0000 | AH52: =_xlfn.ANCHORARRAY(AD52) -> 27.0000 | AI52: 81.0000 | AJ52: 81.0000 | AL52: =MMULT(_xlfn.ANCHORARRAY(AD52),_xlfn.ANCHORARRAY(AH52)) -> 2187.0000 | AM52: 6561.0000 | AN52: 6561.0000 | AO52: =SUM(AL52:AN52) -> 15309.0000 | AP52: =AO52/$AO$55 -> 0.6000 | AR52: =_xlfn.ANCHORARRAY(AL52) -> 2187.0000 | AS52: 6561.0000 | AT52: 6561.0000 | AV52: =_xlfn.ANCHORARRAY(AR52) -> 2187.0000 | AW52: 6561.0000 | AX52: 6561.0000 | AZ52: =MMULT(_xlfn.ANCHORARRAY(AR52),_xlfn.ANCHORARRAY(AV52)) -> 14348907.0000 | BA52: 43046721.0000 | BB52: 43046721.0000 | BC52: =SUM(AZ52:BB52) -> 100442349.0000 | BD52: =BC52/$BC$55 -> 0.6000
B53: 0.3333 | C53: 1.0000 | D53: 1.0000 | E53: x | F53: 0.3333 | G53: 1.0000 | H53: 1.0000 | I53: = | J53: 1.0000 | K53: 3.0000 | L53: 3.0000 | M53: =SUM(J53:L53) -> 7.0000 | N53: =M53/$M$55 -> 0.2000 | P53: 1.0000 | Q53: 3.0000 | R53: 3.0000 | S53: x | T53: 1.0000 | U53: 3.0000 | V53: 3.0000 | W53: = | X53: 9.0000 | Y53: 27.0000 | Z53: 27.0000 | AA53: =SUM(X53:Z53) -> 63.0000 | AB53: =AA53/$AA$55 -> 0.2000 | AD53: 9.0000 | AE53: 27.0000 | AF53: 27.0000 | AG53: x | AH53: 9.0000 | AI53: 27.0000 | AJ53: 27.0000 | AK53: = | AL53: 729.0000 | AM53: 2187.0000 | AN53: 2187.0000 | AO53: =SUM(AL53:AN53) -> 5103.0000 | AP53: =AO53/$AO$55 -> 0.2000 | AR53: 729.0000 | AS53: 2187.0000 | AT53: 2187.0000 | AU53: x | AV53: 729.0000 | AW53: 2187.0000 | AX53: 2187.0000 | AY53: = | AZ53: 4782969.0000 | BA53: 14348907.0000 | BB53: 14348907.0000 | BC53: =SUM(AZ53:BB53) -> 33480783.0000 | BD53: =BC53/$BC$55 -> 0.2000
B54: 0.3333 | C54: 1.0000 | D54: 1.0000 | F54: 0.3333 | G54: 1.0000 | H54: 1.0000 | J54: 1.0000 | K54: 3.0000 | L54: 3.0000 | M54: =SUM(J54:L54) -> 7.0000 | N54: =M54/$M$55 -> 0.2000 | P54: 1.0000 | Q54: 3.0000 | R54: 3.0000 | T54: 1.0000 | U54: 3.0000 | V54: 3.0000 | X54: 9.0000 | Y54: 27.0000 | Z54: 27.0000 | AA54: =SUM(X54:Z54) -> 63.0000 | AB54: =AA54/$AA$55 -> 0.2000 | AD54: 9.0000 | AE54: 27.0000 | AF54: 27.0000 | AH54: 9.0000 | AI54: 27.0000 | AJ54: 27.0000 | AL54: 729.0000 | AM54: 2187.0000 | AN54: 2187.0000 | AO54: =SUM(AL54:AN54) -> 5103.0000 | AP54: =AO54/$AO$55 -> 0.2000 | AR54: 729.0000 | AS54: 2187.0000 | AT54: 2187.0000 | AV54: 729.0000 | AW54: 2187.0000 | AX54: 2187.0000 | AZ54: 4782969.0000 | BA54: 14348907.0000 | BB54: 14348907.0000 | BC54: =SUM(AZ54:BB54) -> 33480783.0000 | BD54: =BC54/$BC$55 -> 0.2000
M55: =SUM(M52:M54) -> 35.0000 | AA55: =SUM(AA52:AA54) -> 315.0000 | AO55: =SUM(AO52:AO54) -> 25515.0000 | BC55: =SUM(BC52:BC54) -> 167403915.0000
B57: Matriz com os pesos
B58: Técnico | J58: Cálculo de λmáx
B59: Capacidade de produção | C59: Resolução espacial | D59: Velocidade de execução | J59: Soma ponderada | K59: Prioridade | L59: Produto
A60: Pesos | B60: =BD52 -> 0.6000 | C60: =BD53 -> 0.2000 | D60: =BD54 -> 0.2000 | J60: =SUM(B68:D68) -> 1.8000 | K60: =B60 -> 0.6000 | L60: =J60/K60 -> 3.0000
A61: Capacidade de produção | B61: =_xlfn.ANCHORARRAY(B52) -> 1.0000 | C61: 3.0000 | D61: 3.0000 | J61: =SUM(B69:D69) -> 0.6000 | K61: =C60 -> 0.2000 | L61: =J61/K61 -> 3.0000
A62: Resolução espacial | B62: 0.3333 | C62: 1.0000 | D62: 1.0000 | J62: =SUM(B70:D70) -> 0.6000 | K62: =D60 -> 0.2000 | L62: =J62/K62 -> 3.0000
A63: Velocidade de execução | B63: 0.3333 | C63: 1.0000 | D63: 1.0000
B65: Matriz resultante ponderada | J65: λmáx | K65: =AVERAGE(L60:L62) -> 3.000
B66: Técnico | J66: n | K66: =COUNTA(A68:A70) -> 3
B67: Capacidade de produção | C67: Resolução espacial | D67: Velocidade de execução | J67: CI | K67: =(K65-K66)/(K66-1) -> 0.0000
A68: Capacidade de produção | B68: =$B$60*B61 -> 0.6000 | C68: =$C$60*C61 -> 0.6000 | D68: =$D$60*D61 -> 0.6000 | J68: RI | K68: =_xlfn.IFS($K66=1,'PASSO_2B - PESOS_SUBCRITÉRIOS'!$H$10,$K66=2,'PASSO_2B - PESOS_SUBCRITÉRIOS'!$I$10,$K66=3,'PASSO_2B - PESOS_SUBCRITÉRIOS'!$J$10,$K66=4,'PASSO_2B - PESOS_SUBCRITÉRIOS'!$K$10,$K66=5,'PASSO_2B - PESOS_SUBCRITÉRIOS'!$L$10,$K66=6,'PASSO_2B - PESOS_SUBCRITÉRIOS'!$M$10,$K66=7,'PASSO_2B - PESOS_SUBCRITÉRIOS'!$N$10,$K66=8,'PASSO_2B - PESOS_SUBCRITÉRIOS'!$O$10,$K66=9,'PASSO_2B - PESOS_SUBCRITÉRIOS'!$P$10,$K66=10,'PASSO_2B - PESOS_SUBCRITÉRIOS'!$Q$10) -> 0.58
A69: Resolução espacial | B69: =$B$60*B62 -> 0.2000 | C69: =$C$60*C62 -> 0.2000 | D69: =$D$60*D62 -> 0.2000 | J69: CR | K69: =K67/K68 -> 0.0000
A70: Velocidade de execução | B70: =$B$60*B63 -> 0.2000 | C70: =$C$60*C63 -> 0.2000 | D70: =$D$60*D63 -> 0.2000 | J70: =_xlfn.IFS(K67=0,"CONSISTENTE",ROUND(K69,1)<=0.1,"CONSISTENTE",ROUND(K69,1)>0.1,"INCONSISTENTE") -> CONSISTENTE
J73: Soma das linhas | K73: Resultados normalizados | U73: Soma das linhas | V73: Resultados normalizados
B74: ='PASSO_2B - PESOS_SUBCRITÉRIOS'!C127:D128 -> 1.0000 | C74: 3.0000 | D74: x | E74: =_xlfn.ANCHORARRAY(B74) -> 1.0000 | F74: 3.0000 | G74: = | H74: =MMULT(_xlfn.ANCHORARRAY(B74),_xlfn.ANCHORARRAY(E74)) -> 2.0000 | I74: 6.0000 | J74: =SUM(H74:I74) -> 8.0000 | K74: =J74/$J$76 -> 0.7500 | M74: =_xlfn.ANCHORARRAY(H74) -> 2.0000 | N74: 6.0000 | O74: x | P74: =_xlfn.ANCHORARRAY(M74) -> 2.0000 | Q74: 6.0000 | R74: = | S74: =MMULT(_xlfn.ANCHORARRAY(M74),_xlfn.ANCHORARRAY(P74)) -> 8.0000 | T74: 24.0000 | U74: =SUM(S74:T74) -> 32.0000 | V74: =U74/$U$76 -> 0.7500
B75: 0.3333 | C75: 1.0000 | E75: 0.3333 | F75: 1.0000 | H75: 0.6667 | I75: 2.0000 | J75: =SUM(H75:I75) -> 2.6667 | K75: =J75/$J$76 -> 0.2500 | M75: 0.6667 | N75: 2.0000 | P75: 0.6667 | Q75: 2.0000 | S75: 2.6667 | T75: 8.0000 | U75: =SUM(S75:T75) -> 10.6667 | V75: =U75/$U$76 -> 0.2500
J76: =SUM(J74:J75) -> 10.6667 | U76: =SUM(U74:U75) -> 42.6667
B78: Matriz com os pesos | J78: Cálculo de λmáx
B79: Operacional | J79: Soma ponderada | K79: Prioridade | L79: Produto
B80: Infraestrutura | C80: Insumos | J80: =SUM(B88:C88) -> 1.5000 | K80: =B81 -> 0.7500 | L80: =J80/K80 -> 2.0000
A81: Pesos | B81: =V74 -> 0.7500 | C81: =V75 -> 0.2500 | J81: =SUM(B89:C89) -> 0.5000 | K81: =C81 -> 0.2500 | L81: =J81/K81 -> 2.0000
A82: Infraestrutura | B82: =_xlfn.ANCHORARRAY(B74) -> 1.0000 | C82: 3.0000
A83: Insumos | B83: 0.3333 | C83: 1.0000
B85: Matriz resultante ponderada | J85: λmáx | K85: =AVERAGE(L80:L81) -> 2.000
B86: Operacional | J86: n | K86: =COUNTA(A88:A89) -> 2
B87: Infraestrutura | C87: Insumos | J87: CI | K87: =(K85-K86)/(K86-1) -> 0.0000
A88: Infraestrutura | B88: =$B$81*B82 -> 0.7500 | C88: =$C$81*C82 -> 0.7500 | J88: RI | K88: =_xlfn.IFS($K86=1,'PASSO_2B - PESOS_SUBCRITÉRIOS'!$H$10,$K86=2,'PASSO_2B - PESOS_SUBCRITÉRIOS'!$I$10,$K86=3,'PASSO_2B - PESOS_SUBCRITÉRIOS'!$J$10,$K86=4,'PASSO_2B - PESOS_SUBCRITÉRIOS'!$K$10,$K86=5,'PASSO_2B - PESOS_SUBCRITÉRIOS'!$L$10,$K86=6,'PASSO_2B - PESOS_SUBCRITÉRIOS'!$M$10,$K86=7,'PASSO_2B - PESOS_SUBCRITÉRIOS'!$N$10,$K86=8,'PASSO_2B - PESOS_SUBCRITÉRIOS'!$O$10,$K86=9,'PASSO_2B - PESOS_SUBCRITÉRIOS'!$P$10,$K86=10,'PASSO_2B - PESOS_SUBCRITÉRIOS'!$Q$10) -> 0
A89: Insumos | B89: =$B$81*B83 -> 0.2500 | C89: =$C$81*C83 -> 0.2500 | J89: CR | K89: =IFERROR(K87/K88,0) -> 0.0000
J90: =_xlfn.IFS(K87=0,"CONSISTENTE",ROUND(K89,1)<=0.1,"CONSISTENTE",ROUND(K89,1)>0.1,"INCONSISTENTE") -> CONSISTENTE
J92: Soma das linhas | K92: Resultados normalizados | U92: Soma das linhas | V92: Resultados normalizados
B93: ='PASSO_2B - PESOS_SUBCRITÉRIOS'!C151:D152 -> 1.0000 | C93: 1.0000 | D93: x | E93: =_xlfn.ANCHORARRAY(B93) -> 1.0000 | F93: 1.0000 | G93: = | H93: =MMULT(_xlfn.ANCHORARRAY(B93),_xlfn.ANCHORARRAY(E93)) -> 2.0000 | I93: 2.0000 | J93: =SUM(H93:I93) -> 4.0000 | K93: =J93/$J$95 -> 0.5000 | M93: =_xlfn.ANCHORARRAY(H93) -> 2.0000 | N93: 2.0000 | O93: x | P93: =_xlfn.ANCHORARRAY(M93) -> 2.0000 | Q93: 2.0000 | R93: = | S93: =MMULT(_xlfn.ANCHORARRAY(M93),_xlfn.ANCHORARRAY(P93)) -> 8.0000 | T93: 8.0000 | U93: =SUM(S93:T93) -> 16.0000 | V93: =U93/$U$95 -> 0.5000
B94: 1.0000 | C94: 1.0000 | E94: 1.0000 | F94: 1.0000 | H94: 2.0000 | I94: 2.0000 | J94: =SUM(H94:I94) -> 4.0000 | K94: =J94/$J$95 -> 0.5000 | M94: 2.0000 | N94: 2.0000 | P94: 2.0000 | Q94: 2.0000 | S94: 8.0000 | T94: 8.0000 | U94: =SUM(S94:T94) -> 16.0000 | V94: =U94/$U$95 -> 0.5000
J95: =SUM(J93:J94) -> 8.0000 | U95: =SUM(U93:U94) -> 32.0000
B96: Matriz com os pesos
B97: Econômico | J97: Cálculo de λmáx
B98: Custo Total de Propriedade | C98: Sustentabilidade Financeira | J98: Soma ponderada | K98: Prioridade | L98: Produto
A99: Pesos | B99: =V93 -> 0.5000 | C99: =V94 -> 0.5000 | J99: =SUM(B107:C107) -> 1.0000 | K99: =B99 -> 0.5000 | L99: =J99/K99 -> 2.0000
A100: Custo Total de Propriedade | B100: =B93:C94 -> 1.0000 | C100: 1.0000 | J100: =SUM(B108:C108) -> 1.0000 | K100: =C99 -> 0.5000 | L100: =J100/K100 -> 2.0000
A101: Sustentabilidade Financeira | B101: 1.0000 | C101: 1.0000
B104: Matriz resultante ponderada | J104: λmáx | K104: =AVERAGE(L99:L100) -> 2.000
B105: Econômico | J105: n | K105: =COUNTA(A107:A108) -> 2
B106: Custo Total de Propriedade | C106: Sustentabilidade Financeira | J106: CI | K106: =(K104-K105)/(K105-1) -> 0.0000
A107: Custo Total de Propriedade | B107: =$B$99*B100 -> 0.5000 | C107: =$C$99*C100 -> 0.5000 | J107: RI | K107: =_xlfn.IFS($K105=1,'PASSO_2B - PESOS_SUBCRITÉRIOS'!$H$10,$K105=2,'PASSO_2B - PESOS_SUBCRITÉRIOS'!$I$10,$K105=3,'PASSO_2B - PESOS_SUBCRITÉRIOS'!$J$10,$K105=4,'PASSO_2B - PESOS_SUBCRITÉRIOS'!$K$10,$K105=5,'PASSO_2B - PESOS_SUBCRITÉRIOS'!$L$10,$K105=6,'PASSO_2B - PESOS_SUBCRITÉRIOS'!$M$10,$K105=7,'PASSO_2B - PESOS_SUBCRITÉRIOS'!$N$10,$K105=8,'PASSO_2B - PESOS_SUBCRITÉRIOS'!$O$10,$K105=9,'PASSO_2B - PESOS_SUBCRITÉRIOS'!$P$10,$K105=10,'PASSO_2B - PESOS_SUBCRITÉRIOS'!$Q$10) -> 0
A108: Sustentabilidade Financeira | B108: =$B$99*B101 -> 0.5000 | C108: =$C$99*C101 -> 0.5000 | J108: CR | K108: =IFERROR(K106/K107,0) -> 0.0000
J109: =_xlfn.IFS(K106=0,"CONSISTENTE",ROUND(K108,1)<=0.1,"CONSISTENTE",ROUND(K108,1)>0.1,"INCONSISTENTE") -> CONSISTENTE

Sheet Pesos_alternativas_cálculos (hidden)
S1: Soma das linhas | T1: Resultados normalizados | AM1: Soma das linhas | AN1: Resultados normalizados | BG1: Soma das linhas | BH1: Resultados normalizados | CA1: Soma das linhas | CB1: Resultados normalizados | CU1: Soma das linhas | CV1: Resultados normalizados
B2: ='PASSO_3 - PESOS_ALTERNATIVAS'!C45:G49 -> 1.0000 | C2: 0.2000 | D2: 0.2000 | E2: 0.3333 | F2: 0.3333 | H2: =_xlfn.ANCHORARRAY(B2) -> 1.0000 | I2: 0.2000 | J2: 0.2000 | K2: 0.3333 | L2: 0.3333 | N2: =MMULT(_xlfn.ANCHORARRAY(B2),_xlfn.ANCHORARRAY(H2)) -> 5.0000 | O2: 0.8222 | P2: 0.8222 | Q2: 2.2000 | R2: 2.2000 | S2: =SUM(N2:R2) -> 11.0444 | T2: =S2/$S$7 -> 0.0541 | V2: =_xlfn.ANCHORARRAY(N2) -> 5.0000 | W2: 0.8222 | X2: 0.8222 | Y2: 2.2000 | Z2: 2.2000 | AB2: =_xlfn.ANCHORARRAY(V2) -> 5.0000 | AC2: 0.8222 | AD2: 0.8222 | AE2: 2.2000 | AF2: 2.2000 | AH2: =MMULT(_xlfn.ANCHORARRAY(V2),_xlfn.ANCHORARRAY(AB2)) -> 133.5333 | AI2: 20.8400 | AJ2: 20.8400 | AK2: 55.4741 | AL2: 55.4741 | AM2: =SUM(AH2:AL2) -> 286.1615 | AN2: =AM2/$AM$7 -> 0.0551 | AP2: =_xlfn.ANCHORARRAY(AH2) -> 133.5333 | AQ2: 20.8400 | AR2: 20.8400 | AS2: 55.4741 | AT2: 55.4741 | AV2: =_xlfn.ANCHORARRAY(AP2) -> 133.5333 | AW2: 20.8400 | AX2: 20.8400 | AY2: 55.4741 | AZ2: 55.4741 | BB2: =MMULT(_xlfn.ANCHORARRAY(AP2),_xlfn.ANCHORARRAY(AV2)) -> 87195.9333 | BC2: 13615.3999 | BD2: 13615.3999 | BE2: 36246.9331 | BF2: 36246.9331 | BG2: =SUM(BB2:BF2) -> 186920.5994 | BH2: =BG2/$BG$7 -> 0.0551 | BJ2: =_xlfn.ANCHORARRAY(BB2) -> 87195.9333 | BK2: 13615.3999 | BL2: 13615.3999 | BM2: 36246.9331 | BN2: 36246.9331 | BP2: =_xlfn.ANCHORARRAY(BJ2) -> 87195.9333 | BQ2: 13615.3999 | BR2: 13615.3999 | BS2: 36246.9331 | BT2: 36246.9331 | BV2: =MMULT(_xlfn.ANCHORARRAY(BJ2),_xlfn.ANCHORARRAY(BP2)) -> 3.721412018e+10 | BW2: 5810880569 | BX2: 5810880569 | BY2: 1.546973326e+10 | BZ2: 1.546973326e+10 | CA2: =SUM(BV2:BZ2) -> 79775347832.0580 | CB2: =CA2/$CA$7 -> 0.0551 | CD2: =_xlfn.ANCHORARRAY(BV2) -> 3.721412018e+10 | CE2: 5810880569 | CF2: 5810880569 | CG2: 1.546973326e+10 | CH2: 1.546973326e+10 | CJ2: =_xlfn.ANCHORARRAY(CD2) -> 3.721412018e+10 | CK2: 5810880569 | CL2: 5810880569 | CM2: 1.546973326e+10 | CN2: 1.546973326e+10 | CP2: =MMULT(_xlfn.ANCHORARRAY(CD2),_xlfn.ANCHORARRAY(CJ2)) -> 6.778457085e+21 | CQ2: 1.058437076e+21 | CR2: 1.058437076e+21 | CS2: 2.817772461e+21 | CT2: 2.817772461e+21 | CU2: =SUM(CP2:CT2) -> 14530876160106800000000.0000 | CV2: =CU2/$CU$7 -> 0.0551
B3: 5.0000 | C3: 1.0000 | D3: 1.0000 | E3: 3.0000 | F3: 3.0000 | H3: 5.0000 | I3: 1.0000 | J3: 1.0000 | K3: 3.0000 | L3: 3.0000 | N3: 33.0000 | O3: 5.0000 | P3: 5.0000 | Q3: 13.6667 | R3: 13.6667 | S3: =SUM(N3:R3) -> 70.3333 | T3: =S3/$S$7 -> 0.3446 | V3: 33.0000 | W3: 5.0000 | X3: 5.0000 | Y3: 13.6667 | Z3: 13.6667 | AB3: 33.0000 | AC3: 5.0000 | AD3: 5.0000 | AE3: 13.6667 | AF3: 13.6667 | AH3: 832.1111 | AI3: 129.9778 | AJ3: 129.9778 | AK3: 345.9333 | AL3: 345.9333 | AM3: =SUM(AH3:AL3) -> 1783.9333 | AN3: =AM3/$AM$7 -> 0.3434 | AP3: 832.1111 | AQ3: 129.9778 | AR3: 129.9778 | AS3: 345.9333 | AT3: 345.9333 | AV3: 832.1111 | AW3: 129.9778 | AX3: 129.9778 | AY3: 345.9333 | AZ3: 345.9333 | BB3: 543703.9965 | BC3: 84897.8593 | BD3: 84897.8593 | BE3: 226015.1771 | BF3: 226015.1771 | BG3: =SUM(BB3:BF3) -> 1165530.0693 | BH3: =BG3/$BG$7 -> 0.3435 | BJ3: 543703.9965 | BK3: 84897.8593 | BL3: 84897.8593 | BM3: 226015.1771 | BN3: 226015.1771 | BP3: 543703.9965 | BQ3: 84897.8593 | BR3: 84897.8593 | BS3: 226015.1771 | BT3: 226015.1771 | BV3: 2.320459989e+11 | BW3: 3.623333239e+10 | BX3: 3.623333239e+10 | BY3: 9.646042118e+10 | BZ3: 9.646042118e+10 | CA3: =SUM(BV3:BZ3) -> 497433506016.3810 | CB3: =CA3/$CA$7 -> 0.3435 | CD3: 2.320459989e+11 | CE3: 3.623333239e+10 | CF3: 3.623333239e+10 | CG3: 9.646042118e+10 | CH3: 9.646042118e+10 | CJ3: 2.320459989e+11 | CK3: 3.623333239e+10 | CL3: 3.623333239e+10 | CM3: 9.646042118e+10 | CN3: 9.646042118e+10 | CP3: 4.226658692e+22 | CQ3: 6.599809091e+21 | CR3: 6.599809091e+21 | CS3: 1.757001972e+22 | CT3: 1.757001972e+22 | CU3: =SUM(CP3:CT3) -> 90606244538455300000000.0000 | CV3: =CU3/$CU$7 -> 0.3435
B4: 5.0000 | C4: 1.0000 | D4: 1.0000 | E4: 3.0000 | F4: 3.0000 | G4: x | H4: 5.0000 | I4: 1.0000 | J4: 1.0000 | K4: 3.0000 | L4: 3.0000 | M4: = | N4: 33.0000 | O4: 5.0000 | P4: 5.0000 | Q4: 13.6667 | R4: 13.6667 | S4: =SUM(N4:R4) -> 70.3333 | T4: =S4/$S$7 -> 0.3446 | V4: 33.0000 | W4: 5.0000 | X4: 5.0000 | Y4: 13.6667 | Z4: 13.6667 | AA4: x | AB4: 33.0000 | AC4: 5.0000 | AD4: 5.0000 | AE4: 13.6667 | AF4: 13.6667 | AG4: = | AH4: 832.1111 | AI4: 129.9778 | AJ4: 129.9778 | AK4: 345.9333 | AL4: 345.9333 | AM4: =SUM(AH4:AL4) -> 1783.9333 | AN4: =AM4/$AM$7 -> 0.3434 | AP4: 832.1111 | AQ4: 129.9778 | AR4: 129.9778 | AS4: 345.9333 | AT4: 345.9333 | AU4: x | AV4: 832.1111 | AW4: 129.9778 | AX4: 129.9778 | AY4: 345.9333 | AZ4: 345.9333 | BA4: = | BB4: 543703.9965 | BC4: 84897.8593 | BD4: 84897.8593 | BE4: 226015.1771 | BF4: 226015.1771 | BG4: =SUM(BB4:BF4) -> 1165530.0693 | BH4: =BG4/$BG$7 -> 0.3435 | BJ4: 543703.9965 | BK4: 84897.8593 | BL4: 84897.8593 | BM4: 226015.1771 | BN4: 226015.1771 | BO4: x | BP4: 543703.9965 | BQ4: 84897.8593 | BR4: 84897.8593 | BS4: 226015.1771 | BT4: 226015.1771 | BU4: = | BV4: 2.320459989e+11 | BW4: 3.623333239e+10 | BX4: 3.623333239e+10 | BY4: 9.646042118e+10 | BZ4: 9.646042118e+10 | CA4: =SUM(BV4:BZ4) -> 497433506016.3810 | CB4: =CA4/$CA$7 -> 0.3435 | CD4: 2.320459989e+11 | CE4: 3.623333239e+10 | CF4: 3.623333239e+10 | CG4: 9.646042118e+10 | CH4: 9.646042118e+10 | CI4: x | CJ4: 2.320459989e+11 | CK4: 3.623333239e+10 | CL4: 3.623333239e+10 | CM4: 9.646042118e+10 | CN4: 9.646042118e+10 | CO4: x | CP4: 4.226658692e+22 | CQ4: 6.599809091e+21 | CR4: 6.599809091e+21 | CS4: 1.757001972e+22 | CT4: 1.757001972e+22 | CU4: =SUM(CP4:CT4) -> 90606244538455300000000.0000 | CV4: =CU4/$CU$7 -> 0.3435
B5: 3.0000 | C5: 0.3333 | D5: 0.3333 | E5: 1.0000 | F5: 1.0000 | H5: 3.0000 | I5: 0.3333 | J5: 0.3333 | K5: 1.0000 | L5: 1.0000 | N5: 12.3333 | O5: 1.9333 | P5: 1.9333 | Q5: 5.0000 | R5: 5.0000 | S5: =SUM(N5:R5) -> 26.2000 | T5: =S5/$S$7 -> 0.1284 | V5: 12.3333 | W5: 1.9333 | X5: 1.9333 | Y5: 5.0000 | Z5: 5.0000 | AB5: 12.3333 | AC5: 1.9333 | AD5: 1.9333 | AE5: 5.0000 | AF5: 5.0000 | AH5: 312.6000 | AI5: 48.8074 | AJ5: 48.8074 | AK5: 129.9778 | AL5: 129.9778 | AM5: =SUM(AH5:AL5) -> 670.1704 | AN5: =AM5/$AM$7 -> 0.1290 | AP5: 312.6000 | AQ5: 48.8074 | AR5: 48.8074 | AS5: 129.9778 | AT5: 129.9778 | AV5: 312.6000 | AW5: 48.8074 | AX5: 48.8074 | AY5: 129.9778 | AZ5: 129.9778 | BB5: 204230.9987 | BC5: 31890.0974 | BD5: 31890.0974 | BE5: 84897.8593 | BF5: 84897.8593 | BG5: =SUM(BB5:BF5) -> 437806.9120 | BH5: =BG5/$BG$7 -> 0.1290 | BJ5: 204230.9987 | BK5: 31890.0974 | BL5: 31890.0974 | BM5: 84897.8593 | BN5: 84897.8593 | BP5: 204230.9987 | BQ5: 31890.0974 | BR5: 31890.0974 | BS5: 84897.8593 | BT5: 84897.8593 | BV5: 8.716320854e+10 | BW5: 1.361029073e+10 | BX5: 1.361029073e+10 | BY5: 3.623333239e+10 | BZ5: 3.623333239e+10 | CA5: =SUM(BV5:BZ5) -> 186850454785.1530 | CB5: =CA5/$CA$7 -> 0.1290 | CD5: 8.716320854e+10 | CE5: 1.361029073e+10 | CF5: 1.361029073e+10 | CG5: 3.623333239e+10 | CH5: 3.623333239e+10 | CJ5: 8.716320854e+10 | CK5: 1.361029073e+10 | CL5: 1.361029073e+10 | CM5: 3.623333239e+10 | CN5: 3.623333239e+10 | CP5: 1.587655615e+22 | CQ5: 2.479079747e+21 | CR5: 2.479079747e+21 | CS5: 6.599809091e+21 | CT5: 6.599809091e+21 | CU5: =SUM(CP5:CT5) -> 34034333822755500000000.0000 | CV5: =CU5/$CU$7 -> 0.1290
B6: 3.0000 | C6: 0.3333 | D6: 0.3333 | E6: 1.0000 | F6: 1.0000 | H6: 3.0000 | I6: 0.3333 | J6: 0.3333 | K6: 1.0000 | L6: 1.0000 | N6: 12.3333 | O6: 1.9333 | P6: 1.9333 | Q6: 5.0000 | R6: 5.0000 | S6: =SUM(N6:R6) -> 26.2000 | T6: =S6/$S$7 -> 0.1284 | V6: 12.3333 | W6: 1.9333 | X6: 1.9333 | Y6: 5.0000 | Z6: 5.0000 | AB6: 12.3333 | AC6: 1.9333 | AD6: 1.9333 | AE6: 5.0000 | AF6: 5.0000 | AH6: 312.6000 | AI6: 48.8074 | AJ6: 48.8074 | AK6: 129.9778 | AL6: 129.9778 | AM6: =SUM(AH6:AL6) -> 670.1704 | AN6: =AM6/$AM$7 -> 0.1290 | AP6: 312.6000 | AQ6: 48.8074 | AR6: 48.8074 | AS6: 129.9778 | AT6: 129.9778 | AV6: 312.6000 | AW6: 48.8074 | AX6: 48.8074 | AY6: 129.9778 | AZ6: 129.9778 | BB6: 204230.9987 | BC6: 31890.0974 | BD6: 31890.0974 | BE6: 84897.8593 | BF6: 84897.8593 | BG6: =SUM(BB6:BF6) -> 437806.9120 | BH6: =BG6/$BG$7 -> 0.1290 | BJ6: 204230.9987 | BK6: 31890.0974 | BL6: 31890.0974 | BM6: 84897.8593 | BN6: 84897.8593 | BP6: 204230.9987 | BQ6: 31890.0974 | BR6: 31890.0974 | BS6: 84897.8593 | BT6: 84897.8593 | BV6: 8.716320854e+10 | BW6: 1.361029073e+10 | BX6: 1.361029073e+10 | BY6: 3.623333239e+10 | BZ6: 3.623333239e+10 | CA6: =SUM(BV6:BZ6) -> 186850454785.1530 | CB6: =CA6/$CA$7 -> 0.1290 | CD6: 8.716320854e+10 | CE6: 1.361029073e+10 | CF6: 1.361029073e+10 | CG6: 3.623333239e+10 | CH6: 3.623333239e+10 | CJ6: 8.716320854e+10 | CK6: 1.361029073e+10 | CL6: 1.361029073e+10 | CM6: 3.623333239e+10 | CN6: 3.623333239e+10 | CP6: 1.587655615e+22 | CQ6: 2.479079747e+21 | CR6: 2.479079747e+21 | CS6: 6.599809091e+21 | CT6: 6.599809091e+21 | CU6: =SUM(CP6:CT6) -> 34034333822755500000000.0000 | CV6: =CU6/$CU$7 -> 0.1290
S7: =SUM(S2:S6) -> 204.1111 | AM7: =SUM(AM2:AM6) -> 5194.3689 | BG7: =SUM(BG2:BG6) -> 3393594.5620 | CA7: =SUM(CA2:CA6) -> 1448343269435.1300 | CU7: =SUM(CU2:CU6) -> 263812032882528000000000.0000
B9: Matriz com os pesos | J9: Cálculo de λmáx
B10: Desfecho clínico | J10: Soma ponderada | K10: Prioridade | L10: Produto
B11: Não adquirir | C11: Adquirir TC 16 canais | D11: Adquirir TC 64 canais | E11: Adquirir RM 1,5 T | F11: Adquirir RM 3 T | J11: =SUM(B23:F23) -> 0.2785 | K11: =B12 -> 0.0551 | L11: =J11/K11 -> 5.0556
A12: Pesos | B12: =CV2 -> 0.0551 | C12: =CV3 -> 0.3435 | D12: =CV4 -> 0.3435 | E12: =CV5 -> 0.1290 | F12: =CV6 -> 0.1290 | J12: =SUM(B24:F24) -> 1.7364 | K12: =C12 -> 0.3435 | L12: =J12/K12 -> 5.0556
A13: Não adquirir | B13: =_xlfn.ANCHORARRAY(B2) -> 1.0000 | C13: 0.2000 | D13: 0.2000 | E13: 0.3333 | F13: 0.3333 | J13: =SUM(B25:F25) -> 1.7364 | K13: =D12 -> 0.3435 | L13: =J13/K13 -> 5.0556
A14: Adquirir TC 16 canais | B14: 5.0000 | C14: 1.0000 | D14: 1.0000 | E14: 3.0000 | F14: 3.0000 | J14: =SUM(B26:F26) -> 0.6522 | K14: =E12 -> 0.1290 | L14: =J14/K14 -> 5.0556
A15: Adquirir TC 64 canais | B15: 5.0000 | C15: 1.0000 | D15: 1.0000 | E15: 3.0000 | F15: 3.0000 | J15: =SUM(B27:F27) -> 0.6522 | K15: =F12 -> 0.1290 | L15: =J15/K15 -> 5.0556
A16: Adquirir RM 1,5 T | B16: 3.0000 | C16: 0.3333 | D16: 0.3333 | E16: 1.0000 | F16: 1.0000
A17: Adquirir RM 3 T | B17: 3.0000 | C17: 0.3333 | D17: 0.3333 | E17: 1.0000 | F17: 1.0000
J18: λmáx | K18: =AVERAGE(L11:L15) -> 5.056
J19: n | K19: =COUNTA(A23:A27) -> 5
B20: Matriz resultante ponderada | J20: CI | K20: =(K18-K19)/(K19-1) -> 0.0139
B21: Desfecho clínico | J21: RI | K21: =_xlfn.IFS($K19=1,'PASSO_3 - PESOS_ALTERNATIVAS'!$H$10,$K19=2,'PASSO_3 - PESOS_ALTERNATIVAS'!$I$10,$K19=3,'PASSO_3 - PESOS_ALTERNATIVAS'!$J$10,$K19=4,'PASSO_3 - PESOS_ALTERNATIVAS'!$K$10,$K19=5,'PASSO_3 - PESOS_ALTERNATIVAS'!$L$10,$K19=6,'PASSO_3 - PESOS_ALTERNATIVAS'!$M$10,$K19=7,'PASSO_3 - PESOS_ALTERNATIVAS'!$N$10,$K19=8,'PASSO_3 - PESOS_ALTERNATIVAS'!$O$10,$K19=9,'PASSO_3 - PESOS_ALTERNATIVAS'!$P$10,$K19=10,'PASSO_3 - PESOS_ALTERNATIVAS'!$Q$10) -> 1.12
B22: Não adquirir | C22: Adquirir TC 16 canais | D22: Adquirir TC 64 canais | E22: Adquirir RM 1,5 T | F22: Adquirir RM 3 T | J22: CR | K22: =K20/K21 -> 0.0124
A23: Não adquirir | B23: =$B$12*B13 -> 0.0551 | C23: =$C$12*C13 -> 0.0687 | D23: =$D$12*D13 -> 0.0687 | E23: =$E$12*E13 -> 0.0430 | F23: =$F$12*F13 -> 0.0430 | J23: =_xlfn.IFS(K20=0,"CONSISTENTE",ROUND(K22,1)<=0.1,"CONSISTENTE",ROUND(K22,1)>0.1,"INCONSISTENTE") -> CONSISTENTE
A24: Adquirir TC 16 canais | B24: =$B$12*B14 -> 0.2754 | C24: =$C$12*C14 -> 0.3435 | D24: =$D$12*D14 -> 0.3435 | E24: =$E$12*E14 -> 0.3870 | F24: =$F$12*F14 -> 0.3870
A25: Adquirir TC 64 canais | B25: =$B$12*B15 -> 0.2754 | C25: =$C$12*C15 -> 0.3435 | D25: =$D$12*D15 -> 0.3435 | E25: =$E$12*E15 -> 0.3870 | F25: =$F$12*F15 -> 0.3870
A26: Adquirir RM 1,5 T | B26: =$B$12*B16 -> 0.1652 | C26: =$C$12*C16 -> 0.1145 | D26: =$D$12*D16 -> 0.1145 | E26: =$E$12*E16 -> 0.1290 | F26: =$F$12*F16 -> 0.1290
A27: Adquirir RM 3 T | B27: =$B$12*B17 -> 0.1652 | C27: =$C$12*C17 -> 0.1145 | D27: =$D$12*D17 -> 0.1145 | E27: =$E$12*E17 -> 0.1290 | F27: =$F$12*F17 -> 0.1290
S29: Soma das linhas | T29: Resultados normalizados | AM29: Soma das linhas | AN29: Resultados normalizados | BG29: Soma das linhas | BH29: Resultados normalizados | CA29: Soma das linhas | CB29: Resultados normalizados | CU29: Soma das linhas | CV29: Resultados normalizados
B30: ='PASSO_3 - PESOS_ALTERNATIVAS'!C96:G100 -> 1.0000 | C30: 0.2000 | D30: 0.3333 | E30: 0.3333 | F30: 0.3333 | H30: =_xlfn.ANCHORARRAY(B30) -> 1.0000 | I30: 0.2000 | J30: 0.3333 | K30: 0.3333 | L30: 0.3333 | N30: =MMULT(_xlfn.ANCHORARRAY(B30),_xlfn.ANCHORARRAY(H30)) -> 5.0000 | O30: 0.7333 | P30: 1.9333 | Q30: 1.9333 | R30: 1.9333 | S30: =SUM(N30:R30) -> 11.5333 | T30: =S30/$S$35 -> 0.0619 | V30: =_xlfn.ANCHORARRAY(N30) -> 5.0000 | W30: 0.7333 | X30: 1.9333 | Y30: 1.9333 | Z30: 1.9333 | AB30: =_xlfn.ANCHORARRAY(V30) -> 5.0000 | AC30: 0.7333 | AD30: 1.9333 | AE30: 1.9333 | AF30: 1.9333 | AH30: =MMULT(_xlfn.ANCHORARRAY(V30),_xlfn.ANCHORARRAY(AB30)) -> 131.4000 | AI30: 18.5467 | AJ30: 48.6889 | AK30: 48.6889 | AL30: 48.6889 | AM30: =SUM(AH30:AL30) -> 296.0133 | AN30: =AM30/$AM$35 -> 0.0627 | AP30: =_xlfn.ANCHORARRAY(AH30) -> 131.4000 | AQ30: 18.5467 | AR30: 48.6889 | AS30: 48.6889 | AT30: 48.6889 | AV30: =_xlfn.ANCHORARRAY(AP30) -> 131.4000 | AW30: 18.5467 | AX30: 48.6889 | AY30: 48.6889 | AZ30: 48.6889 | BB30: =MMULT(_xlfn.ANCHORARRAY(AP30),_xlfn.ANCHORARRAY(AV30)) -> 84894.0667 | BC30: 11985.8877 | BD30: 31467.6590 | BE30: 31467.6590 | BF30: 31467.6590 | BG30: =SUM(BB30:BF30) -> 191282.9313 | BH30: =BG30/$BG$35 -> 0.0627 | BJ30: =_xlfn.ANCHORARRAY(BB30) -> 84894.0667 | BK30: 11985.8877 | BL30: 31467.6590 | BM30: 31467.6590 | BN30: 31467.6590 | BP30: =_xlfn.ANCHORARRAY(BJ30) -> 84894.0667 | BQ30: 11985.8877 | BR30: 31467.6590 | BS30: 31467.6590 | BT30: 31467.6590 | BV30: =MMULT(_xlfn.ANCHORARRAY(BJ30),_xlfn.ANCHORARRAY(BP30)) -> 3.545456281e+10 | BW30: 5005702181 | BX30: 1.314193279e+10 | BY30: 1.314193279e+10 | BZ30: 1.314193279e+10 | CA30: =SUM(BV30:BZ30) -> 79886063354.8541 | CB30: =CA30/$CA$35 -> 0.0627 | CD30: =_xlfn.ANCHORARRAY(BV30) -> 3.545456281e+10 | CE30: 5005702181 | CF30: 1.314193279e+10 | CG30: 1.314193279e+10 | CH30: 1.314193279e+10 | CJ30: =_xlfn.ANCHORARRAY(CD30) -> 3.545456281e+10 | CK30: 5005702181 | CL30: 1.314193279e+10 | CM30: 1.314193279e+10 | CN30: 1.314193279e+10 | CP30: =MMULT(_xlfn.ANCHORARRAY(CD30),_xlfn.ANCHORARRAY(CJ30)) -> 6.183889811e+21 | CQ30: 8.73081157e+20 | CR30: 2.292180691e+21 | CS30: 2.292180691e+21 | CT30: 2.292180691e+21 | CU30: =SUM(CP30:CT30) -> 13933513040803400000000.0000 | CV30: =CU30/$CU$35 -> 0.0627
B31: 5.0000 | C31: 1.0000 | D31: 3.0000 | E31: 3.0000 | F31: 3.0000 | H31: 5.0000 | I31: 1.0000 | J31: 3.0000 | K31: 3.0000 | L31: 3.0000 | N31: 37.0000 | O31: 5.0000 | P31: 13.6667 | Q31: 13.6667 | R31: 13.6667 | S31: =SUM(N31:R31) -> 83.0000 | T31: =S31/$S$35 -> 0.4454 | V31: 37.0000 | W31: 5.0000 | X31: 13.6667 | Y31: 13.6667 | Z31: 13.6667 | AB31: 37.0000 | AC31: 5.0000 | AD31: 13.6667 | AE31: 13.6667 | AF31: 13.6667 | AH31: 930.3333 | AI31: 131.4000 | AJ31: 344.8667 | AK31: 344.8667 | AL31: 344.8667 | AM31: =SUM(AH31:AL31) -> 2096.3333 | AN31: =AM31/$AM$35 -> 0.4438 | AP31: 930.3333 | AQ31: 131.4000 | AR31: 344.8667 | AS31: 344.8667 | AT31: 344.8667 | AV31: 930.3333 | AW31: 131.4000 | AX31: 344.8667 | AY31: 344.8667 | AZ31: 344.8667 | BB31: 601290.6533 | BC31: 84894.0667 | BD31: 222880.2385 | BE31: 222880.2385 | BF31: 222880.2385 | BG31: =SUM(BB31:BF31) -> 1354825.4356 | BH31: =BG31/$BG$35 -> 0.4438 | BJ31: 601290.6533 | BK31: 84894.0667 | BL31: 222880.2385 | BM31: 222880.2385 | BN31: 222880.2385 | BP31: 601290.6533 | BQ31: 84894.0667 | BR31: 222880.2385 | BS31: 222880.2385 | BT31: 222880.2385 | BV31: 2.511188198e+11 | BW31: 3.545456281e+10 | BX31: 9.308214204e+10 | BY31: 9.308214204e+10 | BZ31: 9.308214204e+10 | CA31: =SUM(BV31:BZ31) -> 565819808722.9840 | CB31: =CA31/$CA$35 -> 0.4438 | CD31: 2.511188198e+11 | CE31: 3.545456281e+10 | CF31: 9.308214204e+10 | CG31: 9.308214204e+10 | CH31: 9.308214204e+10 | CJ31: 2.511188198e+11 | CK31: 3.545456281e+10 | CL31: 9.308214204e+10 | CM31: 9.308214204e+10 | CN31: 9.308214204e+10 | CP31: 4.379947144e+22 | CQ31: 6.183889811e+21 | CR31: 1.623513771e+22 | CS31: 1.623513771e+22 | CT31: 1.623513771e+22 | CU31: =SUM(CP31:CT31) -> 98688774393181000000000.0000 | CV31: =CU31/$CU$35 -> 0.4438
B32: 3.0000 | C32: 0.3333 | D32: 1.0000 | E32: 1.0000 | F32: 1.0000 | G32: x | H32: 3.0000 | I32: 0.3333 | J32: 1.0000 | K32: 1.0000 | L32: 1.0000 | M32: = | N32: 13.6667 | O32: 1.9333 | P32: 5.0000 | Q32: 5.0000 | R32: 5.0000 | S32: =SUM(N32:R32) -> 30.6000 | T32: =S32/$S$35 -> 0.1642 | V32: 13.6667 | W32: 1.9333 | X32: 5.0000 | Y32: 5.0000 | Z32: 5.0000 | AA32: x | AB32: 13.6667 | AC32: 1.9333 | AD32: 5.0000 | AE32: 5.0000 | AF32: 5.0000 | AG32: = | AH32: 344.8667 | AI32: 48.6889 | AJ32: 127.8444 | AK32: 127.8444 | AL32: 127.8444 | AM32: =SUM(AH32:AL32) -> 777.0889 | AN32: =AM32/$AM$35 -> 0.1645 | AP32: 344.8667 | AQ32: 48.6889 | AR32: 127.8444 | AS32: 127.8444 | AT32: 127.8444 | AU32: x | AV32: 344.8667 | AW32: 48.6889 | AX32: 127.8444 | AY32: 127.8444 | AZ32: 127.8444 | BA32: = | BB32: 222880.2385 | BC32: 31467.6590 | BD32: 82614.9556 | BE32: 82614.9556 | BF32: 82614.9556 | BG32: =SUM(BB32:BF32) -> 502192.7641 | BH32: =BG32/$BG$35 -> 0.1645 | BJ32: 222880.2385 | BK32: 31467.6590 | BL32: 82614.9556 | BM32: 82614.9556 | BN32: 82614.9556 | BO32: x | BP32: 222880.2385 | BQ32: 31467.6590 | BR32: 82614.9556 | BS32: 82614.9556 | BT32: 82614.9556 | BU32: = | BV32: 9.308214204e+10 | BW32: 1.314193279e+10 | BX32: 3.450273131e+10 | BY32: 3.450273131e+10 | BZ32: 3.450273131e+10 | CA32: =SUM(BV32:BZ32) -> 209732268775.2570 | CB32: =CA32/$CA$35 -> 0.1645 | CD32: 9.308214204e+10 | CE32: 1.314193279e+10 | CF32: 3.450273131e+10 | CG32: 3.450273131e+10 | CH32: 3.450273131e+10 | CI32: x | CJ32: 9.308214204e+10 | CK32: 1.314193279e+10 | CL32: 3.450273131e+10 | CM32: 3.450273131e+10 | CN32: 3.450273131e+10 | CO32: = | CP32: 1.623513771e+22 | CQ32: 2.292180691e+21 | CR32: 6.017873914e+21 | CS32: 6.017873914e+21 | CT32: 6.017873914e+21 | CU32: =SUM(CP32:CT32) -> 36580940145672600000000.0000 | CV32: =CU32/$CU$35 -> 0.1645
B33: 3.0000 | C33: 0.3333 | D33: 1.0000 | E33: 1.0000 | F33: 1.0000 | H33: 3.0000 | I33: 0.3333 | J33: 1.0000 | K33: 1.0000 | L33: 1.0000 | N33: 13.6667 | O33: 1.9333 | P33: 5.0000 | Q33: 5.0000 | R33: 5.0000 | S33: =SUM(N33:R33) -> 30.6000 | T33: =S33/$S$35 -> 0.1642 | V33: 13.6667 | W33: 1.9333 | X33: 5.0000 | Y33: 5.0000 | Z33: 5.0000 | AB33: 13.6667 | AC33: 1.9333 | AD33: 5.0000 | AE33: 5.0000 | AF33: 5.0000 | AH33: 344.8667 | AI33: 48.6889 | AJ33: 127.8444 | AK33: 127.8444 | AL33: 127.8444 | AM33: =SUM(AH33:AL33) -> 777.0889 | AN33: =AM33/$AM$35 -> 0.1645 | AP33: 344.8667 | AQ33: 48.6889 | AR33: 127.8444 | AS33: 127.8444 | AT33: 127.8444 | AV33: 344.8667 | AW33: 48.6889 | AX33: 127.8444 | AY33: 127.8444 | AZ33: 127.8444 | BB33: 222880.2385 | BC33: 31467.6590 | BD33: 82614.9556 | BE33: 82614.9556 | BF33: 82614.9556 | BG33: =SUM(BB33:BF33) -> 502192.7641 | BH33: =BG33/$BG$35 -> 0.1645 | BJ33: 222880.2385 | BK33: 31467.6590 | BL33: 82614.9556 | BM33: 82614.9556 | BN33: 82614.9556 | BP33: 222880.2385 | BQ33: 31467.6590 | BR33: 82614.9556 | BS33: 82614.9556 | BT33: 82614.9556 | BV33: 9.308214204e+10 | BW33: 1.314193279e+10 | BX33: 3.450273131e+10 | BY33: 3.450273131e+10 | BZ33: 3.450273131e+10 | CA33: =SUM(BV33:BZ33) -> 209732268775.2570 | CB33: =CA33/$CA$35 -> 0.1645 | CD33: 9.308214204e+10 | CE33: 1.314193279e+10 | CF33: 3.450273131e+10 | CG33: 3.450273131e+10 | CH33: 3.450273131e+10 | CJ33: 9.308214204e+10 | CK33: 1.314193279e+10 | CL33: 3.450273131e+10 | CM33: 3.450273131e+10 | CN33: 3.450273131e+10 | CP33: 1.623513771e+22 | CQ33: 2.292180691e+21 | CR33: 6.017873914e+21 | CS33: 6.017873914e+21 | CT33: 6.017873914e+21 | CU33: =SUM(CP33:CT33) -> 36580940145672600000000.0000 | CV33: =CU33/$CU$35 -> 0.1645
B34: 3.0000 | C34: 0.3333 | D34: 1.0000 | E34: 1.0000 | F34: 1.0000 | H34: 3.0000 | I34: 0.3333 | J34: 1.0000 | K34: 1.0000 | L34: 1.0000 | N34: 13.6667 | O34: 1.9333 | P34: 5.0000 | Q34: 5.0000 | R34: 5.0000 | S34: =SUM(N34:R34) -> 30.6000 | T34: =S34/$S$35 -> 0.1642 | V34: 13.6667 | W34: 1.9333 | X34: 5.0000 | Y34: 5.0000 | Z34: 5.0000 | AB34: 13.6667 | AC34: 1.9333 | AD34: 5.0000 | AE34: 5.0000 | AF34: 5.0000 | AH34: 344.8667 | AI34: 48.6889 | AJ34: 127.8444 | AK34: 127.8444 | AL34: 127.8444 | AM34: =SUM(AH34:AL34) -> 777.0889 | AN34: =AM34/$AM$35 -> 0.1645 | AP34: 344.8667 | AQ34: 48.6889 | AR34: 127.8444 | AS34: 127.8444 | AT34: 127.8444 | AV34: 344.8667 | AW34: 48.6889 | AX34: 127.8444 | AY34: 127.8444 | AZ34: 127.8444 | BB34: 222880.2385 | BC34: 31467.6590 | BD34: 82614.9556 | BE34: 82614.9556 | BF34: 82614.9556 | BG34: =SUM(BB34:BF34) -> 502192.7641 | BH34: =BG34/$BG$35 -> 0.1645 | BJ34: 222880.2385 | BK34: 31467.6590 | BL34: 82614.9556 | BM34: 82614.9556 | BN34: 82614.9556 | BP34: 222880.2385 | BQ34: 31467.6590 | BR34: 82614.9556 | BS34: 82614.9556 | BT34: 82614.9556 | BV34: 9.308214204e+10 | BW34: 1.314193279e+10 | BX34: 3.450273131e+10 | BY34: 3.450273131e+10 | BZ34: 3.450273131e+10 | CA34: =SUM(BV34:BZ34) -> 209732268775.2570 | CB34: =CA34/$CA$35 -> 0.1645 | CD34: 9.308214204e+10 | CE34: 1.314193279e+10 | CF34: 3.450273131e+10 | CG34: 3.450273131e+10 | CH34: 3.450273131e+10 | CJ34: 9.308214204e+10 | CK34: 1.314193279e+10 | CL34: 3.450273131e+10 | CM34: 3.450273131e+10 | CN34: 3.450273131e+10 | CP34: 1.623513771e+22 | CQ34: 2.292180691e+21 | CR34: 6.017873914e+21 | CS34: 6.017873914e+21 | CT34: 6.017873914e+21 | CU34: =SUM(CP34:CT34) -> 36580940145672600000000.0000 | CV34: =CU34/$CU$35 -> 0.1645
S35: =SUM(S30:S34) -> 186.3333 | AM35: =SUM(AM30:AM34) -> 4723.6133 | BG35: =SUM(BG30:BG34) -> 3052686.6593 | CA35: =SUM(CA30:CA34) -> 1274902678403.6100 | CU35: =SUM(CU30:CU34) -> 222365107871002000000000.0000
B36: Matriz com os pesos | J36: Cálculo de λmáx
B37: Potencialidades | J37: Soma ponderada | K37: Prioridade | L37: Produto
B38: Não adquirir | C38: Adquirir TC 16 canais | D38: Adquirir TC 64 canais | E38: Adquirir RM 1,5 T | F38: Adquirir RM 3 T | J38: =SUM(B50:F50) -> 0.3159 | K38: =B39 -> 0.0627 | L38: =J38/K38 -> 5.0420
A39: Pesos | B39: =CV30 -> 0.0627 | C39: =CV31 -> 0.4438 | D39: =CV32 -> 0.1645 | E39: =CV33 -> 0.1645 | F39: =CV34 -> 0.1645 | J39: =SUM(B51:F51) -> 2.2377 | K39: =C39 -> 0.4438 | L39: =J39/K39 -> 5.0420
A40: Não adquirir | B40: =B30:F34 -> 1.0000 | C40: 0.2000 | D40: 0.3333 | E40: 0.3333 | F40: 0.3333 | J40: =SUM(B52:F52) -> 0.8294 | K40: =D39 -> 0.1645 | L40: =J40/K40 -> 5.0420
A41: Adquirir TC 16 canais | B41: 5.0000 | C41: 1.0000 | D41: 3.0000 | E41: 3.0000 | F41: 3.0000 | J41: =SUM(B53:F53) -> 0.8294 | K41: =E39 -> 0.1645 | L41: =J41/K41 -> 5.0420
A42: Adquirir TC 64 canais | B42: 3.0000 | C42: 0.3333 | D42: 1.0000 | E42: 1.0000 | F42: 1.0000 | J42: =SUM(B54:F54) -> 0.8294 | K42: =F39 -> 0.1645 | L42: =J42/K42 -> 5.0420
A43: Adquirir RM 1,5 T | B43: 3.0000 | C43: 0.3333 | D43: 1.0000 | E43: 1.0000 | F43: 1.0000
A44: Adquirir RM 3 T | B44: 3.0000 | C44: 0.3333 | D44: 1.0000 | E44: 1.0000 | F44: 1.0000
J45: λmáx | K45: =AVERAGE(L38:L42) -> 5.042
J46: n | K46: =COUNTA(A50:A54) -> 5
B47: Matriz resultante ponderada | J47: CI | K47: =(K45-K46)/(K46-1) -> 0.0105
B48: Potencialidades | J48: RI | K48: =_xlfn.IFS($K46=1,'PASSO_3 - PESOS_ALTERNATIVAS'!$H$10,$K46=2,'PASSO_3 - PESOS_ALTERNATIVAS'!$I$10,$K46=3,'PASSO_3 - PESOS_ALTERNATIVAS'!$J$10,$K46=4,'PASSO_3 - PESOS_ALTERNATIVAS'!$K$10,$K46=5,'PASSO_3 - PESOS_ALTERNATIVAS'!$L$10,$K46=6,'PASSO_3 - PESOS_ALTERNATIVAS'!$M$10,$K46=7,'PASSO_3 - PESOS_ALTERNATIVAS'!$N$10,$K46=8,'PASSO_3 - PESOS_ALTERNATIVAS'!$O$10,$K46=9,'PASSO_3 - PESOS_ALTERNATIVAS'!$P$10,$K46=10,'PASSO_3 - PESOS_ALTERNATIVAS'!$Q$10) -> 1.12
B49: Não adquirir | C49: Adquirir TC 16 canais | D49: Adquirir TC 64 canais | E49: Adquirir RM 1,5 T | F49: Adquirir RM 3 T | J49: CR | K49: =K47/K48 -> 0.0094
A50: Não adquirir | B50: =$B$39*B40 -> 0.0627 | C50: =$C$39*C40 -> 0.0888 | D50: =$D$39*D40 -> 0.0548 | E50: =$E$39*E40 -> 0.0548 | F50: =$F$39*F40 -> 0.0548 | J50: =_xlfn.IFS(K47=0,"CONSISTENTE",ROUND(K49,1)<=0.1,"CONSISTENTE",ROUND(K49,1)>0.1,"INCONSISTENTE") -> CONSISTENTE
A51: Adquirir TC 16 canais | B51: =$B$39*B41 -> 0.3133 | C51: =$C$39*C41 -> 0.4438 | D51: =$D$39*D41 -> 0.4935 | E51: =$E$39*E41 -> 0.4935 | F51: =$F$39*F41 -> 0.4935
A52: Adquirir TC 64 canais | B52: =$B$39*B42 -> 0.1880 | C52: =$C$39*C42 -> 0.1479 | D52: =$D$39*D42 -> 0.1645 | E52: =$E$39*E42 -> 0.1645 | F52: =$F$39*F42 -> 0.1645
A53: Adquirir RM 1,5 T | B53: =$B$39*B43 -> 0.1880 | C53: =$C$39*C43 -> 0.1479 | D53: =$D$39*D43 -> 0.1645 | E53: =$E$39*E43 -> 0.1645 | F53: =$F$39*F43 -> 0.1645
A54: Adquirir RM 3 T | B54: =$B$39*B44 -> 0.1880 | C54: =$C$39*C44 -> 0.1479 | D54: =$D$39*D44 -> 0.1645 | E54: =$E$39*E44 -> 0.1645 | F54: =$F$39*F44 -> 0.1645
S56: Soma das linhas | T56: Resultados normalizados | AM56: Soma das linhas | AN56: Resultados normalizados | BG56: Soma das linhas | BH56: Resultados normalizados | CA56: Soma das linhas | CB56: Resultados normalizados
B57: ='PASSO_3 - PESOS_ALTERNATIVAS'!C147:G151 -> 1.0000 | C57: 0.3333 | D57: 0.3333 | E57: 0.3333 | F57: 0.3333 | H57: =_xlfn.ANCHORARRAY(B57) -> 1.0000 | I57: 0.3333 | J57: 0.3333 | K57: 0.3333 | L57: 0.3333 | N57: =MMULT(_xlfn.ANCHORARRAY(B57),_xlfn.ANCHORARRAY(H57)) -> 5.0000 | O57: 1.6667 | P57: 1.6667 | Q57: 1.6667 | R57: 1.6667 | S57: =SUM(N57:R57) -> 11.6667 | T57: =S57/$S$62 -> 0.0769 | V57: =_xlfn.ANCHORARRAY(N57) -> 5.0000 | W57: 1.6667 | X57: 1.6667 | Y57: 1.6667 | Z57: 1.6667 | AB57: =_xlfn.ANCHORARRAY(V57) -> 5.0000 | AC57: 1.6667 | AD57: 1.6667 | AE57: 1.6667 | AF57: 1.6667 | AH57: =MMULT(_xlfn.ANCHORARRAY(V57),_xlfn.ANCHORARRAY(AB57)) -> 125.0000 | AI57: 41.6667 | AJ57: 41.6667 | AK57: 41.6667 | AL57: 41.6667 | AM57: =SUM(AH57:AL57) -> 291.6667 | AN57: =AM57/$AM$62 -> 0.0769 | AP57: =_xlfn.ANCHORARRAY(AH57) -> 125.0000 | AQ57: 41.6667 | AR57: 41.6667 | AS57: 41.6667 | AT57: 41.6667 | AV57: =_xlfn.ANCHORARRAY(AP57) -> 125.0000 | AW57: 41.6667 | AX57: 41.6667 | AY57: 41.6667 | AZ57: 41.6667 | BB57: =MMULT(_xlfn.ANCHORARRAY(AP57),_xlfn.ANCHORARRAY(AV57)) -> 78125.0000 | BC57: 26041.6667 | BD57: 26041.6667 | BE57: 26041.6667 | BF57: 26041.6667 | BG57: =SUM(BB57:BF57) -> 182291.6667 | BH57: =BG57/$BG$62 -> 0.0769 | BJ57: =_xlfn.ANCHORARRAY(BB57) -> 78125.0000 | BK57: 26041.6667 | BL57: 26041.6667 | BM57: 26041.6667 | BN57: 26041.6667 | BP57: =_xlfn.ANCHORARRAY(BJ57) -> 78125.0000 | BQ57: 26041.6667 | BR57: 26041.6667 | BS57: 26041.6667 | BT57: 26041.6667 | BV57: =MMULT(_xlfn.ANCHORARRAY(BJ57),_xlfn.ANCHORARRAY(BP57)) -> 3.051758E+10 | BW57: 1.017253E+10 | BX57: 1.017253E+10 | BY57: 1.017253E+10 | BZ57: 1.017253E+10 | CA57: =SUM(BV57:BZ57) -> 71207682291.6667 | CB57: =CA57/$CA$62 -> 0.0769
B58: 3.0000 | C58: 1.0000 | D58: 1.0000 | E58: 1.0000 | F58: 1.0000 | H58: 3.0000 | I58: 1.0000 | J58: 1.0000 | K58: 1.0000 | L58: 1.0000 | N58: 15.0000 | O58: 5.0000 | P58: 5.0000 | Q58: 5.0000 | R58: 5.0000 | S58: =SUM(N58:R58) -> 35.0000 | T58: =S58/$S$62 -> 0.2308 | V58: 15.0000 | W58: 5.0000 | X58: 5.0000 | Y58: 5.0000 | Z58: 5.0000 | AB58: 15.0000 | AC58: 5.0000 | AD58: 5.0000 | AE58: 5.0000 | AF58: 5.0000 | AH58: 375.0000 | AI58: 125.0000 | AJ58: 125.0000 | AK58: 125.0000 | AL58: 125.0000 | AM58: =SUM(AH58:AL58) -> 875.0000 | AN58: =AM58/$AM$62 -> 0.2308 | AP58: 375.0000 | AQ58: 125.0000 | AR58: 125.0000 | AS58: 125.0000 | AT58: 125.0000 | AV58: 375.0000 | AW58: 125.0000 | AX58: 125.0000 | AY58: 125.0000 | AZ58: 125.0000 | BB58: 234375.0000 | BC58: 78125.0000 | BD58: 78125.0000 | BE58: 78125.0000 | BF58: 78125.0000 | BG58: =SUM(BB58:BF58) -> 546875.0000 | BH58: =BG58/$BG$62 -> 0.2308 | BJ58: 234375.0000 | BK58: 78125.0000 | BL58: 78125.0000 | BM58: 78125.0000 | BN58: 78125.0000 | BP58: 234375.0000 | BQ58: 78125.0000 | BR58: 78125.0000 | BS58: 78125.0000 | BT58: 78125.0000 | BV58: 9.155273E+10 | BW58: 3.051758E+10 | BX58: 3.051758E+10 | BY58: 3.051758E+10 | BZ58: 3.051758E+10 | CA58: =SUM(BV58:BZ58) -> 213623046875.0000 | CB58: =CA58/$CA$62 -> 0.2308
B59: 3.0000 | C59: 1.0000 | D59: 1.0000 | E59: 1.0000 | F59: 1.0000 | G59: x | H59: 3.0000 | I59: 1.0000 | J59: 1.0000 | K59: 1.0000 | L59: 1.0000 | M59: = | N59: 15.0000 | O59: 5.0000 | P59: 5.0000 | Q59: 5.0000 | R59: 5.0000 | S59: =SUM(N59:R59) -> 35.0000 | T59: =S59/$S$62 -> 0.2308 | V59: 15.0000 | W59: 5.0000 | X59: 5.0000 | Y59: 5.0000 | Z59: 5.0000 | AA59: x | AB59: 15.0000 | AC59: 5.0000 | AD59: 5.0000 | AE59: 5.0000 | AF59: 5.0000 | AG59: = | AH59: 375.0000 | AI59: 125.0000 | AJ59: 125.0000 | AK59: 125.0000 | AL59: 125.0000 | AM59: =SUM(AH59:AL59) -> 875.0000 | AN59: =AM59/$AM$62 -> 0.2308 | AP59: 375.0000 | AQ59: 125.0000 | AR59: 125.0000 | AS59: 125.0000 | AT59: 125.0000 | AU59: x | AV59: 375.0000 | AW59: 125.0000 | AX59: 125.0000 | AY59: 125.0000 | AZ59: 125.0000 | BA59: = | BB59: 234375.0000 | BC59: 78125.0000 | BD59: 78125.0000 | BE59: 78125.0000 | BF59: 78125.0000 | BG59: =SUM(BB59:BF59) -> 546875.0000 | BH59: =BG59/$BG$62 -> 0.2308 | BJ59: 234375.0000 | BK59: 78125.0000 | BL59: 78125.0000 | BM59: 78125.0000 | BN59: 78125.0000 | BO59: x | BP59: 234375.0000 | BQ59: 78125.0000 | BR59: 78125.0000 | BS59: 78125.0000 | BT59: 78125.0000 | BU59: = | BV59: 9.155273E+10 | BW59: 3.051758E+10 | BX59: 3.051758E+10 | BY59: 3.051758E+10 | BZ59: 3.051758E+10 | CA59: =SUM(BV59:BZ59) -> 213623046875.0000 | CB59: =CA59/$CA$62 -> 0.2308
B60: 3.0000 | C60: 1.0000 | D60: 1.0000 | E60: 1.0000 | F60: 1.0000 | H60: 3.0000 | I60: 1.0000 | J60: 1.0000 | K60: 1.0000 | L60: 1.0000 | N60: 15.0000 | O60: 5.0000 | P60: 5.0000 | Q60: 5.0000 | R60: 5.0000 | S60: =SUM(N60:R60) -> 35.0000 | T60: =S60/$S$62 -> 0.2308 | V60: 15.0000 | W60: 5.0000 | X60: 5.0000 | Y60: 5.0000 | Z60: 5.0000 | AB60: 15.0000 | AC60: 5.0000 | AD60: 5.0000 | AE60: 5.0000 | AF60: 5.0000 | AH60: 375.0000 | AI60: 125.0000 | AJ60: 125.0000 | AK60: 125.0000 | AL60: 125.0000 | AM60: =SUM(AH60:AL60) -> 875.0000 | AN60: =AM60/$AM$62 -> 0.2308 | AP60: 375.0000 | AQ60: 125.0000 | AR60: 125.0000 | AS60: 125.0000 | AT60: 125.0000 | AV60: 375.0000 | AW60: 125.0000 | AX60: 125.0000 | AY60: 125.0000 | AZ60: 125.0000 | BB60: 234375.0000 | BC60: 78125.0000 | BD60: 78125.0000 | BE60: 78125.0000 | BF60: 78125.0000 | BG60: =SUM(BB60:BF60) -> 546875.0000 | BH60: =BG60/$BG$62 -> 0.2308 | BJ60: 234375.0000 | BK60: 78125.0000 | BL60: 78125.0000 | BM60: 78125.0000 | BN60: 78125.0000 | BP60: 234375.0000 | BQ60: 78125.0000 | BR60: 78125.0000 | BS60: 78125.0000 | BT60: 78125.0000 | BV60: 9.155273E+10 | BW60: 3.051758E+10 | BX60: 3.051758E+10 | BY60: 3.051758E+10 | BZ60: 3.051758E+10 | CA60: =SUM(BV60:BZ60) -> 213623046875.0000 | CB60: =CA60/$CA$62 -> 0.2308
B61: 3.0000 | C61: 1.0000 | D61: 1.0000 | E61: 1.0000 | F61: 1.0000 | H61: 3.0000 | I61: 1.0000 | J61: 1.0000 | K61: 1.0000 | L61: 1.0000 | N61: 15.0000 | O61: 5.0000 | P61: 5.0000 | Q61: 5.0000 | R61: 5.0000 | S61: =SUM(N61:R61) -> 35.0000 | T61: =S61/$S$62 -> 0.2308 | V61: 15.0000 | W61: 5.0000 | X61: 5.0000 | Y61: 5.0000 | Z61: 5.0000 | AB61: 15.0000 | AC61: 5.0000 | AD61: 5.0000 | AE61: 5.0000 | AF61: 5.0000 | AH61: 375.0000 | AI61: 125.0000 | AJ61: 125.0000 | AK61: 125.0000 | AL61: 125.0000 | AM61: =SUM(AH61:AL61) -> 875.0000 | AN61: =AM61/$AM$62 -> 0.2308 | AP61: 375.0000 | AQ61: 125.0000 | AR61: 125.0000 | AS61: 125.0000 | AT61: 125.0000 | AV61: 375.0000 | AW61: 125.0000 | AX61: 125.0000 | AY61: 125.0000 | AZ61: 125.0000 | BB61: 234375.0000 | BC61: 78125.0000 | BD61: 78125.0000 | BE61: 78125.0000 | BF61: 78125.0000 | BG61: =SUM(BB61:BF61) -> 546875.0000 | BH61: =BG61/$BG$62 -> 0.2308 | BJ61: 234375.0000 | BK61: 78125.0000 | BL61: 78125.0000 | BM61: 78125.0000 | BN61: 78125.0000 | BP61: 234375.0000 | BQ61: 78125.0000 | BR61: 78125.0000 | BS61: 78125.0000 | BT61: 78125.0000 | BV61: 9.155273E+10 | BW61: 3.051758E+10 | BX61: 3.051758E+10 | BY61: 3.051758E+10 | BZ61: 3.051758E+10 | CA61: =SUM(BV61:BZ61) -> 213623046875.0000 | CB61: =CA61/$CA$62 -> 0.2308
S62: =SUM(S57:S61) -> 151.6667 | AM62: =SUM(AM57:AM61) -> 3791.6667 | BG62: =SUM(BG57:BG61) -> 2369791.6667 | CA62: =SUM(CA57:CA61) -> 925699869791.6670
B64: Matriz com os pesos | J64: Cálculo de λmáx
B65: Fase do ciclo de vida | J65: Soma ponderada | K65: Prioridade | L65: Produto
B66: Não adquirir | C66: Adquirir TC 16 canais | D66: Adquirir TC 64 canais | E66: Adquirir RM 1,5 T | F66: Adquirir RM 3 T | J66: =SUM(B78:F78) -> 0.3846 | K66: =B67 -> 0.0769 | L66: =J66/K66 -> 5.0000
A67: Pesos | B67: =CB57 -> 0.0769 | C67: =CB58 -> 0.2308 | D67: =CB59 -> 0.2308 | E67: =CB60 -> 0.2308 | F67: =CB61 -> 0.2308 | J67: =SUM(B79:F79) -> 1.1538 | K67: =C67 -> 0.2308 | L67: =J67/K67 -> 5.0000
A68: Não adquirir | B68: =_xlfn.ANCHORARRAY(B57) -> 1.0000 | C68: 0.3333 | D68: 0.3333 | E68: 0.3333 | F68: 0.3333 | J68: =SUM(B80:F80) -> 1.1538 | K68: =D67 -> 0.2308 | L68: =J68/K68 -> 5.0000
A69: Adquirir TC 16 canais | B69: 3.0000 | C69: 1.0000 | D69: 1.0000 | E69: 1.0000 | F69: 1.0000 | J69: =SUM(B81:F81) -> 1.1538 | K69: =E67 -> 0.2308 | L69: =J69/K69 -> 5.0000
A70: Adquirir TC 64 canais | B70: 3.0000 | C70: 1.0000 | D70: 1.0000 | E70: 1.0000 | F70: 1.0000 | J70: =SUM(B82:F82) -> 1.1538 | K70: =F67 -> 0.2308 | L70: =J70/K70 -> 5.0000
A71: Adquirir RM 1,5 T | B71: 3.0000 | C71: 1.0000 | D71: 1.0000 | E71: 1.0000 | F71: 1.0000
A72: Adquirir RM 3 T | B72: 3.0000 | C72: 1.0000 | D72: 1.0000 | E72: 1.0000 | F72: 1.0000
J73: λmáx | K73: =AVERAGE(L66:L70) -> 5.000
J74: n | K74: =COUNTA(A78:A82) -> 5
B75: Matriz resultante ponderada | J75: CI | K75: =(K73-K74)/(K74-1) -> 0.0000
B76: Fase do ciclo de vida | J76: RI | K76: =_xlfn.IFS($K74=1,'PASSO_3 - PESOS_ALTERNATIVAS'!$H$10,$K74=2,'PASSO_3 - PESOS_ALTERNATIVAS'!$I$10,$K74=3,'PASSO_3 - PESOS_ALTERNATIVAS'!$J$10,$K74=4,'PASSO_3 - PESOS_ALTERNATIVAS'!$K$10,$K74=5,'PASSO_3 - PESOS_ALTERNATIVAS'!$L$10,$K74=6,'PASSO_3 - PESOS_ALTERNATIVAS'!$M$10,$K74=7,'PASSO_3 - PESOS_ALTERNATIVAS'!$N$10,$K74=8,'PASSO_3 - PESOS_ALTERNATIVAS'!$O$10,$K74=9,'PASSO_3 - PESOS_ALTERNATIVAS'!$P$10,$K74=10,'PASSO_3 - PESOS_ALTERNATIVAS'!$Q$10) -> 1.12
B77: Não adquirir | C77: Adquirir TC 16 canais | D77: Adquirir TC 64 canais | E77: Adquirir RM 1,5 T | F77: Adquirir RM 3 T | J77: CR | K77: =K75/K76 -> 0.0000
A78: Não adquirir | B78: =$B$67*B68 -> 0.0769 | C78: =$C$67*C68 -> 0.0769 | D78: =$D$67*D68 -> 0.0769 | E78: =$E$67*E68 -> 0.0769 | F78: =$F$67*F68 -> 0.0769 | J78: =_xlfn.IFS(K75=0,"CONSISTENTE",ROUND(K77,1)<=0.1,"CONSISTENTE",ROUND(K77,1)>0.1,"INCONSISTENTE") -> CONSISTENTE
A79: Adquirir TC 16 canais | B79: =$B$67*B69 -> 0.2308 | C79: =$C$67*C69 -> 0.2308 | D79: =$D$67*D69 -> 0.2308 | E79: =$E$67*E69 -> 0.2308 | F79: =$F$67*F69 -> 0.2308
A80: Adquirir TC 64 canais | B80: =$B$67*B70 -> 0.2308 | C80: =$C$67*C70 -> 0.2308 | D80: =$D$67*D70 -> 0.2308 | E80: =$E$67*E70 -> 0.2308 | F80: =$F$67*F70 -> 0.2308
A81: Adquirir RM 1,5 T | B81: =$B$67*B71 -> 0.2308 | C81: =$C$67*C71 -> 0.2308 | D81: =$D$67*D71 -> 0.2308 | E81: =$E$67*E71 -> 0.2308 | F81: =$F$67*F71 -> 0.2308
A82: Adquirir RM 3 T | B82: =$B$67*B72 -> 0.2308 | C82: =$C$67*C72 -> 0.2308 | D82: =$D$67*D72 -> 0.2308 | E82: =$E$67*E72 -> 0.2308 | F82: =$F$67*F72 -> 0.2308
S84: Soma das linhas | T84: Resultados normalizados | AM84: Soma das linhas | AN84: Resultados normalizados | BG84: Soma das linhas | BH84: Resultados normalizados | CA84: Soma das linhas | CB84: Resultados normalizados | CU84: Soma das linhas | CV84: Resultados normalizados
B85: ='PASSO_3 - PESOS_ALTERNATIVAS'!C198:G202 -> 1.0000 | C85: 0.3333 | D85: 0.3333 | E85: 0.3333 | F85: 0.3333 | H85: =_xlfn.ANCHORARRAY(B85) -> 1.0000 | I85: 0.3333 | J85: 0.3333 | K85: 0.3333 | L85: 0.3333 | N85: =MMULT(_xlfn.ANCHORARRAY(B85),_xlfn.ANCHORARRAY(H85)) -> 5.0000 | O85: 1.2222 | P85: 1.2222 | Q85: 3.0000 | R85: 3.0000 | S85: =SUM(N85:R85) -> 13.4444 | T85: =S85/$S$90 -> 0.0705 | V85: =_xlfn.ANCHORARRAY(N85) -> 5.0000 | W85: 1.2222 | X85: 1.2222 | Y85: 3.0000 | Z85: 3.0000 | AB85: =_xlfn.ANCHORARRAY(V85) -> 5.0000 | AC85: 1.2222 | AD85: 1.2222 | AE85: 3.0000 | AF85: 3.0000 | AH85: =MMULT(_xlfn.ANCHORARRAY(V85),_xlfn.ANCHORARRAY(AB85)) -> 157 | AI85: 32.33333333 | AJ85: 32.33333333 | AK85: 76.77777778 | AL85: 76.77777778 | AM85: =SUM(AH85:AL85) -> 375.2222 | AN85: =AM85/$AM$90 -> 0.0737 | AP85: =_xlfn.ANCHORARRAY(AH85) -> 157.0000 | AQ85: 32.3333 | AR85: 32.3333 | AS85: 76.7778 | AT85: 76.7778 | AV85: =_xlfn.ANCHORARRAY(AP85) -> 157.0000 | AW85: 32.3333 | AX85: 32.3333 | AY85: 76.7778 | AZ85: 76.7778 | BB85: =MMULT(_xlfn.ANCHORARRAY(AP85),_xlfn.ANCHORARRAY(AV85)) -> 114018.3333 | BC85: 23597.1728 | BD85: 23597.1728 | BE85: 56166.2593 | BF85: 56166.2593 | BG85: =SUM(BB85:BF85) -> 273545.1975 | BH85: =BG85/$BG$90 -> 0.0736 | BJ85: =_xlfn.ANCHORARRAY(BB85) -> 114018.3333 | BK85: 23597.1728 | BL85: 23597.1728 | BM85: 56166.2593 | BN85: 56166.2593 | BP85: =_xlfn.ANCHORARRAY(BJ85) -> 114018.3333 | BQ85: 23597.1728 | BR85: 23597.1728 | BS85: 56166.2593 | BT85: 56166.2593 | BV85: =MMULT(_xlfn.ANCHORARRAY(BJ85),_xlfn.ANCHORARRAY(BP85)) -> 6.071331773e+10 | BW85: 1.256523865e+10 | BX85: 1.256523865e+10 | BY85: 2.990811364e+10 | BZ85: 2.990811364e+10 | CA85: =SUM(BV85:BZ85) -> 145660022304.3310 | CB85: =CA85/$CA$90 -> 0.0736 | CD85: =_xlfn.ANCHORARRAY(BV85) -> 6.071332E+10 | CE85: 1.256524E+10 | CF85: 1.256524E+10 | CG85: 2.990811E+10 | CH85: 2.990811E+10 | CJ85: =_xlfn.ANCHORARRAY(CD85) -> 6.071332E+10 | CK85: 1.256523865e+10 | CL85: 1.256523865e+10 | CM85: 2.990811364e+10 | CN85: 2.990811364e+10 | CP85: =MMULT(_xlfn.ANCHORARRAY(CD85),_xlfn.ANCHORARRAY(CJ85)) -> 1.721500003e+22 | CQ85: 3.562819358e+21 | CR85: 3.562819358e+21 | CS85: 8.480316945e+21 | CT85: 8.480316945e+21 | CU85: =SUM(CP85:CT85) -> 41301272631506100000000.0000 | CV85: =CU85/$CU$90 -> 0.0736
B86: 3.0000 | C86: 1.0000 | D86: 1.0000 | E86: 3.0000 | F86: 3.0000 | H86: 3.0000 | I86: 1.0000 | J86: 1.0000 | K86: 3.0000 | L86: 3.0000 | N86: 27.0000 | O86: 5.0000 | P86: 5.0000 | Q86: 13.0000 | R86: 13.0000 | S86: =SUM(N86:R86) -> 63.0000 | T86: =S86/$S$90 -> 0.3302 | V86: 27.0000 | W86: 5.0000 | X86: 5.0000 | Y86: 13.0000 | Z86: 13.0000 | AB86: 27.0000 | AC86: 5.0000 | AD86: 5.0000 | AE86: 13.0000 | AF86: 13.0000 | AH86: 691 | AI86: 143.6666667 | AJ86: 143.6666667 | AK86: 341 | AL86: 341 | AM86: =SUM(AH86:AL86) -> 1660.3333 | AN86: =AM86/$AM$90 -> 0.3260 | AP86: 691.0000 | AQ86: 143.6667 | AR86: 143.6667 | AS86: 341.0000 | AT86: 341.0000 | AV86: 691.0000 | AW86: 143.6667 | AX86: 143.6667 | AY86: 341.0000 | AZ86: 341.0000 | BB86: 505496.3333 | BC86: 104618.3333 | BD86: 104618.3333 | BE86: 249014.7778 | BF86: 249014.7778 | BG86: =SUM(BB86:BF86) -> 1212762.5556 | BH86: =BG86/$BG$90 -> 0.3262 | BJ86: 505496.3333 | BK86: 104618.3333 | BL86: 104618.3333 | BM86: 249014.7778 | BN86: 249014.7778 | BP86: 505496.3333 | BQ86: 104618.3333 | BR86: 104618.3333 | BS86: 249014.7778 | BT86: 249014.7778 | BV86: 2.691730227e+11 | BW86: 5.570809496e+10 | BX86: 5.570809496e+10 | BY86: 1.325978822e+11 | BZ86: 1.325978822e+11 | CA86: =SUM(BV86:BZ86) -> 645784977102.3090 | CB86: =CA86/$CA$90 -> 0.3262 | CD86: 2.691730E+11 | CE86: 5.570809E+10 | CF86: 5.570809E+10 | CG86: 1.325979E+11 | CH86: 1.325979E+11 | CJ86: 2.691730227e+11 | CK86: 5.570809496e+10 | CL86: 5.570809496e+10 | CM86: 1.325978822e+11 | CN86: 1.325978822e+11 | CP86: 7.63228525e+22 | CQ86: 1.579579065e+22 | CR86: 1.579579065e+22 | CS86: 3.759755901e+22 | CT86: 3.759755901e+22 | CU86: =SUM(CP86:CT86) -> 183109551808891000000000.0000 | CV86: =CU86/$CU$90 -> 0.3262
B87: 3.0000 | C87: 1.0000 | D87: 1.0000 | E87: 3.0000 | F87: 3.0000 | G87: x | H87: 3.0000 | I87: 1.0000 | J87: 1.0000 | K87: 3.0000 | L87: 3.0000 | M87: = | N87: 27.0000 | O87: 5.0000 | P87: 5.0000 | Q87: 13.0000 | R87: 13.0000 | S87: =SUM(N87:R87) -> 63.0000 | T87: =S87/$S$90 -> 0.3302 | V87: 27.0000 | W87: 5.0000 | X87: 5.0000 | Y87: 13.0000 | Z87: 13.0000 | AA87: x | AB87: 27.0000 | AC87: 5.0000 | AD87: 5.0000 | AE87: 13.0000 | AF87: 13.0000 | AG87: = | AH87: 691 | AI87: 143.6666667 | AJ87: 143.6666667 | AK87: 341 | AL87: 341 | AM87: =SUM(AH87:AL87) -> 1660.3333 | AN87: =AM87/$AM$90 -> 0.3260 | AP87: 691.0000 | AQ87: 143.6667 | AR87: 143.6667 | AS87: 341.0000 | AT87: 341.0000 | AU87: x | AV87: 691.0000 | AW87: 143.6667 | AX87: 143.6667 | AY87: 341.0000 | AZ87: 341.0000 | BA87: = | BB87: 505496.3333 | BC87: 104618.3333 | BD87: 104618.3333 | BE87: 249014.7778 | BF87: 249014.7778 | BG87: =SUM(BB87:BF87) -> 1212762.5556 | BH87: =BG87/$BG$90 -> 0.3262 | BJ87: 505496.3333 | BK87: 104618.3333 | BL87: 104618.3333 | BM87: 249014.7778 | BN87: 249014.7778 | BO87: x | BP87: 505496.3333 | BQ87: 104618.3333 | BR87: 104618.3333 | BS87: 249014.7778 | BT87: 249014.7778 | BU87: = | BV87: 2.691730227e+11 | BW87: 5.570809496e+10 | BX87: 5.570809496e+10 | BY87: 1.325978822e+11 | BZ87: 1.325978822e+11 | CA87: =SUM(BV87:BZ87) -> 645784977102.3090 | CB87: =CA87/$CA$90 -> 0.3262 | CD87: 2.691730E+11 | CE87: 5.570809E+10 | CF87: 5.570809E+10 | CG87: 1.325979E+11 | CH87: 1.325979E+11 | CI87: x | CJ87: 2.691730227e+11 | CK87: 5.570809496e+10 | CL87: 5.570809496e+10 | CM87: 1.325978822e+11 | CN87: 1.325978822e+11 | CO87: = | CP87: 7.63228525e+22 | CQ87: 1.579579065e+22 | CR87: 1.579579065e+22 | CS87: 3.759755901e+22 | CT87: 3.759755901e+22 | CU87: =SUM(CP87:CT87) -> 183109551808891000000000.0000 | CV87: =CU87/$CU$90 -> 0.3262
B88: 3.0000 | C88: 0.3333 | D88: 0.3333 | E88: 1.0000 | F88: 1.0000 | H88: 3.0000 | I88: 0.3333 | J88: 0.3333 | K88: 1.0000 | L88: 1.0000 | N88: 11.0000 | O88: 2.3333 | P88: 2.3333 | Q88: 5.0000 | R88: 5.0000 | S88: =SUM(N88:R88) -> 25.6667 | T88: =S88/$S$90 -> 0.1345 | V88: 11.0000 | W88: 2.3333 | X88: 2.3333 | Y88: 5.0000 | Z88: 5.0000 | AB88: 11.0000 | AC88: 2.3333 | AD88: 2.3333 | AE88: 5.0000 | AF88: 5.0000 | AH88: 291 | AI88: 60.11111111 | AJ88: 60.11111111 | AK88: 143.6666667 | AL88: 143.6666667 | AM88: =SUM(AH88:AL88) -> 698.5556 | AN88: =AM88/$AM$90 -> 0.1372 | AP88: 291.0000 | AQ88: 60.1111 | AR88: 60.1111 | AS88: 143.6667 | AT88: 143.6667 | AV88: 291.0000 | AW88: 60.1111 | AX88: 60.1111 | AY88: 143.6667 | AZ88: 143.6667 | BB88: 212374.5556 | BC88: 43952.8519 | BD88: 43952.8519 | BE88: 104618.3333 | BF88: 104618.3333 | BG88: =SUM(BB88:BF88) -> 509516.9259 | BH88: =BG88/$BG$90 -> 0.1370 | BJ88: 212374.5556 | BK88: 43952.8519 | BL88: 43952.8519 | BM88: 104618.3333 | BN88: 104618.3333 | BP88: 212374.5556 | BQ88: 43952.8519 | BR88: 43952.8519 | BS88: 104618.3333 | BT88: 104618.3333 | BV88: 1.130871479e+11 | BW88: 2.340453552e+10 | BX88: 2.340453552e+10 | BY88: 5.570809496e+10 | BZ88: 5.570809496e+10 | CA88: =SUM(BV88:BZ88) -> 271312408812.5750 | CB88: =CA88/$CA$90 -> 0.1370 | CD88: 1.130871E+11 | CE88: 2.340454E+10 | CF88: 2.340454E+10 | CG88: 5.570809E+10 | CH88: 5.570809E+10 | CJ88: 1.130871479e+11 | CK88: 2.340453552e+10 | CL88: 2.340453552e+10 | CM88: 5.570809496e+10 | CN88: 5.570809496e+10 | CP88: 3.206537422e+22 | CQ88: 6.63625535e+21 | CR88: 6.63625535e+21 | CS88: 1.579579065e+22 | CT88: 1.579579065e+22 | CU88: =SUM(CP88:CT88) -> 76929466214174900000000.0000 | CV88: =CU88/$CU$90 -> 0.1370
B89: 3.0000 | C89: 0.3333 | D89: 0.3333 | E89: 1.0000 | F89: 1.0000 | H89: 3.0000 | I89: 0.3333 | J89: 0.3333 | K89: 1.0000 | L89: 1.0000 | N89: 11.0000 | O89: 2.3333 | P89: 2.3333 | Q89: 5.0000 | R89: 5.0000 | S89: =SUM(N89:R89) -> 25.6667 | T89: =S89/$S$90 -> 0.1345 | V89: 11.0000 | W89: 2.3333 | X89: 2.3333 | Y89: 5.0000 | Z89: 5.0000 | AB89: 11.0000 | AC89: 2.3333 | AD89: 2.3333 | AE89: 5.0000 | AF89: 5.0000 | AH89: 291 | AI89: 60.11111111 | AJ89: 60.11111111 | AK89: 143.6666667 | AL89: 143.6666667 | AM89: =SUM(AH89:AL89) -> 698.5556 | AN89: =AM89/$AM$90 -> 0.1372 | AP89: 291.0000 | AQ89: 60.1111 | AR89: 60.1111 | AS89: 143.6667 | AT89: 143.6667 | AV89: 291.0000 | AW89: 60.1111 | AX89: 60.1111 | AY89: 143.6667 | AZ89: 143.6667 | BB89: 212374.5556 | BC89: 43952.8519 | BD89: 43952.8519 | BE89: 104618.3333 | BF89: 104618.3333 | BG89: =SUM(BB89:BF89) -> 509516.9259 | BH89: =BG89/$BG$90 -> 0.1370 | BJ89: 212374.5556 | BK89: 43952.8519 | BL89: 43952.8519 | BM89: 104618.3333 | BN89: 104618.3333 | BP89: 212374.5556 | BQ89: 43952.8519 | BR89: 43952.8519 | BS89: 104618.3333 | BT89: 104618.3333 | BV89: 1.130871479e+11 | BW89: 2.340453552e+10 | BX89: 2.340453552e+10 | BY89: 5.570809496e+10 | BZ89: 5.570809496e+10 | CA89: =SUM(BV89:BZ89) -> 271312408812.5750 | CB89: =CA89/$CA$90 -> 0.1370 | CD89: 1.130871E+11 | CE89: 2.340454E+10 | CF89: 2.340454E+10 | CG89: 5.570809E+10 | CH89: 5.570809E+10 | CJ89: 1.130871479e+11 | CK89: 2.340453552e+10 | CL89: 2.340453552e+10 | CM89: 5.570809496e+10 | CN89: 5.570809496e+10 | CP89: 3.206537422e+22 | CQ89: 6.63625535e+21 | CR89: 6.63625535e+21 | CS89: 1.579579065e+22 | CT89: 1.579579065e+22 | CU89: =SUM(CP89:CT89) -> 76929466214174900000000.0000 | CV89: =CU89/$CU$90 -> 0.1370
S90: =SUM(S85:S89) -> 190.7778 | AM90: =SUM(AM85:AM89) -> 5093.0000 | BG90: =SUM(BG85:BG89) -> 3718104.1605 | CA90: =SUM(CA85:CA89) -> 1979854794134.1000 | CU90: =SUM(CU85:CU89) -> 561379308677637000000000.0000
B91: Matriz com os pesos | J91: Cálculo de λmáx
B92: Parâmetros assistenciais | J92: Soma ponderada | K92: Prioridade | L92: Produto
B93: Não adquirir | C93: Adquirir TC 16 canais | D93: Adquirir TC 64 canais | E93: Adquirir RM 1,5 T | F93: Adquirir RM 3 T | J93: =SUM(B105:F105) -> 0.3824 | K93: =B94 -> 0.0736 | L93: =J93/K93 -> 5.1974
A94: Pesos | B94: =CV85 -> 0.0736 | C94: =CV86 -> 0.3262 | D94: =CV87 -> 0.3262 | E94: =CV88 -> 0.1370 | F94: =CV89 -> 0.1370 | J94: =SUM(B106:F106) -> 1.6953 | K94: =C94 -> 0.3262 | L94: =J94/K94 -> 5.1974
A95: Não adquirir | B95: =B85:F89 -> 1.0000 | C95: 0.3333 | D95: 0.3333 | E95: 0.3333 | F95: 0.3333 | J95: =SUM(B107:F107) -> 1.6953 | K95: =D94 -> 0.3262 | L95: =J95/K95 -> 5.1974
A96: Adquirir TC 16 canais | B96: 3.0000 | C96: 1.0000 | D96: 1.0000 | E96: 3.0000 | F96: 3.0000 | J96: =SUM(B108:F108) -> 0.7122 | K96: =E94 -> 0.1370 | L96: =J96/K96 -> 5.1974
A97: Adquirir TC 64 canais | B97: 3.0000 | C97: 1.0000 | D97: 1.0000 | E97: 3.0000 | F97: 3.0000 | J97: =SUM(B109:F109) -> 0.7122 | K97: =F94 -> 0.1370 | L97: =J97/K97 -> 5.1974
A98: Adquirir RM 1,5 T | B98: 3.0000 | C98: 0.3333 | D98: 0.3333 | E98: 1.0000 | F98: 1.0000
A99: Adquirir RM 3 T | B99: 3.0000 | C99: 0.3333 | D99: 0.3333 | E99: 1.0000 | F99: 1.0000
J100: λmáx | K100: =AVERAGE(L93:L97) -> 5.197
J101: n | K101: =COUNTA(A105:A109) -> 5
B102: Matriz resultante ponderada | J102: CI | K102: =(K100-K101)/(K101-1) -> 0.0494
B103: Parâmetros assistenciais | J103: RI | K103: =_xlfn.IFS($K101=1,'PASSO_3 - PESOS_ALTERNATIVAS'!$H$10,$K101=2,'PASSO_3 - PESOS_ALTERNATIVAS'!$I$10,$K101=3,'PASSO_3 - PESOS_ALTERNATIVAS'!$J$10,$K101=4,'PASSO_3 - PESOS_ALTERNATIVAS'!$K$10,$K101=5,'PASSO_3 - PESOS_ALTERNATIVAS'!$L$10,$K101=6,'PASSO_3 - PESOS_ALTERNATIVAS'!$M$10,$K101=7,'PASSO_3 - PESOS_ALTERNATIVAS'!$N$10,$K101=8,'PASSO_3 - PESOS_ALTERNATIVAS'!$O$10,$K101=9,'PASSO_3 - PESOS_ALTERNATIVAS'!$P$10,$K101=10,'PASSO_3 - PESOS_ALTERNATIVAS'!$Q$10) -> 1.12
B104: Não adquirir | C104: Adquirir TC 16 canais | D104: Adquirir TC 64 canais | E104: Adquirir RM 1,5 T | F104: Adquirir RM 3 T | J104: CR | K104: =K102/K103 -> 0.0441
A105: Não adquirir | B105: =$B$94*B95 -> 0.0736 | C105: =$C$94*C95 -> 0.1087 | D105: =$D$94*D95 -> 0.1087 | E105: =$E$94*E95 -> 0.0457 | F105: =$F$94*F95 -> 0.0457 | J105: =_xlfn.IFS(K102=0,"CONSISTENTE",ROUND(K104,1)<=0.1,"CONSISTENTE",ROUND(K104,1)>0.1,"INCONSISTENTE") -> CONSISTENTE
A106: Adquirir TC 16 canais | B106: =$B$94*B96 -> 0.2207 | C106: =$C$94*C96 -> 0.3262 | D106: =$D$94*D96 -> 0.3262 | E106: =$E$94*E96 -> 0.4111 | F106: =$F$94*F96 -> 0.4111
A107: Adquirir TC 64 canais | B107: =$B$94*B97 -> 0.2207 | C107: =$C$94*C97 -> 0.3262 | D107: =$D$94*D97 -> 0.3262 | E107: =$E$94*E97 -> 0.4111 | F107: =$F$94*F97 -> 0.4111
A108: Adquirir RM 1,5 T | B108: =$B$94*B98 -> 0.2207 | C108: =$C$94*C98 -> 0.1087 | D108: =$D$94*D98 -> 0.1087 | E108: =$E$94*E98 -> 0.1370 | F108: =$F$94*F98 -> 0.1370
A109: Adquirir RM 3 T | B109: =$B$94*B99 -> 0.2207 | C109: =$C$94*C99 -> 0.1087 | D109: =$D$94*D99 -> 0.1087 | E109: =$E$94*E99 -> 0.1370 | F109: =$F$94*F99 -> 0.1370
S111: Soma das linhas | T111: Resultados normalizados | AM111: Soma das linhas | AN111: Resultados normalizados | BG111: Soma das linhas | BH111: Resultados normalizados | CA111: Soma das linhas | CB111: Resultados normalizados | CU111: Soma das linhas | CV111: Resultados normalizados
B112: ='PASSO_3 - PESOS_ALTERNATIVAS'!C249:G253 -> 1.0000 | C112: 3.0000 | D112: 3.0000 | E112: 3.0000 | F112: 3.0000 | H112: =_xlfn.ANCHORARRAY(B112) -> 1.0000 | I112: 3.0000 | J112: 3.0000 | K112: 3.0000 | L112: 3.0000 | N112: =MMULT(_xlfn.ANCHORARRAY(B112),_xlfn.ANCHORARRAY(H112)) -> 5.0000 | O112: 15.0000 | P112: 15.0000 | Q112: 15.0000 | R112: 15.0000 | S112: =SUM(N112:R112) -> 65.0000 | T112: =S112/$S$117 -> 0.4286 | V112: =_xlfn.ANCHORARRAY(N112) -> 5.0000 | W112: 15.0000 | X112: 15.0000 | Y112: 15.0000 | Z112: 15.0000 | AB112: =_xlfn.ANCHORARRAY(V112) -> 5.0000 | AC112: 15.0000 | AD112: 15.0000 | AE112: 15.0000 | AF112: 15.0000 | AH112: =MMULT(_xlfn.ANCHORARRAY(V112),_xlfn.ANCHORARRAY(AB112)) -> 125.0000 | AI112: 375.0000 | AJ112: 375.0000 | AK112: 375.0000 | AL112: 375.0000 | AM112: =SUM(AH112:AL112) -> 1625.0000 | AN112: =AM112/$AM$117 -> 0.4286 | AP112: =_xlfn.ANCHORARRAY(AH112) -> 125.0000 | AQ112: 375.0000 | AR112: 375.0000 | AS112: 375.0000 | AT112: 375.0000 | AV112: =_xlfn.ANCHORARRAY(AP112) -> 125.0000 | AW112: 375.0000 | AX112: 375.0000 | AY112: 375.0000 | AZ112: 375.0000 | BB112: =MMULT(_xlfn.ANCHORARRAY(AP112),_xlfn.ANCHORARRAY(AV112)) -> 78125.0000 | BC112: 234375.0000 | BD112: 234375.0000 | BE112: 234375.0000 | BF112: 234375.0000 | BG112: =SUM(BB112:BF112) -> 1015625.0000 | BH112: =BG112/$BG$117 -> 0.4286 | BJ112: =_xlfn.ANCHORARRAY(BB112) -> 78125.0000 | BK112: 234375.0000 | BL112: 234375.0000 | BM112: 234375.0000 | BN112: 234375.0000 | BP112: =_xlfn.ANCHORARRAY(BJ112) -> 78125.0000 | BQ112: 234375.0000 | BR112: 234375.0000 | BS112: 234375.0000 | BT112: 234375.0000 | BV112: =MMULT(_xlfn.ANCHORARRAY(BJ112),_xlfn.ANCHORARRAY(BP112)) -> 3.0518E+10 | BW112: 9.1553E+10 | BX112: 9.1553E+10 | BY112: 9.1553E+10 | BZ112: 9.1553E+10 | CA112: =SUM(BV112:BZ112) -> 396728515625.0000 | CB112: =CA112/$CA$117 -> 0.4286 | CD112: =_xlfn.ANCHORARRAY(BV112) -> 3.0518E+10 | CE112: 9.1553E+10 | CF112: 9.1553E+10 | CG112: 9.1553E+10 | CH112: 9.1553E+10 | CJ112: =_xlfn.ANCHORARRAY(CD112) -> 3.0518E+10 | CK112: 9.1553E+10 | CL112: 9.1553E+10 | CM112: 9.1553E+10 | CN112: 9.1553E+10 | CP112: =MMULT(_xlfn.ANCHORARRAY(CD112),_xlfn.ANCHORARRAY(CJ112)) -> 4.6566E+21 | CQ112: 1.3970E+22 | CR112: 1.3970E+22 | CS112: 1.3970E+22 | CT112: 1.3970E+22 | CU112: =SUM(CP112:CT112) -> 60535967350006100000000.0000 | CV112: =CU112/$CU$117 -> 0.4286
B113: 0.3333 | C113: 1.0000 | D113: 1.0000 | E113: 1.0000 | F113: 1.0000 | H113: 0.3333 | I113: 1.0000 | J113: 1.0000 | K113: 1.0000 | L113: 1.0000 | N113: 1.6667 | O113: 5.0000 | P113: 5.0000 | Q113: 5.0000 | R113: 5.0000 | S113: =SUM(N113:R113) -> 21.6667 | T113: =S113/$S$117 -> 0.1429 | V113: 1.6667 | W113: 5.0000 | X113: 5.0000 | Y113: 5.0000 | Z113: 5.0000 | AB113: 1.6667 | AC113: 5.0000 | AD113: 5.0000 | AE113: 5.0000 | AF113: 5.0000 | AH113: 41.6667 | AI113: 125.0000 | AJ113: 125.0000 | AK113: 125.0000 | AL113: 125.0000 | AM113: =SUM(AH113:AL113) -> 541.6667 | AN113: =AM113/$AM$117 -> 0.1429 | AP113: 41.6667 | AQ113: 125.0000 | AR113: 125.0000 | AS113: 125.0000 | AT113: 125.0000 | AV113: 41.6667 | AW113: 125.0000 | AX113: 125.0000 | AY113: 125.0000 | AZ113: 125.0000 | BB113: 26041.6667 | BC113: 78125.0000 | BD113: 78125.0000 | BE113: 78125.0000 | BF113: 78125.0000 | BG113: =SUM(BB113:BF113) -> 338541.6667 | BH113: =BG113/$BG$117 -> 0.1429 | BJ113: 26041.6667 | BK113: 78125.0000 | BL113: 78125.0000 | BM113: 78125.0000 | BN113: 78125.0000 | BP113: 26041.6667 | BQ113: 78125.0000 | BR113: 78125.0000 | BS113: 78125.0000 | BT113: 78125.0000 | BV113: 1.0173E+10 | BW113: 3.0518E+10 | BX113: 3.0518E+10 | BY113: 3.0518E+10 | BZ113: 3.0518E+10 | CA113: =SUM(BV113:BZ113) -> 132242838541.6670 | CB113: =CA113/$CA$117 -> 0.1429 | CD113: 1.0173E+10 | CE113: 3.0518E+10 | CF113: 3.0518E+10 | CG113: 3.0518E+10 | CH113: 3.0518E+10 | CJ113: 1.0173E+10 | CK113: 3.0518E+10 | CL113: 3.0518E+10 | CM113: 3.0518E+10 | CN113: 3.0518E+10 | CP113: 1.5522E+21 | CQ113: 4.6566E+21 | CR113: 4.6566E+21 | CS113: 4.6566E+21 | CT113: 4.6566E+21 | CU113: =SUM(CP113:CT113) -> 20178655783335400000000.0000 | CV113: =CU113/$CU$117 -> 0.1429
B114: 0.3333 | C114: 1.0000 | D114: 1.0000 | E114: 1.0000 | F114: 1.0000 | G114: x | H114: 0.3333 | I114: 1.0000 | J114: 1.0000 | K114: 1.0000 | L114: 1.0000 | M114: = | N114: 1.6667 | O114: 5.0000 | P114: 5.0000 | Q114: 5.0000 | R114: 5.0000 | S114: =SUM(N114:R114) -> 21.6667 | T114: =S114/$S$117 -> 0.1429 | V114: 1.6667 | W114: 5.0000 | X114: 5.0000 | Y114: 5.0000 | Z114: 5.0000 | AA114: x | AB114: 1.6667 | AC114: 5.0000 | AD114: 5.0000 | AE114: 5.0000 | AF114: 5.0000 | AG114: = | AH114: 41.6667 | AI114: 125.0000 | AJ114: 125.0000 | AK114: 125.0000 | AL114: 125.0000 | AM114: =SUM(AH114:AL114) -> 541.6667 | AN114: =AM114/$AM$117 -> 0.1429 | AP114: 41.6667 | AQ114: 125.0000 | AR114: 125.0000 | AS114: 125.0000 | AT114: 125.0000 | AU114: x | AV114: 41.6667 | AW114: 125.0000 | AX114: 125.0000 | AY114: 125.0000 | AZ114: 125.0000 | BA114: = | BB114: 26041.6667 | BC114: 78125.0000 | BD114: 78125.0000 | BE114: 78125.0000 | BF114: 78125.0000 | BG114: =SUM(BB114:BF114) -> 338541.6667 | BH114: =BG114/$BG$117 -> 0.1429 | BJ114: 26041.6667 | BK114: 78125.0000 | BL114: 78125.0000 | BM114: 78125.0000 | BN114: 78125.0000 | BO114: x | BP114: 26041.6667 | BQ114: 78125.0000 | BR114: 78125.0000 | BS114: 78125.0000 | BT114: 78125.0000 | BU114: = | BV114: 1.0173E+10 | BW114: 3.0518E+10 | BX114: 3.0518E+10 | BY114: 3.0518E+10 | BZ114: 3.0518E+10 | CA114: =SUM(BV114:BZ114) -> 132242838541.6670 | CB114: =CA114/$CA$117 -> 0.1429 | CD114: 1.0173E+10 | CE114: 3.0518E+10 | CF114: 3.0518E+10 | CG114: 3.0518E+10 | CH114: 3.0518E+10 | CI114: x | CJ114: 1.0173E+10 | CK114: 3.0518E+10 | CL114: 3.0518E+10 | CM114: 3.0518E+10 | CN114: 3.0518E+10 | CO114: = | CP114: 1.5522E+21 | CQ114: 4.6566E+21 | CR114: 4.6566E+21 | CS114: 4.6566E+21 | CT114: 4.6566E+21 | CU114: =SUM(CP114:CT114) -> 20178655783335400000000.0000 | CV114: =CU114/$CU$117 -> 0.1429
B115: 0.3333 | C115: 1.0000 | D115: 1.0000 | E115: 1.0000 | F115: 1.0000 | H115: 0.3333 | I115: 1.0000 | J115: 1.0000 | K115: 1.0000 | L115: 1.0000 | N115: 1.6667 | O115: 5.0000 | P115: 5.0000 | Q115: 5.0000 | R115: 5.0000 | S115: =SUM(N115:R115) -> 21.6667 | T115: =S115/$S$117 -> 0.1429 | V115: 1.6667 | W115: 5.0000 | X115: 5.0000 | Y115: 5.0000 | Z115: 5.0000 | AB115: 1.6667 | AC115: 5.0000 | AD115: 5.0000 | AE115: 5.0000 | AF115: 5.0000 | AH115: 41.6667 | AI115: 125.0000 | AJ115: 125.0000 | AK115: 125.0000 | AL115: 125.0000 | AM115: =SUM(AH115:AL115) -> 541.6667 | AN115: =AM115/$AM$117 -> 0.1429 | AP115: 41.6667 | AQ115: 125.0000 | AR115: 125.0000 | AS115: 125.0000 | AT115: 125.0000 | AV115: 41.6667 | AW115: 125.0000 | AX115: 125.0000 | AY115: 125.0000 | AZ115: 125.0000 | BB115: 26041.6667 | BC115: 78125.0000 | BD115: 78125.0000 | BE115: 78125.0000 | BF115: 78125.0000 | BG115: =SUM(BB115:BF115) -> 338541.6667 | BH115: =BG115/$BG$117 -> 0.1429 | BJ115: 26041.6667 | BK115: 78125.0000 | BL115: 78125.0000 | BM115: 78125.0000 | BN115: 78125.0000 | BP115: 26041.6667 | BQ115: 78125.0000 | BR115: 78125.0000 | BS115: 78125.0000 | BT115: 78125.0000 | BV115: 1.0173E+10 | BW115: 3.0518E+10 | BX115: 3.0518E+10 | BY115: 3.0518E+10 | BZ115: 3.0518E+10 | CA115: =SUM(BV115:BZ115) -> 132242838541.6670 | CB115: =CA115/$CA$117 -> 0.1429 | CD115: 1.0173E+10 | CE115: 3.0518E+10 | CF115: 3.0518E+10 | CG115: 3.0518E+10 | CH115: 3.0518E+10 | CJ115: 1.0173E+10 | CK115: 3.0518E+10 | CL115: 3.0518E+10 | CM115: 3.0518E+10 | CN115: 3.0518E+10 | CP115: 1.5522E+21 | CQ115: 4.6566E+21 | CR115: 4.6566E+21 | CS115: 4.6566E+21 | CT115: 4.6566E+21 | CU115: =SUM(CP115:CT115) -> 20178655783335400000000.0000 | CV115: =CU115/$CU$117 -> 0.1429
B116: 0.3333 | C116: 1.0000 | D116: 1.0000 | E116: 1.0000 | F116: 1.0000 | H116: 0.3333 | I116: 1.0000 | J116: 1.0000 | K116: 1.0000 | L116: 1.0000 | N116: 1.6667 | O116: 5.0000 | P116: 5.0000 | Q116: 5.0000 | R116: 5.0000 | S116: =SUM(N116:R116) -> 21.6667 | T116: =S116/$S$117 -> 0.1429 | V116: 1.6667 | W116: 5.0000 | X116: 5.0000 | Y116: 5.0000 | Z116: 5.0000 | AB116: 1.6667 | AC116: 5.0000 | AD116: 5.0000 | AE116: 5.0000 | AF116: 5.0000 | AH116: 41.6667 | AI116: 125.0000 | AJ116: 125.0000 | AK116: 125.0000 | AL116: 125.0000 | AM116: =SUM(AH116:AL116) -> 541.6667 | AN116: =AM116/$AM$117 -> 0.1429 | AP116: 41.6667 | AQ116: 125.0000 | AR116: 125.0000 | AS116: 125.0000 | AT116: 125.0000 | AV116: 41.6667 | AW116: 125.0000 | AX116: 125.0000 | AY116: 125.0000 | AZ116: 125.0000 | BB116: 26041.6667 | BC116: 78125.0000 | BD116: 78125.0000 | BE116: 78125.0000 | BF116: 78125.0000 | BG116: =SUM(BB116:BF116) -> 338541.6667 | BH116: =BG116/$BG$117 -> 0.1429 | BJ116: 26041.6667 | BK116: 78125.0000 | BL116: 78125.0000 | BM116: 78125.0000 | BN116: 78125.0000 | BP116: 26041.6667 | BQ116: 78125.0000 | BR116: 78125.0000 | BS116: 78125.0000 | BT116: 78125.0000 | BV116: 1.0173E+10 | BW116: 3.0518E+10 | BX116: 3.0518E+10 | BY116: 3.0518E+10 | BZ116: 3.0518E+10 | CA116: =SUM(BV116:BZ116) -> 132242838541.6670 | CB116: =CA116/$CA$117 -> 0.1429 | CD116: 1.0173E+10 | CE116: 3.0518E+10 | CF116: 3.0518E+10 | CG116: 3.0518E+10 | CH116: 3.0518E+10 | CJ116: 1.0173E+10 | CK116: 3.0518E+10 | CL116: 3.0518E+10 | CM116: 3.0518E+10 | CN116: 3.0518E+10 | CP116: 1.5522E+21 | CQ116: 4.6566E+21 | CR116: 4.6566E+21 | CS116: 4.6566E+21 | CT116: 4.6566E+21 | CU116: =SUM(CP116:CT116) -> 20178655783335400000000.0000 | CV116: =CU116/$CU$117 -> 0.1429
S117: =SUM(S112:S116) -> 151.6667 | AM117: =SUM(AM112:AM116) -> 3791.6667 | BG117: =SUM(BG112:BG116) -> 2369791.6667 | CA117: =SUM(CA112:CA116) -> 925699869791.6670 | CU117: =SUM(CU112:CU116) -> 141250590483348000000000.0000
B118: Matriz com os pesos | J118: Cálculo de λmáx
B119: Planejamento estratégico | J119: Soma ponderada | K119: Prioridade | L119: Produto
B120: Não adquirir | C120: Adquirir TC 16 canais | D120: Adquirir TC 64 canais | E120: Adquirir RM 1,5 T | F120: Adquirir RM 3 T | J120: =SUM(B131:F131) -> 2.1429 | K120: =B121 -> 0.4286 | L120: =J120/K120 -> 5.0000
A121: Pesos | B121: =CV112 -> 0.4286 | C121: =CV113 -> 0.1429 | D121: =CV114 -> 0.1429 | E121: =CV115 -> 0.1429 | F121: =CV116 -> 0.1429 | J121: =SUM(B132:F132) -> 0.7143 | K121: =C121 -> 0.1429 | L121: =J121/K121 -> 5.0000
A122: Não adquirir | B122: =B112:F116 -> 1.0000 | C122: 3.0000 | D122: 3.0000 | E122: 3.0000 | F122: 3.0000 | J122: =SUM(B133:F133) -> 0.7143 | K122: =D121 -> 0.1429 | L122: =J122/K122 -> 5.0000
A123: Adquirir TC 16 canais | B123: 0.3333 | C123: 1.0000 | D123: 1.0000 | E123: 1.0000 | F123: 1.0000 | J123: =SUM(B134:F134) -> 0.7143 | K123: =E121 -> 0.1429 | L123: =J123/K123 -> 5.0000
A124: Adquirir TC 64 canais | B124: 0.3333 | C124: 1.0000 | D124: 1.0000 | E124: 1.0000 | F124: 1.0000 | J124: =SUM(B135:F135) -> 0.7143 | K124: =F121 -> 0.1429 | L124: =J124/K124 -> 5.0000
A125: Adquirir RM 1,5 T | B125: 0.3333 | C125: 1.0000 | D125: 1.0000 | E125: 1.0000 | F125: 1.0000
A126: Adquirir RM 3 T | B126: 0.3333 | C126: 1.0000 | D126: 1.0000 | E126: 1.0000 | F126: 1.0000
J127: λmáx | K127: =AVERAGE(L120:L124) -> 5.000
B128: Matriz resultante ponderada | J128: n | K128: =COUNTA(A131:A135) -> 5
B129: Planejamento estratégico | J129: CI | K129: =(K127-K128)/(K128-1) -> 0.0000
B130: Não adquirir | C130: Adquirir TC 16 canais | D130: Adquirir TC 64 canais | E130: Adquirir RM 1,5 T | F130: Adquirir RM 3 T | J130: RI | K130: =_xlfn.IFS($K128=1,'PASSO_3 - PESOS_ALTERNATIVAS'!$H$10,$K128=2,'PASSO_3 - PESOS_ALTERNATIVAS'!$I$10,$K128=3,'PASSO_3 - PESOS_ALTERNATIVAS'!$J$10,$K128=4,'PASSO_3 - PESOS_ALTERNATIVAS'!$K$10,$K128=5,'PASSO_3 - PESOS_ALTERNATIVAS'!$L$10,$K128=6,'PASSO_3 - PESOS_ALTERNATIVAS'!$M$10,$K128=7,'PASSO_3 - PESOS_ALTERNATIVAS'!$N$10,$K128=8,'PASSO_3 - PESOS_ALTERNATIVAS'!$O$10,$K128=9,'PASSO_3 - PESOS_ALTERNATIVAS'!$P$10,$K128=10,'PASSO_3 - PESOS_ALTERNATIVAS'!$Q$10) -> 1.12
A131: Não adquirir | B131: =$B$121*B122 -> 0.4286 | C131: =$C$121*C122 -> 0.4286 | D131: =$D$121*D122 -> 0.4286 | E131: =$E$121*E122 -> 0.4286 | F131: =$F$121*F122 -> 0.4286 | J131: CR | K131: =K129/K130 -> 0.0000
A132: Adquirir TC 16 canais | B132: =$B$121*B123 -> 0.1429 | C132: =$C$121*C123 -> 0.1429 | D132: =$D$121*D123 -> 0.1429 | E132: =$E$121*E123 -> 0.1429 | F132: =$F$121*F123 -> 0.1429 | J132: =_xlfn.IFS(K129=0,"CONSISTENTE",ROUND(K131,1)<=0.1,"CONSISTENTE",ROUND(K131,1)>0.1,"INCONSISTENTE") -> CONSISTENTE
A133: Adquirir TC 64 canais | B133: =$B$121*B124 -> 0.1429 | C133: =$C$121*C124 -> 0.1429 | D133: =$D$121*D124 -> 0.1429 | E133: =$E$121*E124 -> 0.1429 | F133: =$F$121*F124 -> 0.1429
A134: Adquirir RM 1,5 T | B134: =$B$121*B125 -> 0.1429 | C134: =$C$121*C125 -> 0.1429 | D134: =$D$121*D125 -> 0.1429 | E134: =$E$121*E125 -> 0.1429 | F134: =$F$121*F125 -> 0.1429
A135: Adquirir RM 3 T | B135: =$B$121*B126 -> 0.1429 | C135: =$C$121*C126 -> 0.1429 | D135: =$D$121*D126 -> 0.1429 | E135: =$E$121*E126 -> 0.1429 | F135: =$F$121*F126 -> 0.1429
S137: Soma das linhas | T137: Resultados normalizados | AM137: Soma das linhas | AN137: Resultados normalizados | BG137: Soma das linhas | BH137: Resultados normalizados | CA137: Soma das linhas | CB137: Resultados normalizados | CU137: Soma das linhas | CV137: Resultados normalizados
B138: ='PASSO_3 - PESOS_ALTERNATIVAS'!C300:G304 -> 1.0000 | C138: 3.0000 | D138: 3.0000 | E138: 3.0000 | F138: 3.0000 | H138: =_xlfn.ANCHORARRAY(B138) -> 1.0000 | I138: 3.0000 | J138: 3.0000 | K138: 3.0000 | L138: 3.0000 | N138: =MMULT(_xlfn.ANCHORARRAY(B138),_xlfn.ANCHORARRAY(H138)) -> 5.0000 | O138: 15.0000 | P138: 15.0000 | Q138: 15.0000 | R138: 15.0000 | S138: =SUM(N138:R138) -> 65.0000 | T138: =S138/$S$143 -> 0.4286 | V138: =_xlfn.ANCHORARRAY(N138) -> 5.0000 | W138: 15.0000 | X138: 15.0000 | Y138: 15.0000 | Z138: 15.0000 | AB138: =_xlfn.ANCHORARRAY(V138) -> 5.0000 | AC138: 15.0000 | AD138: 15.0000 | AE138: 15.0000 | AF138: 15.0000 | AH138: =MMULT(_xlfn.ANCHORARRAY(V138),_xlfn.ANCHORARRAY(AB138)) -> 125.0000 | AI138: 375.0000 | AJ138: 375.0000 | AK138: 375.0000 | AL138: 375.0000 | AM138: =SUM(AH138:AL138) -> 1625.0000 | AN138: =AM138/$AM$143 -> 0.4286 | AP138: =_xlfn.ANCHORARRAY(AH138) -> 125.0000 | AQ138: 375.0000 | AR138: 375.0000 | AS138: 375.0000 | AT138: 375.0000 | AV138: =_xlfn.ANCHORARRAY(AP138) -> 125.0000 | AW138: 375.0000 | AX138: 375.0000 | AY138: 375.0000 | AZ138: 375.0000 | BB138: =MMULT(_xlfn.ANCHORARRAY(AP138),_xlfn.ANCHORARRAY(AV138)) -> 78125.0000 | BC138: 234375.0000 | BD138: 234375.0000 | BE138: 234375.0000 | BF138: 234375.0000 | BG138: =SUM(BB138:BF138) -> 1015625.0000 | BH138: =BG138/$BG$143 -> 0.4286 | BJ138: =_xlfn.ANCHORARRAY(BB138) -> 7.8125E+04 | BK138: 2.3438E+05 | BL138: 2.3438E+05 | BM138: 2.3438E+05 | BN138: 2.3438E+05 | BP138: =_xlfn.ANCHORARRAY(BJ138) -> 7.8125E+04 | BQ138: 2.3438E+05 | BR138: 2.3438E+05 | BS138: 2.3438E+05 | BT138: 2.3438E+05 | BV138: =MMULT(_xlfn.ANCHORARRAY(BJ138),_xlfn.ANCHORARRAY(BP138)) -> 3.0518E+10 | BW138: 9.1553E+10 | BX138: 9.1553E+10 | BY138: 9.1553E+10 | BZ138: 9.1553E+10 | CA138: =SUM(BV138:BZ138) -> 396728515625.0000 | CB138: =CA138/$CA$143 -> 0.4286 | CD138: =_xlfn.ANCHORARRAY(BV138) -> 3.0518E+10 | CE138: 9.1553E+10 | CF138: 9.1553E+10 | CG138: 9.1553E+10 | CH138: 9.1553E+10 | CJ138: =_xlfn.ANCHORARRAY(CD138) -> 3.0518E+10 | CK138: 9.1553E+10 | CL138: 9.1553E+10 | CM138: 9.1553E+10 | CN138: 9.1553E+10 | CP138: =MMULT(_xlfn.ANCHORARRAY(CD138),_xlfn.ANCHORARRAY(CJ138)) -> 4.6566E+21 | CQ138: 1.3970E+22 | CR138: 1.3970E+22 | CS138: 1.3970E+22 | CT138: 1.3970E+22 | CU138: =SUM(CP138:CT138) -> 60535967350006100000000.0000 | CV138: =CU138/$CU$143 -> 0.4286
B139: 0.3333 | C139: 1.0000 | D139: 1.0000 | E139: 1.0000 | F139: 1.0000 | H139: 0.3333 | I139: 1.0000 | J139: 1.0000 | K139: 1.0000 | L139: 1.0000 | N139: 1.6667 | O139: 5.0000 | P139: 5.0000 | Q139: 5.0000 | R139: 5.0000 | S139: =SUM(N139:R139) -> 21.6667 | T139: =S139/$S$143 -> 0.1429 | V139: 1.6667 | W139: 5.0000 | X139: 5.0000 | Y139: 5.0000 | Z139: 5.0000 | AB139: 1.6667 | AC139: 5.0000 | AD139: 5.0000 | AE139: 5.0000 | AF139: 5.0000 | AH139: 41.6667 | AI139: 125.0000 | AJ139: 125.0000 | AK139: 125.0000 | AL139: 125.0000 | AM139: =SUM(AH139:AL139) -> 541.6667 | AN139: =AM139/$AM$143 -> 0.1429 | AP139: 41.6667 | AQ139: 125.0000 | AR139: 125.0000 | AS139: 125.0000 | AT139: 125.0000 | AV139: 41.6667 | AW139: 125.0000 | AX139: 125.0000 | AY139: 125.0000 | AZ139: 125.0000 | BB139: 26041.6667 | BC139: 78125.0000 | BD139: 78125.0000 | BE139: 78125.0000 | BF139: 78125.0000 | BG139: =SUM(BB139:BF139) -> 338541.6667 | BH139: =BG139/$BG$143 -> 0.1429 | BJ139: 2.6042E+04 | BK139: 7.8125E+04 | BL139: 7.8125E+04 | BM139: 7.8125E+04 | BN139: 7.8125E+04 | BP139: 2.6042E+04 | BQ139: 7.8125E+04 | BR139: 7.8125E+04 | BS139: 7.8125E+04 | BT139: 7.8125E+04 | BV139: 1.0173E+10 | BW139: 3.0518E+10 | BX139: 3.0518E+10 | BY139: 3.0518E+10 | BZ139: 3.0518E+10 | CA139: =SUM(BV139:BZ139) -> 132242838541.6670 | CB139: =CA139/$CA$143 -> 0.1429 | CD139: 1.0173E+10 | CE139: 3.0518E+10 | CF139: 3.0518E+10 | CG139: 3.0518E+10 | CH139: 3.0518E+10 | CJ139: 1.0173E+10 | CK139: 3.0518E+10 | CL139: 3.0518E+10 | CM139: 3.0518E+10 | CN139: 3.0518E+10 | CP139: 1.5522E+21 | CQ139: 4.6566E+21 | CR139: 4.6566E+21 | CS139: 4.6566E+21 | CT139: 4.6566E+21 | CU139: =SUM(CP139:CT139) -> 20178655783335400000000.0000 | CV139: =CU139/$CU$143 -> 0.1429
B140: 0.3333 | C140: 1.0000 | D140: 1.0000 | E140: 1.0000 | F140: 1.0000 | G140: x | H140: 0.3333 | I140: 1.0000 | J140: 1.0000 | K140: 1.0000 | L140: 1.0000 | M140: = | N140: 1.6667 | O140: 5.0000 | P140: 5.0000 | Q140: 5.0000 | R140: 5.0000 | S140: =SUM(N140:R140) -> 21.6667 | T140: =S140/$S$143 -> 0.1429 | V140: 1.6667 | W140: 5.0000 | X140: 5.0000 | Y140: 5.0000 | Z140: 5.0000 | AA140: x | AB140: 1.6667 | AC140: 5.0000 | AD140: 5.0000 | AE140: 5.0000 | AF140: 5.0000 | AG140: = | AH140: 41.6667 | AI140: 125.0000 | AJ140: 125.0000 | AK140: 125.0000 | AL140: 125.0000 | AM140: =SUM(AH140:AL140) -> 541.6667 | AN140: =AM140/$AM$143 -> 0.1429 | AP140: 41.6667 | AQ140: 125.0000 | AR140: 125.0000 | AS140: 125.0000 | AT140: 125.0000 | AU140: x | AV140: 41.6667 | AW140: 125.0000 | AX140: 125.0000 | AY140: 125.0000 | AZ140: 125.0000 | BA140: = | BB140: 26041.6667 | BC140: 78125.0000 | BD140: 78125.0000 | BE140: 78125.0000 | BF140: 78125.0000 | BG140: =SUM(BB140:BF140) -> 338541.6667 | BH140: =BG140/$BG$143 -> 0.1429 | BJ140: 2.6042E+04 | BK140: 7.8125E+04 | BL140: 7.8125E+04 | BM140: 7.8125E+04 | BN140: 7.8125E+04 | BO140: x | BP140: 2.6042E+04 | BQ140: 7.8125E+04 | BR140: 7.8125E+04 | BS140: 7.8125E+04 | BT140: 7.8125E+04 | BU140: = | BV140: 1.0173E+10 | BW140: 3.0518E+10 | BX140: 3.0518E+10 | BY140: 3.0518E+10 | BZ140: 3.0518E+10 | CA140: =SUM(BV140:BZ140) -> 132242838541.6670 | CB140: =CA140/$CA$143 -> 0.1429 | CD140: 1.0173E+10 | CE140: 3.0518E+10 | CF140: 3.0518E+10 | CG140: 3.0518E+10 | CH140: 3.0518E+10 | CI140: x | CJ140: 1.0173E+10 | CK140: 3.0518E+10 | CL140: 3.0518E+10 | CM140: 3.0518E+10 | CN140: 3.0518E+10 | CO140: = | CP140: 1.5522E+21 | CQ140: 4.6566E+21 | CR140: 4.6566E+21 | CS140: 4.6566E+21 | CT140: 4.6566E+21 | CU140: =SUM(CP140:CT140) -> 20178655783335400000000.0000 | CV140: =CU140/$CU$143 -> 0.1429
B141: 0.3333 | C141: 1.0000 | D141: 1.0000 | E141: 1.0000 | F141: 1.0000 | H141: 0.3333 | I141: 1.0000 | J141: 1.0000 | K141: 1.0000 | L141: 1.0000 | N141: 1.6667 | O141: 5.0000 | P141: 5.0000 | Q141: 5.0000 | R141: 5.0000 | S141: =SUM(N141:R141) -> 21.6667 | T141: =S141/$S$143 -> 0.1429 | V141: 1.6667 | W141: 5.0000 | X141: 5.0000 | Y141: 5.0000 | Z141: 5.0000 | AB141: 1.6667 | AC141: 5.0000 | AD141: 5.0000 | AE141: 5.0000 | AF141: 5.0000 | AH141: 41.6667 | AI141: 125.0000 | AJ141: 125.0000 | AK141: 125.0000 | AL141: 125.0000 | AM141: =SUM(AH141:AL141) -> 541.6667 | AN141: =AM141/$AM$143 -> 0.1429 | AP141: 41.6667 | AQ141: 125.0000 | AR141: 125.0000 | AS141: 125.0000 | AT141: 125.0000 | AV141: 41.6667 | AW141: 125.0000 | AX141: 125.0000 | AY141: 125.0000 | AZ141: 125.0000 | BB141: 26041.6667 | BC141: 78125.0000 | BD141: 78125.0000 | BE141: 78125.0000 | BF141: 78125.0000 | BG141: =SUM(BB141:BF141) -> 338541.6667 | BH141: =BG141/$BG$143 -> 0.1429 | BJ141: 2.6042E+04 | BK141: 7.8125E+04 | BL141: 7.8125E+04 | BM141: 7.8125E+04 | BN141: 7.8125E+04 | BP141: 2.6042E+04 | BQ141: 7.8125E+04 | BR141: 7.8125E+04 | BS141: 7.8125E+04 | BT141: 7.8125E+04 | BV141: 1.0173E+10 | BW141: 3.0518E+10 | BX141: 3.0518E+10 | BY141: 3.0518E+10 | BZ141: 3.0518E+10 | CA141: =SUM(BV141:BZ141) -> 132242838541.6670 | CB141: =CA141/$CA$143 -> 0.1429 | CD141: 1.0173E+10 | CE141: 3.0518E+10 | CF141: 3.0518E+10 | CG141: 3.0518E+10 | CH141: 3.0518E+10 | CJ141: 1.0173E+10 | CK141: 3.0518E+10 | CL141: 3.0518E+10 | CM141: 3.0518E+10 | CN141: 3.0518E+10 | CP141: 1.5522E+21 | CQ141: 4.6566E+21 | CR141: 4.6566E+21 | CS141: 4.6566E+21 | CT141: 4.6566E+21 | CU141: =SUM(CP141:CT141) -> 20178655783335400000000.0000 | CV141: =CU141/$CU$143 -> 0.1429
B142: 0.3333 | C142: 1.0000 | D142: 1.0000 | E142: 1.0000 | F142: 1.0000 | H142: 0.3333 | I142: 1.0000 | J142: 1.0000 | K142: 1.0000 | L142: 1.0000 | N142: 1.6667 | O142: 5.0000 | P142: 5.0000 | Q142: 5.0000 | R142: 5.0000 | S142: =SUM(N142:R142) -> 21.6667 | T142: =S142/$S$143 -> 0.1429 | V142: 1.6667 | W142: 5.0000 | X142: 5.0000 | Y142: 5.0000 | Z142: 5.0000 | AB142: 1.6667 | AC142: 5.0000 | AD142: 5.0000 | AE142: 5.0000 | AF142: 5.0000 | AH142: 41.6667 | AI142: 125.0000 | AJ142: 125.0000 | AK142: 125.0000 | AL142: 125.0000 | AM142: =SUM(AH142:AL142) -> 541.6667 | AN142: =AM142/$AM$143 -> 0.1429 | AP142: 41.6667 | AQ142: 125.0000 | AR142: 125.0000 | AS142: 125.0000 | AT142: 125.0000 | AV142: 41.6667 | AW142: 125.0000 | AX142: 125.0000 | AY142: 125.0000 | AZ142: 125.0000 | BB142: 26041.6667 | BC142: 78125.0000 | BD142: 78125.0000 | BE142: 78125.0000 | BF142: 78125.0000 | BG142: =SUM(BB142:BF142) -> 338541.6667 | BH142: =BG142/$BG$143 -> 0.1429 | BJ142: 2.6042E+04 | BK142: 7.8125E+04 | BL142: 7.8125E+04 | BM142: 7.8125E+04 | BN142: 7.8125E+04 | BP142: 2.6042E+04 | BQ142: 7.8125E+04 | BR142: 7.8125E+04 | BS142: 7.8125E+04 | BT142: 7.8125E+04 | BV142: 1.0173E+10 | BW142: 3.0518E+10 | BX142: 3.0518E+10 | BY142: 3.0518E+10 | BZ142: 3.0518E+10 | CA142: =SUM(BV142:BZ142) -> 132242838541.6670 | CB142: =CA142/$CA$143 -> 0.1429 | CD142: 1.0173E+10 | CE142: 3.0518E+10 | CF142: 3.0518E+10 | CG142: 3.0518E+10 | CH142: 3.0518E+10 | CJ142: 1.0173E+10 | CK142: 3.0518E+10 | CL142: 3.0518E+10 | CM142: 3.0518E+10 | CN142: 3.0518E+10 | CP142: 1.5522E+21 | CQ142: 4.6566E+21 | CR142: 4.6566E+21 | CS142: 4.6566E+21 | CT142: 4.6566E+21 | CU142: =SUM(CP142:CT142) -> 20178655783335400000000.0000 | CV142: =CU142/$CU$143 -> 0.1429
S143: =SUM(S138:S142) -> 151.6667 | AM143: =SUM(AM138:AM142) -> 3791.6667 | BG143: =SUM(BG138:BG142) -> 2369791.6667 | CA143: =SUM(CA138:CA142) -> 925699869791.6670 | CU143: =SUM(CU138:CU142) -> 141250590483348000000000.0000
B144: Matriz com os pesos | J144: Cálculo de λmáx
B145: Recursos humanos | J145: Soma ponderada | K145: Prioridade | L145: Produto
B146: Não adquirir | C146: Adquirir TC 16 canais | D146: Adquirir TC 64 canais | E146: Adquirir RM 1,5 T | F146: Adquirir RM 3 T | J146: =SUM(B157:F157) -> 2.1429 | K146: =B147 -> 0.4286 | L146: =J146/K146 -> 5.0000
A147: Pesos | B147: =CV138 -> 0.4286 | C147: =CV139 -> 0.1429 | D147: =CV140 -> 0.1429 | E147: =CV141 -> 0.1429 | F147: =CV142 -> 0.1429 | J147: =SUM(B158:F158) -> 0.7143 | K147: =C147 -> 0.1429 | L147: =J147/K147 -> 5.0000
A148: Não adquirir | B148: =B138:F142 -> 1.0000 | C148: 3.0000 | D148: 3.0000 | E148: 3.0000 | F148: 3.0000 | J148: =SUM(B159:F159) -> 0.7143 | K148: =D147 -> 0.1429 | L148: =J148/K148 -> 5.0000
A149: Adquirir TC 16 canais | B149: 0.3333 | C149: 1.0000 | D149: 1.0000 | E149: 1.0000 | F149: 1.0000 | J149: =SUM(B160:F160) -> 0.7143 | K149: =E147 -> 0.1429 | L149: =J149/K149 -> 5.0000
A150: Adquirir TC 64 canais | B150: 0.3333 | C150: 1.0000 | D150: 1.0000 | E150: 1.0000 | F150: 1.0000 | J150: =SUM(B161:F161) -> 0.7143 | K150: =F147 -> 0.1429 | L150: =J150/K150 -> 5.0000
A151: Adquirir RM 1,5 T | B151: 0.3333 | C151: 1.0000 | D151: 1.0000 | E151: 1.0000 | F151: 1.0000
A152: Adquirir RM 3 T | B152: 0.3333 | C152: 1.0000 | D152: 1.0000 | E152: 1.0000 | F152: 1.0000
J153: λmáx | K153: =AVERAGE(L146:L150) -> 5.000
B154: Matriz resultante ponderada | J154: n | K154: =COUNTA(A157:A161) -> 5
B155: Recursos humanos | J155: CI | K155: =(K153-K154)/(K154-1) -> 0.0000
B156: Não adquirir | C156: Adquirir TC 16 canais | D156: Adquirir TC 64 canais | E156: Adquirir RM 1,5 T | F156: Adquirir RM 3 T | J156: RI | K156: =_xlfn.IFS($K154=1,'PASSO_3 - PESOS_ALTERNATIVAS'!$H$10,$K154=2,'PASSO_3 - PESOS_ALTERNATIVAS'!$I$10,$K154=3,'PASSO_3 - PESOS_ALTERNATIVAS'!$J$10,$K154=4,'PASSO_3 - PESOS_ALTERNATIVAS'!$K$10,$K154=5,'PASSO_3 - PESOS_ALTERNATIVAS'!$L$10,$K154=6,'PASSO_3 - PESOS_ALTERNATIVAS'!$M$10,$K154=7,'PASSO_3 - PESOS_ALTERNATIVAS'!$N$10,$K154=8,'PASSO_3 - PESOS_ALTERNATIVAS'!$O$10,$K154=9,'PASSO_3 - PESOS_ALTERNATIVAS'!$P$10,$K154=10,'PASSO_3 - PESOS_ALTERNATIVAS'!$Q$10) -> 1.12
A157: Não adquirir | B157: =$B$147*B148 -> 0.4286 | C157: =$C$147*C148 -> 0.4286 | D157: =$D$147*D148 -> 0.4286 | E157: =$E$147*E148 -> 0.4286 | F157: =$F$147*F148 -> 0.4286 | J157: CR | K157: =K155/K156 -> 0.0000
A158: Adquirir TC 16 canais | B158: =$B$147*B149 -> 0.1429 | C158: =$C$147*C149 -> 0.1429 | D158: =$D$147*D149 -> 0.1429 | E158: =$E$147*E149 -> 0.1429 | F158: =$F$147*F149 -> 0.1429 | J158: =_xlfn.IFS(K155=0,"CONSISTENTE",ROUND(K157,1)<=0.1,"CONSISTENTE",ROUND(K157,1)>0.1,"INCONSISTENTE") -> CONSISTENTE
A159: Adquirir TC 64 canais | B159: =$B$147*B150 -> 0.1429 | C159: =$C$147*C150 -> 0.1429 | D159: =$D$147*D150 -> 0.1429 | E159: =$E$147*E150 -> 0.1429 | F159: =$F$147*F150 -> 0.1429
A160: Adquirir RM 1,5 T | B160: =$B$147*B151 -> 0.1429 | C160: =$C$147*C151 -> 0.1429 | D160: =$D$147*D151 -> 0.1429 | E160: =$E$147*E151 -> 0.1429 | F160: =$F$147*F151 -> 0.1429
A161: Adquirir RM 3 T | B161: =$B$147*B152 -> 0.1429 | C161: =$C$147*C152 -> 0.1429 | D161: =$D$147*D152 -> 0.1429 | E161: =$E$147*E152 -> 0.1429 | F161: =$F$147*F152 -> 0.1429
S163: Soma das linhas | T163: Resultados normalizados | AM163: Soma das linhas | AN163: Resultados normalizados | BG163: Soma das linhas | BH163: Resultados normalizados | CA163: Soma das linhas | CB163: Resultados normalizados | CU163: Soma das linhas | CV163: Resultados normalizados
B164: ='PASSO_3 - PESOS_ALTERNATIVAS'!C351:G355 -> 1.0000 | C164: 0.2000 | D164: 0.2000 | E164: 0.3333 | F164: 0.3333 | H164: =_xlfn.ANCHORARRAY(B164) -> 1.0000 | I164: 0.2000 | J164: 0.2000 | K164: 0.3333 | L164: 0.3333 | N164: =MMULT(_xlfn.ANCHORARRAY(B164),_xlfn.ANCHORARRAY(H164)) -> 5.0000 | O164: 1.2667 | P164: 1.2667 | Q164: 1.4000 | R164: 1.4000 | S164: =SUM(N164:R164) -> 10.3333 | T164: =S164/$S$169 -> 0.0603 | V164: =_xlfn.ANCHORARRAY(N164) -> 5.0000 | W164: 1.2667 | X164: 1.2667 | Y164: 1.4000 | Z164: 1.4000 | AB164: =_xlfn.ANCHORARRAY(V164) -> 5.0000 | AC164: 1.2667 | AD164: 1.2667 | AE164: 1.4000 | AF164: 1.4000 | AH164: =MMULT(_xlfn.ANCHORARRAY(V164),_xlfn.ANCHORARRAY(AB164)) -> 131.4000 | AI164: 31.8800 | AJ164: 31.8800 | AK164: 35.3556 | AL164: 35.3556 | AM164: =SUM(AH164:AL164) -> 265.8711 | AN164: =AM164/$AM$169 -> 0.0611 | AP164: =_xlfn.ANCHORARRAY(AH164) -> 131.40 | AQ164: 31.88 | AR164: 31.88 | AS164: 35.36 | AT164: 35.36 | AV164: =_xlfn.ANCHORARRAY(AP164) -> 131.40 | AW164: 31.88 | AX164: 31.88 | AY164: 35.36 | AZ164: 35.36 | BB164: =MMULT(_xlfn.ANCHORARRAY(AP164),_xlfn.ANCHORARRAY(AV164)) -> 84894.07 | BC164: 20604.27 | BD164: 20604.27 | BE164: 22849.27 | BF164: 22849.27 | BG164: =SUM(BB164:BF164) -> 171801.1600 | BH164: =BG164/$BG$169 -> 0.0611 | BJ164: =_xlfn.ANCHORARRAY(BB164) -> 8.4894E+04 | BK164: 2.0604E+04 | BL164: 2.0604E+04 | BM164: 2.2849E+04 | BN164: 2.2849E+04 | BP164: =_xlfn.ANCHORARRAY(BJ164) -> 8.4894E+04 | BQ164: 2.0604E+04 | BR164: 2.0604E+04 | BS164: 2.2849E+04 | BT164: 2.2849E+04 | BV164: =MMULT(_xlfn.ANCHORARRAY(BJ164),_xlfn.ANCHORARRAY(BP164)) -> 3.5455E+10 | BW164: 8.6050E+09 | BX164: 8.6050E+09 | BY164: 9.5426E+09 | BZ164: 9.5426E+09 | CA164: =SUM(BV164:BZ164) -> 71749832748.1459 | CB164: =CA164/$CA$169 -> 0.0611 | CD164: =_xlfn.ANCHORARRAY(BV164) -> 3.5455E+10 | CE164: 8.6050E+09 | CF164: 8.6050E+09 | CG164: 9.5426E+09 | CH164: 9.5426E+09 | CJ164: =_xlfn.ANCHORARRAY(CD164) -> 3.5455E+10 | CK164: 8.6050E+09 | CL164: 8.6050E+09 | CM164: 9.5426E+09 | CN164: 9.5426E+09 | CP164: =MMULT(_xlfn.ANCHORARRAY(CD164),_xlfn.ANCHORARRAY(CJ164)) -> 6.1839E+21 | CQ164: 1.5009E+21 | CR164: 1.5009E+21 | CS164: 1.6644E+21 | CT164: 1.6644E+21 | CU164: =SUM(CP164:CT164) -> 12514413507033900000000.0000 | CV164: =CU164/$CU$169 -> 0.0611
B165: 5.0000 | C165: 1.0000 | D165: 1.0000 | E165: 1.0000 | F165: 1.0000 | H165: 5.0000 | I165: 1.0000 | J165: 1.0000 | K165: 1.0000 | L165: 1.0000 | N165: 21.0000 | O165: 5.0000 | P165: 5.0000 | Q165: 5.6667 | R165: 5.6667 | S165: =SUM(N165:R165) -> 42.3333 | T165: =S165/$S$169 -> 0.2470 | V165: 21.0000 | W165: 5.0000 | X165: 5.0000 | Y165: 5.6667 | Z165: 5.6667 | AB165: 21.0000 | AC165: 5.0000 | AD165: 5.0000 | AE165: 5.6667 | AF165: 5.6667 | AH165: 530.3333 | AI165: 128.7333 | AJ165: 128.7333 | AK165: 142.7333 | AL165: 142.7333 | AM165: =SUM(AH165:AL165) -> 1073.2667 | AN165: =AM165/$AM$169 -> 0.2468 | AP165: 530.33 | AQ165: 128.73 | AR165: 128.73 | AS165: 142.73 | AT165: 142.73 | AV165: 530.33 | AW165: 128.73 | AX165: 128.73 | AY165: 142.73 | AZ165: 142.73 | BB165: 342739.12 | BC165: 83184.73 | BD165: 83184.73 | BE165: 92248.38 | BF165: 92248.38 | BG165: =SUM(BB165:BF165) -> 693605.3437 | BH165: =BG165/$BG$169 -> 0.2468 | BJ165: 3.4274E+05 | BK165: 8.3185E+04 | BL165: 8.3185E+04 | BM165: 9.2248E+04 | BN165: 9.2248E+04 | BP165: 3.4274E+05 | BQ165: 8.3185E+04 | BR165: 8.3185E+04 | BS165: 9.2248E+04 | BT165: 9.2248E+04 | BV165: 1.4314E+11 | BW165: 3.4741E+10 | BX165: 3.4741E+10 | BY165: 3.8526E+10 | BZ165: 3.8526E+10 | CA165: =SUM(BV165:BZ165) -> 289672478029.6080 | CB165: =CA165/$CA$169 -> 0.2468 | CD165: 1.4314E+11 | CE165: 3.4741E+10 | CF165: 3.4741E+10 | CG165: 3.8526E+10 | CH165: 3.8526E+10 | CJ165: 1.4314E+11 | CK165: 3.4741E+10 | CL165: 3.4741E+10 | CM165: 3.8526E+10 | CN165: 3.8526E+10 | CP165: 2.4966E+22 | CQ165: 6.0594E+21 | CR165: 6.0594E+21 | CS165: 6.7196E+21 | CT165: 6.7196E+21 | CU165: =SUM(CP165:CT165) -> 50523897169131400000000.0000 | CV165: =CU165/$CU$169 -> 0.2468
B166: 5.0000 | C166: 1.0000 | D166: 1.0000 | E166: 1.0000 | F166: 1.0000 | G166: x | H166: 5.0000 | I166: 1.0000 | J166: 1.0000 | K166: 1.0000 | L166: 1.0000 | M166: = | N166: 21.0000 | O166: 5.0000 | P166: 5.0000 | Q166: 5.6667 | R166: 5.6667 | S166: =SUM(N166:R166) -> 42.3333 | T166: =S166/$S$169 -> 0.2470 | V166: 21.0000 | W166: 5.0000 | X166: 5.0000 | Y166: 5.6667 | Z166: 5.6667 | AA166: x | AB166: 21.0000 | AC166: 5.0000 | AD166: 5.0000 | AE166: 5.6667 | AF166: 5.6667 | AG166: = | AH166: 530.3333 | AI166: 128.7333 | AJ166: 128.7333 | AK166: 142.7333 | AL166: 142.7333 | AM166: =SUM(AH166:AL166) -> 1073.2667 | AN166: =AM166/$AM$169 -> 0.2468 | AP166: 530.33 | AQ166: 128.73 | AR166: 128.73 | AS166: 142.73 | AT166: 142.73 | AU166: x | AV166: 530.33 | AW166: 128.73 | AX166: 128.73 | AY166: 142.73 | AZ166: 142.73 | BA166: = | BB166: 342739.12 | BC166: 83184.73 | BD166: 83184.73 | BE166: 92248.38 | BF166: 92248.38 | BG166: =SUM(BB166:BF166) -> 693605.3437 | BH166: =BG166/$BG$169 -> 0.2468 | BJ166: 3.4274E+05 | BK166: 8.3185E+04 | BL166: 8.3185E+04 | BM166: 9.2248E+04 | BN166: 9.2248E+04 | BO166: x | BP166: 3.4274E+05 | BQ166: 8.3185E+04 | BR166: 8.3185E+04 | BS166: 9.2248E+04 | BT166: 9.2248E+04 | BU166: = | BV166: 1.4314E+11 | BW166: 3.4741E+10 | BX166: 3.4741E+10 | BY166: 3.8526E+10 | BZ166: 3.8526E+10 | CA166: =SUM(BV166:BZ166) -> 289672478029.6080 | CB166: =CA166/$CA$169 -> 0.2468 | CD166: 1.4314E+11 | CE166: 3.4741E+10 | CF166: 3.4741E+10 | CG166: 3.8526E+10 | CH166: 3.8526E+10 | CI166: x | CJ166: 1.4314E+11 | CK166: 3.4741E+10 | CL166: 3.4741E+10 | CM166: 3.8526E+10 | CN166: 3.8526E+10 | CO166: = | CP166: 2.4966E+22 | CQ166: 6.0594E+21 | CR166: 6.0594E+21 | CS166: 6.7196E+21 | CT166: 6.7196E+21 | CU166: =SUM(CP166:CT166) -> 50523897169131400000000.0000 | CV166: =CU166/$CU$169 -> 0.2468
B167: 3.0000 | C167: 1.0000 | D167: 1.0000 | E167: 1.0000 | F167: 1.0000 | H167: 3.0000 | I167: 1.0000 | J167: 1.0000 | K167: 1.0000 | L167: 1.0000 | N167: 19.0000 | O167: 4.6000 | P167: 4.6000 | Q167: 5.0000 | R167: 5.0000 | S167: =SUM(N167:R167) -> 38.2000 | T167: =S167/$S$169 -> 0.2229 | V167: 19.0000 | W167: 4.6000 | X167: 4.6000 | Y167: 5.0000 | Z167: 5.0000 | AB167: 19.0000 | AC167: 4.6000 | AD167: 4.6000 | AE167: 5.0000 | AF167: 5.0000 | AH167: 478.2000 | AI167: 116.0667 | AJ167: 116.0667 | AK167: 128.7333 | AL167: 128.7333 | AM167: =SUM(AH167:AL167) -> 967.8000 | AN167: =AM167/$AM$169 -> 0.2226 | AP167: 478.20 | AQ167: 116.07 | AR167: 116.07 | AS167: 128.73 | AT167: 128.73 | AV167: 478.20 | AW167: 116.07 | AX167: 116.07 | AY167: 128.73 | AZ167: 128.73 | BB167: 309064.08 | BC167: 75011.61 | BD167: 75011.61 | BE167: 83184.73 | BF167: 83184.73 | BG167: =SUM(BB167:BF167) -> 625456.7742 | BH167: =BG167/$BG$169 -> 0.2226 | BJ167: 3.0906E+05 | BK167: 7.5012E+04 | BL167: 7.5012E+04 | BM167: 8.3185E+04 | BN167: 8.3185E+04 | BP167: 3.0906E+05 | BQ167: 7.5012E+04 | BR167: 7.5012E+04 | BS167: 8.3185E+04 | BT167: 8.3185E+04 | BV167: 1.2908E+11 | BW167: 3.1327E+10 | BX167: 3.1327E+10 | BY167: 3.4741E+10 | BZ167: 3.4741E+10 | CA167: =SUM(BV167:BZ167) -> 261211387401.8180 | CB167: =CA167/$CA$169 -> 0.2226 | CD167: 1.2908E+11 | CE167: 3.1327E+10 | CF167: 3.1327E+10 | CG167: 3.4741E+10 | CH167: 3.4741E+10 | CJ167: 1.2908E+11 | CK167: 3.1327E+10 | CL167: 3.1327E+10 | CM167: 3.4741E+10 | CN167: 3.4741E+10 | CP167: 2.2513E+22 | CQ167: 5.4640E+21 | CR167: 5.4640E+21 | CS167: 6.0594E+21 | CT167: 6.0594E+21 | CU167: =SUM(CP167:CT167) -> 45559790029989200000000.0000 | CV167: =CU167/$CU$169 -> 0.2226
B168: 3.0000 | C168: 1.0000 | D168: 1.0000 | E168: 1.0000 | F168: 1.0000 | H168: 3.0000 | I168: 1.0000 | J168: 1.0000 | K168: 1.0000 | L168: 1.0000 | N168: 19.0000 | O168: 4.6000 | P168: 4.6000 | Q168: 5.0000 | R168: 5.0000 | S168: =SUM(N168:R168) -> 38.2000 | T168: =S168/$S$169 -> 0.2229 | V168: 19.0000 | W168: 4.6000 | X168: 4.6000 | Y168: 5.0000 | Z168: 5.0000 | AB168: 19.0000 | AC168: 4.6000 | AD168: 4.6000 | AE168: 5.0000 | AF168: 5.0000 | AH168: 478.2000 | AI168: 116.0667 | AJ168: 116.0667 | AK168: 128.7333 | AL168: 128.7333 | AM168: =SUM(AH168:AL168) -> 967.8000 | AN168: =AM168/$AM$169 -> 0.2226 | AP168: 478.20 | AQ168: 116.07 | AR168: 116.07 | AS168: 128.73 | AT168: 128.73 | AV168: 478.20 | AW168: 116.07 | AX168: 116.07 | AY168: 128.73 | AZ168: 128.73 | BB168: 309064.08 | BC168: 75011.61 | BD168: 75011.61 | BE168: 83184.73 | BF168: 83184.73 | BG168: =SUM(BB168:BF168) -> 625456.7742 | BH168: =BG168/$BG$169 -> 0.2226 | BJ168: 3.0906E+05 | BK168: 7.5012E+04 | BL168: 7.5012E+04 | BM168: 8.3185E+04 | BN168: 8.3185E+04 | BP168: 3.0906E+05 | BQ168: 7.5012E+04 | BR168: 7.5012E+04 | BS168: 8.3185E+04 | BT168: 8.3185E+04 | BV168: 1.2908E+11 | BW168: 3.1327E+10 | BX168: 3.1327E+10 | BY168: 3.4741E+10 | BZ168: 3.4741E+10 | CA168: =SUM(BV168:BZ168) -> 261211387401.8180 | CB168: =CA168/$CA$169 -> 0.2226 | CD168: 1.2908E+11 | CE168: 3.1327E+10 | CF168: 3.1327E+10 | CG168: 3.4741E+10 | CH168: 3.4741E+10 | CJ168: 1.2908E+11 | CK168: 3.1327E+10 | CL168: 3.1327E+10 | CM168: 3.4741E+10 | CN168: 3.4741E+10 | CP168: 2.2513E+22 | CQ168: 5.4640E+21 | CR168: 5.4640E+21 | CS168: 6.0594E+21 | CT168: 6.0594E+21 | CU168: =SUM(CP168:CT168) -> 45559790029989200000000.0000 | CV168: =CU168/$CU$169 -> 0.2226
S169: =SUM(S164:S168) -> 171.4000 | AM169: =SUM(AM164:AM168) -> 4348.0044 | BG169: =SUM(BG164:BG168) -> 2809925.3959 | CA169: =SUM(CA164:CA168) -> 1173517563611.0000 | CU169: =SUM(CU164:CU168) -> 204681787905275000000000.0000
B170: Matriz com os pesos | J170: Cálculo de λmáx
B171: Ensino e Pesquisa | J171: Soma ponderada | K171: Prioridade | L171: Produto
B172: Não adquirir | C172: Adquirir TC 16 canais | D172: Adquirir TC 64 canais | E172: Adquirir RM 1,5 T | F172: Adquirir RM 3 T | J172: =SUM(B184:F184) -> 0.3083 | K172: =B173 -> 0.0611 | L172: =J172/K172 -> 5.0420
A173: Pesos | B173: =CV164 -> 0.0611 | C173: =CV165 -> 0.2468 | D173: =CV166 -> 0.2468 | E173: =CV167 -> 0.2226 | F173: =CV168 -> 0.2226 | J173: =SUM(B185:F185) -> 1.2446 | K173: =C173 -> 0.2468 | L173: =J173/K173 -> 5.0420
A174: Não adquirir | B174: =B164:F168 -> 1.0000 | C174: 0.2000 | D174: 0.2000 | E174: 0.3333 | F174: 0.3333 | J174: =SUM(B186:F186) -> 1.2446 | K174: =D173 -> 0.2468 | L174: =J174/K174 -> 5.0420
A175: Adquirir TC 16 canais | B175: 5.0000 | C175: 1.0000 | D175: 1.0000 | E175: 1.0000 | F175: 1.0000 | J175: =SUM(B187:F187) -> 1.1223 | K175: =E173 -> 0.2226 | L175: =J175/K175 -> 5.0420
A176: Adquirir TC 64 canais | B176: 5.0000 | C176: 1.0000 | D176: 1.0000 | E176: 1.0000 | F176: 1.0000 | J176: =SUM(B188:F188) -> 1.1223 | K176: =F173 -> 0.2226 | L176: =J176/K176 -> 5.0420
A177: Adquirir RM 1,5 T | B177: 3.0000 | C177: 1.0000 | D177: 1.0000 | E177: 1.0000 | F177: 1.0000
A178: Adquirir RM 3 T | B178: 3.0000 | C178: 1.0000 | D178: 1.0000 | E178: 1.0000 | F178: 1.0000
J179: λmáx | K179: =AVERAGE(L172:L176) -> 5.042
J180: n | K180: =COUNTA(A184:A188) -> 5
B181: Matriz resultante ponderada | J181: CI | K181: =(K179-K180)/(K180-1) -> 0.0105
B182: Ensino e Pesquisa | J182: RI | K182: =_xlfn.IFS($K180=1,'PASSO_3 - PESOS_ALTERNATIVAS'!$H$10,$K180=2,'PASSO_3 - PESOS_ALTERNATIVAS'!$I$10,$K180=3,'PASSO_3 - PESOS_ALTERNATIVAS'!$J$10,$K180=4,'PASSO_3 - PESOS_ALTERNATIVAS'!$K$10,$K180=5,'PASSO_3 - PESOS_ALTERNATIVAS'!$L$10,$K180=6,'PASSO_3 - PESOS_ALTERNATIVAS'!$M$10,$K180=7,'PASSO_3 - PESOS_ALTERNATIVAS'!$N$10,$K180=8,'PASSO_3 - PESOS_ALTERNATIVAS'!$O$10,$K180=9,'PASSO_3 - PESOS_ALTERNATIVAS'!$P$10,$K180=10,'PASSO_3 - PESOS_ALTERNATIVAS'!$Q$10) -> 1.12
B183: Não adquirir | C183: Adquirir TC 16 canais | D183: Adquirir TC 64 canais | E183: Adquirir RM 1,5 T | F183: Adquirir RM 3 T | J183: CR | K183: =K181/K182 -> 0.0094
A184: Não adquirir | B184: =$B$173*B174 -> 0.0611 | C184: =$C$173*C174 -> 0.0494 | D184: =$D$173*D174 -> 0.0494 | E184: =$E$173*E174 -> 0.0742 | F184: =$F$173*F174 -> 0.0742 | J184: =_xlfn.IFS(K181=0,"CONSISTENTE",ROUND(K183,1)<=0.1,"CONSISTENTE",ROUND(K183,1)>0.1,"INCONSISTENTE") -> CONSISTENTE
A185: Adquirir TC 16 canais | B185: =$B$173*B175 -> 0.3057 | C185: =$C$173*C175 -> 0.2468 | D185: =$D$173*D175 -> 0.2468 | E185: =$E$173*E175 -> 0.2226 | F185: =$F$173*F175 -> 0.2226
A186: Adquirir TC 64 canais | B186: =$B$173*B176 -> 0.3057 | C186: =$C$173*C176 -> 0.2468 | D186: =$D$173*D176 -> 0.2468 | E186: =$E$173*E176 -> 0.2226 | F186: =$F$173*F176 -> 0.2226
A187: Adquirir RM 1,5 T | B187: =$B$173*B177 -> 0.1834 | C187: =$C$173*C177 -> 0.2468 | D187: =$D$173*D177 -> 0.2468 | E187: =$E$173*E177 -> 0.2226 | F187: =$F$173*F177 -> 0.2226
A188: Adquirir RM 3 T | B188: =$B$173*B178 -> 0.1834 | C188: =$C$173*C178 -> 0.2468 | D188: =$D$173*D178 -> 0.2468 | E188: =$E$173*E178 -> 0.2226 | F188: =$F$173*F178 -> 0.2226
S190: Soma das linhas | T190: Resultados normalizados | AM190: Soma das linhas | AN190: Resultados normalizados | BG190: Soma das linhas | BH190: Resultados normalizados | CA190: Soma das linhas | CB190: Resultados normalizados | CU190: Soma das linhas | CV190: Resultados normalizados
B191: ='PASSO_3 - PESOS_ALTERNATIVAS'!C402:G406 -> 1.0000 | C191: 0.2000 | D191: 0.2000 | E191: 0.3333 | F191: 0.3333 | H191: =_xlfn.ANCHORARRAY(B191) -> 1.0000 | I191: 0.2000 | J191: 0.2000 | K191: 0.3333 | L191: 0.3333 | N191: =MMULT(_xlfn.ANCHORARRAY(B191),_xlfn.ANCHORARRAY(H191)) -> 5.0000 | O191: 0.6889 | P191: 2.1111 | Q191: 1.6667 | R191: 2.2000 | S191: =SUM(N191:R191) -> 11.6667 | T191: =S191/$S$196 -> 0.0496 | V191: =_xlfn.ANCHORARRAY(N191) -> 5.0000 | W191: 0.6889 | X191: 2.1111 | Y191: 1.6667 | Z191: 2.2000 | AB191: =_xlfn.ANCHORARRAY(V191) -> 5.0000 | AC191: 0.6889 | AD191: 2.1111 | AE191: 1.6667 | AF191: 2.2000 | AH191: =MMULT(_xlfn.ANCHORARRAY(V191),_xlfn.ANCHORARRAY(AB191)) -> 170.2741 | AI191: 20.8509 | AJ191: 57.6311 | AK191: 47.1185 | AL191: 76.2148 | AM191: =SUM(AH191:AL191) -> 372.0894 | AN191: =AM191/$AM$196 -> 0.0524 | AP191: =_xlfn.ANCHORARRAY(AH191) -> 170.2741 | AQ191: 20.8509 | AR191: 57.6311 | AS191: 47.1185 | AT191: 76.2148 | AV191: =_xlfn.ANCHORARRAY(AP191) -> 170.2741 | AW191: 20.8509 | AX191: 57.6311 | AY191: 47.1185 | AZ191: 76.2148 | BB191: =MMULT(_xlfn.ANCHORARRAY(AP191),_xlfn.ANCHORARRAY(AV191)) -> 156838.1338 | BC191: 19331.6205 | BD191: 54066.7758 | BE191: 43883.9604 | BF191: 70013.9076 | BG191: =SUM(BB191:BF191) -> 344134.3981 | BH191: =BG191/$BG$196 -> 0.0522 | BJ191: =_xlfn.ANCHORARRAY(BB191) -> 1.5684E+05 | BK191: 1.9332E+04 | BL191: 5.4067E+04 | BM191: 4.3884E+04 | BN191: 7.0014E+04 | BP191: =_xlfn.ANCHORARRAY(BJ191) -> 1.5684E+05 | BQ191: 1.9332E+04 | BR191: 5.4067E+04 | BS191: 4.3884E+04 | BT191: 7.0014E+04 | BV191: =MMULT(_xlfn.ANCHORARRAY(BJ191),_xlfn.ANCHORARRAY(BP191)) -> 1.3497E+11 | BW191: 1.6637E+10 | BX191: 4.6536E+10 | BY191: 3.7767E+10 | BZ191: 6.0253E+10 | CA191: =SUM(BV191:BZ191) -> 296165324664.3290 | CB191: =CA191/$CA$196 -> 0.0522 | CD191: =_xlfn.ANCHORARRAY(BV191) -> 1.3497E+11 | CE191: 1.6637E+10 | CF191: 4.6536E+10 | CG191: 3.7767E+10 | CH191: 6.0253E+10 | CJ191: =_xlfn.ANCHORARRAY(CD191) -> 1.3497E+11 | CK191: 1.6637E+10 | CL191: 4.6536E+10 | CM191: 3.7767E+10 | CN191: 6.0253E+10 | CP191: =MMULT(_xlfn.ANCHORARRAY(CD191),_xlfn.ANCHORARRAY(CJ191)) -> 9.9970E+22 | CQ191: 1.2322E+22 | CR191: 3.4468E+22 | CS191: 2.7973E+22 | CT191: 4.4628E+22 | CU191: =SUM(CP191:CT191) -> 219361666701102000000000.0000 | CV191: =CU191/$CU$196 -> 0.0522
B192: 5.0000 | C192: 1.0000 | D192: 3.0000 | E192: 3.0000 | F192: 3.0000 | H192: 5.0000 | I192: 1.0000 | J192: 3.0000 | K192: 3.0000 | L192: 3.0000 | N192: 43.0000 | O192: 5.0000 | P192: 17.0000 | Q192: 11.6667 | R192: 19.6667 | S192: =SUM(N192:R192) -> 96.3333 | T192: =S192/$S$196 -> 0.4092 | V192: 43.0000 | W192: 5.0000 | X192: 17.0000 | Y192: 11.6667 | Z192: 19.6667 | AB192: 43.0000 | AC192: 5.0000 | AD192: 17.0000 | AE192: 11.6667 | AF192: 19.6667 | AH192: 1340.3333 | AI192: 165.8296 | AJ192: 456.9111 | AK192: 376.8519 | AL192: 595.9333 | AM192: =SUM(AH192:AL192) -> 2935.8593 | AN192: =AM192/$AM$196 -> 0.4131 | AP192: 1340.3333 | AQ192: 165.8296 | AR192: 456.9111 | AS192: 376.8519 | AT192: 595.9333 | AV192: 1340.3333 | AW192: 165.8296 | AX192: 456.9111 | AY192: 376.8519 | AZ192: 595.9333 | BB192: 1241340.8891 | BC192: 153016.0674 | BD192: 427976.5169 | BE192: 347370.2196 | BF192: 554124.0295 | BG192: =SUM(BB192:BF192) -> 2723827.7225 | BH192: =BG192/$BG$196 -> 0.4129 | BJ192: 1.2413E+06 | BK192: 1.5302E+05 | BL192: 4.2798E+05 | BM192: 3.4737E+05 | BN192: 5.5412E+05 | BP192: 1.2413E+06 | BQ192: 1.5302E+05 | BR192: 4.2798E+05 | BS192: 3.4737E+05 | BT192: 5.5412E+05 | BV192: 1.0683E+12 | BW192: 1.3168E+11 | BX192: 3.6834E+11 | BY192: 2.9894E+11 | BZ192: 4.7692E+11 | CA192: =SUM(BV192:BZ192) -> 2344212744619.6800 | CB192: =CA192/$CA$196 -> 0.4129 | CD192: 1.0683E+12 | CE192: 1.3168E+11 | CF192: 3.6834E+11 | CG192: 2.9894E+11 | CH192: 4.7692E+11 | CJ192: 1.0683E+12 | CK192: 1.3168E+11 | CL192: 3.6834E+11 | CM192: 2.9894E+11 | CN192: 4.7692E+11 | CP192: 7.9129E+23 | CQ192: 9.7535E+22 | CR192: 2.7282E+23 | CS192: 2.2141E+23 | CT192: 3.5324E+23 | CU192: =SUM(CP192:CT192) -> 1736295144507420000000000.0000 | CV192: =CU192/$CU$196 -> 0.4129
B193: 5.0000 | C193: 0.3333 | D193: 1.0000 | E193: 0.3333 | F193: 3.0000 | G193: x | H193: 5.0000 | I193: 0.3333 | J193: 1.0000 | K193: 0.3333 | L193: 3.0000 | M193: = | N193: 21.6667 | O193: 2.7778 | P193: 5.0000 | Q193: 6.3333 | R193: 9.0000 | S193: =SUM(N193:R193) -> 44.7778 | T193: =S193/$S$196 -> 0.1902 | V193: 21.6667 | W193: 2.7778 | X193: 5.0000 | Y193: 6.3333 | Z193: 9.0000 | AA193: x | AB193: 21.6667 | AC193: 2.7778 | AD193: 5.0000 | AE193: 6.3333 | AF193: 9.0000 | AG193: = | AH193: 609.6667 | AI193: 74.5704 | AJ193: 215.6074 | AK193: 168.8519 | AL193: 274.6296 | AM193: =SUM(AH193:AL193) -> 1343.3259 | AN193: =AM193/$AM$196 -> 0.1890 | AP193: 609.6667 | AQ193: 74.5704 | AR193: 215.6074 | AS193: 168.8519 | AT193: 274.6296 | AU193: x | AV193: 609.6667 | AW193: 74.5704 | AX193: 215.6074 | AY193: 168.8519 | AZ193: 274.6296 | BA193: = | BB193: 567915.2754 | BC193: 69994.4554 | BD193: 195823.2110 | BE193: 158886.9248 | BF193: 253546.0322 | BG193: =SUM(BB193:BF193) -> 1246165.8989 | BH193: =BG193/$BG$196 -> 0.1889 | BJ193: 5.6792E+05 | BK193: 6.9994E+04 | BL193: 1.9582E+05 | BM193: 1.5889E+05 | BN193: 2.5355E+05 | BO193: x | BP193: 5.6792E+05 | BQ193: 6.9994E+04 | BR193: 1.9582E+05 | BS193: 1.5889E+05 | BT193: 2.5355E+05 | BU193: = | BV193: 4.8875E+11 | BW193: 6.0244E+10 | BX193: 1.6851E+11 | BY193: 1.3676E+11 | BZ193: 2.1818E+11 | CA193: =SUM(BV193:BZ193) -> 1072457894363.5300 | CB193: =CA193/$CA$196 -> 0.1889 | CD193: 4.8875E+11 | CE193: 6.0244E+10 | CF193: 1.6851E+11 | CG193: 1.3676E+11 | CH193: 2.1818E+11 | CI193: x | CJ193: 4.8875E+11 | CK193: 6.0244E+10 | CL193: 1.6851E+11 | CM193: 1.3676E+11 | CN193: 2.1818E+11 | CO193: = | CP193: 3.6201E+23 | CQ193: 4.4621E+22 | CR193: 1.2481E+23 | CS193: 1.0130E+23 | CT193: 1.6160E+23 | CU193: =SUM(CP193:CT193) -> 794340629827634000000000.0000 | CV193: =CU193/$CU$196 -> 0.1889
B194: 3.0000 | C194: 0.3333 | D194: 3.0000 | E194: 1.0000 | F194: 1.0000 | H194: 3.0000 | I194: 0.3333 | J194: 3.0000 | K194: 1.0000 | L194: 1.0000 | N194: 25.6667 | O194: 2.6000 | P194: 7.9333 | Q194: 5.0000 | R194: 13.0000 | S194: =SUM(N194:R194) -> 54.2000 | T194: =S194/$S$196 -> 0.2302 | V194: 25.6667 | W194: 2.6000 | X194: 7.9333 | Y194: 5.0000 | Z194: 13.0000 | AB194: 25.6667 | AC194: 2.6000 | AD194: 7.9333 | AE194: 5.0000 | AF194: 13.0000 | AH194: 700.6889 | AI194: 87.9630 | AJ194: 246.1852 | AK194: 201.8000 | AL194: 309.0000 | AM194: =SUM(AH194:AL194) -> 1545.6370 | AN194: =AM194/$AM$196 -> 0.2175 | AP194: 700.6889 | AQ194: 87.9630 | AR194: 246.1852 | AS194: 201.8000 | AT194: 309.0000 | AV194: 700.6889 | AW194: 87.9630 | AX194: 246.1852 | AY194: 201.8000 | AZ194: 309.0000 | BB194: 657409.8510 | BC194: 81041.9919 | BD194: 226718.1431 | BE194: 183986.9145 | BF194: 293457.4374 | BG194: =SUM(BB194:BF194) -> 1442614.3380 | BH194: =BG194/$BG$196 -> 0.2187 | BJ194: 6.5741E+05 | BK194: 8.1042E+04 | BL194: 2.2672E+05 | BM194: 1.8399E+05 | BN194: 2.9346E+05 | BP194: 6.5741E+05 | BQ194: 8.1042E+04 | BR194: 2.2672E+05 | BS194: 1.8399E+05 | BT194: 2.9346E+05 | BV194: 5.6584E+11 | BW194: 6.9746E+10 | BX194: 1.9509E+11 | BY194: 1.5833E+11 | BZ194: 2.5260E+11 | CA194: =SUM(BV194:BZ194) -> 1241606091000.5800 | CB194: =CA194/$CA$196 -> 0.2187 | CD194: 5.6584E+11 | CE194: 6.9746E+10 | CF194: 1.9509E+11 | CG194: 1.5833E+11 | CH194: 2.5260E+11 | CJ194: 5.6584E+11 | CK194: 6.9746E+10 | CL194: 1.9509E+11 | CM194: 1.5833E+11 | CN194: 2.5260E+11 | CP194: 4.1910E+23 | CQ194: 5.1659E+22 | CR194: 1.4450E+23 | CS194: 1.1727E+23 | CT194: 1.8709E+23 | CU194: =SUM(CP194:CT194) -> 919624139133183000000000.0000 | CV194: =CU194/$CU$196 -> 0.2187
B195: 3.0000 | C195: 0.3333 | D195: 0.3333 | E195: 1.0000 | F195: 1.0000 | H195: 3.0000 | I195: 0.3333 | J195: 0.3333 | K195: 1.0000 | L195: 1.0000 | N195: 12.3333 | O195: 1.7111 | P195: 5.2667 | Q195: 4.1111 | R195: 5.0000 | S195: =SUM(N195:R195) -> 28.4222 | T195: =S195/$S$196 -> 0.1207 | V195: 12.3333 | W195: 1.7111 | X195: 5.2667 | Y195: 4.1111 | Z195: 5.0000 | AB195: 12.3333 | AC195: 1.7111 | AD195: 5.2667 | AE195: 4.1111 | AF195: 5.0000 | AH195: 416.5407 | AI195: 50.9259 | AJ195: 140.4074 | AK195: 114.9852 | AL195: 186.6296 | AM195: =SUM(AH195:AL195) -> 909.4889 | AN195: =AM195/$AM$196 -> 0.1280 | AP195: 416.5407 | AQ195: 50.9259 | AR195: 140.4074 | AS195: 114.9852 | AT195: 186.6296 | AV195: 416.5407 | AW195: 50.9259 | AX195: 140.4074 | AY195: 114.9852 | AZ195: 186.6296 | BB195: 383093.2069 | BC195: 47219.2185 | BD195: 132059.0358 | BE195: 107190.0157 | BF195: 171016.1074 | BG195: =SUM(BB195:BF195) -> 840577.5842 | BH195: =BG195/$BG$196 -> 0.1274 | BJ195: 3.8309E+05 | BK195: 4.7219E+04 | BL195: 1.3206E+05 | BM195: 1.0719E+05 | BN195: 1.7102E+05 | BP195: 3.8309E+05 | BQ195: 4.7219E+04 | BR195: 1.3206E+05 | BS195: 1.0719E+05 | BT195: 1.7102E+05 | BV195: 3.2968E+11 | BW195: 4.0637E+10 | BX195: 1.1367E+11 | BY195: 9.2249E+10 | BZ195: 1.4717E+11 | CA195: =SUM(BV195:BZ195) -> 723406193580.3970 | CB195: =CA195/$CA$196 -> 0.1274 | CD195: 3.2968E+11 | CE195: 4.0637E+10 | CF195: 1.1367E+11 | CG195: 9.2249E+10 | CH195: 1.4717E+11 | CJ195: 3.2968E+11 | CK195: 4.0637E+10 | CL195: 1.1367E+11 | CM195: 9.2249E+10 | CN195: 1.4717E+11 | CP195: 2.4419E+23 | CQ195: 3.0098E+22 | CR195: 8.4191E+22 | CS195: 6.8327E+22 | CT195: 1.0901E+23 | CU195: =SUM(CP195:CT195) -> 535807453200050000000000.0000 | CV195: =CU195/$CU$196 -> 0.1274
S196: =SUM(S191:S195) -> 235.4000 | AM196: =SUM(AM191:AM195) -> 7106.4005 | BG196: =SUM(BG191:BG195) -> 6597319.9418 | CA196: =SUM(CA191:CA195) -> 5677848248228.5200 | CU196: =SUM(CU191:CU195) -> 4205429033369390000000000.0000
B197: Matriz com os pesos | J197: Cálculo de λmáx
B198: Capacidade de produção | J198: Soma ponderada | K198: Prioridade | L198: Produto
B199: Não adquirir | C199: Adquirir TC 16 canais | D199: Adquirir TC 64 canais | E199: Adquirir RM 1,5 T | F199: Adquirir RM 3 T | J199: =SUM(B210:F210) -> 0.2879 | K199: =B200 -> 0.0522 | L199: =J199/K199 -> 5.5189
A200: Pesos | B200: =CV191 -> 0.0522 | C200: =CV192 -> 0.4129 | D200: =CV193 -> 0.1889 | E200: =CV194 -> 0.2187 | F200: =CV195 -> 0.1274 | J200: =SUM(B211:F211) -> 2.2786 | K200: =C200 -> 0.4129 | L200: =J200/K200 -> 5.5189
A201: Não adquirir | B201: =B191:F195 -> 1.0000 | C201: 0.2000 | D201: 0.2000 | E201: 0.3333 | F201: 0.3333 | J201: =SUM(B212:F212) -> 1.0424 | K201: =D200 -> 0.1889 | L201: =J201/K201 -> 5.5189
A202: Adquirir TC 16 canais | B202: 5.0000 | C202: 1.0000 | D202: 3.0000 | E202: 3.0000 | F202: 3.0000 | J202: =SUM(B213:F213) -> 1.2068 | K202: =E200 -> 0.2187 | L202: =J202/K202 -> 5.5189
A203: Adquirir TC 64 canais | B203: 5.0000 | C203: 0.3333 | D203: 1.0000 | E203: 0.3333 | F203: 3.0000 | J203: =SUM(B214:F214) -> 0.7032 | K203: =F200 -> 0.1274 | L203: =J203/K203 -> 5.5189
A204: Adquirir RM 1,5 T | B204: 3.0000 | C204: 0.3333 | D204: 3.0000 | E204: 1.0000 | F204: 1.0000
A205: Adquirir RM 3 T | B205: 3.0000 | C205: 0.3333 | D205: 0.3333 | E205: 1.0000 | F205: 1.0000
J206: λmáx | K206: =AVERAGE(L199:L203) -> 5.519
B207: Matriz resultante ponderada | J207: n | K207: =COUNTA(A210:A214) -> 5
B208: Capacidade de produção | J208: CI | K208: =(K206-K207)/(K207-1) -> 0.1297
B209: Não adquirir | C209: Adquirir TC 16 canais | D209: Adquirir TC 64 canais | E209: Adquirir RM 1,5 T | F209: Adquirir RM 3 T | J209: RI | K209: =_xlfn.IFS($K207=1,'PASSO_3 - PESOS_ALTERNATIVAS'!$H$10,$K207=2,'PASSO_3 - PESOS_ALTERNATIVAS'!$I$10,$K207=3,'PASSO_3 - PESOS_ALTERNATIVAS'!$J$10,$K207=4,'PASSO_3 - PESOS_ALTERNATIVAS'!$K$10,$K207=5,'PASSO_3 - PESOS_ALTERNATIVAS'!$L$10,$K207=6,'PASSO_3 - PESOS_ALTERNATIVAS'!$M$10,$K207=7,'PASSO_3 - PESOS_ALTERNATIVAS'!$N$10,$K207=8,'PASSO_3 - PESOS_ALTERNATIVAS'!$O$10,$K207=9,'PASSO_3 - PESOS_ALTERNATIVAS'!$P$10,$K207=10,'PASSO_3 - PESOS_ALTERNATIVAS'!$Q$10) -> 1.12
... 155 more rows

Sheet Listas_suspensas_ocultas (hidden)
B2: NOME_TECNICO_ANVISA | D2: AC | E2: AL | F2: AP | G2: AM | H2: BA | I2: CE | J2: DF | K2: ES | L2: GO | M2: MA | N2: MT | O2: MS | P2: MG | Q2: PA | R2: PB | S2: PR | T2: PE | U2: PI | V2: RJ | W2: RN | X2: RS | Y2: RO | Z2: RR | AA2: SC | AB2: SP | AC2: SE | AD2: TO | AF2: UF
B3: 1,5 ANIDROGLUCITOL | D3: 4HEALTH SERVICOS MEDICOS | E3: 01 06 CENTRO DE SAUDE MANUEL A DE SANTANA | F3: A D ODONTOLOGIA | G3: A D COMPENSA MANAUS | H3: 1A UNIDADE BASICA DE SAUDE DE VALENCA | I3: 2I CONSULTORIA | J3: 11 POR 7 | K3: 3 R SAUDE | L3: 13 NUCLEO REGIONAL DE POLICIA TECNICO CIENTIFICA | M3: A B B SERRA DE CASTRO | N3: 10 COMPANHIA INDEPENDENTE DE BOMBEIROS MILITAR SORRISOMT | O3: 2 SGBM IND CBM MS | P3: 02 CTG CENTRO DE TTO DE FERIDAS E MEDICINA HIPERBARICA | Q3: 5 CENTRO REGIONAL DE SAUDE SAO MIGUEL DO GUAMA | R3: 11 GERENCIA REGIONAL DE SAUDE | S3: 01 REGIONAL DE SAUDE DE PARANAGUA | T3: 3M SAUDE OCULAR | U3: 2 DRS HOSP REGIONAL LEONIDAS MELO | V3: 021 DENTAL ABELARDO BUENO ODONTOLOGIA | W3: 01 UBS COHAB | X3: 1 CRS SES | Y3: MOREIRA KLINGELFUS LTDA | Z3: A A R MELO CIA LTDA | AA3: 20 20 | AB3: 021 DENTAL AVENIDA PAULISTA ODONTOLOGIA | AC3: 10 UNIDADE BASICA DE SAUDE JOSELITA OLINDA DOS SANTOS | AD3: 20 20 SERVICOS MEDICOS TO | AF3: AC
B4: 1-25 DIHIDROXIVITAMINA D3 DE VITAMINA D | D4: A F CIRURGIA PLASTICA | E4: 02 CENTRO DE SAUDE TEOTONIO VILELA | F4: A S LOBATO DE SOUZA | G4: A V MEDICAL | H4: 3 D IMAGEM ODONTOLOGICA DIGITAL | I4: 3 PRISMAS CONSULTORIA | J4: 2A DIAGNOSTICO E LABORATORIO | K4: A C CLINICA FARMACEUTICA | L4: 2 BPM BATALHAO DE POLICIA MILITAR | M4: A C AMORIM DA SILVA | N4: 13 DE MAIO LABORATORIO DE ANALISES CLINICAS | O4: 20 20 SERVICOS MEDICOS | P4: 02JF CENTRO DE OXIGENIOTERAPIA HIPERBARICA | Q4: 50000 00 | R4: 2 SECAO DE CAMBATE A INCENDIO AA32 | S4: 02 REGIONAL DE SAUDE METROPOLITANA | T4: 5SENTIDOS CLINICA MULTIDISCIPLINAR | U4: A C DE MOURA BARROS | V4: 021 DENTAL BANGU | W4: 02 UBS CENTRO | X4: 10 CRS ALEGRETE | Y4: 3 M SERVICOS DE ATENCAO A SAUDE | Z4: A ALMEIDA ALENCAR | AA4: 001 ATUALIZA EXAME MEDICO CNH MUNDOCAR | AB4: 021 DENTAL SAO BENTO ODONTOLOGIA | AC4: 11 UNIDADE BASICA DE SAUDE JOSE ALBINO DOS SANTOS | AD4: A COSTA MARTINS ASSISTENCIA MEDICA | AF4: AL
B5: 17-CETOESTERÓIDES | D5: A P H A C | E5: 2010860 USF 04 C S CLIMERIO W SARMENTO | F5: AB FISIOTERAPIA NEUROFUNCIONAL | G5: ABCN CLINICA MEDICA | H5: 3D DENT | I5: A ALBECYR ALEXANDRINO FEITOSA GONCALVES | J5: 3 ID FISIOTERAPIA | K5: A E ODONTO CENTER LTDA ME | L5: 3 BM | M5: A C FARMA LAB | N5: 20 20 SERVICOS MEDICOS MT | O5: 20 20 SERVICOS MEDICOS S S | P5: 02SABIN | Q5: A A CENTENO NETO S C LTDA | R5: 2 SECAO DE COMBATE A INCENDIO AA33 | S5: 03 REGIONAL DE SAUDE DE PONTA GROSSA | T5: 7 ESTIMULOS TERAPIAS INTEGRADAS | U5: A DENTAL | V5: 021 DENTAL BARRA DA TIJUCA ODONTOLOGIA | W5: 03 UBS UMARI | X5: 100 RACAS CENTRO VETERINARIO | Y5: A B D ASSOCIACAO BENEFICENTE DONADON | Z5: A ASSONI DE SOUZA | AA5: 1 GBM 1 PBM 2 CBM 9 BBM | AB5: 021 DENTAL SAO BERNARDO DO CAMPO | AC5: 12 UNIDADE BASICA DE SAUDE RAIMUNDO SERAFIM DE MENEZES | AD5: A K SERVICOS MEDICOS | AF5: AP
B6: 17-HIDROXIPROGESTERONA | D6: ABIDO ESTITES BUSSADE | E6: 2010879 USF 01 C S DOLORES JATOBA | F6: ABM SAUDE | G6: ABILITY IMPLANTE ODONTOLOGIA ESTETICA | H6: 4 BEC | I6: A B CONSULTORIA E AUDITORIA | J6: 365 PILATES LTDA | K6: A G ALCEBIADES GODOY FISIOTERAPIA | L6: 3A CONSULTORIA E ASSESSORIA SEG E SAUDE NO TRABALHO | M6: A CALM | N6: 3 C | O6: 2E SERVICOS MEDICOS EIRELI | P6: 1 ACADEMIA DA SAUDE DE MONTE AZUL | Q6: A B CLINICA ODONTOLOGICA | R6: 2 SECAO DE COMBATE A INCENDIO AR03 | S6: 04 REGIONAL DE SAUDE DE IRATI | T6: 7 GRUPAMENTO DE BOMBEIROS | U6: A FAVOR DA VIDA E DA ESPERANCA | V6: 021 DENTAL BELFORD ROXO ODONTOLOGIA | W6: 04 UBS MIRANDA | X6: 11 CRS ERECHIM | Y6: A C L SERVICOS DE RADIOLOGIA | Z6: A C R PRESTADORA DE SERVICOS LTDA ME | AA6: 1 GERENCIA DE SAUDE DE SAO MIGUEL DO OESTE | AB6: 021 DENTAL VILA OLIMPIA ODONTOLOGIA | AC6: 13 UNIDADE BASICA DE SAUDE JOSEFA CATARINA DA SOLIDADE | AD6: A L CUNHA VIEIRA ME ARAGUAINA | AF6: AM
B7: 1-HIDROXIPIRENO | D7: ABRAVAC | E7: 2010887 UMS ELPIDIO CAVALCANTE DE ALBURQUERQUE | F7: ACQUALITYBIO | G7: ABRIGO MOACYR ALVES | H7: 5S GESTAO EM SAUDE | I7: A F B M SERVICOS MEDICOS | J7: 4M ODONTOLOGIA LTDA | K7: A J GUERRA CIRURGIA GERAL E AVANCADA | L7: 41 BIMTZ CONSULTORIO MEDICO UNIDADE DE JATAI | M7: A DE J B SILVA | N7: 4HEALTH SERVICOS MEDICOS | O7: 4 SUBGRUPAMENTO DE BOMBEIROS CBMMS | P7: 20 20 SERVICOS MEDICOS DIVINOPOLIS | Q7: A B E SERVICOS MEDICOS | R7: A M E CUIDADORES | S7: 05 REGIONAL DE SAUDE DE GUARAPUAVA | T7: 9 GRUPAMENTO DE BOMBEIROS | U7: A G CKINICA MEDICA LTDA ME | V7: 021 DENTAL BONSUCESSO | W7: 05 UBS LAGOA DO POCO | X7: 12 CRS SANTO ANGELO | Y7: A L SERVICOS DE ESTETICA LTDA | Z7: A DA S S FEITOSA EIRELI | AA7: 11 GERSA GERENCIA REGIONAL DE SAUDE | AB7: 1000TON X | AC7: 14 UNIDADE BASICA DE SAUDE LAURA MARIA DE JESUS | AD7: ABDO HENRIQUE ARAUJO ANDRADE CONSULTAS LTDA | AF7: BA
B8: 25 HIDROXIVITAMINA D3 DA VITAMINA D | D8: ACADEMIA AMPLIADA DE SAUDE | E8: 2010895 USF 03 DR ARNALDO CAVALCANTE MAGALHAES | F8: ADACHI OFTALMOLOGIA | G8: AC COR CARDIOLOGIA E EXERCICIO | H8: A 1 AMBULANCIA AVANCADA | I8: A G S LABORATORIIO | J8: A ATRIOS CARDIOLOGIA E ESPECIALIDADES MEDICAS | K8: A J SERVICOS MEDICOS | L8: 4HEALTH SERVICOS MEDICOS | M8: A FURTADO SA SERVICOS MEDICOS | N8: 66 BATALHAO DE INFANTARIA MOTORIZADO | O8: A B A | P8: 2CARE ASSISTENCIA DOMICILIAR | Q8: A DE M SERRAZIN PARENTE ME | R8: A N A L I S I S MANGABEIRA 02 | S8: 06 REGIONAL DE SAUDE DE UNIAO DA VITORIA | T8: A B NASCIMENTO GONZAGA | U8: ACADEMEIA DA SAUDE CIDADE NOVA IPIRANGA | V8: 021 DENTAL CAMPO GRANDE | W8: 06 UBS NOVO HORIZONTE I | X8: 13 CRS SANTA CRUZ DO SUL | Y8: A M DE ROSSI | Z8: A DA S S FEITOSA EIRELI | AA8: 14 GERENCIA DE SAUDE DE IBIRAMA | AB8: 10SEGREMOCOES EMERGENCIAS MEDICAS | AC8: 15 UNIDADE BASICA DE SAUDE JOSAFA DIAS DA COSTA | AD8: ACADEMIA DA MELHOR IDADE DE ARAGUANA | AF8: CE
B9: 5-ALFA-DIHIDROTESTOSTERONA 5aDHT | D9: ACADEMIA BASICA DE SAUDE | E9: 2010909 USF 02 AMARO CLAUDINO DOS SANTOS | F9: ADACHI OFTALMOLOGIA | G9: ACADEMIA DA SAUDE | H9: A 1 BASICA BASE DESCENTRALIZADA SAMU 192 UNA | I9: A I ODONTOLOGIA ESPECIALIZADA | J9: A B ODONTOLOGIA ESPECIALIZADA | K9: A L PEREIRA MARTINS | L9: 4HEALTH SERVICOS MEDICOS LTDA EPP | M9: A L C MUINOS CIA LTDA | N9: 7 CIA DE BOMBEIRO MILITAR DE ALTA FLORESTA | O9: A C S MED | P9: 2M LAB | Q9: A G S SERVICOS MEDICOS | R9: ABA INTERVENCOES | S9: 07 REGIONAL DE SAUDE DE PATO BRANCO | T9: A C CRUZ VIEGAS DA SILVA EIRELI | U9: ACADEMIA A SAUDE VITORIO ROSA DE OLIVEIRA | V9: 021 DENTAL CAXIAS | W9: 07 UBS ITAPERUBU | X9: 14 CRS SANTA ROSA | Y9: A N M SERVICOS MEDICOS | Z9: A DE HOLANDA LIMA ME | AA9: 15 GERENCIA DE SAUDE BLUMENAU | AB9: 11CARE | AC9: A E SERVICOS MEDICOS | AD9: ACADEMIA DA SAUDE | AF9: DF
B10: Abaixador de Lingua | D10: ACADEMIA DA SAUDE AGUINALDO NUNES DE OLIVEIRA | E10: 2010917 USF 05 MARIA CAVALCANTE DE ALMEIDA | F10: ADIVALDO VITOR BARROS DE OLIVEIRA JUNIOR | G10: ACADEMIA DA SAUDE CHARLIE BROWN | H10: A 2 AMBULANCIA AVANCADA REGIONAL | I10: A L MEDICAL SERVICES | J10: A C CLINICA ODONTOLOGICA | K10: A M SAUDE | L10: 6 BATALHAO BOMBEIRO MILITAR | M10: A L O CAMPOS | N10: 747 CONSULTORIO ODONTOLOGICO | O10: A E B | P10: 2MF CONSULTORIOS SOCIEDADE SIMPLES | Q10: A I | R10: ABILIO DE AGUIAR SERVICOS DE DIAGNOSTICO | S10: 08 REGIONAL DE SAUDE DE FRANCISCO BELTRAO | T10: A C MEDICINA | U10: ACADEMIA AV SEVERO EULAIO | V10: 021 DENTAL CINELANDIA | W10: 08 UBS NOVO PARAISO MANOEL CAMILO BARROSO | X10: 15 COORDENADORIA REGIONAL DE SAUDE | Y10: A RISSE DA SILVA ME | Z10: A F NOGUEIRA DIAS | AA10: 20 GERSA TUBARAO | AB10: 192 EMERGENCIA ARTUR NOGUEIRA | AC10: ABCLIN LABORATORIO DE ANALISES CLINICA | AD10: ACADEMIA DA SAUDE | AF10: ES
B11: Abre-Boca | D11: ACADEMIA DA SAUDE BAIRRO SAO FRANCISCO | E11: A1 CONSULTORIOS E CIRURGIA PLASTICA | F11: ADRIANA VERONICA GATO DA SILVA | G11: ACADEMIA DA SAUDE DE MAUES | H11: A 2 BASICA BASE DESCENTRALIZADA SAMU 192 UNA | I11: A M CLINICA ODONTOLOGICA LTDA MES | J11: A C DE ALMEIDA IPIB ODONTOLOGIA | K11: A P RIBEIRO VIDAPSI ESPACO TERAPEUTICO DE VITORIA | L11: 7 SENTIDOS ESPACO TERAPEUTICO EIRELI | M11: A M E | N11: 8 COMPANHIA INDEPENDENTE DO CORPO DE BOMBEIROS MILITAR | O11: A P A E BRASILANDIA MS | P11: 2R SAUDE | Q11: A K | R11: ABRANTES SAUDE | S11: 09 REGIONAL DE SAUDE DE FOZ DO IGUACU | T11: A C S SAUDE | U11: ACADEMIA BAIRRO ESCALVADO | V11: 021 DENTAL COPACABANA | W11: 09 UBS UNA | X11: 16 CRS LAJEADO | Y11: A RODRIGUES DO NASCIMENTO | Z11: A L DE ANDRADE AZEVEDO LTDA | AA11: 22 GERSA | AB11: 1COR | AC11: ABEVID | AD11: ACADEMIA DA SAUDE | AF11: GO
B12: Absorvente de CO2 | D12: ACADEMIA DA SAUDE DJALMA NUNES DA ROCHA | E12: A2 ODONTOLOGIA | F12: ADRIANO FERREIRA DO CARMO | G12: ACADEMIA DA SAUDE MARIA EMILIA DE SOUZA SANTOS | H12: A BIOQUIMIKA FARMACIA DE MANIPULACAO | I12: A ODONTO IMAGENS | J12: A CLINICA ISO CARDIOLOGIA E EXAMES | K12: A R ASSISTENCIA MEDICA | L12: A A SERVICOS MEDICOS | M12: A M E | N12: A C A DE BRANCO ODONTOLOGIA | O12: A3 SAUDE DOMICILIAR | P12: 30 BATALHAO DE PMMG SECAO DE ASSISTENCIA A SAUDE | Q12: A M TUJI SERVICOS ODONTOLOGICOS | R12: ABRIGO DE IDOSOS | S12: 10 REGIONAL DE SAUDE DE CASCAVEL | T12: A CLINICA REABILIT | U12: ACADEMIA BULUNGAO | V12: 021 DENTAL FLAMENGO ODONTOLOGIA | W12: 10 UBS BOSQUE DAS PALMEIRAS | X12: 17 CRS IJUI | Y12: A S L | Z12: A P VITTI PAULINO EIRELI ME | AA12: 23 GERENCIA DE SAUDE | AB12: 2 NEWTON JOSE BORBA CANICOBA | AC12: AC ODONTO SAUDE | AD12: ACADEMIA DA SAUDE | AF12: MA
B13: ABSORVENTE ODONTOLÓGICO | D13: ACADEMIA DA SAUDE DO SANTO AFONSO | E13: A3K ODONTOLOGIA | F13: AFC SAUDE | G13: ACADEMIA DA SAUDE RAIMUNDO APARECIDO MARINHO | H13: A BIOQUIMIKA FARMACIA DE MANIPULACAO | I13: A P A E | J13: A CLINICA VIVER CLINICA DE IMAGENS MEDICAS | K13: A R MARVILA CLINICA MEDICA ME | L13: A C F MEDICAL | M13: A MED | N13: A C D J SERVICOS MEDICOS LTDA | O13: AACC | P13: 3D SAUDE LTDA | Q13: A MAO COOPERADORA | R13: ACADAMIA DA SAUDE DO SITIO GURITIBA | S13: 105 ODONTOLOGIA | T13: A E M SAUDE | U13: ACADEMIA COMPASA | V13: 021 DENTAL FREGUESIA ODONTOLOGIA | W13: 11 UBS GUARIBA | X13: 18CRS OSORIO | Y13: AAVIN | Z13: ADRIANA SILVEIRA ARAUJO DIAS MENEZES | AA13: 25 GERSA | AB13: 2 PILARES TERAPEUTICOS | AC13: AC ODONTOLOGIA ESTETICA LTDA ME | AD13: ACADEMIA DA SAUDE | AF13: MT
B14: Absorventes Cirurgicos | D14: ACADEMIA DA SAUDE FLORLIRIO PEREIRA LUSTOSA | E14: AADI | F14: AFETO CORPORE ESTETICA | G14: ACADEMIA DE SAUDE DE GUAJARA | H14: A BOTICA MAGISTRAL LTDA | I14: A P L RAMOS | J14: A MAIS MEDICINA DIAGNOSTICA UNIDADE ASA SUL | K14: A RACI | L14: A D ODONTOLOGIA | M14: A P A E DE SANTA HELENA MA | N14: A C SERVICOS MEDICOS | O14: AAGD ASS DE PAIS E AMIG DOS AUTISTAS DA GRAND DDOS | P14: 3MPTRANS | Q14: A N R MEDICOS | R14: ACADAMIA DE SAUDE NIVALDO PEIXOTO MARTINS | S14: 11 REGIONAL DE SAUDE DE CAMPO MOURAO | T14: A E M SAUDE LTDA ME | U14: ACADEMIA DA SAUDE | V14: 021 DENTAL ILHA DO GOVERNADOR | W14: 12 UBS NOVO HORIZONTE II | X14: 2 CRS | Y14: ABA CENTRO ESPECIALIZADO EM TERAPIA COMPORTAMENTAL | Z14: AKEL SALOMAO LTDA ME | AA14: 2D SERVICOS MEDICOS LTDA | AB14: 2 POSTO SAUDE DA FAMILIA NASSIMA BUSSADA ROMERO | AC14: ACACIA MARIA SANTOS MENEZES | AD14: ACADEMIA DA SAUDE | AF14: MS
B15: Acelerador Linear | D15: ACADEMIA DA SAUDE LUIZ BERNARDO RAMOS | E15: AAMAPE | F15: ALBERTO BRITO CALLINS | G15: ACADEMIA DE SAUDE DE NOVA OLINDA DO NORTE | H15: A CLINICA DE FISIOTERAPIA | I15: A R RICARTE | J15: A MAIS MEDICINA DIAGNOSTICA UNIDADE SUDOESTE | K15: A S CENTRO ODONTOLOGICO | L15: A M CLINICA ODONTOLOGICA | M15: A S N CABRAL ME | N15: A D SERVICOS MEDICOS ESPECIALIZADOS | O15: AAVC | P15: 3S SOLUCAO SERVICO E SAUDE | Q15: A P MED SERVICOS MEDICOS | R15: ACADEMIA ADRIANA MELO | S15: 12 REGIONAL DE SAUDE DE UMUARAMA | T15: A G MEDICOS ASSOCIADOS LTDA | U15: ACADEMIA DA SAUDE | V15: 021 DENTAL MADUREIRA | W15: 3D STUDIO | X15: 2 CRS FREDERICO WESTPHALEN | Y15: ABEK SAUDE | Z15: ALBUQUERQUE E ROSSI LTDA | AA15: 2O GERSA | AB15: 2 V SOLUCOES PARA PESSOAS | AC15: ACACIA VIANA MARTINS | AD15: ACADEMIA DA SAUDE | AF15: MG
B16: Acessório de Acetábulo para artroplastia de quadril | D16: ACADEMIA DA SAUDE MANOEL FERNANDES VIEIRA | E16: AAPPE | F16: ALBUQUERQUE ASSOCIADOS S S | G16: ACADEMIA DE SAUDE DO BAIRRO VILA PARAISO | H16: A E CENTRO DE MEDICINA AVANCADA | I16: A S LOIOLA RADIOLOGIA ME | J16: A MEDICINA DIAGNOSTICA SANTA LUZIA | K16: A V BINDA MEDPREV LTDA | L16: A O CONSULTORIA MEDICA | M16: ABA KIDS | N16: A M F BARROSO EIRELI | O16: ABDUL AHAD SERVICOS MEDICOS LTDA | P16: 3S SOLUCOES SERVICOS EM SAUDE LTDA | Q16: A P SOARES | R16: ACADEMIA DA SAUDE | S16: 13 REGIONAL DE SAUDE DE CIANORTE | T16: A J CONSULTORIO ODONTOLOGICO | U16: ACADEMIA DA SAUDE | V16: 021 DENTAL MEIER | W16: 3M ASSISTENCIA PSICOSSOCIAL E CAPACITACAO EM ABA | X16: 2020 OFTALMOLOGIA | Y16: ABEK SAUDE | Z16: ALESSANDRA DOS SANTOS SILVA | AA16: 34 SDR | AB16: 2020 SERVICOS MEDICOS | AC16: ACACIA VIRGINIA LIMA DA ROCHA SEIXAS | AD16: ACADEMIA DA SAUDE | AF16: PA
B17: ACESSÓRIO PARA AMNIOSCÓPIO | D17: ACADEMIA DA SAUDE MARIA DAS DORES DE PAULA | E17: AAPPE | F17: ALERGO IMUNO SAUDE | G17: ACADEMIA DE SAUDE DO MUNICIPIO DE ALVARAES | H17: A FORMULA | I17: A V SERVICOS MEDICOS | J17: A SANTA HELENA | K17: A V LOPES SERVICOS MEDICOS ME | L17: A S CLINICA MEDICA | M17: ABIGAIL DE OLIVEIRA SOUSA CUNHA | N17: A M M MEDICAL | O17: ABEGAO E FABRI LTDA | P17: 4FISIO ATENCAO DOMICILIAR | Q17: A P V CONSULTORIO ODONTOLOGICO | R17: ACADEMIA DA SAUDE | S17: 14 REGIONAL DE SAUDE DE PARANAVAI | T17: A M PINHEIRO DE ALENCAR EIRELI | U17: ACADEMIA DA SAUDE | V17: 021 DENTAL NITEROI | W17: 3M CLINICA DE ASSISTENCIA PSICOSSOCIAL E A SAUDE INTERVENCA | X17: 2R SERVICOS MEDICOS LTDA | Y17: ABV SERVICOS MEDICOS | Z17: ALESSANDRA GUIMARAES MARINHO | AA17: 3A FISIOTERAPIA E TERAPIAS ALTERNATIVAS | AB17: 2CARE | AC17: ACADEMA DE SAUDE | AD17: ACADEMIA DA SAUDE | AF17: PB
B18: Acessorio Para Aparelho de Micro-Abrasao | D18: ACADEMIA DA SAUDE PARQUE DO TUCUMA | E18: AAPPE | F18: AMAPA NUTRI | G18: ACADEMIA DE SAUDE DR RAAD | H18: A FORMULA | I18: A3B4 ASSISTENCIA ODONTOLOGICA LTDA | J18: A2 PSICOLOGIA CULTURA E LAZER NAS EMPRESAS ADMINISTRACAO | K18: AA NOVA OPCAO FISIOTERAPIA | L18: A STETICA | M18: ACADEMIA DA SAUDE | N18: A M PSICOLOGIA HOSPITALAR | O18: ABRACE CLINICA COMPORTAMENTAL | P18: 4PZ OFTALMOLOGIA LTDA | Q18: A R V SERVICOS MEDICOS | R18: ACADEMIA DA SAUDE | S18: 15 REGIONAL DE SAUDE MARINGA | T18: A M SAUDE | U18: ACADEMIA DA SAUDE | V18: 021 DENTAL NORTE SHOPPING | W18: 3S SOLUCOES | X18: 3 CRS PELOTAS | Y18: ACADEMIA DA SAUDE | Z18: ALEXANDRE CARNEIRO FREITAS | AA18: 3M SAUDE | AB18: 2CSJ MEDICOS ASSOCIADOS 01 10 22 | AC18: ACADEMIA DA SAUDE | AD18: ACADEMIA DA SAUDE AO AR LIVRE | AF18: PR
B19: Acessório para componentes femorais - artroplastia de joelho | D19: ACADEMIA DA SAUDE PRACA ANTONIO GUILHERME | E19: AAPPE ORTESES E PROTESES | F19: AMAPAVIDA ANALISES CLINICAS | G19: ACESSO SAUDE MANAUS | H19: A FORMULA | I19: A4 CLINICA ODONTOLOGICA | J19: AA M ISRAEL SAUDE | K19: AASERDEQ NV | L19: A2 OTORRINOLARINGOLOGIA | M19: ACADEMIA DA SAUDE | N19: A P F TOTORA | O19: ABRACE SERVICOS HOSPITALARES | P19: 60 FILIAL 4 | Q19: A3 SAUDE | R19: ACADEMIA DA SAUDE | S19: 16 REGIONAL DE SAUDE DE APUCARANA | T19: A MEDICINA DIAGNOSTICA | U19: ACADEMIA DA SAUDE | V19: 021 DENTAL NOVA IGUACU | W19: A E C FONAUDIOLOGIA | X19: 3MH SERVICOS MEDICOS | Y19: ACADEMIA DA SAUDE | Z19: ALEXANDRO POLICARPO DE SA | AA19: 7 REGIONAL DE SAUDE | AB19: 2D MACEDO SERVICOS MEDICOS RIBEIRAO PRETO | AC19: ACADEMIA DA SAUDE | AD19: ACADEMIA DA SAUDE BEIRA RIO | AF19: PE
B20: Acessório para componentes tibiais - artroplastia de joelho | D20: ACADEMIA DA SAUDE RICIOTT TAMBURINI | E20: ACADAMIA DA SAUDE DE BRANQUINHA | F20: AMARAL COSTA MEDICINA DIAGNOSTICA | G20: ADOLFO FERREIRA DO NASCIMENTO | H20: A FORMULA | I20: AABM SERVICOS DE SAUDE UNIPESSOAL | J20: AA M ISRAEL SAUDE | K20: ABDO MAGNAGO DE MATTOS | L20: AA ORTHOWAY CLINICA DE ORTODONTIA E ORTOPEDIA FACIAL | M20: ACADEMIA DA SAUDE | N20: A P SALAMONI ME | O20: ABRAM MS | P20: 60 SAUDE | Q20: ABM | R20: ACADEMIA DA SAUDE | S20: 17 REGIONAL DE SAUDE DE LONDRINA | T20: A MEDICINA DIAGNOSTICA | U20: ACADEMIA DA SAUDE | V20: 021 DENTAL RECREIO SHOPPING | W20: A F S SORRISO | X20: 4 CRS SANTA MARIA | Y20: ACADEMIA DA SAUDE | Z20: ALINE AMARO DAMASCENO | AA20: 8 GERENCIA REGIONAL DE SAUDE CAMPOS NOVOS | AB20: 2L SERVICOS MEDICOS | AC20: ACADEMIA DA SAUDE | AD20: ACADEMIA DA SAUDE CARLOS ALBERTO MARTINS | AF20: PI
B21: Acessorio Para Estetica Dental | D21: ACADEMIA DE SANTA ROSA DO PURUS | E21: ACADEMIA BENICIO DE PEREIRA LIMA | F21: AMBULATORIO PADRE LUIZ MONZA | G21: ADROALDO TARCISO FERREIRA DO NASCIMENTO | H21: A L ODONTOLOGIA | I21: AACE ASSOCIACAO DE ASSISTENCIA A CRIANCA EXCEPCIONAL | J21: AA M ISRAEL SAUDE | K21: ABILIO CORREA DE LIMA | L21: AAESI | M21: ACADEMIA DA SAUDE AMPLIADA | N21: A R SPINETTI | O21: ABRAMASTACIO | P21: 60 SAUDE | Q21: ABRIGO ESPECIAL CALABRIANO URE REI | R21: ACADEMIA DA SAUDE | S21: 18 REGIONAL DE SAUDE DE CORNELIO PROCOPIO | T21: A MEDICINA DIAGNOSTICA | U21: ACADEMIA DA SAUDE ACS INACIA FERRAZ DA SILVA | V21: 021 DENTAL SAO JOAO DE MERITI ODONTOLOGIA | W21: A SAUDE | X21: 4DCLINIC | Y21: ACADEMIA DA SAUDE DE JARU | Z21: ALVES SOUZA LTDA | AA21: A 2 ODONTOLOGICA | AB21: 2N CLINICA ODONTOLOGICA ESPECIALIZADA CERTA | AC21: ACADEMIA DA SAUDE | AD21: ACADEMIA DA SAUDE CARLOS ANTONIO DA SILVA | AF21: RJ
B22: Acessórios para Cirurgia Oftalmológica | D22: ACADEMIA DE SAUDE | E22: ACADEMIA DA SAUDE | F22: ANA CELENE CARVALHO DE SOUSA | G22: AGENOR JEAN PINTO NETO | H22: A M I ASSISTENCIA MEDICA INFANTIL | I22: AB ODONTOLOGIA | J22: AAB FISIOTERAPIA | K22: ABREU MARTINS SERVICOS MEDICOS | L22: AAVE | M22: ACADEMIA DA SAUDE AUGUSTO CRUZ | N22: A STEFFENS | O22: AC PSIC ANALISES EIRELI | P22: 7 CLINICA | Q22: ABRIGO JOAO PAULO II | R22: ACADEMIA DA SAUDE | S22: 19 REGIONAL DE SAUDE DE JACAREZINHO | T22: A MEDICINA DIAGNOSTICA | U22: ACADEMIA DA SAUDE AEROPORTO | V22: 021 DENTAL TAQUARA | W22: A V LOPES | X22: 5 CRS CAXIAS DO SUL | Y22: ACADEMIA DE SAUDE AILTON SILAS QUIRINO | Z22: AMANDA DA S SOARES | AA22: A BRAUN ORTOPEDIA E TRAUMATOLOGIA | AB22: 2ORTO ODONTOLOGIA LIMEIRA | AC22: ACADEMIA DA SAUDE ADELMO DIAS DE ALMEIDA | AD22: ACADEMIA DA SAUDE CARLOS EDUARDO FAVARATO | AF22: RN
B23: Acessorios Para Endoscopia | D23: ACADEMIA DE SAUDE | E23: ACADEMIA DA SAUDE | F23: ANA PATRICIA LIMA DAS NEVES CHAVES | G23: AIO INSTITUTO DE CANCER DE MANAUS | H23: A M O FISIOTERAPIA | I23: ABA | J23: AB TRAN | K23: ABS MEDICINA | L23: AAZ SERVICOS MEDICOS | M23: ACADEMIA DA SAUDE BAIRRO MIGUEL FERNANDES | N23: AAESMC AMB DE ATENCAO ESP A SAUDE DA MULHER E DA CRIANCA | O23: ACADEMIA DA SAUDE | P23: 99 SAUDE | Q23: ABSJ | R23: ACADEMIA DA SAUDE | S23: 2 C S CONSULTORIA | T23: A MEDICINA DIAGNOSTICA | U23: ACADEMIA DA SAUDE ATLETA EDILSON DE SOUSA PEREIRA | V23: 021 DENTAL TIJUCA | W23: A2ODONTO | X23: 6 CRS PASSO FUNDO | Y23: ACADEMIA DE SAUDE ANIZIA BORGES DO VALE | Z23: AMORIM E KIMAK LTDA | AA23: A CASA DO PET | AB23: 3 B OFTALMOLOGIA | AC23: ACADEMIA DA SAUDE DA FAMILIA | AD23: ACADEMIA DA SAUDE DE ALVORADA | AF23: RS
B24: Acessorios Para Esterilizacao de Produtos | D24: ACADEMIA DE SAUDE AYDER LIMA DA SILVA | E24: ACADEMIA DA SAUDE | F24: ANAH CLARA MARTINS VENTURA MAGALHAES | G24: ALAIM CARNEIRO DA SILVA PORTELA | H24: A M O FISIOTERAPIA | I24: ABDEMIR MAIA | J24: ABBIA | K24: ABS SERVICOS MEDICOS S S LTDA | L24: ABADIA APARECIDA AZEVEDO DOS SANTOS | M24: ACADEMIA DA SAUDE BANANAL | N24: AB CLINICA DE SAUDE | O24: ACADEMIA DA SAUDE | P24: A A ARAUJO ODONTOLOGIA EIRELI | Q24: AC DIAGNOSTICOS LTDA | R24: ACADEMIA DA SAUDE | S24: 20 REGIONAL DE SAUDE DE TOLEDO | T24: A MEDICINA DIAGNOSTICA | U24: ACADEMIA DA SAUDE BAIRRO DE FATIMA | V24: 021 DENTAL VILA DA PENHA | W24: ABA CLINIC NATAL | X24: 7 CRS BAGE | Y24: ACADEMIA DE SAUDE BNH | Z24: ANA CLAUDIA CAMPOS COSTA | AA24: A G MED | AB24: 3 COLINAS ODONTOLOGIA | AC24: ACADEMIA DA SAUDE DE LAGARTO | AD24: ACADEMIA DA SAUDE DE ANGICO | AF24: RO
B25: ACESSÓRIOS PARA LAVADORA DESINFECTORA | D25: ACADEMIA DE SAUDE DE MARECHAL THAUMATURGO | E25: ACADEMIA DA SAUDE 1 | F25: AQUAFISIO | G25: ALDEMIR ALVES DE FREITAS | H25: A M S BRETZ SERVICOS MEDICOS | I25: ABDIAS ARAUJO COSTA | J25: ABI IMPLANTES | K25: ABSTON BOF | L25: ABADIA LUIZA DE SOUZA | M25: ACADEMIA DA SAUDE BARJONAS LOBAO | N25: ABACS | O25: ACADEMIA DA SAUDE | P25: A A P E C | Q25: ACADEMIA DA SAUDE | R25: ACADEMIA DA SAUDE AGRICIO ROCHA DA SILVA | S25: 21 REGIONAL DE SAUDE DE TELEMACO BORBA | T25: A MEDICINA DIAGNOSTICA DERBY | U25: ACADEMIA DA SAUDE BATATEIRA | V25: 1 POLICLINICA DO CBMERJ | W25: ABD MEDICAL LTDA ME | X25: 8 CRS CACHOEIRA DO SUL | Y25: ACADEMIA DE SAUDE JDS DOS MIGRANTES | Z25: ANA L DE ANDRADE AZEVEDO LTDA | AA25: A J ANESTESIA | AB25: 3 K SERVICOS MEDICOS LTDA EPP | AC25: ACADEMIA DA SAUDE DE MARUIM | AD25: ACADEMIA DA SAUDE DE AXIXA DO TOCANTINS BIODIESEL | AF25: RR
B26: Acessórios para Mesa Cirúrgica | D26: ACADEMIA DE SAUDE DE VILA RESTAURACAO | E26: ACADEMIA DA SAUDE 2 | F26: ARFISE | G26: ALEXANDRA MARIA SOUSA VALENTE | H26: A M SERVICOS MEDICOS | I26: ABEL TENORIO | J26: ABIGALIL ODONTOLOGIA HUMANIZADA AOH | K26: ACADEMIA DA SAUDE | L26: ABDALA E TAVARES | M26: ACADEMIA DA SAUDE BEIRA RIO | N26: ABDO HALEK SALEH ABDALLA | O26: ACADEMIA DA SAUDE | P26: A A P E C | Q26: ACADEMIA DA SAUDE | R26: ACADEMIA DA SAUDE BENTO MESSIAS TRINDADE | S26: 22 REGIONAL DE SAUDE DE IVAIPORA | T26: A MEDICINA DIAGNOSTICA DOMINGOS FERREIRA | U26: ACADEMIA DA SAUDE BELO HORIZONTE | V26: 2J ANESTESISTAS | W26: ABJ DESENVOLVIMENTO PROFISSIONAL | X26: 9 COORDENADORIA REGIONAL DE SAUDE | Y26: ACAL ODONTOLOGIA | Z26: ANA LUIZA DE A AZEVEDO LTDA | AA26: A K LEGACY CONSULTORIA E TREINAMENTO | AB26: 3 POSTO SAUDE DA FAMILIA VILA AMERICANA | AC26: ACADEMIA DA SAUDE ENEDINA GONCALVES DE ANDRADE | AD26: ACADEMIA DA SAUDE DE COUTO MAGALHAES | AF26: SC
B27: Acessorios para Ostomia | D27: ACADEMIA DE SAUDE JOSE LEONCIO | E27: ACADEMIA DA SAUDE CENTRO | F27: BARLETA DIAGNOSTICOS | G27: ALLEN ANTONIO ONO DE SOUZA JUNIOR | H27: A MEDICINA DIAGNOSTICA CABULA | I27: ABEMP | J27: ABORD LABORATORIO CLINICO | K27: ACADEMIA DA SAUDE | L27: ABDSC | M27: ACADEMIA DA SAUDE CAEMA | N27: ABILIO MARQUES DA SILVA | O27: ACADEMIA DA SAUDE | P27: A APAE | Q27: ACADEMIA DA SAUDE | R27: ACADEMIA DA SAUDE BSR | S27: 3A SERVICOS MEDICOS LTDA | T27: A MEDICINA DIAGNOSTICA ESPINHEIRO | U27: ACADEMIA DA SAUDE CDA CENTRO | V27: 2R AUDITORIA MEDICA | W27: ABL SERVICOS MEDICOS LTDA | X27: A A DE AVILA COSTA ENFERMAGEM | Y27: ACQUA MED | Z27: ANDRADE ANDRADE PSICOLOGIA LTDA | AA27: A L SERVICOS MEDICOS LTDA | AB27: 3A CONSULTORIO DE PSICOLOGIA PSICOTERAPIA E PSICANALISE | AC27: ACADEMIA DA SAUDE GABRIEL DE SOUZA FILHO | AD27: ACADEMIA DA SAUDE DE DARCINOPOLIS | AF27: SP
B28: Acessorios Para Radiocirurgia | D28: ACADEMIA DE SAUDE LOURIVAL ALVES FILHO | E28: ACADEMIA DA SAUDE CICERO SANTOS | F28: BARROS MED | G28: ALLERGO CENTER MANAUS | H28: A MEDICINA DIAGNOSTICA CABULA VI | I28: ABIPS | J28: ABR CLINICA DE NUTRICAO | K28: ACADEMIA DA SAUDE ANGELICA APARECIDA ALVES PEREIRA SANTOS | L28: ABEAS | M28: ACADEMIA DA SAUDE CIDADE DE BEQUIMAO | N28: ABO | O28: ACADEMIA DA SAUDE | P28: A B MOL SAUDE | Q28: ACADEMIA DA SAUDE | R28: ACADEMIA DA SAUDE CASSERENGUE | S28: 3G LONDRINA CLINICA DE SAUDE OCUPACIONAL | T28: A R MENEZES SERVICOS MEDICOS E ODONTOLOGICOS | U28: ACADEMIA DA SAUDE CLAUDIONOR GOMES SOUSA | V28: 3 POLICLINICA MILITAR DO CORPO DE BOMBEIROS DO ESTADO DO RJ | W28: ABNSC OFICINA ORTOPEDICA | X28: A BELLETTI FIGUEIRA ENFERMAGEM | Y28: ACUSFISIO | Z28: ANDRADE E MOTA LTDA | AA28: A M ASSISTENCIA MEDICA LTDA | AB28: 3B OFTALMOLOGIA | AC28: ACADEMIA DA SAUDE JOAO FERREIRA DOS SANTOS | AD28: ACADEMIA DA SAUDE DE FILADELFIA | AF28: SE
B29: Acessórios para Radiologia | D29: ACADEMIA DE SAUDE LUCIMAR AMORIM BARBARY | E29: ACADEMIA DA SAUDE CLUBE DO POVO | F29: BELARMINO ODONTOLOGIA | G29: ALONSO BALAREZO GAVIRIA | H29: A MEDICINA DIAGNOSTICA COSTA AZUL | I29: ABNER RODRIGUES CALISTO JUNIOR | J29: ABRACI DF | K29: ACADEMIA DA SAUDE ANTONIO CEZAR DO NASCIMENTO | L29: ABEL MARTINS NETO | M29: ACADEMIA DA SAUDE DA MATRIZ | N29: ABREU BORBA SAUDE | O29: ACADEMIA DA SAUDE | P29: A BOALI LTDA | Q29: ACADEMIA DA SAUDE | R29: ACADEMIA DA SAUDE CENTRO | S29: 3N SERVICOS DE SAUDE | T29: A V P FISIOTERAPIA | U29: ACADEMIA DA SAUDE DA AUCAM | V29: 3D DENTAL STUDIO | W29: ABRACE CENTRO ESPECIALIZADO EM DESENVOLV INFANTIL | X29: A BORCHARTT TECNICO EM PROTESE DENTARIA | Y29: ADELIA PIRES DE MORAES FERREIRA | Z29: ANDRE FARIA E PESSOA LIMITADA | AA29: A M S PROTESE DENTARIA | AB29: 3D ODONTOLOGIA INTEGRADA LTDA | AC29: ACADEMIA DA SAUDE MARCOS FREIRE II | AD29: ACADEMIA DA SAUDE DE ITAPORA | AF29: TO
B30: Acessorios Proteticos e Ortopedicos Externos | D30: ACADEMIA DE SAUDE MARIA DA LUZ | E30: ACADEMIA DA SAUDE CONJUNTO OTAVIO GOMES | F30: BELO SORISSO CONSULTORIO ODONTOLOGICO | G30: ALTAMIR DA COSTA BASTOS | H30: A MEDICINA DIAGNOSTICA E DIAGNOSON | I30: ABO CE ASSOCIACAO BRASILEIRA DE ODONTOLOGIA | J30: ABSOLUTE ODONTOLOGIA | K30: ACADEMIA DA SAUDE BEIRA RIO COLATINA | L30: ABELARDO ANTONIO ABRANTES | M30: ACADEMIA DA SAUDE DA RAPOSA | N30: ABTR CLINICA MEDICA | O30: ACADEMIA DA SAUDE | P30: A C CLINICA MEDICA SS | Q30: ACADEMIA DA SAUDE | R30: ACADEMIA DA SAUDE CHICA DE MANO | S30: 4MINDS SAUDE LTDA | T30: A W PRO VISAO | U30: ACADEMIA DA SAUDE DA OLARIA | V30: 3D DIAGNOSE | W30: ABREU OFTALMOLOGIA | X30: A BRAGA PIOTROWICZ RESTANO | Y30: ADMINISTRACAO DE SETOR DE ENDEMIAS | Z30: ANDREIA PEREIRA TAVARES | AA30: A M S T ASSESSORIA E SERVIOS | AB30: 3D RADIOLOGIA | AC30: ACADEMIA DA SAUDE MARIA GONCALVES DOS SANTOS NASCIMENTO | AD30: ACADEMIA DA SAUDE DE PINDORAMA
B31: Acessórios radiológicos | D31: ACADEMIA DE SAUDE MARILIA VIEIRA | E31: ACADEMIA DA SAUDE DE ANADIA | F31: BELODENTE | G31: ALVARO DIAS MARTINS JUNIOR | H31: A MEDICINA DIAGNOSTICA GRACA | I31: ABRAHAO CAVALCANTE GOMES DE SOUZA CARVALHO | J31: AC CLINICA | K31: ACADEMIA DA SAUDE DO BAIRRO AYRTON SENNA | L31: ABF SAUDE RENAL | M31: ACADEMIA DA SAUDE DE ARAGUANA | N31: AC FENIX CONSULTORIA RH | O31: ACADEMIA DA SAUDE AMANDINA | P31: A C G SERVICOS MEDICOS LTDA | Q31: ACADEMIA DA SAUDE | R31: ACADEMIA DA SAUDE DA SEDE DE SANTA CRUZ | S31: 4S FONOAUDIOLOGIA | T31: AA SAUDE E ODONTOLOGIA | U31: ACADEMIA DA SAUDE DE ALTOS GENTIL LEMOS | V31: 3D DIAGNOSE | W31: ABRIGO DE IDOSOS | X31: A C CLINICA ODONTOLOGICA | Y31: ADRIANE ALOISE ASSIS FAVA | Z31: ANDRESSA DA SILVA SANTOS FEITOSA | AA31: A N P CONSULTORIO FONOAUDIOLOGICO | AB31: 3DMAX BUCO MAXILO FACIAL SOROCABA | AC31: ACADEMIA DA SAUDE MARIA JOSELIA DE OLIVEIRA | AD31: ACADEMIA DA SAUDE DE SANTA RITA DO TO
B32: Acetábulo monocomponente para artroplastia de quadril | D32: ACADEMIA DE SAUDE SERAPIAO ELOI ALVES | E32: ACADEMIA DA SAUDE DE BELEM | F32: BEM ESTAR CONSULTORIA E SERVICOS | G32: ALVARO HAFIZ CURY | H32: A MEDICINA DIAGNOSTICA IMBUI | I32: ABREU ANDRADE ODONTOLOGIA | J32: AC COGNITIVA FONOAUDIOLOGIA E PSICOLOGIA LTDA | K32: ACADEMIA DA SAUDE DO BAIRRO COLUMBIA | L32: ABIDALA MIGUEL FILHO | M32: ACADEMIA DA SAUDE DE BACURITUBA | N32: ACADEMIA DA SAUDE | O32: ACADEMIA DA SAUDE APARECIDO VIEIRA DOS SANTOS | P32: A C SERVICOS MEDICOS | Q32: ACADEMIA DA SAUDE | R32: ACADEMIA DA SAUDE DANILO FRANKLIN NUNES PEREIRA | S32: 8666 LOGISTICA TRANSPORTES E SERVICOS TECNICOS LTDA | T32: AA SAUDE E ODONTOLOGIA | U32: ACADEMIA DA SAUDE DE ASSUNCAO DO PIAUI | V32: 3D DIAGNOSE LTDA | W32: ACADEMIA BEVENUTO PEREIRA | X32: A CRISTO THEODORO | Y32: ADRIANO CAMPOS FISIOTERAPEUTA | Z32: ANELISE M DALBEM | AA32: A P A E | AB32: 3E SERVICOS MEDICOS | AC32: ACADEMIA DA SAUDE MARIA TEREZA C DA SILVA ARAGAO | AD32: ACADEMIA DA SAUDE GILSILEIA MENDES DA SILVA
B33: ACETAMINOFENO | D33: ACADEMIA INTERMEDIARIA DA SAUDE | E33: ACADEMIA DA SAUDE DE CANAPI AL | F33: BIOACUS | G33: ALVARO SIQUEIRA DA SILVA | H33: A MEDICINA DIAGNOSTICA ITAPOAN | I33: ABRIGO SAGRADO CORACAO DE JESUS | J33: AC ODONTOCLINICA | K33: ACADEMIA DA SAUDE DO BAIRRO VILA REAL | L33: ABIGAIL SILVEIRA DE ARAUJO GUIMARAES | M33: ACADEMIA DA SAUDE DE BARREIRINHAS | N33: ACADEMIA DA SAUDE | O33: ACADEMIA DA SAUDE ARNO LOSEKAN | P33: A CARDIOLOGICA | Q33: ACADEMIA DA SAUDE | R33: ACADEMIA DA SAUDE DAS CASAS POPULARES | S33: A A C SERVICOS DE SAUDE | T33: AACD | U33: ACADEMIA DA SAUDE DE BETANIA DO PIAUI | V33: 3DTR RADIOLOGIA ODONTOLOGICA LTDA ME | W33: ACADEMIA DA SAUDE | X33: A D F ODONTOLOGIA ESPECIALIZADA | Y33: ADRIANO FISIOTERAPIA | Z33: ANGELA ASSOIN DE SOUZA | AA33: A R CLINICA DO PULMAO | AB33: 3F MARRACH RADIOLOGIA ODONTOLOGICA LTDA PIRASSUNUNGA | AC33: ACADEMIA DA SAUDE PROGRAMA HIPER ACAO SEM TENSAO | AD33: ACADEMIA DA SAUDE IRACEMA VIEIRA VASCONCELOS
B34: ÁCIDO 5-HIDROXIINDOLACÉTICO | D34: ACADEMIA INTERMEDIARIA DE SAUDE | E34: ACADEMIA DA SAUDE DE COITE DO NOIA URBANA | F34: BIOCENTER LABORATORIO DE ANALISES CLINICAS | G34: AMA SAUDE MED | H34: A MEDICINA DIAGNOSTICA MATATU | I34: ABSOLUTA ODONTO | J34: AC SAUDE INTEGRATIVA | K34: ACADEMIA DA SAUDE EUDES MOREIRA MACIEL | L34: ABM | M34: ACADEMIA DA SAUDE DE CAMPESTRE DO MARANHAO | N34: ACADEMIA DA SAUDE | O34: ACADEMIA DA SAUDE ARTHUR MARINHO | P34: A CARVALHO SERVICOS MEDICO EIRELI | Q34: ACADEMIA DA SAUDE | R34: ACADEMIA DA SAUDE DE ALCANTIL | S34: A A CARNIATTO SERVICOS DE SAUDE LTDA ME | T34: AB ANGIO | U34: ACADEMIA DA SAUDE DE CAPITAO GERVASIO OLIVEIRA | V34: 3G REMOCOES | W34: ACADEMIA DA SAUDE | X34: A D SERVICOS E EVENTOS | Y34: ADRIANO FISIOTERAPIA | Z34: ANTONIO ALBERTO DE MEDEIROS FERREIRA | AA34: A R ULTRA SONOGRAFIA 2 | AB34: 3M AMBULATORIO MEDICO ITAPETININGA | AC34: ACADEMIA DA SAUDE SERGIO SOUZA DA ROCHA JUNIOR | AD34: ACADEMIA DA SAUDE MARIA RODRIGUES DA SILVA
B35: ÁCIDO ARAQUIDÔNICO | D35: ACADEMIA INTERMEDIARIA DE SAUDE | E35: ACADEMIA DA SAUDE DE ESTRELA DE ALAGOAS | F35: BIOCLIN DIAGNOSTICOS | G35: AMAZON FISION CLINICA DE FISIOTERAPIA | H35: A MEDICINA DIAGNOSTICA NAZARE | I35: ABTRAN | J35: ACADEMIA TERAPEUTICA BRASILIA CENTRO | K35: ACADEMIA DA SAUDE LUCILIA APARECIDA MACHADO | L35: ABM ODONTOCLINICA | M35: ACADEMIA DA SAUDE DE CIDELANDIA FURTUNATO CAITANO HORAS | N35: ACADEMIA DA SAUDE ANITA CESAR BORGES | O35: ACADEMIA DA SAUDE CORONEL SAPUCAIA | P35: A CASA DE VACINAS | Q35: ACADEMIA DA SAUDE | R35: ACADEMIA DA SAUDE DE AROEIRAS | S35: A A DOMINGUES CLINICA E SERVICOS MEDICOS | T35: ABC DERMOPLASTICA LTDA ME | U35: ACADEMIA DA SAUDE DE CARIDADE DO PIAUI | V35: 3P ODONTO | W35: ACADEMIA DA SAUDE | X35: A DOS SANTOS HAHN | Y35: ADRIANO JOSE DA SILVA GOMES | Z35: ARCOVERDE E ARRUDA SERVICOS DE SAUDE LTDA | AA35: A R ULTRASSONOGRAFIA | AB35: 3M DO BRASIL | AC35: ACADEMIA DA SAUDE TAUILOS PINHEIRO SEDRINHO | AD35: ACADEMIA DA SAUDE NAIR COSTA ARAUJO
B36: ÁCIDO ASCÓRBICO | D36: ACADEMIA MUNICIPAL DE SAUDE | E36: ACADEMIA DA SAUDE DE INHAPI | F36: BIOCLINICA ESPACO SAUDE ESTETICA | G36: AMAZON LIFE SAUDE | H36: A MEDICINA DIAGNOSTICA ONDINA | I36: ABVCF ASSOCIACAO | J36: ACAO E EMOCAO INSTITUTO DE SAUDE | K36: ACADEMIA DE SAUDE | L36: ABM SERVICOS CARDIOLOGICOS | M36: ACADEMIA DA SAUDE DE COLINAS | N36: ACADEMIA DA SAUDE BEATRIZ JOAQUIM RONDON | O36: ACADEMIA DA SAUDE CRISTO REDENTOR | P36: A CLINICA DA PELE | Q36: ACADEMIA DA SAUDE | R36: ACADEMIA DA SAUDE DE BARAUNA | S36: A A M CLINICA MEDICA | T36: ABM FISIOTERAPIA LTDA | U36: ACADEMIA DA SAUDE DE CASTELO DO PIAUI | V36: 4 POLICLINICA CAMPOS DOS GOYTACAZES CBMERJ | W36: ACADEMIA DA SAUDE | X36: A E M SERVICOS MEDICOS LTDA | Y36: ADRIEL DE CARVALHO SILVA | Z36: ASSOCIACAO BENEFICENTE AGAPAO ABA | AA36: A T SAUDE LTDA | AB36: 3M FONO E CONSULTORIA EM MEDICINA DO TRABALHO | AC36: ACADEMIA DA SAUDE VANESSA ALMEIDA SOBRAL | AD36: ACADEMIA DA SAUDE ODETE ROCHA GAMA
B37: ÁCIDO BILIAR | D37: ACADEMIA MUNICIPAL DE SAUDE | E37: ACADEMIA DA SAUDE DE PORTO REAL DO COLEGIO | F37: BIOMEDIC LABORATORIO DE ANALISES CLINICAS | G37: AMAZON MEDIC ATIVIDADES MEDICAS SS LTDA | H37: A MEDICINA DIAGNOSTICA PARALELA | I37: ABVCF ASSOCIACAO | J37: ACAO POSITIVA SAUDE INTEGRADA | K37: ACADEMIA DE SAUDE DE BOAPABA | L37: ABMEG | M37: ACADEMIA DA SAUDE DE GOVERNADOR EDISON LOBAO | N37: ACADEMIA DA SAUDE DE CHAPADA DOS GUIMARAES | O37: ACADEMIA DA SAUDE DE ELDORADO MS | P37: A D SAUDE | Q37: ACADEMIA DA SAUDE AMERICANO | R37: ACADEMIA DA SAUDE DE BOA VISTA | S37: A A S P LABORATORIO DE ANALISES CLINICAS EIRELI | T37: ABRE SORRISO | U37: ACADEMIA DA SAUDE DE CRISTALANDIA DO PIAUI | V37: 4D ODONTOLOGIA | W37: ACADEMIA DA SAUDE | X37: A F ODONTOLOGIA | Y37: ADRIELLE GALLINA | Z37: ATTIVA PRESTACOES DE SERVICOS LTDA | AA37: A V SERVICOS MEDICOS LTDA | AB37: 3MR CLINICA DE PSICOLOGIA | AC37: ACADEMIA DA SAUDE VENANCIO FRANCISCO DE GOIS | AD37: ACADEMIA DA SAUDE RITA RIBEIRO LINO
B38: ÁCIDO DELTA-AMINOLEVULÍNICO | D38: ACRE SAUDE | E38: ACADEMIA DA SAUDE DE SAO MIGUEL DOS CAMPOS | F38: C I C D A | G38: AMAZON RESGATE | H38: A MEDICINA DIAGNOSTICA PAULO VI | I38: AC DIAGNOSTICO POR IMAGEM | J38: ACCLAMER ODONTOLOGIA | K38: ACADEMIA DE SAUDE LITORANEO | L38: ABNAI | M38: ACADEMIA DA SAUDE DE ICATU | N38: ACADEMIA DA SAUDE DE CONFRESA | O38: ACADEMIA DA SAUDE DE LAGUA CARAPA | P38: A E A IRMAOS DE FORMIGA MG | Q38: ACADEMIA DA SAUDE ANANIN | R38: ACADEMIA DA SAUDE DE BOQUEIRAO | S38: A ABRIL ECOGRAFIAS | T38: AC CLINICA E CONSULTORIA EM PSICOLOGIA | U38: ACADEMIA DA SAUDE DE GILBUES | V38: 4LIFE CONSULTA MEDICA | W38: ACADEMIA DA SAUDE | X38: A F ODONTOLOGIA | Y38: AGAPE | Z38: B L Z SERVICOS MEDICOS LTDA ME | AA38: AAAAC ALIANCA EXAME MEDICO CNH MUNDOCAR | AB38: 4 BIO MEDICAMENTOS | AC38: ACADEMIA DE SAUDE | AD38: ACADEMIA DA SAUDE SENADOR JOAO RIBEIRO
B39: ÁCIDO GAMA-AMINOBUTÍRICO | D39: ACREDITE FISIOTERAPIA NEUROFUNCIONAL | E39: ACADEMIA DA SAUDE EDIVALDO VASCONCELOS | F39: C R ODONTOLOGIA ESPECIALIZADA | G39: AMAZONAVES | H39: A MEDICINA DIAGNOSTICA PQ BELA VISTA | I39: ACADEMIA DA SAUDE | J39: ACEND | K39: ACADEMIA E FISIOTERAPIA DR FERNANDO | L39: ABO GO | M39: ACADEMIA DA SAUDE DE LAGOA DO ENCONTRO | N39: ACADEMIA DA SAUDE DE CONFRESA II | O39: ACADEMIA DA SAUDE DE RIO NEGRO | P39: A E C ODONTOLOGICA LTDA | Q39: ACADEMIA DA SAUDE ANTONIO AMERICO FILHO | R39: ACADEMIA DA SAUDE DE CABACEIRAS | S39: A AGUETONI LAMPUGNANI CLINICA ODONTOLOGICA | T39: AC CLINICA E CONSULTORIA EM PSICOLOGIA | U39: ACADEMIA DA SAUDE DE INHUMA | V39: A ALBRECHT CONSULTORIO | W39: ACADEMIA DA SAUDE | X39: A F PRESTADORA DE SERVICOS MEDICOS LTDA | Y39: AGAPE CLINICA DE PSICOLOGIA | Z39: BANDEIRA DE MELO WANDERLEY SERVICOS MEDICOS LTDA | AA39: AACOLHER ASSOCIACAO ACOLHER | AB39: 4 EQUIPE ESTRATEGIA SAUDE DA FAMILIA | AC39: ACADEMIA DE SAUDE | AD39: ACADEMIA DA SAUDE ST RODOVIARIO DE COLINAS
B40: ÁCIDO GRAXO NÃO ESTERIFICADO | D40: ACREMED SERVICOS EM SAUDE | E40: ACADEMIA DA SAUDE IVISON FERREIRA DE AQUINO | F40: CAAP CENTRO AUDITIVO DO AMAPA | G40: AMAZONCLIN CLINICA POPULAR MULTIPROFISSIONAL | H40: A MEDICINA DIAGNOSTICA STELLA MARES | I40: ACADEMIA DA SAUDE | J40: ACESSO SAUDE | K40: ACADEMIA FORMAS DO CORPO | L40: ABRAHAO ISSA NETO | M40: ACADEMIA DA SAUDE DE LAGOA DO MATO | N40: ACADEMIA DA SAUDE DE NOVA OLIMPIA | O40: ACADEMIA DA SAUDE DE SONORA | P40: A E G SERVICOS MEDICOS | Q40: ACADEMIA DA SAUDE BENEVIDES | R40: ACADEMIA DA SAUDE DE CACIMBINHA | S40: A BLANSKI DE CASTRO SERVICOS MEDICOS LTDA | T40: AC COELHO PSICOLOGIA APLICADA | U40: ACADEMIA DA SAUDE DE JULIO BORGES | V40: A C B ODONTOLOGIA | W40: ACADEMIA DA SAUDE ALTO SANTA TEREZA | X40: A F PSICOLOGIA LTDA ME | Y40: AGD | Z40: BARRETO E VASCONCELOS LTDA EPP | AA40: AADAV | AB40: 4 MAIS ODONTOLOGIA INTEGRADA | AC40: ACADEMIA DE SAUDE ABELARDO MAURICIO DE SANTANA | AD40: ACADEMIA DA SAUDE TIADOSIO GONCALVES DE ALMEIDA
B41: ÁCIDO HIALURÔNICO | D41: ADMINISTRACAO DE SETOR DE ENDEMIAS | E41: ACADEMIA DA SAUDE JOSE ELOI DA SILVA | F41: CAD CLINICA DO APARELHO DIGESTIVO LTDA | G41: AMAZONCOR | H41: A P ATHAYDE E PESTANA ODONTOLOGIA AVANCADA | I41: ACADEMIA DA SAUDE | J41: ACESSO SAUDE | K41: ACESSO SAUDE SERRA | L41: ABRAO JORGE NETO | M41: ACADEMIA DA SAUDE DE MIRADOR | N41: ACADEMIA DA SAUDE DE PARANATINGA NEIF CAVALCANTE JUNIOR | O41: ACADEMIA DA SAUDE DE TACURU | P41: A E S VITAL CLINICA ESPECIALIZADA | Q41: ACADEMIA DA SAUDE BONITO | R41: ACADEMIA DA SAUDE DE CAICARA | S41: A BLUME CLINICA MEDICA | T41: AC EXAMES CLINICOS E OCUPACIONAIS | U41: ACADEMIA DA SAUDE DE LANDRI SALES | V41: A C DERMATOLOGIA E MEDICINA ESTETICA | W41: ACADEMIA DA SAUDE ANTONIO BENIGNO | X41: A F SERVICOS MEDICOS S S | Y41: AGENCIA TRANSFUSIONAL DE ALTAFLORESTA DO OESTE | Z41: BEMOL S A | AA41: AAMET | AB41: 4ANTUNES CONSULTORIO ODONTOLOGICO | AC41: ACADEMIA DE SAUDE CONJUNTO WALTER FRANCO | AD41: ACADEMIA DA SAUDE TIAGO MILHOMEM DA SILVA
B42: ÁCIDO HIPÚRICO | D42: ADMINISTRACAO DE SETOR DE ENDEMIAS | E42: ACADEMIA DA SAUDE LUCIANO FELIX MEDEIROS | F42: CAF CENTRAL DE ABASTECIMENTO FARMACEUTICO | G42: AMBULATORIO AGROPECUARIA JAYORO | H42: A P DE BRITO ANUNCIACAO CLINICA DE PSICOLOGIA | I42: ACADEMIA DA SAUDE | J42: ACOLHE PEDIATRIA E PSICOLOGIA | K42: ACHE INFECTO | L42: ABRAO SILVA | M42: ACADEMIA DA SAUDE DE MORROS | N42: ACADEMIA DA SAUDE DE TORIXOREU | O42: ACADEMIA DA SAUDE DO NASF | P42: A F CLINICA INTEGRADA LTDA | Q42: ACADEMIA DA SAUDE BRAGANCA | R42: ACADEMIA DA SAUDE DE CASINHA DO HOMEM | S42: A C ALMEIDA CLINICA MEDICA EM GERAL | T42: ACADAMEIA DA SAUDE DE BORRACHA | U42: ACADEMIA DA SAUDE DE MASSAPE DO PIAUI | V42: A C MARQUES CARDIO GERIATRIA | W42: ACADEMIA DA SAUDE DE BARRA DO CUNHAU | X42: A FAUSTO INSTITUTO DE RAIO X LTDA | Y42: AGENCIA TRANSFUSIONAL DE ALVORADA D OESTE | Z42: BEMOL S A | AA42: AASDP | AB42: 4PEOPLE SERVICOS DE PSICOLOGIA | AC42: ACADEMIA DE SAUDE DE PEDRINHAS | AD42: ACADEMIA DE SAUDE
B43: ÁCIDO METILMALÔNICO (MMA) | D43: ADRIANA MARINHO PEREIRA DAPONT | E43: ACADEMIA DA SAUDE MANOEL DOS SANTOS CHA DA IMBIRA | F43: CALANDRINE ONDOTOLOGIA CLINICA CURSOS | G43: AMBULATORIO ASSUNCAO DO RIO ICANA | H43: A S CONSULTORIOS | I43: ACADEMIA DA SAUDE | J43: ACOM | K43: ACIR BEZERRA REGO | L43: ABRIGO COMENDADOR WALMOR | M43: ACADEMIA DA SAUDE DE NOVA IORQUE | N43: ACADEMIA DA SAUDE ESPACO BEM ESTAR | O43: ACADEMIA DA SAUDE DONA CIDOCA | P43: A F SANTOS DE CARVALHO LTDA | Q43: ACADEMIA DA SAUDE BRAGANCA AJURUTEUA | R43: ACADEMIA DA SAUDE DE CONCEICAO PB | S43: A C CLINICA MEDICA LTDA | T43: ACADAMEIA DA SAUDE LAURINDO TEOBALDO | U43: ACADEMIA DA SAUDE DE NAZARIA | V43: A C MED | W43: ACADEMIA DA SAUDE DE CRUZETA | X43: A J CLINICA ODONTOLOGICA LTDA | Y43: AGENCIA TRANSFUSIONAL DE BURITIS | Z43: BEMOL S A | AA43: AAVE | AB43: 5 M SERVICOS MEDICOS LIMITADA | AC43: ACADEMIA DE SAUDE DE SAO FRANCISCO | AD43: ACADEMIA DE SAUDE ARAGUAIA II DE COLINAS
B44: ÁCIDO MICOFENÓLICO | D44: ADRIANO RAMOS ZAGO | E44: ACADEMIA DA SAUDE MARIA DO CARMO MELO | F44: CAMILA DO CARMO NASCIMENTO | G44: AMBULATORIO VILA DE BALBINA | H44: A S ODONTO | I44: ACADEMIA DA SAUDE | J44: ACP ANALISE CLINICA DE PSICOLOGIA LTDA | K44: ACOLHER ATENCAO DOMICILIAR | L44: ABRIGO DE IDOSOS MUNICIPAL | M44: ACADEMIA DA SAUDE DE SAO JOAO DO SOTER | N44: ACADEMIA DA SAUDE I | O44: ACADEMIA DA SAUDE IB FABRES DE QUEIROZ | P44: A F SERVICOS MEDICOS E PSICOLOGICOS | Q44: ACADEMIA DA SAUDE BRAGANCA ALDEIA | R44: ACADEMIA DA SAUDE DE CONDADO | S44: A C DE OLIVEIRA NUTRICAO | T44: ACADEMIA BEIRA RIO | U44: ACADEMIA DA SAUDE DE PAU DARCO DO PIAUI | V44: A C MENDES ODONTOLOGIA DE CABO FRIO LTDA | W44: ACADEMIA DA SAUDE DE EQUADOR RN | X44: A M M D D G ENFERMAGEM E APOIO A GESTAO A SAUDE LTDA ME | Y44: AGENCIA TRANSFUSIONAL DE CEREJEIRAS | Z44: BEMOL S A | AA44: AB CONSULTORIA MEDICA | AB44: 5IVE ODONTOLOGIA INTEGRADA | AC44: ACADEMIA DE SAUDE ELENALDO ARAGAO | AD44: ACADEMIA DE SAUDE ARCELINO JOSE BEZERRA
B45: ÁCIDO MUCÔNICO | D45: AEROBRAN TAXI AEREO | E45: ACADEMIA DA SAUDE MATA ATLANTICA | F45: CARDIOMED | G45: AMEM ODONTOLOGIA | H45: A S PORCINO | I45: ACADEMIA DA SAUDE | J45: ACQUADERMA CLINICA DERMATOLOGICA | K45: ACR ODONTOLOGIA | L45: ABRIGO DOS IDOSOS JOSE LEANDRO CHAVES | M45: ACADEMIA DA SAUDE DE SUMAUMA | N45: ACADEMIA DA SAUDE I | O45: ACADEMIA DA SAUDE JARDIM MARISTELA | P45: A FLOR DA PELE LTDA | Q45: ACADEMIA DA SAUDE DE ANAPU | R45: ACADEMIA DA SAUDE DE DAMIAO | S45: A C SOBRINHO DA SILVA RICOBONI | T45: ACADEMIA DA CIDADE BARRA DE JANGADA | U45: ACADEMIA DA SAUDE DE PEDRO LAURENTINO II | V45: A C OUAIS SERVICOS DE PSICOLOGIA | W45: ACADEMIA DA SAUDE DE JARDIM DO SERIDO | X45: A M SAUDE LTDA | Y45: AGENCIA TRANSFUSIONAL DE ESPIGAO DO OESTE | Z45: BEMOL S A | AA45: AB SERVICOS ODONTOLOGICOS LTDA | AB45: 6 R CIRURGIOES ASSOCIADOS | AC45: ACADEMIA DE SAUDE FRANCISCA VILANOVA CARDOSO | AD45: ACADEMIA DE SAUDE DA FAMILIA
B46: ÁCIDO NUCLÉICO DE ANTÍGENO E DE VÍRUS DE HEPATITE B (HBV) | D46: AFMS CLINICA MEDICA SOCIEDADE SIMPLES | E46: ACADEMIA DA SAUDE PEDRO HONORIO DOS SANTOS LUZIAPOLIS | F46: CARLA DAVID PEREIRA FELIX | G46: AMILCAR MONTE REY JUNIOR | H46: A SAUDE DA MULHER | I46: ACADEMIA DA SAUDE | J46: ACREDITAR CLINICA DE SAUDE E COMPORTAMENTO | K46: ACRILISA ODONTOLOGIA | L46: ABRIGO DOS IDOSOS SAO VICENTE DE PAULO DE GOIANIA | M46: ACADEMIA DA SAUDE DO CENTRO | N46: ACADEMIA DA SAUDE JARDIM DAS FLORES | O46: ACADEMIA DA SAUDE MAURO FARIAS DE ARAGAO | P46: A FORMULA | Q46: ACADEMIA DA SAUDE DE CAPITAO POCO | R46: ACADEMIA DA SAUDE DE DESTERRO | S46: A C VIEIRA JUNIOR CIA LTDA | T46: ACADEMIA DA CIDADE BOM JESUS DE SERRA TALHADA | U46: ACADEMIA DA SAUDE DE PICOS | V46: A C V R BASTOS FONOAUDIOLOGIA | W46: ACADEMIA DA SAUDE DE LUIS GOMES | X46: A MEDICINA DIAGNOSTICA | Y46: AGENCIA TRANSFUSIONAL DE EXTREMA | Z46: BENEDITA KATIELLE ALBUQUERQUE ARAUJO | AA46: ABA PROKIDS TERAPIAS LTDA | AB46: 6A CLINICA MEDICA | AC46: ACADEMIA DE SAUDE GOV MARCELO DEDA | AD46: ACADEMIA DE SAUDE DA PRACA MARIANO H CAVALCANTE DE MIRACEMA
B47: ÁCIDO NUCLÉICO DE VÍRUS DE HEPATITE C (HCV) | D47: ALDO DAMIAN CHAMBI GARRIDO | E47: ACADEMIA DA SAUDE RENATO VIEIRA | F47: CARMEN SILVIA OLIVEIRA DA SILVA RASEL | G47: AMIR DE MATOS BRAGA | H47: A VIEIRA CLINICA MEDICA | I47: ACADEMIA DA SAUDE | J47: ACT CENTRO DE ODONTOLOGIA INTEGRADO | K47: ACSAMPAIO DIAGNOSTICOS | L47: ABRIGO DOS VELHOS | M47: ACADEMIA DA SAUDE DO CREOLI DO SINHA | N47: ACADEMIA DA SAUDE JULIA BARTH GARCIA | O47: ACADEMIA DA SAUDE MUNICIPAL DE JATEI | P47: A G ENGENHARIA E MEDICINA | Q47: ACADEMIA DA SAUDE DE IPIXUNA DO PARA | R47: ACADEMIA DA SAUDE DE DOIS RIACHOS | S47: A CALZETTA MARCONDES CLINICA ODONTOLOGICA ME | T47: ACADEMIA DA CIDADE CARNAUBEIRA | U47: ACADEMIA DA SAUDE DE PIMENTEIRAS | V47: A CURA | W47: ACADEMIA DA SAUDE DE PASSA E FICA | X47: A MENDES FERERAZ BOEIRA | Y47: AGENCIA TRANSFUSIONAL DE GUAJARA MIRIM | Z47: BERTOLINI E MEDEIROS S S LTDA EPP ME | AA47: ABAA | AB47: 9 DE JULHO | AC47: ACADEMIA DE SAUDE INACIO JOSE DOS SANTOS | AD47: ACADEMIA DE SAUDE DAVINO TEIXEIRA
B48: ÁCIDO NUCLÉICO DE VÍRUS DE IMUNODEFICIÊNCIA HUMANA TIPO 1 (HIV 1) | D48: ALERGOYMUNE | E48: ACADEMIA DA SAUDE RICARDO AMORIM | F48: CARRETA MOVEL SAUDE DA MULHER | G48: AMOR SAUDE | H48: A1 AVANCADO | I48: ACADEMIA DA SAUDE | J48: ACTIVITE SERVICOS DE TERAPIA OCUPACIONAL | K48: ACTIVE LIFE STUDIO | L48: ACA SERVICOS MEDICOS | M48: ACADEMIA DA SAUDE FRANCISCO RODRIGUES DA SILVA | N48: ACADEMIA DA SAUDE UNIAO | O48: ACADEMIA DA SAUDE SANTO ANTONIO | P48: A G MEDICINA ESPECIALIZADA | Q48: ACADEMIA DA SAUDE DE OBIDOS | R48: ACADEMIA DA SAUDE DE DUAS ESTRADAS | S48: A E P SERVICOS MEDICOS | T48: ACADEMIA DA CIDADE CAXIXOLA | U48: ACADEMIA DA SAUDE DE SAO JOAO DA SERRA | V48: A D BOTTINO | W48: ACADEMIA DA SAUDE DE PIQUIRI | X48: A MENEZES RIETH ENFERMAGEM | Y48: AGENCIA TRANSFUSIONAL DE JARU | Z48: BIANCA ORTIZ DOS SANTOS | AA48: ABADA | AB48: A A A LAB | AC48: ACADEMIA DE SAUDE JOSE ACELINO DE OLIVEIRA | AD48: ACADEMIA DE SAUDE DE ALIANCA DO TOCANTINS
B49: ÁCIDO NUCLÉICO DE VÍRUS DE IMUNODEFICIÊNCIA HUMANA TIPO 1 E TIPO 2 (HIV 1 E 2) | D49: ALPHA PRIME HOME CARE | E49: ACADEMIA DA SAUDE ROSETE ANDRADE | F49: CASA DA HOSPITALIDADE | G49: AMORSAUDE | H49: A2 AVANCADA | I49: ACADEMIA DA SAUDE | J49: ACTUAL PSICOLOGIA | K49: ACUPUNTURA MED LTDA | L49: ACACIAS MEDICA E ESPECIALIDADES | M49: ACADEMIA DA SAUDE GOVERNADOR ARCHER | N49: ACADEMIA DA SAUDE VILA ALTA | O49: ACADEMIA DA SAUDE SEBASTIAO TIAGO ALVIM | P49: A L G FREITAS SERVICOS MEDICOS | Q49: ACADEMIA DA SAUDE DE PRIMAVERA | R49: ACADEMIA DA SAUDE DE FREI MARTINHO | S49: A E SAUDE | T49: ACADEMIA DA CIDADE COHAB | U49: ACADEMIA DA SAUDE DE SAO JOSE DO DIVINO | V49: A D F L M SERVICOS MEDICOS | W49: ACADEMIA DA SAUDE DE VENHA VER | X49: A P FISIO | Y49: AGENCIA TRANSFUSIONAL DE MACHADINHO DO OESTE | Z49: BRAGATO E BRAGATO LTDA ME | AA49: ABCD MAGIC SCHOOL | AB49: A A ACUPUNTURA TAUBATE | AC49: ACADEMIA DE SAUDE JOSE DOS SANTOS | AD49: ACADEMIA DE SAUDE DE ARAGOMINAS
B50: ÁCIDO NUCLÉICO DE VÍRUS HIV, HBV E HCV | D50: ALTAMIRA DE SOUZA FERNANDES | E50: ACADEMIA DA SAUDE SABINO MONTEIRO DE ARAUJO | F50: CASSI MACAPA | G50: ANA BELMIRA LIRA PEREIRA | H50: A3 DERMATOLOGISTAS ASSOCIADOS | I50: ACADEMIA DA SAUDE | J50: ACUFISIO | K50: ADALGIZA OLYMPIO FONSECA CRUZ | L50: ACACIAS SERVICOS TECNICOS EM SAUDE LTDA ME | M50: ACADEMIA DA SAUDE INTERMEDIARIA | N50: ACADEMIA DE SAUDE | O50: ACADEMIA DA SAUDE VILA NOVA | P50: A L M MEDICOS ASSOCIADOS | Q50: ACADEMIA DA SAUDE DE S J PIRABAS | R50: ACADEMIA DA SAUDE DE IBIARA PB | S50: A EMERGENCIAS MEDICAS | T50: ACADEMIA DA CIDADE CORTES | U50: ACADEMIA DA SAUDE DE SAO JOSE DO PEIXE | V50: A E A ESPACO TERAPEUTICO INTEGRADO | W50: ACADEMIA DA SAUDE DO GOLANDIM | X50: A PRADO RESGATE | Y50: AGENCIA TRANSFUSIONAL DE OURO PRETO | Z50: BRITO E CARVALHO LTDA | AA50: ABEGAIL DA COSTA BUENO | AB50: A A ASSOC SERV MED CANCEROLOGIA HEMATO E PED SS LTDA | AC50: ACADEMIA DE SAUDE JOSE FRANCISCO SANTOS ZE PINA | AD50: ACADEMIA DE SAUDE DE AXIXA DO TOCANTINS CENTRO
B51: ÁCIDO NUCLÉICO NUCLEAR DE VÍRUS DE HEPATITE B (HBV) | D51: ALUIZIO ALVES PEREIRA JUNIOR | E51: ACADEMIA DA SAUDE SITIO OITIZEIRO | F51: CASTRAMOVEL DE MACAPA 01 | G51: ANA CLAUDIA MAIA DE ALMEIDA | H51: AAPESBA ASSOCIACAO DOS APOSENTADOS E PENSIONISTAS DO EXTREMO | I51: ACADEMIA DA SAUDE 28 DE AGOSTO | J51: ACUPUNTURA MEDICA DE BRASILIA | K51: ADELAIDE FERREIRA DOS SANTOS | L51: ACADEMIA AO AR LIVRE DE ANHANGUERA | M51: ACADEMIA DA SAUDE JOSE CARLOS MOREIRA | N51: ACADEMIA DE SAUDE | O51: ACADEMIA DA SAUDE YASUHIRO SUGUITA | P51: A L SERVICOS EM ORTOPEDIA E FISIOTERAPIA LTDA ME | Q51: ACADEMIA DA SAUDE DE ULIANOPOLIS | R51: ACADEMIA DA SAUDE DE INGA | S51: A EMERGENCIAS MEDICAS | T51: ACADEMIA DA CIDADE DA VILA | U51: ACADEMIA DA SAUDE DE SAO RAIMUNDO NONATO | V51: A E C SERVICOS MEDICOS | W51: ACADEMIA DA SAUDE E BLOCO DE APOIO ANTONIA LARA LOPES SILVA | X51: A R B B CLINICA MEDICA E ODONTOLOGICA LTDA ME | Y51: AGENCIA TRANSFUSIONAL DE PIMENTA BUENO | Z51: C E C DOS PASSOS EIRELI | AA51: ABEI | AB51: A A CLINICA FISIOTERAPICA | AC51: ACADEMIA DE SAUDE MARIA ALVES DA CONCEICAO | AD51: ACADEMIA DE SAUDE DE BABACULANDIA
B52: ÁCIDO TRICLOROACÉTICO | D52: AMAZON SERVICOS MEDICOS LTDA | E52: ACADEMIA DA SAUDE TEOTONIO FARIAS FRAGOSO | F52: CASTRAMOVEL DE MACAPA 02 | G52: ANA CONCEICAO UTTA RAMOS GALVAO | H52: AAS | I52: ACADEMIA DA SAUDE ALTO ALEGRE | J52: ACURAR CLINICA ESPECIALIZADA | K52: ADELIA ESTENIA RIBEIRO FALCAO DE ALMEIDA | L52: ACADEMIA AO AR LIVRE RAULINO DE LIMA CRUVINEL | M52: ACADEMIA DA SAUDE JOSE PEDRO VIEIRA | N52: ACADEMIA DE SAUDE | O52: ACADEMIA DE SAUDE | P52: A L T MURAD SERVICOS MEDICOS LTDA | Q52: ACADEMIA DA SAUDE DO ALGODOAL | R52: ACADEMIA DA SAUDE DE JURU PB | S52: A F DA ROSA PSICOLOGIA ME | T52: ACADEMIA DA CIDADE DE CAMUTANGA | U52: ACADEMIA DA SAUDE DO BAIRRO DE FATIMA | V52: A F PERES CLINICA MEDICA | W52: ACADEMIA DA SAUDE JOSE GEMEDEAN BEZERRA | X52: A R B ENFERMAGEM | Y52: AGENCIA TRANSFUSIONAL DE PRESIDENTE MEDICI | Z52: C M ALMEIDA | AA52: ABIFARMA | AB52: A A DROGARIA MIRASSOL | AC52: ACASSIA FERREIRA LEITE | AD52: ACADEMIA DE SAUDE DE BRASILANDIA
B53: ÁCIDO ÚRICO | D53: AMBULANCIA USA CRUZEIRO DO SUL 01 | E53: ACADEMIA DE SAUDE | F53: CCBM CENTRO DE CIRURGIA BARIATRICA E METABOLICA | G53: ANA CYRA SAUDERS FERNANDES COELHO | H53: AATAE | I53: ACADEMIA DA SAUDE ANTONIO ALEXANDRE VIEIRA | J53: ADOLESCENTRO BRASILIA | K53: ADELMO REZENDE FERREIRA DA COSTA | L53: ACADEMIA BRASIL FITNESS | M53: ACADEMIA DA SAUDE MARIA TERESA | N53: ACADEMIA DE SAUDE AEROPORTO II | O53: ACADEMIA DE SAUDE | P53: A M D A R | Q53: ACADEMIA DA SAUDE DO BAIRRO DO PT | R53: ACADEMIA DA SAUDE DE LAGOA DE DENTRO | S53: A F DE FREITAS E CIA LTDA | T53: ACADEMIA DA CIDADE DE SERRA TALHADA | U53: ACADEMIA DA SAUDE DO BAIRRO DE FATIMA | V53: A G FISIOTERAPIA E REABILITACAO | W53: ACADEMIA DA SAUDE MARIA MAURA DIOGENES BESSA | X53: A ROSSATTO FONOAUDIOLOGIA | Y53: AGENCIA TRANSFUSIONAL DE SAO FRANCISCO DO GUAPORE | Z53: C M LIMA | AA53: ABIPJ | AB53: A A ODONTOLOGIA | AC53: ACDEMIA FISIUM PILATES | AD53: ACADEMIA DE SAUDE DE COMBINADO
B54: ÁCIDO VALPRÓICO | D54: AMBULANCIA USA RIO BRANCO 01 | E54: ACADEMIA DE SAUDE | F54: CEMARA | G54: ANA LUCIA DUTRA VIEIRA | H54: ABA THERAPY | I54: ACADEMIA DA SAUDE ASSUNCAO | J54: ADRIANA PORTO HARMONIZY | K54: ADELSON BORIS FAVARATO | L54: ACADEMIA CALIFORNIA | M54: ACADEMIA DA SAUDE NINA RODRIGUES | N54: ACADEMIA DE SAUDE DE ARENAPOLIS | O54: ACADEMIA DE SAUDE | P54: A M E | Q54: ACADEMIA DA SAUDE DO BAIRRO NOVO | R54: ACADEMIA DA SAUDE DE MATARACA | S54: A F DE OLIVEIRA SERVICOS MEDICOS LTDA | T54: ACADEMIA DA CIDADE DO MUTIRAO | U54: ACADEMIA DA SAUDE DO BAIRRO DE FLORES | V54: A G K SERVICOS MEDICOS DE ANESTESIA | W54: ACADEMIA DA SAUDE MUNICIPAL | X54: A RS | Y54: AGENCIA TRANSFUSIONAL DE SAO MIGUEL DO GUAPORE | Z54: C R DA CUNHA | AA54: ABP CLINICA MEDICA LTDA | AB54: A A PEDIATRAS LTDA | AC54: ACELINO DE O SOUZA JUNIOR | AD54: ACADEMIA DE SAUDE DE CONCEICAO DO TOCANTINS
B55: ÁCIDO VANILMANDÉLICO | D55: AMBULANCIA USA RIO BRANCO 02 | E55: ACADEMIA DE SAUDE ADYLSON VIEIRA LIMA | F55: CEMED | G55: ANA LUCIA GARCIA SIMOES SANTOS MARTINS | H55: ABAPCJ | I55: ACADEMIA DA SAUDE BARRO | J55: ADVANCE | K55: ADELSON HILARIO DE SOUZA | L55: ACADEMIA CLUB | M55: ACADEMIA DA SAUDE PARQUE ALVORADA | N55: ACADEMIA DE SAUDE DE COLIDER | O55: ACADEMIA DE SAUDE | P55: A M PRESTADORA DE SERVICOS E CONSULTORIA SOC SIMPLES LTDA | Q55: ACADEMIA DA SAUDE DO BAIRRO TOZETTI | R55: ACADEMIA DA SAUDE DE MULUNGU CIDADE | S55: A F K CLINICA MEDICA | T55: ACADEMIA DA CIDADE ESTACAO DO FORRO | U55: ACADEMIA DA SAUDE ELIAS JOAQUIM LEAL | V55: A GENTILE CLINICA UROLOGICA INTEGRADA | W55: ACADEMIA DA SAUDE PARQUE DA LAGOA | X55: A S SAUDE CLINICA MEDICA | Y55: AGENCIA TRANSFUSIONAL DE SERINGUEIRAS | Z55: CABRAL MENDONCA LTDA | AA55: ABRACE ODONTOLOGIA ESPECIALIZADA | AB55: A A SERVICOS | AC55: ACESSO FISIO | AD55: ACADEMIA DE SAUDE DE DIANOPOLIS
B56: AÇÚCAR PARA TESTE DE TOLERÂNCIA / TESTES METABÓLICOS | D56: AMBULANCIA USB ACRELANDIA 11 | E56: ACADEMIA DE SAUDE BENEDITA JOSEFA DE ALMEIDA PEREIRA | F56: CENTERCLIN SAUDE | G56: ANA LUIZA CARDOSO CRUZ VELOSO | H56: ABARE MAIS SAUDAVEL | I56: ACADEMIA DA SAUDE BOA VISTA | J56: ADVANCE FISIOTERAPIA | K56: ADEMAR FARIA JUNIOR | L56: ACADEMIA DA SAUDE | M56: ACADEMIA DA SAUDE PIRAPEMAS | N56: ACADEMIA DE SAUDE DE JUINA | O56: ACADEMIA DE SAUDE ALEGRIA DE VIVER | P56: A M SERVICOS DE RADIOLOGIA FREITAS LTDA | Q56: ACADEMIA DA SAUDE DO MARARU | R56: ACADEMIA DA SAUDE DE MULUNGU GRAVATA | S56: A F M CLINICA MEDICA LTDA | T56: ACADEMIA DA CIDADE I | U56: ACADEMIA DA SAUDE ESTACAO MATADOURO | V56: A L B GINECOLOGIA | W56: ACADEMIA DA SAUDE SABINO LEITE | X56: A S SOUZA DAS NEVES ENFERMAGEM | Y56: AGENCIA TRANSFUSIONAL DO HEMOCENTRO COORDENADOR | Z56: CAIXA DE ASSISTENCIA DOS FUNCIONARIOS DO BANCO DO BRASIL | AA56: ABRAHAO AOKI MEDICOS ASSOCIADOS LTDA ME | AB56: A ALIANCA SAUDE TODOS OS TRATAMENTOS EM UM SO LUGAR | AC56: ACM | AD56: ACADEMIA DE SAUDE DE FATIMA TOCANTINS
B57: ADALIMUMAB (ADL) | D57: AMBULANCIA USB ASSIS BRASIL 16 | E57: ACADEMIA DE SAUDE BOM SUCESSO | F57: CENTRO AMAPAENSE DA VISAO | G57: ANA MARIA FERNANDES DO NASCIMENTO | H57: ABENG | I57: ACADEMIA DA SAUDE BRASILIA | J57: ADVANCED ODONTOLOGIA | K57: ADEMIR LUIZ GUIO | L57: ACADEMIA DA SAUDE | M57: ACADEMIA DA SAUDE PRACA UNIAO | N57: ACADEMIA DE SAUDE DE LUCAS DO RIO VERDE | O57: ACADEMIA DE SAUDE CLEBERSON CIPRIANO | P57: A M SERVICOSMEDICOS | Q57: ACADEMIA DA SAUDE DR MANOEL VALENTE | R57: ACADEMIA DA SAUDE DE OURO VELHO | S57: A F SAUDE LTDA ME | T57: ACADEMIA DA CIDADE SAO BENTO DO UNA | U57: ACADEMIA DA SAUDE FAUSTINO PEREIRA DE OLIVEIRA | V57: A L MELO SERVICOS ODONTOLOGICOS | W57: ACADEMIA DA SAUDE TENENTE ANANIAS | X57: A TESSARO SERVICOS MEDICOS EIRELI | Y57: AGENCIA TRANSFUSIONAL DO HOSPITAL DE BASE | Z57: CANDIDO LABORATORIO DE ANALISE CLINICA LTDA ME | AA57: ABRASILMED CAC SAO JOSE | AB57: A ALPHALABS DIAGNOSTICOS E VACINAS LTDA | AC57: ACN ODONTO CLEAN | AD57: ACADEMIA DE SAUDE DE FORTALEZA DO TABOCAO
B58: ADAMTS 13 (PROTEASE DE LISE DO FATOR VON WILLEBRAND) | D58: AMBULANCIA USB BRASILEIA 19 | E58: ACADEMIA DE SAUDE DA ANTONICA | F58: CENTRO CARDIOLOGICO | G58: ANA MARIA FILGUEIRA CAMPOS | H58: ABERTTA SAUDE | I58: ACADEMIA DA SAUDE DA DOM JOSE | J58: AEAK CLINICA | K58: ADERBAL PAGUNG | L58: ACADEMIA DA SAUDE | M58: ACADEMIA DA SAUDE RAIMUNDA DE JESUS CANTANHEDE | N58: ACADEMIA DE SAUDE DE POXOREU | O58: ACADEMIA DE SAUDE DE CORGUINHO | P58: A P A E | Q58: ACADEMIA DA SAUDE ENEDINO VIEIRA DA SILVA | R58: ACADEMIA DA SAUDE DE PAULISTA II | S58: A GOMES CLINICA MEDICA | T58: ACADEMIA DA CIDADE SAO JOAO DA ESCOCIA | U58: ACADEMIA DA SAUDE FLORESTA DO PIAUI | V58: A M CRUZ DE MACAE LABORATORIO DE PROTESE DENTARIA LTDA | W58: ACADEMIA DA SAUDE TOTA BARBOSA | X58: A V S SERVICOS MEDICOS | Y58: AGENCIA TRANSFUSIONAL DO HOSPITAL HEURO | Z58: CARDIOMAMA SERVICOS MEDICOS LTDA | AA58: ABREU BASTIAN SERVICOS DE SAUDE | AB58: A BALDASSIM E MORENO CLINICA MEDICA S S ME SJRIOPARDO | AC58: AD SERVICOS MEDICOS | AD58: ACADEMIA DE SAUDE DE JAU CANTEIRO CENTRAL NOVO HORIZINTE
B59: Adaptador de Agulha | D59: AMBULANCIA USB BUJARI 10 | E59: ACADEMIA DE SAUDE DA VARZEA DO PICO | F59: CENTRO CARDIOLOGICO DR CABRAL DE CASTRO | G59: ANA MARIA MELO | H59: ABERTTA SAUDE | I59: ACADEMIA DA SAUDE DA POMPEIA | J59: AELIUS CLINICA INTEGRADA DE PSICOLOGIA E SAUDE | K59: ADIES | L59: ACADEMIA DA SAUDE | M59: ACADEMIA DA SAUDE SEDE | N59: ACADEMIA DE SAUDE FELIZ NATAL | O59: ACADEMIA DE SAUDE DE INDAPOLIS | P59: A P A E ITAMARANDIBA | Q59: ACADEMIA DA SAUDE FLUMINENSE | R59: ACADEMIA DA SAUDE DE PEDRO REGIS | S59: A I L MEDEIROS DIAS CLINICA MEDICA | T59: ACADEMIA DA CIDADE SILVANIA SIQUEIRA DE OLIVEIRA | U59: ACADEMIA DA SAUDE GIL MARQUES | V59: A M G ATENDIMENTOS MEDICOS S C | W59: ACADEMIA DE SAUDE ANA ALICE DE ARAUJO | X59: A VARGAS DE LIMA | Y59: AGENCIA TRANSFUSIONAL DO HOSPITAL REGIONAL DE CACOAL | Z59: CARLOS E P ALBARADO ME | AA59: ABRIGO DOS VELHIMHOS DE TUBARAO | AB59: A BOA CLINICA | AC59: ADELINO LOPES DE CARVALHO NETO | AD59: ACADEMIA DE SAUDE DE JAU DO TO
B60: Adaptadores | D60: AMBULANCIA USB CAPIXABA 20 | E60: ACADEMIA DE SAUDE DE BATALHA | F60: CENTRO CLINICO CENTER VITTA | G60: ANA PAULA COELHO VIEIRA | H60: ABO | I60: ACADEMIA DA SAUDE DAVI PONTES COSTA | J60: AEPIT | K60: ADILSON ANDRADE GOUVEA | L60: ACADEMIA DA SAUDE | M60: ACADEMIA DA SAUDE VEREADOR ISAIAS JOSE DA SILVA | N60: ACADEMIA DE SAUDE IPIRANGA DO NORTE | O60: ACADEMIA DE SAUDE DE JUTI | P60: A P A E PERIQUITO | Q60: ACADEMIA DA SAUDE JARDIM MORUMBI | R60: ACADEMIA DA SAUDE DE PEDRO VELHO | S60: A J GONCALVES MARIN | T60: ACADEMIA DA CIDADE TAMANDARE | U60: ACADEMIA DA SAUDE HELENA MATILDE PINHEIRO | V60: A M LIEM SERVICOS MEDICOS | W60: ACADEMIA DE SAUDE DE BARCELONA | X60: A VEIGA CHAGAS | Y60: AGENCIA TRANSFUSIONAL DO HPS JOAO PAULO II | Z60: CAROLINE Q PEREIRA EIRELI | AA60: ABSCJ | AB60: A C ARAUJO SERVICOS MEDICOS | AC60: ADELLE MOADE RIBEIRO SOUZA | AD60: ACADEMIA DE SAUDE DE LAGOA DO TOCANTINS
B61: Adaptadores Para Canula | D61: AMBULANCIA USB CRUZEIRO DO SUL 02 | E61: ACADEMIA DE SAUDE DE GERAIS | F61: CENTRO CLINICO DA SEAMA | G61: ANA TAVARES DE ALBUQUERQUE | H61: ABRE | I61: ACADEMIA DA SAUDE DE ABAIARA | J61: AEPIT HOSPITAL DERMATOLOGICO DE BRASILIA LTDA | K61: ADMED | L61: ACADEMIA DA SAUDE | M61: ACADEMIA DE SAUDE AV JK | N61: ACADEMIA DE SAUDE MAO AMIGA | O61: ACADEMIA DE SAUDE DE PONTA PORA | P61: A R APARELHOS AUDITIVOS | Q61: ACADEMIA DA SAUDE LOURENCA AGUIAR DA SILVA | R61: ACADEMIA DA SAUDE DE POCO DANTAS | S61: A J M CLINICA MEDICA LTDA | T61: ACADEMIA DA CIDADE VILA BELA | U61: ACADEMIA DA SAUDE HUGO NAPOLEAO PI | V61: A M M I | W61: ACADEMIA DE SAUDE DE FELIPE CAMARAO | X61: A Z ODONTOLOGIA | Y61: AGEVISA RO | Z61: CARVALHO E BARBOSA S S LTDA | AA61: AC ODONTOLOGIA | AB61: A C B CARVALHO | AC61: ADELSON SEVERINO CHAGAS E CIA LTDA | AD61: ACADEMIA DE SAUDE DE MIRACEMA JOSE CARLOS PEREIRA
B62: ADENOSINA DEAMINASE (ADA) | D62: AMBULANCIA USB DE CRUZEIRO DO SUL 03 | E62: ACADEMIA DE SAUDE DE INHUMAS | F62: CENTRO DA MULHER | G62: ANA TEREZA ORSI | H62: ABREU E OLIVEIRA ODONTOLOGIA | I62: ACADEMIA DA SAUDE DE AQUIRAZ | J62: AES TAGUATINGA | K62: ADRIANA ANDRADE DE SOUZA | L62: ACADEMIA DA SAUDE | M62: ACADEMIA DE SAUDE BAIRRO AEROPORTO | N62: ACADEMIA DE SAUDE NASF III | O62: ACADEMIA DE SAUDE DE PONTA PORA HORTO | P62: A R APARELHOS AUDITIVOS | Q62: ACADEMIA DA SAUDE MARAJOARA II | R62: ACADEMIA DA SAUDE DE RIO TINTO | S62: A K SERVICOS DE SAUDE | T62: ACADEMIA DA SAUDE | U62: ACADEMIA DA SAUDE I | V62: A M NASCIMENTO CONSULTORIO DE PSICOLOGIA | W62: ACADEMIA DE SAUDE DE LAGOA DANTA | X62: A Z PSICOLOGIA LTDA | Y62: AHD ENSINOS ODONTOLOGICOS | Z62: CEAN CENTRO ESPECIALIZADO DE ANALISE CLINICAS LTDA | AA62: ACACIA ODONTOLOGIA | AB62: A C BRUN CHINI CIA LTDA LIMEIRA | AC62: ADILSON ALMEIDA SANTOS | AD62: ACADEMIA DE SAUDE DE NOVO ALEGRE
B63: ADENOSINA DIFOSFATO (ADP) | D63: AMBULANCIA USB DE TARAUACA | E63: ACADEMIA DE SAUDE DE JUNQUEIRO | F63: CENTRO DE ATENCAO PSICOSSOCIAL A INFANCIA E ADOLESCENCIA | G63: ANAVILHANAS ODONTOLOGIA LTDA | H63: ABRIGO LAR TERCEIRA IDADE | I63: ACADEMIA DA SAUDE DE ARARENDA | J63: AFAGO CLINICA E CIRURGIA PEDIATRICA | K63: ADRIANA BALESTRERO D OLIVEIRA MACEDO | L63: ACADEMIA DA SAUDE | M63: ACADEMIA DE SAUDE BAIRRO ALVORADA | N63: ACADEMIA DE SAUDE RENOVAR | O63: ACADEMIA DE SAUDE DE PONTA PORA SAO RAFAEL | P63: A R APARELHOS AUDITIVOS BARREIRO | Q63: ACADEMIA DA SAUDE MARIA DA CONCEICAO BORGES | R63: ACADEMIA DA SAUDE DE SANTANA DE MANGUEIRA PB | S63: A KOMATSU S S LTDA ME | T63: ACADEMIA DA SAUDE | U63: ACADEMIA DA SAUDE II | V63: A M P SERVICOS MEDICOS | W63: ACADEMIA DE SAUDE DE MAJOR SALES | X63: A1 SERVICOS DE ANESTESIA | Y63: AIO SILVER | Z63: CECOR CENTRO ONCOLOGICO DE RORAIMA LTDA EPP | AA63: ACACIO FISCHER | AB63: A C C ASSOCIACAO DE COMBATE AO CANCER DE MARILIA E REGIAO | AC63: ADOLFO JOSE DE OLIVEIRA SCHERR | AD63: ACADEMIA DE SAUDE DE PALMEIROPOLIS
B64: ADENOSINA TRIFOSFATO (ATP) | D64: AMBULANCIA USB EPITACIOLANDIA 14 | E64: ACADEMIA DE SAUDE DE RIO LARGO | F64: CENTRO DE ATENDIMENTO AO CORONAVIRUS | G64: ANDREA GOMES RIBEIRO | H64: ABRIGO MAE | I64: ACADEMIA DA SAUDE DE BANABUIU | J64: AFAMED CLINICA MEDICA LTDA | K64: ADRIANA BOTTI DE ARAUJO | L64: ACADEMIA DA SAUDE | M64: ACADEMIA DE SAUDE BEIRA RIO I | N64: ACADEMIA DE SAUDE VILA TUPI | O64: ACADEMIA DE SAUDE EU ME AMO EU ME CUIDO | P64: A R APARELHOS AUDITIVOS VENDA NOVA | Q64: ACADEMIA DA SAUDE NICANOR AVELINO DE SOUSA | R64: ACADEMIA DA SAUDE DE SAO DOMINGOS DO CARIRI | S64: A L GOMES DE SOUZA CAMPOREZ | T64: ACADEMIA DA SAUDE | U64: ACADEMIA DA SAUDE ILHA GRANDE | V64: A M PROTESE DENTARIA | W64: ACADEMIA DE SAUDE DE NOVA CRUZ | X64: A2O SERVICOS DE SAUDE LTDA | Y64: AKAKI NEURO CENTER | Z64: CELIA REGINA ROCHA BRITO | AA64: ACACIO LUIZ KUSKOSKI | AB64: A C CAMARGO CANCER CENTER | AC64: ADONAI PINHEIRO BARRETO | AD64: ACADEMIA DE SAUDE DE PALMEIROPOLIS POLO 2
B65: ADENOVÍRUS | D65: AMBULANCIA USB FEIJO | E65: ACADEMIA DE SAUDE DE ROTEIRO | F65: CENTRO DE CARDIOLOGIA E DIAGNOSTICO POR IMAGEM CCDI | G65: ANDREA NUNES FREIRE | H65: ABV ODONTOLOGIA | I65: ACADEMIA DA SAUDE DE CAPISTRANO | J65: AFETUS CLINICA E IMAGENS MEDICAS | K65: ADRIANA DA PENHA QUEIROZ DE PAULA | L65: ACADEMIA DA SAUDE | M65: ACADEMIA DE SAUDE BEIRA RIO II | N65: ACADEMIA GERACAO SAUDE | O65: ACADEMIA DE SAUDE ITAHUN | P65: A R F SERVICOS ODONTOLOGICOS | Q65: ACADEMIA DA SAUDE NOVA JERUSALEM | R65: ACADEMIA DA SAUDE DE SAO JOSE DOS CORDEIROS | S65: A L L GARCIA LTDA ME | T65: ACADEMIA DA SAUDE | U65: ACADEMIA DA SAUDE ISAIAS COELHO | V65: A M SAUDE SERVICOS MEDICOS LTDA | W65: ACADEMIA DE SAUDE DE PAJUCARA | X65: A4 COMERCIO DE PRODUTOS FARMACEUTICOS EIRELI | Y65: ALA DE DETENCAO DE PIMENTA BUENO | Z65: CELIO VASCONCELOS MOURAO | AA65: ACADEMIA DA SAUDE | AB65: A C CAMARGO CANCER CENTER UNIDADE CASTRO ALVES | AC65: ADRIANA BARBOSA DE LIMA | AD65: ACADEMIA DE SAUDE DE PIRAQUE
B66: Adesivo Odontologico | D66: AMBULANCIA USB MANCIO LIMA | E66: ACADEMIA DE SAUDE DE TEOTONIO VILELA | F66: CENTRO DE ESPECIALIDADE ODONTOLOGICA DE MACAPA | G66: ANESTESIOLOGISTAS ASSOCIADOS DO AMAZONAS S S LTDA | H66: AC FISIO | I66: ACADEMIA DA SAUDE DE CATUNDA | J66: AFFECTUS | K66: ADRIANA ENDRINGER RIBEIRO | L66: ACADEMIA DA SAUDE | M66: ACADEMIA DE SAUDE CAMPO DE POUSO | N66: ACADEMIA INTERMEDIARIA DE SAUDE VER EXPEDITO SENRA | O66: ACADEMIA DE SAUDE JARDIM PROGRESSO | P66: A R M SERVICOS MEDICOS LTDA | Q66: ACADEMIA DA SAUDE NOVO BRASIL | R66: ACADEMIA DA SAUDE DE SAO JOSE DOS RAMOS | S66: A L O C CLINICA MEDICA | T66: ACADEMIA DA SAUDE | U66: ACADEMIA DA SAUDE JOAZ SOUZA | V66: A M SERVICOS MEDICOS | W66: ACADEMIA DE SAUDE DE RIACHUELO | X66: AAA SERVICOS CLINICOS INTEGRADOS | Y66: ALA ODONTO | Z66: CEM CENTRO DE ESPECIALIZACAO MEDICA LTDA | AA66: ACADEMIA DA SAUDE | AB66: A C CAMARGO CANCER CENTER UNIDADE ITAIM | AC66: ADRIANA CESAR NASCIMENTO DE SANTANA | AD66: ACADEMIA DE SAUDE DE PIUM
B67: Adesivo Para Selagem de Materiais | D67: AMBULANCIA USB MANOEL URBANO 13 | E67: ACADEMIA DE SAUDE DO BOQUEIRAO | F67: CENTRO DE ESPECIALIDADES | G67: ANGIO LASER | H67: AC IMAGEM | I67: ACADEMIA DA SAUDE DE CAUCAIA | J67: AFL SERVICOS MEDICOS | K67: ADRIANA FIEL RIBEIRO | L67: ACADEMIA DA SAUDE | M67: ACADEMIA DE SAUDE CENTRO | N67: ACADEMIA SAUDE JANGADA | O67: ACADEMIA DE SAUDE MARIA DE LOURDES | P67: A R MEDICINA | Q67: ACADEMIA DA SAUDE NOVO HORIZONTE | R67: ACADEMIA DA SAUDE DE SERTAOZINHO | S67: A L WICTHOFF DITTERT | T67: ACADEMIA DA SAUDE | U67: ACADEMIA DA SAUDE JOSE LUIS SOBRINHO | V67: A M SERVICOS MEDICOS | W67: ACADEMIA DE SAUDE DO BAIRRO NOSSA SENHORA DA CONCEICAO | X67: AACD | Y67: ALAIRTON DE SOUZA LANA | Z67: CENTERLAB LTDA ME | AA67: ACADEMIA DA SAUDE | AB67: A C CAMARGO CANCER CENTER UNIDADE PIRES DA MOTA | AC67: ADRIANA KARLA JUVENAL SANTOS | AD67: ACADEMIA DE SAUDE DE PONTE ALTA DO BOM JESUS
B68: Adesivos Cirurgicos | D68: AMBULANCIA USB PLACIDO DE CASTRO 12 | E68: ACADEMIA DE SAUDE DR GLAUCIA MARIA DA COSTA BARROS | F68: CENTRO DE ESPECIALIDADES ODONTOLOGICAS | G68: ANGIO VASC SERVICOS HOSPITALARES | H68: AC LAB | I68: ACADEMIA DA SAUDE DE CHAVAL | J68: AFONSO TEATINI | K68: ADRIANA GOMES PESSOA | L68: ACADEMIA DA SAUDE | M68: ACADEMIA DE SAUDE CONSTANCIA MOREIRA | N68: ACADEMIA VIDA ATIVA | O68: ACADEMIA DE SAUDE MODALIDADE AMPLIADA | P68: A R S ALMEIDA SERVICOS MEDICOS | Q68: ACADEMIA DA SAUDE PARQUE DE EXPOSICAO E EVENTOS VALE DO SOL | R68: ACADEMIA DA SAUDE DE SOSSEGO | S68: A LUSTOZA DE CARLI CIA LTDA ME | T68: ACADEMIA DA SAUDE | U68: ACADEMIA DA SAUDE JOSE VIEIRA DE SANTANA | V68: A MORAES ASSISTENCIA MEDICA | W68: ACADEMIA DE SAUDE JOSE EDILSON DE MEDEIROS | X68: AACMESAC | Y68: ALAN DOMINGUES | Z68: CENTRO AUDITIVO DE RORAIMA LTDA EPP | AA68: ACADEMIA DA SAUDE | AB68: A C CLINICA MEDICA | AC68: ADRIANA KATIA DE OLIVEIRA | AD68: ACADEMIA DE SAUDE DE PORTO ALEGRE DO TOCANTINS
B69: Adesivos Para Dentadura | D69: AMBULANCIA USB PLACIDO DE CASTRO 17 | E69: ACADEMIA DE SAUDE JOSE JESUINO DOS SANTOS | F69: CENTRO DE ESPECIALIDADES ODONTOLOGICAS DE PORTO GRANDE AP | G69: ANGIOCLINIC | H69: AC VASCULAR | I69: ACADEMIA DA SAUDE DE CHOROZINHO | J69: AFYA HOSPITAL DIA | K69: ADRIANA GONRING | L69: ACADEMIA DA SAUDE | M69: ACADEMIA DE SAUDE DA VILA MACULAO | N69: ACADEMIA VIDA E SAUDE NOVA SANTA HELENA | O69: ACADEMIA DE SAUDE MUNICIPAL | P69: A R SAUDE | Q69: ACADEMIA DA SAUDE PAU DARCO | R69: ACADEMIA DA SAUDE DE UMBUZEIRO | S69: A M AVILA | T69: ACADEMIA DA SAUDE | U69: ACADEMIA DA SAUDE MANOEL DA COSTA MONTE | V69: A N J ASSOCIACAO NOVA JERUSALEM | W69: ACADEMIA DE SAUDE JOSE REGINALDO DE FREITAS | X69: AAPCB | Y69: ALANA COCCO | Z69: CENTRO CLINICO MAIS SAUDE ME | AA69: ACADEMIA DA SAUDE | AB69: A C CONTRUCCI LOMBARDI CONSULTORIO MEDICO | AC69: ADRIANA MENDONCA ABUD BARRETO | AD69: ACADEMIA DE SAUDE DE PORTO NACIONAL
B70: ADIPONECTINA | D70: AMBULANCIA USB PORTO ACRE 09 | E70: ACADEMIA DE SAUDE JOSE SOUZA SILVA ZE PITE | F70: CENTRO DE OLHOS DR PAULO GUERRA | G70: ANGIOFISIO | H70: ACACIA SERVICOS MEDICOS | I70: ACADEMIA DA SAUDE DE CRATEUS POLO I | J70: AG3 FISIOTERAPIA | K70: ADRIANA GUSMAO THOMAZ DE AQUINO | L70: ACADEMIA DA SAUDE | M70: ACADEMIA DE SAUDE DE BALSAS | N70: ACERTALAB | O70: ACADEMIA DE SAUDE PANA | P70: A R SORRISO LTDA | Q70: ACADEMIA DA SAUDE PEDRO SANTOS BARBOSA | R70: ACADEMIA DA SAUDE DE VIEIROPOLIS | S70: A M CLIN | T70: ACADEMIA DA SAUDE | U70: ACADEMIA DA SAUDE MARIA RIBEIRO DE JESUS | V70: A N LIMA ASSISTENCIA MEDICA | W70: ACADEMIA DE SAUDE MANGABEIRA | X70: AAPCCI IBIRAIARAS | Y70: ALANNA DUARTE SILVA ME | Z70: CENTRO CLINICO RADIOLOGICO LTDA | AA70: ACADEMIA DA SAUDE | AB70: A C CORDEIRO SERVICOS MEDICOS | AC70: ADRIANA PRATA RIBEIRO MENDONCA | AD70: ACADEMIA DE SAUDE DE PUGMIL
B71: Afastador Cirurgico Odontologico | D71: AMBULANCIA USB RIO BRANCO 04 | E71: ACADEMIA DE SAUDE LAURA AUGUSTA DE ALMEIDA | F71: CENTRO DE PREVENCAO E REABILITACAO ODONTOLOGICA CENTR | G71: ANIBAL RIBEIRO DE VASCONCELOS FERREIRA | H71: ACADEMIA DA SAUDE | I71: ACADEMIA DA SAUDE DE EUSEBIO | J71: AGALMA | K71: ADRIANA MACHADO DOS SANTOS | L71: ACADEMIA DA SAUDE | M71: ACADEMIA DE SAUDE DE CACHOEIRA GRANDE | N71: ACERTAMED | O71: ACADEMIA DE SAUDE PARQUE DO LAGO | P71: A S ASSESSORIA FONOAUDIOLOGICA LTDA ME | Q71: ACADEMIA DA SAUDE POLO BOM JARDIM | R71: ACADEMIA DA SAUDE DESPORTISTA BENEDITO DA PENHA MEDEIROS | S71: A M CLINICA CIRURGICA LTDA | T71: ACADEMIA DA SAUDE | U71: ACADEMIA DA SAUDE NAZARE DE PAULA LIMA | V71: A NOBRE SERVICOS MEDICOS | W71: ACADEMIA DE SAUDE TANCREDO NEVES | X71: AB ROMAN | Y71: ALENCAR PRODUCAO MEDICA | Z71: CENTRO DE ASSISTENCIA FARMACEUTICA | AA71: ACADEMIA DA SAUDE | AB71: A C DE CARVALHO SINDO PSICOLOGIA | AC71: ADRIANA SERVICOS ODONTOLOGICOS LTDA ME | AD71: ACADEMIA DE SAUDE DE RIACHINHO
B72: Afastador Gengival | D72: AMBULANCIA USB RIO BRANCO 05 | E72: ACADEMIA DE SAUDE LAURYNNE LESSA | F72: CENTRO DE SAUDE DE DESENVOLVIMENTO INFANTIL | G72: ANLAB | H72: ACADEMIA DA SAUDE | I72: ACADEMIA DA SAUDE DE FORQUILHA | J72: AGAPE ASSISTENCIA DOMICILIAR EM SAUDE | K72: ADRIANA MARA COLNAGO TOLENTINO | L72: ACADEMIA DA SAUDE 2 | M72: ACADEMIA DE SAUDE DE CENTRAL DO MARANHAO | N72: ACESSO SAUDE | O72: ACADEMIA DE SAUDE PLINIO BENTO DE MORAES | P72: A S M CLINICA MEDICA | Q72: ACADEMIA DA SAUDE POLO JARDIM AEROPORTO | R72: ACADEMIA DA SAUDE DIJARBAS BEZERRA CAVALCANTE | S72: A M DE SOUZA PAVONI FISIOTERAPIA ME | T72: ACADEMIA DA SAUDE | U72: ACADEMIA DA SAUDE NOVA PARNAGUA | V72: A NOSSA DROGARIA DE CAXIAS | W72: ACADEMIA SAUDE SEVERIANO MELO | X72: ABAPP | Y72: ALERGOVACINAS | Z72: CENTRO DE DESENVOLVIMENTO HUMANO RORAIMA ME | AA72: ACADEMIA DA SAUDE | AB72: A C DE GODOI PERCIANI CLINICA ODONTOLOGICA | AC72: ADRIANO AUGUSTO CALDAS BARROS | AD72: ACADEMIA DE SAUDE DE SANTA TEREZA DO TOCANTINS
B73: Afastador/Aproximador Cirurgico | D73: AMBULANCIA USB RIO BRANCO 06 | E73: ACADEMIA DE SAUDE MARIA ALVENS DE MARTINS | F73: CENTRO DE TERAPIA BIOLOGICA DO AMAPA | G73: ANMAR CLINICA DE FISIOTERAPIA | H73: ACADEMIA DA SAUDE | I73: ACADEMIA DA SAUDE DE FORQUILHA CENTRO | J73: AGENCIA TRANSFUSIONAL HOSPITAL DF STAR | K73: ADRIANA OLIVEIRA MIRANDA | L73: ACADEMIA DA SAUDE ANDREIA MENDES DE MOURA | M73: ACADEMIA DE SAUDE DE GRAJAU | N73: ACIR ANDRE NOVACZYK | O73: ACADEMIA DE SAUDE PRIMO FIORAVANTI | P73: A SALUTAR | Q73: ACADEMIA DA SAUDE PRACA DA BIBLIA | R73: ACADEMIA DA SAUDE DO CRISTO REI | S73: A M ROCHA VILLA MEDICINA LTDA | T73: ACADEMIA DA SAUDE 01 | U73: ACADEMIA DA SAUDE NOVA PARNAIBA | V73: A NOSSA DROGARIA DE CAXIAS | W73: ACAPORD | X73: ABDALA SERVICOS MEDICOS LTDA | Y73: ALESSANDRA DALLA MARTHA CAMARINI | Z73: CENTRO DE SAUDE INTEGRADA PSIAMOR LTDA | AA73: ACADEMIA DA SAUDE | AB73: A C DOS SANTOS SERVICOS DE PSICOLOGIA | AC73: ADRIELE SILVEIRA ARAUJO MELO | AD73: ACADEMIA DE SAUDE DE SAO BENTO DO TOCANTINS
B74: Agente de Adesão/Silanização | D74: AMBULANCIA USB RIO BRANCO 07 | E74: ACADEMIA DE SAUDE MARIA DO CARMO DE MELO | F74: CENTRO INTEGRADO DE DERMATOLOGIA DRA IANA AGUIAR | G74: ANNE KAROLYNNE LOPES CARNEIRO | H74: ACADEMIA DA SAUDE | I74: ACADEMIA DA SAUDE DE GROAIRAS | J74: AGENCIA TRANSFUSIONAL HOSPITAL SANTA LUZIA | K74: ADRIANA RODRIGUES DE OLIVEIRA | L74: ACADEMIA DA SAUDE ANTONIO ANDRADE DE MELO | M74: ACADEMIA DE SAUDE DE ITINGA DO MARANHAO | N74: ACIR ANDRE NOVACZYK | O74: ACADEMIA DE SAUDE PROFESSOR VALMIR PIRES DE MORAIS | P74: A SAUDE DA MULHER | Q74: ACADEMIA DA SAUDE PROFESSOR SANDRO RODRIGUES ALVES | R74: ACADEMIA DA SAUDE DO GEISEL | S74: A M UROLOGIA | T74: ACADEMIA DA SAUDE 02 | U74: ACADEMIA DA SAUDE ODONEL MOURA | V74: A NOSSA DROGARIA DE CAXIAS BANGU | W74: ACLA ANALISES CLINICAS DE ALEXANDRIA | X74: ABDALLA JUMA ABDALLA ABDEL HAMID | Y74: ALESSANDRA SABRINA RODRIGUES GURGEL EIRELI | Z74: CENTRO ESPECIALIZADO EM ANGIOLOGIA E CIRURGIA VASCULAR EIREL | AA74: ACADEMIA DA SAUDE | AB74: A C E I SERVICOS MEDICOS ESPECIALIZADOS S S | AC74: ADRIENE MENESES DE ALMEIDA E GOIS | AD74: ACADEMIA DE SAUDE DE SAO MIGUEL TO GAB PREFEITO
B75: Agente de Obturacao Provisoria | D75: AMBULANCIA USB RIO BRANCO 08 | E75: ACADEMIA DE SAUDE MARIA ROZA DOS PRAZERES | F75: CENTRO MEDICO DANIELA RAULINO | G75: ANNITA ISABEL BOSAK MENDES DE OLIVEIRA | H75: ACADEMIA DA SAUDE | I75: ACADEMIA DA SAUDE DE GUARACIABA DO NORTE | J75: AGORA | K75: ADRIANA TARDIN DE RESENDE MISSAGIA | L75: ACADEMIA DA SAUDE ANTONIO CORREIA GUIMARAES | M75: ACADEMIA DE SAUDE DE JENIPAPO DOS VIEIRAS | N75: ACRIFE | O75: ACADEMIA DE SAUDE VILA VARGAS | P75: A T CLINICA MEDICA S S LTDA | Q75: ACADEMIA DA SAUDE RAIMUNDO BESSA BITENCOURT | R75: ACADEMIA DA SAUDE DO LIGEIRO | S75: A MANDALA | T75: ACADEMIA DA SAUDE 03 | U75: ACADEMIA DA SAUDE OEIRAS NOVA | V75: A NOSSA DROGARIA DE CAXIAS BONSUCESSO | W75: ACQUA ORALE | X75: ABDO ABBAS ABED HUSEIN ABED | Y75: ALEXANDRA THAISA DALLAVECCHIA | Z75: CENTRO ESPECIALIZADO MEDICO ODONTOLOGICO LTDA ME | AA75: ACADEMIA DA SAUDE | AB75: A C E SERVICOS MEDICOS | AC75: AECIO COSTA CAVALCANTI | AD75: ACADEMIA DE SAUDE DE SAO SALVADOR
B76: Agente Inibidor da Carie Dental | D76: AMBULANCIA USB RODRIGUES ALVES | E76: ACADEMIA DE SAUDE MOISES ALBUQUERQUE SILVA | F76: CENTRO MULTIPROFISSIONAL DO AMAPA | G76: ANTONIO DA COSTA GUIMAS | H76: ACADEMIA DA SAUDE | I76: ACADEMIA DA SAUDE DE HORIZONTE ELVIS LEI MACHADO DE ALMEIDA | J76: AGORA | K76: ADRIANA ZUCOLOTTO CHAGAS | L76: ACADEMIA DA SAUDE ARY GALDINO DE SOUZA | M76: ACADEMIA DE SAUDE DE MAGALHAES DE ALMEIDA | N76: AD SAUDE DO TRABALHO | O76: ACADEMIA INTERMEDIARIA DE ARAL MOREIRA | P76: A T SERVICOS DE SAUDE LTDA | Q76: ACADEMIA DA SAUDE RESENDE II | R76: ACADEMIA DA SAUDE ERNANI SATIRO | S76: A MATEUS DE SOUZA GELLI SERVICOS MEDICOS | T76: ACADEMIA DA SAUDE 04 | U76: ACADEMIA DA SAUDE PARNAGUA | V76: A NOSSA DROGARIA DE CAXIAS BONSUCESSO II | W76: ACUPUNTURA CENTER | X76: ABEL RANZZI | Y76: ALINE ALVES NOGUEIRA DO LAGO | Z76: CENTRO MEDICO VILLE ROY LTDA | AA76: ACADEMIA DA SAUDE | AB76: A C G SERVICOS MEDICOS RIBEIRAO PRETO | AC76: AELSON FONSECA COSTA | AD76: ACADEMIA DE SAUDE DE SILVANOPOLIS
B77: Agentes Cimentantes | D77: AMBULANCIA USB SENA MADUREIRA 21 | E77: ACADEMIA DE SAUDE PADRE CICERO | F77: CENTRO MUNICIPAL DE DIAGNOSTICO | G77: ANTONIO EDME DA COSTA PEDROSO | H77: ACADEMIA DA SAUDE | I77: ACADEMIA DA SAUDE DE IBARETAMA | J77: AHAVA | K77: ADRIANE DE ANDRADE LENGRUBER | L77: ACADEMIA DA SAUDE BURITI | M77: ACADEMIA DE SAUDE DE PRESIDENTE JUSCELINO | N77: ADALBERTO FERREIRA DA SILVA | O77: ACADEMIA MUNICIPAL DE SAUDE | P77: A V DE LIMA SERVICOS MEDICOS | Q77: ACADEMIA DA SAUDE STA IZABEL | R77: ACADEMIA DA SAUDE JEREMIAS GALDINO | S77: A MEDICINA DIAGNOSTICA | T77: ACADEMIA DA SAUDE 05 | U77: ACADEMIA DA SAUDE PRACA DO CRUZEIRO | V77: A NOSSA DROGARIA DE CAXIAS CAMPO GRANDE | W77: ADEFERN | X77: ABEL SOUTO CRUZ | Y77: ALINE MOREIRA RIOS CUNHA | Z77: CENTRO OFTALMOLOGICO AIRTON ROCHA S C LTDA ME | AA77: ACADEMIA DA SAUDE | AB77: A C GANDOLPHO LIMEIRA | AC77: AFB CONSULTORIA E ASSESSORIA PSICOLOGIA LTDA | AD77: ACADEMIA DE SAUDE DE TALISMA TOCANTINS
B78: Agentes Clareadores Dentais | D78: AMBULANCIA USB SENADOR GUIOMARD 15 | E78: ACADEMIA DE SAUDE PEDRO ANTONIO CORDEIRO GOMES | F78: CENTRO NUTRICIONAL DE MACAPA | G78: ANTONIO JORGE DE MEDEIROS | H78: ACADEMIA DA SAUDE | I78: ACADEMIA DA SAUDE DE IBIAPINA | J78: AIO ANDREA INSTITUTO ODONTOLOGICO | K78: ADRIANE PAIVA COCK DA CUNHA LIMA | L78: ACADEMIA DA SAUDE CENTRO POLIESPORTIVO | M78: ACADEMIA DE SAUDE DE RIACHAO | N78: ADALBERTO FRANCISCO BUSS LIMA | O78: ACBR | P78: A3 ESPACOS MEDICOS EIRELI | Q78: ACADEMIA DA SAUDE UNIDADE 10 DE MAIO | R78: ACADEMIA DA SAUDE JOAO FRANCISCO SOARES | S78: A MEDICINA DIAGNOSTICA | T78: ACADEMIA DA SAUDE AGRESTINA | U78: ACADEMIA DA SAUDE PRACA DO MUTIRAO | V78: A NOSSA DROGARIA DE CAXIAS CAMPO GRANDE | W78: ADOTE | X78: ABESS | Y78: ALINE RANCONI TORRES | Z78: CERVEIRA PARIZOTO E ROCHA LTDA | AA78: ACADEMIA DA SAUDE | AB78: A C L P SERVICOS MEDICOS | AC78: AFETOS NUCLEO DE DESENVOLVIMENTO INFANTIL LTDA | AD78: ACADEMIA DE SAUDE DE TOCANTINIA
B79: Agitador e Homogeneizador | D79: AMBULANCIA USB XAPURI 18 | E79: ACADEMIA DE SAUDE TEREZENHA GOMES DA SILVA | F79: CENTRO OCULAR DR ROGERIO CARDOSO | G79: ANTONIO JORGE SILVA DE OLIVEIRA | H79: ACADEMIA DA SAUDE | I79: ACADEMIA DA SAUDE DE ICO | J79: AIO INSTITUTO CANCER AGUAS CLARAS | K79: ADRIANO DE FREITAS AZEVEDO | L79: ACADEMIA DA SAUDE CONVIVER SAUDE | M79: ACADEMIA DE SAUDE DE SAO BERNARDO | N79: ADAPTA FONOAUDIOLOGIA | O79: ACCGD | P79: A9 LAB PESQUISA E DIAGNOSTICO | Q79: ACADEMIA DA SAUDE UNIDADE BOA ESPERANCA | R79: ACADEMIA DA SAUDE JOSE RODOLPHO MELO CAVALCANTE | S79: A MEDICINA DIAGNOSTICA | T79: ACADEMIA DA SAUDE ALEX JOSE RODRIGUES DOS SANTOS | U79: ACADEMIA DA SAUDE PROJOVEM | V79: A NOSSA DROGARIA DE CAXIAS CENTRO | W79: ADVANCE DIAGNOSTICO LABORATORIO DE ANALISES CLINICAS | X79: ABILE ODONTOLOGIA | Y79: ALINHAR ESTUDIO PILATES | Z79: CLIN VIDA ATIVIDADE MEDICA S S LTDA | AA79: ACADEMIA DA SAUDE CAMPO BELO DO SUL | AB79: A C M ANALISES CLINICAS MARILIA | AC79: AFFECTUS SAUDE INTEGRADA | AD79: ACADEMIA DE SAUDE DE WANDERLANDIA
B80: AGONISTA DO RECEPTOR DE PEPTÍDEO DA ALFA-TROPONINA (TRP) | D80: AMBULATORIO INTEGRADO DE ENSINO | E80: ACHADAO | F80: CENTROCOR | G80: ANTONIO LAMAR NUNES | H80: ACADEMIA DA SAUDE | I80: ACADEMIA DA SAUDE DE IPAPORANGA POLO I | J80: AIO INSTITUTO DE CANCER DE BRASILIA ADVANCE | K80: ADRIELLY FERREIRA LIMA CARMACHO | L80: ACADEMIA DA SAUDE CORREGO DO OURO | M80: ACADEMIA DE SAUDE DE SATUBINHA | N80: ADAPTA T O | O80: ACESSO SAUDE | P80: AA P ASSISTENCIA MEDICA | Q80: ACADEMIA DA SAUDE UNIDADE CENTRO | R80: ACADEMIA DA SAUDE JUSCELINO MARQUES DE LIMA | S80: A MEDICINA DIAGNOSTICA | T80: ACADEMIA DA SAUDE ALTO DA CONQUISTA | U80: ACADEMIA DA SAUDE QUEIMADA NOVA | V80: A NOSSA DROGARIA DE CAXIAS LTDA | W80: AE ODONTODAY ODONTOLOGIA EIRELI | X80: ABILIO MOACIR DA SILVA | Y80: ALKIMIA SPA | Z80: CLINICA ARCOVERDE LTDA EPP | AA80: ACADEMIA DA SAUDE CENTRAL | AB80: A C NUNES CLINICA MEDICA LTDA ME | AC80: AFLP ODONTOLOGIA | AD80: ACADEMIA DE SAUDE DE WANDERLANDIA II
B81: Agulha de Fistula | D81: AMOR SAUDE | E81: ACIOLE THALE PSICOLOGIA | F81: CENTRODONTO | G81: ANTONIO TONON | H81: ACADEMIA DA SAUDE | I81: ACADEMIA DA SAUDE DE IPUEIRAS | J81: AIO INSTITUTO DE CANCER DE BRASILIA ASA NORTE BIOSPHERE | K81: AESA ASSISTENCIA ESPECIALIZADA EM SAUDE | L81: ACADEMIA DA SAUDE CREFIS | M81: ACADEMIA DE SAUDE DE TUTOIA | N81: ADCANP ASSOCIACAO DOS DEFICIENTES DE CAMPO NOVO DO PARECIS | O81: ACKC SERVICOS MEDICOS | P81: AACD | Q81: ACADEMIA DA SAUDE VALDIR FARIAS PINHEIRO | R81: ACADEMIA DA SAUDE KIUSA MARCELA FRAZAO QUEIMADAS | S81: A MEDICINA DIAGNOSTICA | T81: ACADEMIA DA SAUDE ALTO DA TEMPERATURA | U81: ACADEMIA DA SAUDE REDENCAO DO GURGUEIA | V81: A NOSSA DROGARIA DE CAXIAS MADUREIRA | W81: AECIO JUNIOR | X81: ABO RS | Y81: ALMEIDA FARMA | Z81: CLINICA AUDITIVA SERVICOS LTDA | AA81: ACADEMIA DA SAUDE DE BOTUVERA VEREADOR JOAO BATISTA BROGNI | AB81: A C P UROLOGIA | AC81: AFOP CLINICA MEDICA E SERVICO DE SAUDE | AD81: ACADEMIA DE SAUDE FRANCISCO FLAVIO B DA S DE MONTE SANTO
B82: Agulha de Infusão descartável | D82: ANA CAROLINE FONSECA BEZERRA | E82: ACRESC | F82: CEO CENTRO DE EXCELECIA ODONTOLOGICA | G82: APAE DE IRANDUBA | H82: ACADEMIA DA SAUDE | I82: ACADEMIA DA SAUDE DE IRAUCUBA | J82: AIO INSTITUTO DO CANCER DE BRASILIA LTDA PATIO CAPITAL | K82: AESA CAPACITACAO | L82: ACADEMIA DA SAUDE DE ADELANDIA LIBIA DINIZ | M82: ACADEMIA DE SAUDE DO AEROPORTO | N82: ADE LABOR EIRELI | O82: ACOLHER CLINICA DE PSICOLOGIA | P82: AACD FONOAUDIOLOGIA | Q82: ACADEMIA DE CARANANDUBA | R82: ACADEMIA DA SAUDE MAE DAGUA | S82: A MEDICINA DIAGNOSTICA | T82: ACADEMIA DA SAUDE ALTO SANTA INES | U82: ACADEMIA DA SAUDE SANTA FE | V82: A NOSSA DROGARIA DE CAXIAS MADUREIRA | W82: AFETO NUCLEO DE TERAPIAS | X82: ABP SERVICOS MEDICOS SS LTDA | Y82: ALMEIDA SERVICOS MEDICOS | Z82: CLINICA CARDIOLOGICA JDC LTDA EPP | AA82: ACADEMIA DA SAUDE DE CAPAO ALTO | AB82: A C RENES CLINICA MEDICA DESCALVADO | AC82: AGENCIA TRANSFUSIONAL HOSPITAL SAO LUCAS | AD82: ACADEMIA DE SAUDE IPUEIRAS
B83: Agulha Para Acupuntura | D83: ANA PAULA PEREIRA DE OLIVEIRA | E83: ADCABB | F83: CEPAC CENTRO DIAG ANAT PATOL CITOPATOLOGIA | G83: APAE DE ITACOATIARA | H83: ACADEMIA DA SAUDE | I83: ACADEMIA DA SAUDE DE JAGUARUANA | J83: AIUTARE INSTITUTO DE PSICOLOGIA | K83: AF DERMATOLOGIA | L83: ACADEMIA DA SAUDE DE AGUA FRIA DE GOIAS | M83: ACADEMIA DE SAUDE DO AFOGA | N83: ADELSON BALBINO VIEIRA | O83: ACOLHER ESPACO TERAPEUTICO | P83: AADV PC | Q83: ACADEMIA DE SAUDE | R83: ACADEMIA DA SAUDE MANOEL BENEVENUTO NETO | S83: A MEDICINA DIAGNOSTICA | T83: ACADEMIA DA SAUDE AMPLIADA JOSE FELICIANO DOS SANTOS | U83: ACADEMIA DA SAUDE SAO DOMINGOS | V83: A NOSSA DROGARIA DE CAXIAS PENHA | W83: AFIG | X83: ABRACE CLINICA DE SAUDE | Y83: ALMOXARIFADO CAF | Z83: CLINICA DE ASSISTENCIA MEDICA A MULHER LTDA ME | AA83: ACADEMIA DA SAUDE DE ERVAL VELHO | AB83: A C SERV MEDICOS E PLANOS SAUDE SC LTDARUA AUGUSTA | AC83: AGENOR VILLAR NETO | AD83: ACADEMIA DE SAUDE JARDIM PAULISTA
B84: AGULHA PARA BIÓPSIA | D84: ANA RITA CANOVAS DO PRADO CARNEIRO | E84: ADEFAL | F84: CESB LUGAR DE SORRISOS | G84: APAE MANAUS | H84: ACADEMIA DA SAUDE | I84: ACADEMIA DA SAUDE DE MERUOCA | J84: AKESO CLINIC CENTER | K84: AF ODONTOLOGIA | L84: ACADEMIA DA SAUDE DE AMERICANO DO BRASIL | M84: ACADEMIA DE SAUDE DO BAIRRO AREAL | N84: ADEMAR GARCIA | O84: ACPD | P84: AAG SAUDE INTEGRAL | Q84: ACADEMIA DE SAUDE | R84: ACADEMIA DA SAUDE OLIVIA LINHARES DO O | S84: A MEDICINA DIAGNOSTICA | T84: ACADEMIA DA SAUDE ANTONIO CRISPINIANO DA SILVA | U84: ACADEMIA DA SAUDE SAO JOAO BATISTA | V84: A NOSSA DROGARIA DE CAXIAS PENHA | W84: AFIM CLINIC | X84: ABRACE TO JANAINA ARMENDARIS | Y84: ALMOXARIFADO E FARMACIA MUNICIPAL | Z84: CLINICA DE FISIOTERAPIA E ORTOPEDICA SANTA LUCIA LTDA | AA84: ACADEMIA DA SAUDE DE FLOR DO SERTAO | AB84: A C SERVICOS DE SAUDE S S LTDA | AC84: AGNALDO ANDRADE SANTOS | AD84: ACADEMIA DE SAUDE JESSE COSTA E SILVA TOCANTINOPOLIS
B85: Agulhas | D85: ANDRE ALVES CAMELO | E85: ADEFIDEG | F85: CLIAP CLINICA DE ATIVIDADES PSICOLOGICAS | G85: APNON | H85: ACADEMIA DA SAUDE 02 | I85: ACADEMIA DA SAUDE DE MILAGRES | J85: AL ODONTOLOGIA | K85: AF SERVICOS MEDICOS LTDA S C LTDA | L85: ACADEMIA DA SAUDE DE ANICUNS | M85: ACADEMIA DE SAUDE DO CONJUNTO BOA VISTA | N85: ADEMAR RODRIGUES CARVALHO | O85: ACREDITAR HABILITACAO E REABILITACAO | P85: AAMAR | Q85: ACADEMIA DE SAUDE | R85: ACADEMIA DA SAUDE PADRE IBIAPINA | S85: A MEDICINA DIAGNOSTICA | T85: ACADEMIA DA SAUDE ANTONIO LOPES DA SILVA ANTONIO CABOCLO | U85: ACADEMIA DA SAUDE SAO JOSE | V85: A NOSSA DROGARIA DE CAXIAS REALENGO | W85: AG SANTOS ODONTOLOGIA | X85: ABREU THOMAS CONSULTORIA LTDA | Y85: ALPHA | Z85: CLINICA DE IMAGENOLOGIA DE BOA VISTA LTDA | AA85: ACADEMIA DA SAUDE DE IPUACU | AB85: A C STRADIOTO CLINICA ODONTOLOGICA EIRELI ME | AC85: AGNALDO DOS SANTOS | AD85: ACADEMIA DE SAUDE MARIA DAS DORES DA MATA
B86: Agulhas Descartaveis | D86: ANDRE LUIZ RODRIGUES DE CAMARGO ME | E86: ADEFIMAR | F86: CLIDENT | G86: ARI GONCALVES | H86: ACADEMIA DA SAUDE ALYSSON XAVIER DOS SANTOS | I86: ACADEMIA DA SAUDE DE MONS TABOSA POLO I | J86: ALAOR JOSE TOLEDO | K86: AFETO TERAPIAS AVANCADAS E DESENVOLVIMENTO HUMANO | L86: ACADEMIA DA SAUDE DE CABECEIRAS | M86: ACADEMIA DE SAUDE DO POVOVOADO BREJINHO | N86: ADEMIR CAPISTRANO PEREIRA | O86: ACYR GODOY DOUEIDAR | P86: AAMAR | Q86: ACADEMIA DE SAUDE BENFICA | R86: ACADEMIA DA SAUDE PAULO CABRAL DE CASTRO | S86: A MEDICINA DIAGNOSTICA | T86: ACADEMIA DA SAUDE AURORA | U86: ACADEMIA DA SAUDE SAO VICENTE DE PAULA | V86: A NOSSA DROGARIA DE CAXIAS SANTA CRUZ | W86: AGAPE CLINICA | X86: ABREUMED LTDA | Y86: ALPHA RADIOLOGIA ODONTOLOGIA | Z86: CLINICA DE IMAGENOLOGIA NEUROSCAN S C | AA86: ACADEMIA DA SAUDE DE MARAVILHA | AB86: A C T GASTROCLINICA PORTO FERREIRA | AC86: AGUIA ESPACO TERAPEUTICO | AD86: ACADEMIA DE SAUDE MARIA VITORIA
B87: Agulhas Gengivais Descartaveis | D87: ANGELA CLAUDIA PAIXAO SOARES DE MAGALHAES | E87: ADEFIP | F87: CLIFOR CLINICA DE FONOAUDIOLOGIA E REABILITACAO | G87: ARIVALDO LIMA CARDOSO | H87: ACADEMIA DA SAUDE ANA LUCIA MACEDO ARAUJO | I87: ACADEMIA DA SAUDE DE NOVA OLINDA | J87: ALCURI CIRURGIA PLASTICA | K87: AFFETTO HOMECARE LTDA | L87: ACADEMIA DA SAUDE DE CUMARI | M87: ACADEMIA DE SAUDE FILIPE MACIEL LARANJEIRAS | N87: ADIR SOARES MACHADO JUNIOR | O87: ADEMAR ISSAO TANAKA | P87: AAME SAUDE SERVICOS MEDICOS LIMITADA | Q87: ACADEMIA DE SAUDE CENTRO | R87: ACADEMIA DA SAUDE POLO BASICO | S87: A MEDICINA DIAGNOSTICA | T87: ACADEMIA DA SAUDE AVENIDA RIO BRANCO I | U87: ACADEMIA DA SAUDE SEDE | V87: A NOSSA DROGARIA DE CAXIAS SULACAP | W87: AL DERMATOLOGIA | X87: ABSOLUTA ODONTOLOGIA ESPECIALIZADA | Y87: ALPHACLIN EXCELENCIA EM DIAGNOSTICO | Z87: CLINICA EMILIA ALEXANDRINO FERREIRA LTDA | AA87: ACADEMIA DA SAUDE DE MONDAI | AB87: A C V SVERZUT | AC87: AIDA MARIA MAYNART PEREIRA OLIVEIRA | AD87: ACADEMIA DE SAUDE MUNICIPAL DE ESPERANTINA TO
B88: Agulhas Para Sutura | D88: ANGIO CLINIC SAO JUDAS TADEU | E88: ADEFISALQ | F88: CLIMAMA SECCO JUNG ONCOCLINICA DO BRASIL | G88: ARMANDO BANDEIRA DOS SANTOS | H88: ACADEMIA DA SAUDE AREMBEPE | I88: ACADEMIA DA SAUDE DE PARACURU | J88: ALEJANDRA ELISA RUIZ ZAPATA | K88: AFPES | L88: ACADEMIA DA SAUDE DE GOIANIRA | M88: ACADEMIA DE SAUDE FLORIANO PEREIRA SILVA | N88: ADMITA CLINICA MEDICA E OCUPACIONAL | O88: ADEMIR BOSSAY CANDIA | P88: AAODONTOLOGIA | Q88: ACADEMIA DE SAUDE DA CONQUISTA | R88: ACADEMIA DA SAUDE PORTAL | S88: A MEDICINA DIAGNOSTICA | T88: ACADEMIA DA SAUDE AVENIDA RIO BRANCO II | U88: ACADEMIA DA SAUDE SEDE | V88: A OSSOTRAUMA | W88: AL WIND SOLUCOES | X88: ABV SAUDE | Y88: ALPHACLIN LABORATORIOS JATUARANA | Z88: CLINICA GASTRO HEPATO LTDA | AA88: ACADEMIA DA SAUDE DE PAULO LOPES | AB88: A CASA AMARELA INSTITUTO DE PSICOSSOMATICA CORPO COM CIENCIA | AC88: AIRTON BARBOSA PEIXOTO | AD88: ACADEMIA DE SAUDE PEDRO PEREIRA SANTANA DE BANDEIRANTES DO T
B89: Alavanca Odontologica | D89: ANSSAU CLINICA DE ESPECIALIDADES | E89: ADEFISBOM | F89: CLIMAP | G89: ARTE DO SORRISO | H89: ACADEMIA DA SAUDE ARLINDO PAIXAO | I89: ACADEMIA DA SAUDE DE PARAMOTI | J89: ALENCAR PRODUTOS E SERVICOS ODONTOLOGICOS | K89: AGALMA | L89: ACADEMIA DA SAUDE DE GUARANI DE GOIAS | M89: ACADEMIA DE SAUDE FREI ALBERTO DE MILAO | N89: ADONAI JOSE DE MENDONCA | O89: ADEMIR GARCIA BAENA | P89: AAPE | Q89: ACADEMIA DE SAUDE DA ESF BERNARDO DE OLIVEIRA PANTOJA | R89: ACADEMIA DA SAUDE PRACA HELENO HENRIQUE DOS SANTOS | S89: A MEDICINA DIAGNOSTICA | T89: ACADEMIA DA SAUDE BAIRRO SAO JOSE | U89: ACADEMIA DA SAUDE TAMARA DA SILVA LEAL | V89: A P ALERGO | W89: ALBERTO FONSECA ODONTOLOGIA INTEGRADA | X89: AC DERMATOLOGIA | Y89: ALPHACLIN LABORATORIOS MATRIZ | Z89: CLINICA INTEGRADA BREVES LTDA ME | AA89: ACADEMIA DA SAUDE DE PRAIA GRANDE | AB89: A CASA HUMANA MEDICINA CLINICA E PREVENTIVA LTDA | AC89: AIRTON MACHADO TELES BARRETO | AD89: ACADEMIA DE SAUDE SAMPAIO
B90: ALBUMINA | D90: ANTONIO CLEMENTINO DA CRUZ JUNIOR | E90: ADEFSMIC | F90: CLIMAP | G90: ARTS ODONTOLOGIA ESTETICA E IMPLANTES | H90: ACADEMIA DA SAUDE BAIRRO SANTOS DUMONT | I90: ACADEMIA DA SAUDE DE PENTECOSTE | J90: ALERGIA INTEGRADA | K90: AGAPE HOME CARE | L90: ACADEMIA DA SAUDE DE IACIARA | M90: ACADEMIA DE SAUDE ICATU | N90: ADONIS NUNES | O90: ADIFA MS | P90: AARAO GOMES DE ASSIS | Q90: ACADEMIA DE SAUDE DA FLEXEIRA | R90: ACADEMIA DA SAUDE PRACA MIRON MAIA | S90: A MEDICINA DIAGNOSTICA | T90: ACADEMIA DA SAUDE BAIRRO SAO LUIZ | U90: ACADEMIA DA SAUDE TRES LAGOAS | V90: A P ALVES RENO DE SOUZA SERVICOS MEDICOS | W90: ALBUQUERQUE E MARQUES SERVICOS MEDICOS LTDA | X90: AC MED MEDICOS ASSOCIADOS | Y90: ALTAFARMA | Z90: CLINICA INTEGRADA CATHEDRAL LTDA | AA90: ACADEMIA DA SAUDE DE ROMELANDIA | AB90: A CLINICA OPUS MEDICINA LTDA | AC90: AJUCLIN CLINICA MEDICA DE ARACAJU LTDA | AD90: ACADEMIA DE SAUDE TEREZINHA BARREIRA E LIRA
B91: Alca de Polipectomia | D91: ANTONIO HERBERT LEITE MILITAO | E91: ADELIA MARIA DE ARAUJO MELO | F91: CLIMED INSTITUTO DE OLHOS DO AMAPA | G91: ASB CONSULTORIO DE ODONTOLOGIA | H91: ACADEMIA DA SAUDE BEM BOM | I91: ACADEMIA DA SAUDE DE PINDORETAMA | J91: ALERGO VACCINE | K91: AGATHOS CLINICA DE PSICOLOGIA S S LTDA EPP | L91: ACADEMIA DA SAUDE DE INDIARA | M91: ACADEMIA DE SAUDE JOSE ELSIVAN REGO DE SOUSA | N91: ADOP SERVICOS MEDICOS | O91: ADMILSON MACHADO DE OLIVEIRA | P91: AAS MED CLINICA | Q91: ACADEMIA DE SAUDE DE ALTO PERERU | R91: ACADEMIA DA SAUDE PROFESSOR ADAO VILAR GUEDES | S91: A MEDICINA DIAGNOSTICA UNIDADE SAO JOSE DOS PINHAIS | T91: ACADEMIA DA SAUDE CAETES 1 | U91: ACADEMIA DA SAUDE V | V91: A PAIVA CLINICA MEDICA | W91: ALDENORA ANDRADE | X91: AC MEDICAS ASSOCIADAS | Y91: ALVARES NUNES | Z91: CLINICA MAE DE DEUS LTDA ME | AA91: ACADEMIA DA SAUDE DE URUPEMA | AB91: A CLINICA ORAL | AC91: ALAN CHESTER FEITOSA DE JESUS | AD91: ACADEMIA DE SAUDE VALDERI BARREIRA MIRANDA
B92: Alca de Resseccao | D92: ANTONIO LISBOA CARNEIRO BRAGA | E92: ADFIMA | F92: CLINIBEM | G92: ASSEMED | H92: ACADEMIA DA SAUDE BOA NOVA | I92: ACADEMIA DA SAUDE DE PIQUET CARNEIRO | J92: ALERGOCENTRO EXCELENCA EM ALERGIA | K92: AGENCIA MUNICIPAL DE AGENDAMENTO DE PINHEIROS | L92: ACADEMIA DA SAUDE DE ISRAELANDIA | M92: ACADEMIA DE SAUDE MIGUEL NUNES | N92: ADRIANA BOTTAN | O92: ADOLETA CENTRO DE PSICOLOGIA INFANTIL | P92: AAS MED CLINICA | Q92: ACADEMIA DE SAUDE DE AUGUSTO CORREA | R92: ACADEMIA DA SAUDE PROFESSORA MARIA DA GLORIA BEZERRA CALDA | S92: A NIMER ODONTOLOGIA | T92: ACADEMIA DA SAUDE CAJUEIRO SECO | U92: ACADEMIA DA SAUDE VI PARQUE RECREIO | V92: A PONTES SERVICOS MEDICOS ESPECIALIZADOS EIRELI | W92: ALERGOCENTER | X92: ACADEF | Y92: ALVOLAB LABORATORIO DE ANALISES CLINICAS | Z92: CLINICA MED CENTER LTDA | AA92: ACADEMIA DA SAUDE DR HERBERTO HENRIQUE ARGUELLO DE MELDAU | AB92: A CRISTINA LOPES PSICOLOGIA LTDA | AC92: ALCIDES SILVA GOES | AD92: ACADEMIA ESPACO VIDA SAUDAVEL
B93: Alcas Para Endoscopia | D93: APADEQ | E93: ADONIS BORN MUNIZ | F93: CLINICA ANGIOLOGICA DR GUIMARAES | G93: ATELIE DENTARIO | H93: ACADEMIA DA SAUDE CENTRO | I93: ACADEMIA DA SAUDE DE QUITERIANOPOLIS | J93: ALERGOCENTRO EXCELENCIA EM ALERGIA | K93: AGILIS LABORATORIO DE PATOLOGIA | L93: ACADEMIA DA SAUDE DE ITABERAI | M93: ACADEMIA DE SAUDE POVOADO JACARE | N93: ADRIANA CANDIDA ALBUQUERQUE NOGUEIRA | O93: ADOLFO MATEO MAGARINOS SOARES | P93: AAZ SERVICOS MEDICOS | Q93: ACADEMIA DE SAUDE DE BAIAO | R93: ACADEMIA DA SAUDE PUBLICA | S93: A P A E ATALAIA | T93: ACADEMIA DA SAUDE CAMOCIM DE SAO FELIX | U93: ACADEMIA DE JOAO COSTA | V93: A R AYRES ODONTOLOGIA | W93: ALFA SAUDE | X93: ACADEMIA | Y93: AMAZONDENT | Z93: CLINICA MEDICA ESPECIALIZADA LTDA ME | AA93: ACADEMIA DA SAUDE DR JORGE LUIS CAMARGO INCHAUSTE | AB93: A D FISIOTERAPIA | AC93: ALCIONE LORDELO ARMENTANO SILVA | AD93: ACADEMIA MUNICIPAL DE SAUDE
B94: ÁLCOOL | D94: APAE | E94: ADQPAL ASSOC DOS DEPEN QUIMICOS E PORTADORES DE DOENCAS | F94: CLINICA APTA | G94: ATELIE DENTE E FACE | H94: ACADEMIA DA SAUDE CONJUNTO ALCIDES CARNEIRO | I94: ACADEMIA DA SAUDE DE QUIXADA | J94: ALERGOCENTRO EXCELENCIA EM ALERGIA | K94: AGILIS LABORATORIO DE PATOLOGIA | L94: ACADEMIA DA SAUDE DE ITAGUARU | M94: ACADEMIA DE SAUDE POVOADO PALMEIRAL | N94: ADRIANA COSTA C PARDAL RADIOLOGIA S S LTDA | O94: ADRIANA AVILA FONTOURA FERREIRA | P94: AB CLINICA DO CORACAO | Q94: ACADEMIA DE SAUDE DE BELTERRA | R94: ACADEMIA DA SAUDE TARGINO JOSE CONRADO PINTO | S94: A P A E NOVA ESPERANCA | T94: ACADEMIA DA SAUDE CAVALCANTI JUNIOR | U94: ACADEMIA DE RIO GRANDE DO PIAUI | V94: A R ESPECIALIDADES MEDICAS | W94: ALIANCA HOME CARE | X94: ACADEMIA AO AR LIVRE CENTRO | Y94: AMBAR FARMACIA DE MANIPULACAO | Z94: CLINICA MEDICA SAO PEDRO LTDA | AA94: ACADEMIA DA SAUDE ENO VIEIRA DE ANDRADE | AB94: A D RADIOVASC SERVICOS MEDICOS LTDA | AC94: ALDA MARIA HONORATO ALMEIDA | AD94: ACADEMIA MUNICIPAL DE SAUDE DE ITAPIRATINS
B95: ALDOLASE | D95: APAE | E95: ADRIANA DOS SANTOS SALDIVAR MENDONCA | F95: CLINICA BELO DENTE | G95: ATELIE DO SORRISO | H95: ACADEMIA DA SAUDE CRISTOVAM CIRNE PEREIRA | I95: ACADEMIA DA SAUDE DE RERIUTABA | J95: ALERGOCLINICA | K95: AGILIS LABORATORIO DE PATOLOGIA | L95: ACADEMIA DA SAUDE DE JANDAIA | M95: ACADEMIA DE SAUDE RAIMUNDO MEDEIROS DA CUNHA | N95: ADRIANA DE CASSIA BANDEIRA GOMES | O95: ADRIANA CRISTINA ANHOLETO | P95: AB GC SAUDE LTDA | Q95: ACADEMIA DE SAUDE DE DOM ELISEU | R95: ACADEMIA DA SAUDE UMBURANAS | S95: A P FISIOTERAPIA E PILATES | T95: ACADEMIA DA SAUDE CENTRO | U95: ACADEMIA DE SAUDE | V95: A S ALMEIDA SERVICOS MEDICOS S C LTDA | W95: ALIEN ANALISES CLINICAS | X95: ACADEMIA CAPAO ANGICO | Y95: AMBULATORIO DE ASSISTENCIA MEDICA PATRONAL ESBR | Z95: CLINICA MSA LTDA | AA95: ACADEMIA DA SAUDE ENTRE RIOS | AB95: A DE CAMPOS DMITRUK CLINICA MEDICA | AC95: ALDEIYDE LUZIA FAGUNDES PEREIRA | AD95: ACADEMIA MUNICIPAL DE SAUDE DE PEIXE
B96: ALDOSTERONA | D96: APS PLUS | E96: ADRIANA MARIA DE MEDEIROS PACHECO | F96: CLINICA BETHESDA | G96: ATENDIMENTO AMBULATORIAL ESPECIALIZADO DE PARINTINS | H96: ACADEMIA DA SAUDE DA BARRA | I96: ACADEMIA DA SAUDE DE RUSSAS | J96: ALESSANDRA FONSECA ENDOCRINOLOGIA | K96: AGILIZE MEDICINA E SEGURANCA DO TRABALHO | L96: ACADEMIA DA SAUDE DE MIMOSO DE GOIAS | M96: ACADEMIA DE SAUDE RESIDENCIAL JK | N96: ADRIANA MARIA BUENO BRANDAO | O96: ADRIANA GARCIA GABAS MIGLIOLI | P96: AB NEUROCIRURGICA | Q96: ACADEMIA DE SAUDE DE IRITUIA | R96: ACADEMIA DA SAUDE VALMIR RAIMUNDO PEREIRA | S96: A P M I ASSOCIACAO DE PROTECAO A MATERNIDADE E INFANCIA | T96: ACADEMIA DA SAUDE CENTRO | U96: ACADEMIA DE SAUDE | V96: A S CONSULTORIA E SERVICOS MEDICOS LARGO DO MACHADO | W96: ALINE ARAUJO NOGUEIRA | X96: ACADEMIA DA PRACA NOVA | Y96: AMBULATORIO DE TRANSPLANTE RENAL | Z96: CLINICA MULTIVIDA LTDA ME | AA96: ACADEMIA DA SAUDE FORMOSA DO SUL | AB96: A DE CAMPOS DMITRUK CLINICA MEDICA ME | AC96: ALENCAR NUNES SERVICOS MEDICOS E ODONTOLOGICOS | AD96: ACADENIA DE SAUDE
B97: ALFA 1-ANTITRIPSINA | D97: ARAUJO ODONTO | E97: ADRIANA PACHECO DE OLIVEIRA | F97: CLINICA BETHESDA | G97: ATENDIMENTO MOVEL DE EMERGENCIA AME TEFE | H97: ACADEMIA DA SAUDE DE AMARGOSA | I97: ACADEMIA DA SAUDE DE SABOEIRO | J97: ALESSANDRO HENRIQUE ALVES RIBEIRO | K97: AGLIBERTO BALIANO CARETA | L97: ACADEMIA DA SAUDE DE NOVA AURORA | M97: ACADEMIA DE SAUDE SABBAK | N97: ADRIANA MARIA DE CASTRO BORGES E LIMA | O97: ADRIANA GIULIANI | P97: ABA INTERVENCOES CLINICA DE TERAPIAS INTEGRADAS | Q97: ACADEMIA DE SAUDE DE MAGALHAES BARATA | R97: ACADEMIA DA SAUDE VEREADORA ANTONIA BERNARDINO DE OLIVEIRA | S97: A R A | T97: ACADEMIA DA SAUDE CENTRO | U97: ACADEMIA DE SAUDE | V97: A S COR | W97: ALLAN CLAUDIO ASSUNCAO | X97: ACADEMIA DA SAUDE | Y97: AMBULATORIO ESPECIALIZADO | Z97: CLINICA ODONTOLOGICA 24HS SOCIEDADE CIVIL LTDA | AA97: ACADEMIA DA SAUDE GUARUJA LAGES | AB97: A DE CARVALHO CLINICA | AC97: ALESSANDRA ALMEIDA SACRAMENTO | AD97: ACUPUNTURA MEDICA
B98: ALFA 1-GLICOPROTEÍNA ÁCIDA (AGPA) | D98: ARNALDO THOMAZ CORDEIRO BARBOSA | E98: ADRIANA SEVERI ZANONI | F98: CLINICA DE FISIOTERAPIA DRA PATRICIA DIAS | G98: ATHO DERMA | H98: ACADEMIA DA SAUDE DE ANDARAI | I98: ACADEMIA DA SAUDE DE SANTANA DO CARIRI | J98: ALFA BAGNATO ODONTOLOGIA | K98: AGOSTINHO SERGIO FAVA LEITE | L98: ACADEMIA DA SAUDE DE NOVA ROMA | M98: ACADEMIA DE SAUDE SAO SEBASTIAO | N98: ADRIANA MARQUES MONTEIRO | O98: ADRIANA RAPHAEL MAGALHAES | P98: ABA INTERVENCOES PARA AUTISMO | Q98: ACADEMIA DE SAUDE DE MARUDA | R98: ACADEMIA DE SAUDA DE OLHO DAGUA | S98: A R MAIER SAUDE S S LTDA | T98: ACADEMIA DA SAUDE CENTRO | U98: ACADEMIA DE SAUDE | V98: A SARE R TRAGANTE | W98: ALMEIDA GALVAO PSICOLOGIA | X98: ACADEMIA DA SAUDE | Y98: AMBULATORIO JORGE TEIXEIRA DE OLIVEIRA | Z98: CLINICA ODONTOLOGICA INTELIGENTE LTDA | AA98: ACADEMIA DA SAUDE ITACOLOMI | AB98: A E B MEDICINA E PSICOLOGIA | AC98: ALESSANDRA BORGES RIBEIRO | AD98: AD ASTRA
B99: ALFA 1-MICROGLOBULINA | D99: ASISTENCIA MEDICA ESPECIALIZADA | E99: ADRIANO LUIZ DOS SANTOS MELO | F99: CLINICA DE FISIOTERAPIA E ACUPUNTURA | G99: AUDIMED | H99: ACADEMIA DA SAUDE DE BOA VISTA DO TUPIM | I99: ACADEMIA DA SAUDE DE SAO LUIS DO CURU | J99: ALFA DERMATOLOGIA AVANCADA | K99: AGUIA REMOCOES | L99: ACADEMIA DA SAUDE DE ORIZONA | M99: ACADEMIA DE SAUDE VEREADOR JOAO EVANGELISTA | N99: ADRIANA ODONTOLOGIA | O99: ADRIANA SANCHES SISTO | P99: ABA MEDICAL | Q99: ACADEMIA DE SAUDE DE MOCAJUBA | R99: ACADEMIA DE SAUDE | S99: A R MALDONADO CIA LTDA | T99: ACADEMIA DA SAUDE CENTRO | U99: ACADEMIA DE SAUDE | V99: A SERRA SERVICOS MEDICOS LTDA | W99: ALVARO BENEVIDES IMPLANTODONTIA | X99: ACADEMIA DA SAUDE | Y99: AMBULATORIO MEDICO ENESA | Z99: CLINICA ODONTOSORRIDENT LTDA | AA99: ACADEMIA DA SAUDE ITAJUBA | AB99: A E CLINICA ESTETICA LTDA ME | AC99: ALESSANDRA CRISTINA GUESSI | AD99: ADEUS VARIZES
B100: ALFA 2-MACROGLOBULINA | D100: ASTROGILZO BARBOSA FREIRE | E100: AEMBS | F100: CLINICA DE FISIOTERAPIA SPORTFISIO | G100: AUDIO NORTE CLINICA FONOAUDIOLOGICA | H100: ACADEMIA DA SAUDE DE BOM JESUS DA LAPA | I100: ACADEMIA DA SAUDE DE SAO NICOLAU | J100: ALFA PRIME ODONTOLOGIA | K100: AGUIAR ATENDIMENTO E CONSULTORIA | L100: ACADEMIA DA SAUDE DE PEROLANDIA | M100: ACADEMIA DE SAUDE VIDA SAUDAVEL | N100: ADRIANA OLIVEIRA PSICOLOGA | O100: ADRIANA SOUZA DUARTE | P100: ABAC | Q100: ACADEMIA DE SAUDE DE MOJU | R100: ACADEMIA DE SAUDE | S100: A S CURITIBA | T100: ACADEMIA DA SAUDE CIDADE CRIANCA | U100: ACADEMIA DE SAUDE | V100: A T ODONTOLOGIA INTEGRADA | W100: AMA PSICOLOGIA CLINICA | X100: ACADEMIA DA SAUDE | Y100: AMBULATORIO MEDICO J MALUCELLI | Z100: CLINICA OFTALMOLOGICA DE RORAIMA LTDA | AA100: ACADEMIA DA SAUDE JARDINOPOLIS | AB100: A E E CENTRO DE MEDICINA AVANCADA | AC100: ALESSANDRA DE ARAUJO SANTOS | AD100: ADEVAN PESSOA SILVA
B101: ALFA-2-ANTIPLASMINA | D101: AUDIOCLIN | E101: AERONAVE SAMU MACEIO | F101: CLINICA DE FISIOTERAPIA TURIBIO GUIMARAES | G101: AUDSET SAUDE | H101: ACADEMIA DA SAUDE DE BREJOES | I101: ACADEMIA DA SAUDE DE TABULEIRO DO NORTE | J101: ALFA RADIOLOGIA | K101: AH ODONTOLOGIA | L101: ACADEMIA DA SAUDE DE POSSE | M101: ACADEMIA DE SAUDE VIVA BEM A IDADE QUE TEM | N101: ADRIANO FELIPE GROFF FUNCK | O101: ADRIANE CHAGAS MELO | P101: ABB ELETRIFICACAO LTDA | Q101: ACADEMIA DE SAUDE DE SANTA BARBARA DO PARA | R101: ACADEMIA DE SAUDE | S101: A S GUIMARAES TERAPIA OCUPACIONAL | T101: ACADEMIA DA SAUDE COHAB 2 GARANHUNS | U101: ACADEMIA DE SAUDE | V101: A3 ODONTOLOGIA | W101: AMAAVA | X101: ACADEMIA DA SAUDE | Y101: AMBULATORIO SANTO ANTONIO ENERGIA SEA | Z101: CLINICA OFTALMOLOGICA MARCELO E BATISTA S S LTDA | AA101: ACADEMIA DA SAUDE MAFRA EM FORMA | AB101: A E I ODONTOLOGIA | AC101: ALESSANDRA MAIA VASCONCELOS SANTOS | AD101: ADILMA MARTINS DA SILVA MORAIS
B102: ALFA-2-ANTIPLASMINA (INIBIDOR DE PLASMINA) | D102: AUGUSTO VAZ PERFIL PLASTIC | E102: AJEANY ANGELICA BARBOSA FREIRE MENDES | F102: CLINICA DE GASTROENTEROLOGIA E ENDOSCOPIA DR NICODEMOS | G102: BANCO DE SANGUE | H102: ACADEMIA DA SAUDE DE BROTAS DE MACAUBAS | I102: ACADEMIA DA SAUDE DE UMARI | J102: ALFA RADIOLOGIA E TOMOGRAFIA ODONTOLOGICA DIGITAL | K102: AKYLA CRISTINA HINTZ BELZ | L102: ACADEMIA DA SAUDE DE SANTA ROSA | M102: ACADEMIA DO SUS DO CENTRO | N102: ADRICIONNE SOUZA DE CARVALHO | O102: ADRIANE TOZZINI TORRES | P102: ABBAC | Q102: ACADEMIA DE SAUDE DE SANTAREM NOVO | R102: ACADEMIA DE SAUDE | S102: A S NUTRICAO E QUALIDADE DE VIDA | T102: ACADEMIA DA SAUDE COHAB I | U102: ACADEMIA DE SAUDE | V102: A3 PROCEDIMENTOS MEDICO CIRURGICOS | W102: AMARY SAUDE ODONTOLOGICA | X102: ACADEMIA DA SAUDE | Y102: AMD | Z102: CLINICA OFTALMOLOGICA MERCELO E BATISTA LTDA | AA102: ACADEMIA DA SAUDE SANTA MONICA LAGES | AB102: A E L CLINICA DERMATOLOGICA | AC102: ALESSANDRA SILVA DE JESUS | AD102: ADRIANA GILIO CAMARGO COSTA ARAGUAINA
B103: ALFAFETOPROTEÍNA (AFP) | D103: BBP SERVICOS MEDICOS | E103: ALADA SERVICOS MEDICOS E ODONTOLOGICOS | F103: CLINICA DE ORTOPEDIA E TRUMATOLOGIA | G103: BARBARAH LUCCY FERREIRA PINTO | H103: ACADEMIA DA SAUDE DE BURIETA | I103: ACADEMIA DA SAUDE DO CALDEIRAO | J103: ALFA RADIOLOGIA E TOMOGRAFIA ODONTOLOGICA DIGITAL | K103: AL SERVICOS DE SAUDE | L103: ACADEMIA DA SAUDE DE SAO JOAO DALIANCA | M103: ACAI MED | N103: ADRIELY ARAUJO | O103: ADRIANO DA SILVA PSICOPEDAGOGIA E CLINICA | P103: ABBAC ANDRELANDIA | Q103: ACADEMIA DE SAUDE DE TRACUATEUA | R103: ACADEMIA DE SAUDE | S103: A S SANTOS ODONTOLOGIA | T103: ACADEMIA DA SAUDE COHAB II | U103: ACADEMIA DE SAUDE ACS SOLIMAR ARAUJO SILVA | V103: A4 ODONTOLOGIA | W103: AMBULATORIO MEDICO ESPECIALIZADO DE GUAMARE | X103: ACADEMIA DA SAUDE | Y103: AME AMBULATORIO MEDICO DE ESPECIALIDADES | Z103: CLINICA OLIVEIRA E COSTA LTDA | AA103: ACADEMIA DA SAUDE SAO CRISTOVAO | AB103: A ENDOCRINOLOGISTA | AC103: ALESSANDRO FONSECA GUIMARAES | AD103: ADRIANA MED
B104: ALFA-GLOBULINA | D104: BELLE PLASTICA | E104: ALBERSON MAYLSON RAMOS DA SILVA | F104: CLINICA DE TERAPIAS INTEGRADAS DE MACAPA | G104: BELLA FACE CLINICA ODONTOLOGICA | H104: ACADEMIA DA SAUDE DE CAPELA DO ALTO ALEGRE | I104: ACADEMIA DA SAUDE EUNICE DE ARAUJO LOPES | J104: ALFA REPRODUCAO HUMANA | K104: ALA LABORATORIO DE ANALISES CLINICAS | L104: ACADEMIA DA SAUDE DE SENADOR CANEDO | M104: ACOLHER ATENDIMENTO DOMICILIAR | N104: AF LABORATORIO MUNICIPAL | O104: ADSG SERVICOS MEDICOS LTDA ME | P104: ABBAC CATAGUASES MG | Q104: ACADEMIA DE SAUDE DE VILA MAU | R104: ACADEMIA DE SAUDE | S104: A SAID NETO SERVICOS DE AMBULANCIA | T104: ACADEMIA DA SAUDE COMUNIDADE FREI DAMIAO | U104: ACADEMIA DE SAUDE AO AR LIVRE | V104: AA FONSECA CONSULTORIO DENTARIO | W104: AMI | X104: ACADEMIA DA SAUDE | Y104: AME ASSISTENCIA MEDICA ESPECIALIZADA | Z104: CLINICA PEQUENOS CORACOES DE RORAIMA EIRELI ME | AA104: ACADEMIA DA SAUDE SAO SEBASTIAO | AB104: A EXPERIMENTAL | AC104: ALESSIVANIA DIONISIO DANTAS | AD104: AEQUILIBRIUM
B105: ALFA-MICROGLOBULINA-1 PLACENTÁRIA (PAMG-1) | D105: BELO JARDIM FARMA | E105: ALBUQUERQUE ACCIOLY SERVICOS ODONTOLOGICOS LTDA ME | F105: CLINICA DERMATOLOGICA DO AMAPA | G105: BELLA PELE DERMATOLOGIA | H105: ACADEMIA DA SAUDE DE CATU | I105: ACADEMIA DA SAUDE FAZENDINHA | J105: ALIANCA CENTRO MEDICO | K105: ALAN BONFIM DE SOUZA CAMPOS | L105: ACADEMIA DA SAUDE DE TRINDADE | M105: ACQUAFISIO | N105: AFIP | O105: AEQUILIBRIUM | P105: ABC CLINICA MEDICA LTDA | Q105: ACADEMIA DE SAUDE DE VISEU KM74 | R105: ACADEMIA DE SAUDE ANTONIO SOARES NEGROMONTE | S105: A SAUDE NA SUA CASA | T105: ACADEMIA DA SAUDE DA COLONIA | U105: ACADEMIA DE SAUDE AO AR LIVRE | V105: AAC PRO ORAL CLINICA DENTARIA | W105: AMI ASSISTENCIA MEDICA INFANTIL LTDA | X105: ACADEMIA DA SAUDE | Y105: AME SE CLINICA DE PSICOLOGIA | Z105: CLINICA PRO MATER LTDA ME | AA105: ACADEMIA DA SAUDE SERTAOZINHO | AB105: A F A P SERVICOS MEDICOS | AC105: ALEX CARVALHO COSTA | AD105: AFAGO CLINICA PEDIATRICA
B106: Algodao | D106: BIO VIDA ULTRASSONOGRAFIA LTDA | E106: ALCIDES BRANDAO DE MOURA NETO | F106: CLINICA DR DEOCI | G106: BELLO DENTE SOLUCOES EM ODONTOLOGIA | H106: ACADEMIA DA SAUDE DE FEIRA DA MATA | I106: ACADEMIA DA SAUDE II | J106: ALIANCA INSTITUTO DE ONCOLOGIA | K106: ALANDERSON ESTEVES DE ASSIS | L106: ACADEMIA DA SAUDE DE UIRAPURU | M106: ADECLINICA | N106: AFIP PS | O106: AESMT | P106: ABC OLHOS | Q106: ACADEMIA DE SAUDE DO ACARA | R106: ACADEMIA DE SAUDE AURORA BATISTA FAUSTINO | S106: A SEUMED CLINICA MEDICA E OFTALMOLOGICA | T106: ACADEMIA DA SAUDE DA ITA | U106: ACADEMIA DE SAUDE CENTRO | V106: AAC PRONTO ORAL DIA E NOITE CLINICA DENTARIA | W106: AMI DR RAIMUNDO DE MEDEIROS FERNANDES | X106: ACADEMIA DA SAUDE | Y106: AMELIO GENTIL CHIPOLA | Z106: CLINICA PRO SORRISO S S LTDA | AA106: ACADEMIA DA SAUDE TREZE TILIAS | AB106: A F C PRESTACAO DE SERVICOS MEDICOS | AC106: ALEX FRANCO DE CARVALHO | AD106: AFETO
B107: Alicate | D107: BIOMEDI ANALISES CLINICAS | E107: ALERGODERME LTDA | F107: CLINICA DR ROFF MIRANDA | G107: BEMOL FARMA AMAZONAS SHOPPING | H107: ACADEMIA DA SAUDE DE GONCALO | I107: ACADEMIA DA SAUDE III | J107: ALIANCA INSTITUTO DE ONCOLOGIA | K107: ALBA LENORA DE SOUZA PASSOS PEREIRA | L107: ACADEMIA DA SAUDE DE VILA BOA | M107: ADELANTE ATENDIMENTO E ESTUDOS EM PSICOLOGIA | N107: AFONSO HIDEO YAMAMOTO | O107: AF SERVICOS MEDICOS | P107: ABDMED | Q107: ACADEMIA DE SAUDE DO BAIRRO DA PALHA | R107: ACADEMIA DE SAUDE AVANI RODRIGUES DE OLIVEIRA | S107: A SEUMED CLINICA MEDICA E OFTALMOLOGICA | T107: ACADEMIA DA SAUDE DA PRACA MIGUEL ARRAES | U107: ACADEMIA DE SAUDE CHAPADA DA AROEIRA | V107: AACP | W107: AMICO | X107: ACADEMIA DA SAUDE | Y107: AMERICANA COMERCIO DE MEDICAMENTOS LTDA | Z107: CLINICA PROFTALMO LTDA ME | AA107: ACADEMIA DE SAUDE | AB107: A F ENGRACIA GARCIA NUTRICAO | AC107: ALEX NAUDSON DE OLIVEIRA MENEZES | AD107: AFETO ARAGUAINA
B108: Alicates Ortodonticos | D108: BOECHAT MEDICINA PREVENTIVA | E108: ALESSANDRA MARIA TAVARES MALHEIROS | F108: CLINICA DR SERGIO FREIRE | G108: BEMOL FARMA CIDADE NOVA | H108: ACADEMIA DA SAUDE DE GUANAMBI | I108: ACADEMIA DA SAUDE JOSE BENEVENUTO DE BRITO | J108: ALIANCA INSTITUTO DE ONCOLOGIA | K108: ALBA LEONORA DE SOUSA PASSOS PEREIRA | L108: ACADEMIA DA SAUDE DE VILA PROPICIO | M108: ADEMAR BRANCO BANDEIRA | N108: AFRANIO BATISTA DA COSTA | O108: AFIP | P108: ABERTTA SAUDE | Q108: ACADEMIA DE SAUDE DO DIAMANTINO | R108: ACADEMIA DE SAUDE BAIRRO NOVO | S108: A T SERVICOS MEDICOS | T108: ACADEMIA DA SAUDE DA RUA DO COMERCIO DE BREJINHO | U108: ACADEMIA DE SAUDE DE AROAZES | V108: AAD DERMATOLOGIA | W108: AMIGO DO PEITO | X108: ACADEMIA DA SAUDE | Y108: AMERICANA MANIPULACAO DE FORMULAS | Z108: CLINICA RABELOS LTDA | AA108: ACADEMIA DE SAUDE | AB108: A F F GALATI PSICOLOGIA | AC108: ALEX SANDRO ARAUJO SANTOS | AD108: AFETO SERVICOS MEDICOS
B109: Almofada | D109: BRUNA DA CRUZ BEYRUTH BORGES | E109: ALESSANDRA MENDES FREITAS | F109: CLINICA E LABORATORIO DA FAMILIA | G109: BIANCA LAVAREDA RAMOS | H109: ACADEMIA DA SAUDE DE IGRAPIUNA | I109: ACADEMIA DA SAUDE LUIZA NILZA CAMELO MARTINS | J109: ALIANCA MEDICINA DIAGNOSTICA | K109: ALBERMAR ROBERTS HARRIGAN | L109: ACADEMIA DA SAUDE DEUSLANDIA | M109: ADRIANE SILVA DE MESQUITA NOBRE | N109: AGAPE | O109: AG VASCULAR | P109: ABERTTA SAUDE | Q109: ACADEMIA DE SAUDE DO JADERLANDIA | R109: ACADEMIA DE SAUDE BESSA | S109: A TREVISAN SERVICOS MEDICOS LTDA | T109: ACADEMIA DA SAUDE DA VARZINHA | U109: ACADEMIA DE SAUDE DE BARRA GRANDE | V109: AAFABIANO | W109: AMO ASSISTENCIA MULTIDICIPLINAR | X109: ACADEMIA DA SAUDE | Y109: AMEV ATENDIMENTO MEDICO EM VILHENA | Z109: CLINICA RENAL DE RORAIMA LTDA | AA109: ACADEMIA DE SAUDE | AB109: A F GARRIGOS CLINICA MEDICA | AC109: ALEXANDRA BUARQUE RAMALHO | AD109: AGNA ALVES FERREIRA
